Workbook

Sheet RENT BAT PVPC 30Kwh
G1: 0.35 | H1: 0.29 | I1: 0.25 | K1: 0.16 | L1: 0.14 | M1: 0.11 | N1: 0.09 | O1: 0.08 | P1: 0.08 | U1: 0.27 | V1: 0.24 | W1: 0.2 | AB1: =INDIRECT(CONCATENATE("Y",AB2+4)) -> 31.60049114 | AD1: =INDIRECT(CONCATENATE("Y",AD2+4)) -> 32.64387653 | AF1: =INDIRECT(CONCATENATE("Y",AF2+4)) -> 32.64387653 | AH1: =INDIRECT(CONCATENATE("Y",AH2+4)) -> 33.16139152 | AJ1: =INDIRECT(CONCATENATE("Y",AJ2+4)) -> 33.16139152
A2: RENTABILIDAD BATERIA | D2: 30 | G2: CONSUMO COMPAÑÍA | R2: Ahorro en los X años | AB2: =MATCH(AC2,AC5:AC44,0) -> 6 | AC2: =MIN(AC5:AC44) -> 27427.65 | AD2: =MATCH(AE2,AE5:AE44,0) -> 9 | AE2: =MIN(AE5:AE44) -> 29930.3 | AF2: =MATCH(AG2,AG5:AG44,0) -> 9 | AG2: =MIN(AG5:AG44) -> 31845.45 | AH2: =MATCH(AI2,AI5:AI44,0) -> 11 | AI2: =MIN(AI5:AI44) -> 33441.6 | AJ2: =MATCH(AK2,AK5:AK44,0) -> 11 | AK2: =MIN(AK5:AK44) -> 34827
A3: ' | B3: Factura | C3: Coste Hardware | D3: Instalacion | E3: Inversion | F3: Ahorros(IBI) | G3: Kwh Punta | H3: Kwh Llano | I3: Kw Valle | J3: C | K3: Kwh P1 | L3: Kwh P2 | M3: Kwh P3 | N3: Kwh P4 | O3: Kwh P5 | P3: Kwh P6 | Q3: Total | R3: P Max 99.5 | S3: Prod Solar | T3: Consumido | U3: Exportado | V3: %Aut | W3: Dif Anual | X3: Dif Anterior | Y3: Dura Bat | Z3: Amortizacion | AB3: 5 | AC3: 5 años TOT | AD3: 10 | AE3: 10 años TOT | AF3: 15 | AG3: 15 años TOT | AH3: 20 | AI3: 20 años TOT | AJ3: 25 | AK3: 25 años TOT
A4: ORIGINAL | B4: 4524.54 | G4: 3743.782 | H4: 2723.003 | I4: 5026.124 | K4: 0 | L4: 0 | M4: 0 | N4: 0 | O4: 0 | P4: 0 | Q4: =Tabla9351225[[#This Row],[Kw Valle]]+Tabla9351225[[#This Row],[Kwh Llano]]+Tabla9351225[[#This Row],[Kwh Punta]]+Tabla9351225[[#This Row],[Kwh P1]]+Tabla9351225[[#This Row],[Kwh P2]]+Tabla9351225[[#This Row],[Kwh P3]]+Tabla9351225[[#This Row],[Kwh P4]]+Tabla9351225[[#This Row],[Kwh P5]]+Tabla9351225[[#This Row],[Kwh P6]] -> 11492.909 | AC4: =FV(INFLACCION,AB3,-$B$4,0) -> 22622.7 | AE4: =FV(INFLACCION,AD3,-$B$4,0) -> 45245.4 | AG4: =FV(INFLACCION,AF3,-$B$4,0) -> 67868.1 | AI4: =FV(INFLACCION,AH3,-$B$4,0) -> 90490.8 | AK4: =FV(INFLACCION,AJ3,-$B$4,0) -> 113113.5
A5: 1 | B5: 3410.74 | C5: 3000 | D5: =COSTE_BATERIA*CAPACIDAD_BATERIA -> 15000 | E5: =Tabla9351225[[#This Row],[ Instalacion]]+Tabla9351225[[#This Row],[Coste Hardware]] -> 18000 | G5: 57.10176 | H5: 39.48512 | I5: 11099.15616 | K5: 0 | L5: 0 | M5: 0 | N5: 0 | O5: 0 | P5: 0 | Q5: =Tabla9351225[[#This Row],[Kw Valle]]+Tabla9351225[[#This Row],[Kwh Llano]]+Tabla9351225[[#This Row],[Kwh Punta]]+Tabla9351225[[#This Row],[Kwh P1]]+Tabla9351225[[#This Row],[Kwh P2]]+Tabla9351225[[#This Row],[Kwh P3]]+Tabla9351225[[#This Row],[Kwh P4]]+Tabla9351225[[#This Row],[Kwh P5]]+Tabla9351225[[#This Row],[Kwh P6]] -> 11195.74304 | R5: 1018.76 | S5: 1364.27547 | T5: =Tabla9351225[[#This Row],[Prod Solar]]-Tabla9351225[[#This Row],[Exportado]] -> 0 | U5: 1364.27547 | V5: 0 | W5: =IF(B5=0,0,B$4-B5) -> 1113.8 | X5: =IF(B5=0,0,B4-B5) -> 1113.8 | Y5: 25.64246118 | Z5: =IF(W5=0,"No Disp",(Tabla9351225[[#This Row],[Inversion]]-Tabla9351225[[#This Row],[Ahorros(IBI)]])/W5) -> 16.16089064 | AA5: años | AB5: =IF($B5=0,"n/a",AC$4-(FV(INFLACCION,AB$3,-$B5,0))-$E5+$F5) -> -12431 | AC5: =IF(AB5<>"n/a",AC$4-AB5,"n/a") -> 35053.7 | AD5: =IF($B5=0,"n/a",AE$4-(FV(INFLACCION,AD$3,-$B5,0))-$E5+$F5) -> -6862 | AE5: =IF(AD5<>"n/a",AE$4-AD5,"n/a") -> 52107.4 | AF5: =IF($B5=0,"n/a",AG$4-(FV(INFLACCION,AF$3,-$B5,0))-$E5+$F5) -> -1293 | AG5: =IF(AF5<>"n/a",AG$4-AF5,"n/a") -> 69161.1 | AH5: =IF($B5=0,"n/a",AI$4-(FV(INFLACCION,AH$3,-$B5,0))-$E5+$F5) -> 4276 | AI5: =IF(AH5<>"n/a",AI$4-AH5,"n/a") -> 86214.8 | AJ5: =IF($B5=0,"n/a",AK$4-(FV(INFLACCION,AJ$3,-$B5,0))-$E5+$F5) -> 9845 | AK5: =IF(AJ5<>"n/a",AK$4-AJ5,"n/a") -> 103268.5
A6: 2 | B6: 2565.08 | C6: 4820 | D6: 15000 | E6: =Tabla9351225[[#This Row],[ Instalacion]]+Tabla9351225[[#This Row],[Coste Hardware]] -> 19820 | G6: 46.27422 | H6: 34.3783 | I6: 9763.269696 | K6: 0 | L6: 0 | M6: 0 | N6: 0 | O6: 0 | P6: 0 | Q6: =Tabla9351225[[#This Row],[Kw Valle]]+Tabla9351225[[#This Row],[Kwh Llano]]+Tabla9351225[[#This Row],[Kwh Punta]]+Tabla9351225[[#This Row],[Kwh P1]]+Tabla9351225[[#This Row],[Kwh P2]]+Tabla9351225[[#This Row],[Kwh P3]]+Tabla9351225[[#This Row],[Kwh P4]]+Tabla9351225[[#This Row],[Kwh P5]]+Tabla9351225[[#This Row],[Kwh P6]] -> 9843.922216 | R6: 2037.52 | S6: 2728.55094 | T6: =Tabla9351225[[#This Row],[Prod Solar]]-Tabla9351225[[#This Row],[Exportado]] -> 0 | U6: 2728.55094 | V6: 0 | W6: 1959.46 | X6: =IF(B6=0,0,B5-B6) -> 845.66 | Y6: 28.26740589 | Z6: =IF(W6=0,"No Disp",(Tabla9351225[[#This Row],[Inversion]]-Tabla9351225[[#This Row],[Ahorros(IBI)]])/W6) -> 10.11503169 | AA6: años | AB6: =IF($B6=0,"n/a",AC$4-(FV(INFLACCION,AB$3,-$B6,0))-$E6+$F6) -> -10022.7 | AC6: =IF(AB6<>"n/a",AC$4-AB6,"n/a") -> 32645.4 | AD6: -225.4 | AE6: =IF(AD6<>"n/a",AE$4-AD6,"n/a") -> 45470.8 | AF6: 9571.9 | AG6: =IF(AF6<>"n/a",AG$4-AF6,"n/a") -> 58296.2 | AH6: 19369.2 | AI6: =IF(AH6<>"n/a",AI$4-AH6,"n/a") -> 71121.6 | AJ6: 29166.5 | AK6: =IF(AJ6<>"n/a",AK$4-AJ6,"n/a") -> 83947
A7: 3 | B7: 1848.81 | C7: 5450 | D7: 15000 | E7: =Tabla9351225[[#This Row],[ Instalacion]]+Tabla9351225[[#This Row],[Coste Hardware]] -> 20450 | G7: 41.53233 | H7: 28.65341 | I7: 8794.820741 | K7: 0 | L7: 0 | M7: 0 | N7: 0 | O7: 0 | P7: 0 | Q7: =Tabla9351225[[#This Row],[Kw Valle]]+Tabla9351225[[#This Row],[Kwh Llano]]+Tabla9351225[[#This Row],[Kwh Punta]]+Tabla9351225[[#This Row],[Kwh P1]]+Tabla9351225[[#This Row],[Kwh P2]]+Tabla9351225[[#This Row],[Kwh P3]]+Tabla9351225[[#This Row],[Kwh P4]]+Tabla9351225[[#This Row],[Kwh P5]]+Tabla9351225[[#This Row],[Kwh P6]] -> 8865.006481 | R7: 3056.28 | S7: 4092.82641 | T7: =Tabla9351225[[#This Row],[Prod Solar]]-Tabla9351225[[#This Row],[Exportado]] -> 0 | U7: 4092.82641 | V7: 0 | W7: 2675.73 | X7: =IF(B7=0,0,B6-B7) -> 716.27 | Y7: 29.757511 | Z7: =IF(W7=0,"No Disp",(Tabla9351225[[#This Row],[Inversion]]-Tabla9351225[[#This Row],[Ahorros(IBI)]])/W7) -> 7.642774121 | AA7: años | AB7: -7071.35 | AC7: 29694.05 | AD7: 6307.3 | AE7: 38938.1 | AF7: 19685.95 | AG7: 48182.15 | AH7: 33064.6 | AI7: 57426.2 | AJ7: 46443.25 | AK7: 66670.25
A8: 4 | B8: 1340.45 | C8: 6300 | D8: 15000 | E8: =Tabla9351225[[#This Row],[ Instalacion]]+Tabla9351225[[#This Row],[Coste Hardware]] -> 21300 | G8: 38.23604 | H8: 24.9944 | I8: 8061.230771 | K8: 0 | L8: 0 | M8: 0 | N8: 0 | O8: 0 | P8: 0 | Q8: =Tabla9351225[[#This Row],[Kw Valle]]+Tabla9351225[[#This Row],[Kwh Llano]]+Tabla9351225[[#This Row],[Kwh Punta]]+Tabla9351225[[#This Row],[Kwh P1]]+Tabla9351225[[#This Row],[Kwh P2]]+Tabla9351225[[#This Row],[Kwh P3]]+Tabla9351225[[#This Row],[Kwh P4]]+Tabla9351225[[#This Row],[Kwh P5]]+Tabla9351225[[#This Row],[Kwh P6]] -> 8124.461211 | R8: 4075.04 | S8: 5457.10188 | T8: =Tabla9351225[[#This Row],[Prod Solar]]-Tabla9351225[[#This Row],[Exportado]] -> 0 | U8: 5457.10188 | V8: 0 | W8: 3184.09 | X8: =IF(B8=0,0,B7-B8) -> 508.36 | Y8: 30.52650073 | Z8: =IF(W8=0,"No Disp",(Tabla9351225[[#This Row],[Inversion]]-Tabla9351225[[#This Row],[Ahorros(IBI)]])/W8) -> 6.689509405 | AA8: años | AB8: -5379.55 | AC8: 28002.25 | AD8: 10540.9 | AE8: 34704.5 | AF8: 26461.35 | AG8: 41406.75 | AH8: 42381.8 | AI8: 48109 | AJ8: 58302.25 | AK8: 54811.25
A9: 5 | B9: 1048.93 | C9: 7200 | D9: 15000 | E9: =Tabla9351225[[#This Row],[ Instalacion]]+Tabla9351225[[#This Row],[Coste Hardware]] -> 22200 | G9: 35.30905 | H9: 22.7525 | I9: 7470.344409 | K9: 0 | L9: 0 | M9: 0 | N9: 0 | O9: 0 | P9: 0 | Q9: =Tabla9351225[[#This Row],[Kw Valle]]+Tabla9351225[[#This Row],[Kwh Llano]]+Tabla9351225[[#This Row],[Kwh Punta]]+Tabla9351225[[#This Row],[Kwh P1]]+Tabla9351225[[#This Row],[Kwh P2]]+Tabla9351225[[#This Row],[Kwh P3]]+Tabla9351225[[#This Row],[Kwh P4]]+Tabla9351225[[#This Row],[Kwh P5]]+Tabla9351225[[#This Row],[Kwh P6]] -> 7528.405959 | R9: 5093.8 | S9: 6821.37735 | T9: =Tabla9351225[[#This Row],[Prod Solar]]-Tabla9351225[[#This Row],[Exportado]] -> 0 | U9: 6821.37735 | V9: 0 | W9: 3475.61 | X9: 291.52 | Y9: 31.12423862 | Z9: =IF(W9=0,"No Disp",(Tabla9351225[[#This Row],[Inversion]]-Tabla9351225[[#This Row],[Ahorros(IBI)]])/W9) -> 6.387367973 | AA9: años | AB9: -4821.95 | AC9: 27444.65 | AD9: 12556.1 | AE9: 32689.3 | AF9: 29934.15 | AG9: 37933.95 | AH9: 47312.2 | AI9: 43178.6 | AJ9: 64690.25 | AK9: 48423.25
A10: 6 | B10: 825.53 | C10: 8300 | D10: 15000 | E10: =Tabla9351225[[#This Row],[ Instalacion]]+Tabla9351225[[#This Row],[Coste Hardware]] -> 23300 | G10: 32.67752 | H10: 20.21514 | I10: 7001.602677 | K10: 0 | L10: 0 | M10: 0 | N10: 0 | O10: 0 | P10: 0 | Q10: =Tabla9351225[[#This Row],[Kw Valle]]+Tabla9351225[[#This Row],[Kwh Llano]]+Tabla9351225[[#This Row],[Kwh Punta]]+Tabla9351225[[#This Row],[Kwh P1]]+Tabla9351225[[#This Row],[Kwh P2]]+Tabla9351225[[#This Row],[Kwh P3]]+Tabla9351225[[#This Row],[Kwh P4]]+Tabla9351225[[#This Row],[Kwh P5]]+Tabla9351225[[#This Row],[Kwh P6]] -> 7054.495337 | R10: 6112.56 | S10: 8185.65282 | T10: =Tabla9351225[[#This Row],[Prod Solar]]-Tabla9351225[[#This Row],[Exportado]] -> 0 | U10: 8185.65282 | V10: 0 | W10: 3699.01 | X10: 223.4 | Y10: 31.60049114 | Z10: =IF(W10=0,"No Disp",(Tabla9351225[[#This Row],[Inversion]]-Tabla9351225[[#This Row],[Ahorros(IBI)]])/W10) -> 6.298982701 | AA10: años | AB10: -4804.95 | AC10: 27427.65 | AD10: 13690.1 | AE10: 31555.3 | AF10: 32185.15 | AG10: 35682.95 | AH10: 50680.2 | AI10: 39810.6 | AJ10: 69175.25 | AK10: 43938.25
A11: 7 | B11: 636.46 | C11: 9300 | D11: 15000 | E11: =Tabla9351225[[#This Row],[ Instalacion]]+Tabla9351225[[#This Row],[Coste Hardware]] -> 24300 | G11: 30.87434 | H11: 16.84943 | I11: 6643.563163 | K11: 0 | L11: 0 | M11: 0 | N11: 0 | O11: 0 | P11: 0 | Q11: =Tabla9351225[[#This Row],[Kw Valle]]+Tabla9351225[[#This Row],[Kwh Llano]]+Tabla9351225[[#This Row],[Kwh Punta]]+Tabla9351225[[#This Row],[Kwh P1]]+Tabla9351225[[#This Row],[Kwh P2]]+Tabla9351225[[#This Row],[Kwh P3]]+Tabla9351225[[#This Row],[Kwh P4]]+Tabla9351225[[#This Row],[Kwh P5]]+Tabla9351225[[#This Row],[Kwh P6]] -> 6691.286933 | R11: 7131.32 | S11: 9549.92829 | T11: =Tabla9351225[[#This Row],[Prod Solar]]-Tabla9351225[[#This Row],[Exportado]] -> 0 | U11: 9549.92829 | V11: 0 | W11: 3888.08 | X11: 189.07 | Y11: 31.99266302 | Z11: =IF(W11=0,"No Disp",(Tabla9351225[[#This Row],[Inversion]]-Tabla9351225[[#This Row],[Ahorros(IBI)]])/W11) -> 6.249871402 | AA11: años | AB11: -4859.6 | AC11: 27482.3 | AD11: 14580.8 | AE11: 30664.6 | AF11: 34021.2 | AG11: 33846.9 | AH11: 53461.6 | AI11: 37029.2 | AJ11: 72902 | AK11: 40211.5
A12: 8 | B12: 487.71 | C12: 10200 | D12: 15000 | E12: =Tabla9351225[[#This Row],[ Instalacion]]+Tabla9351225[[#This Row],[Coste Hardware]] -> 25200 | G12: 30.18296 | H12: 12.379618 | I12: 6357.362428 | K12: 0 | L12: 0 | M12: 0 | N12: 0 | O12: 0 | P12: 0 | Q12: =Tabla9351225[[#This Row],[Kw Valle]]+Tabla9351225[[#This Row],[Kwh Llano]]+Tabla9351225[[#This Row],[Kwh Punta]]+Tabla9351225[[#This Row],[Kwh P1]]+Tabla9351225[[#This Row],[Kwh P2]]+Tabla9351225[[#This Row],[Kwh P3]]+Tabla9351225[[#This Row],[Kwh P4]]+Tabla9351225[[#This Row],[Kwh P5]]+Tabla9351225[[#This Row],[Kwh P6]] -> 6399.925006 | R12: 8150.08 | S12: 10914.20376 | T12: =Tabla9351225[[#This Row],[Prod Solar]]-Tabla9351225[[#This Row],[Exportado]] -> 0 | U12: 10914.20376 | V12: 0 | W12: 4036.83 | X12: 148.75 | Y12: 32.3472339 | Z12: =IF(W12=0,"No Disp",(Tabla9351225[[#This Row],[Inversion]]-Tabla9351225[[#This Row],[Ahorros(IBI)]])/W12) -> 6.242521979 | AA12: años | AB12: -5015.85 | AC12: 27638.55 | AD12: 15168.3 | AE12: 30077.1 | AF12: 35352.45 | AG12: 32515.65 | AH12: 55536.6 | AI12: 34954.2 | AJ12: 75720.75 | AK12: 37392.75
A13: 9 | B13: 383.03 | C13: 11100 | D13: 15000 | E13: =Tabla9351225[[#This Row],[ Instalacion]]+Tabla9351225[[#This Row],[Coste Hardware]] -> 26100 | G13: 28.38848 | H13: 9.2173815 | I13: 6121.944393 | K13: 0 | L13: 0 | M13: 0 | N13: 0 | O13: 0 | P13: 0 | Q13: =Tabla9351225[[#This Row],[Kw Valle]]+Tabla9351225[[#This Row],[Kwh Llano]]+Tabla9351225[[#This Row],[Kwh Punta]]+Tabla9351225[[#This Row],[Kwh P1]]+Tabla9351225[[#This Row],[Kwh P2]]+Tabla9351225[[#This Row],[Kwh P3]]+Tabla9351225[[#This Row],[Kwh P4]]+Tabla9351225[[#This Row],[Kwh P5]]+Tabla9351225[[#This Row],[Kwh P6]] -> 6159.550255 | R13: 9168.84 | S13: 12278.47923 | T13: =Tabla9351225[[#This Row],[Prod Solar]]-Tabla9351225[[#This Row],[Exportado]] -> 0 | U13: 12278.47923 | V13: 0 | W13: 4141.51 | X13: 104.68 | Y13: 32.64387653 | Z13: =IF(W13=0,"No Disp",(Tabla9351225[[#This Row],[Inversion]]-Tabla9351225[[#This Row],[Ahorros(IBI)]])/W13) -> 6.302049253 | AA13: años | AB13: -5392.45 | AC13: 28015.15 | AD13: 15315.1 | AE13: 29930.3 | AF13: 36022.65 | AG13: 31845.45 | AH13: 56730.2 | AI13: 33760.6 | AJ13: 77437.75 | AK13: 35675.75
A14: 10 | B14: 329.25 | C14: 12000 | D14: 15000 | E14: =Tabla9351225[[#This Row],[ Instalacion]]+Tabla9351225[[#This Row],[Coste Hardware]] -> 27000 | G14: 25.4552 | H14: 9.025 | I14: 5909.142604 | K14: 0 | L14: 0 | M14: 0 | N14: 0 | O14: 0 | P14: 0 | Q14: =Tabla9351225[[#This Row],[Kw Valle]]+Tabla9351225[[#This Row],[Kwh Llano]]+Tabla9351225[[#This Row],[Kwh Punta]]+Tabla9351225[[#This Row],[Kwh P1]]+Tabla9351225[[#This Row],[Kwh P2]]+Tabla9351225[[#This Row],[Kwh P3]]+Tabla9351225[[#This Row],[Kwh P4]]+Tabla9351225[[#This Row],[Kwh P5]]+Tabla9351225[[#This Row],[Kwh P6]] -> 5943.622804 | R14: 10187.6 | S14: 13642.7547 | T14: =Tabla9351225[[#This Row],[Prod Solar]]-Tabla9351225[[#This Row],[Exportado]] -> 0 | U14: 13642.7547 | V14: 0 | W14: 4195.29 | X14: 53.78 | Y14: 32.90245737 | Z14: =IF(W14=0,"No Disp",(Tabla9351225[[#This Row],[Inversion]]-Tabla9351225[[#This Row],[Ahorros(IBI)]])/W14) -> 6.435788706 | AA14: años | AB14: -6023.55 | AC14: 28646.25 | AD14: 14952.9 | AE14: 30292.5 | AF14: 35929.35 | AG14: 31938.75 | AH14: 56905.8 | AI14: 33585 | AJ14: 77882.25 | AK14: 35231.25
A15: 11 | B15: 277.08 | C15: 12900 | D15: 15000 | E15: =Tabla9351225[[#This Row],[ Instalacion]]+Tabla9351225[[#This Row],[Coste Hardware]] -> 27900 | G15: 22.5275 | H15: 9.025 | I15: 5723.266411 | K15: 0 | L15: 0 | M15: 0 | N15: 0 | O15: 0 | P15: 0 | Q15: =Tabla9351225[[#This Row],[Kw Valle]]+Tabla9351225[[#This Row],[Kwh Llano]]+Tabla9351225[[#This Row],[Kwh Punta]]+Tabla9351225[[#This Row],[Kwh P1]]+Tabla9351225[[#This Row],[Kwh P2]]+Tabla9351225[[#This Row],[Kwh P3]]+Tabla9351225[[#This Row],[Kwh P4]]+Tabla9351225[[#This Row],[Kwh P5]]+Tabla9351225[[#This Row],[Kwh P6]] -> 5754.818911 | R15: 11206.36 | S15: 15007.03017 | T15: =Tabla9351225[[#This Row],[Prod Solar]]-Tabla9351225[[#This Row],[Exportado]] -> 0 | U15: 15007.03017 | V15: 0 | W15: 4247.46 | X15: 52.17 | Y15: 33.16139152 | Z15: =IF(W15=0,"No Disp",(Tabla9351225[[#This Row],[Inversion]]-Tabla9351225[[#This Row],[Ahorros(IBI)]])/W15) -> 6.568631606 | AA15: años | AB15: -6662.7 | AC15: 29285.4 | AD15: 14574.6 | AE15: 30670.8 | AF15: 35811.9 | AG15: 32056.2 | AH15: 57049.2 | AI15: 33441.6 | AJ15: 78286.5 | AK15: 34827
A16: 12 | B16: 260.07 | C16: 13800 | D16: 15000 | E16: =Tabla9351225[[#This Row],[ Instalacion]]+Tabla9351225[[#This Row],[Coste Hardware]] -> 28800 | G16: 19.6253 | H16: 9.025 | I16: 5565.352205 | K16: 0 | L16: 0 | M16: 0 | N16: 0 | O16: 0 | P16: 0 | Q16: =Tabla9351225[[#This Row],[Kw Valle]]+Tabla9351225[[#This Row],[Kwh Llano]]+Tabla9351225[[#This Row],[Kwh Punta]]+Tabla9351225[[#This Row],[Kwh P1]]+Tabla9351225[[#This Row],[Kwh P2]]+Tabla9351225[[#This Row],[Kwh P3]]+Tabla9351225[[#This Row],[Kwh P4]]+Tabla9351225[[#This Row],[Kwh P5]]+Tabla9351225[[#This Row],[Kwh P6]] -> 5594.002505 | R16: 12225.12 | S16: 16371.30564 | T16: =Tabla9351225[[#This Row],[Prod Solar]]-Tabla9351225[[#This Row],[Exportado]] -> 0 | U16: 16371.30564 | V16: 0 | W16: 4264.47 | X16: 17.01 | Y16: 33.4326655 | Z16: =IF(W16=0,"No Disp",(Tabla9351225[[#This Row],[Inversion]]-Tabla9351225[[#This Row],[Ahorros(IBI)]])/W16) -> 6.753476985 | AA16: años | AB16: -7477.65 | AC16: 30100.35 | AD16: 13844.7 | AE16: 31400.7 | AF16: 35167.05 | AG16: 32701.05 | AH16: 56489.4 | AI16: 34001.4 | AJ16: 77811.75 | AK16: 35301.75
A17: 13 | B17: 260.07 | C17: 14700 | D17: 15000 | E17: =Tabla9351225[[#This Row],[ Instalacion]]+Tabla9351225[[#This Row],[Coste Hardware]] -> 29700 | G17: 16.7231 | H17: 9.025 | I17: 5431.53449 | K17: 0 | L17: 0 | M17: 0 | N17: 0 | O17: 0 | P17: 0 | Q17: =Tabla9351225[[#This Row],[Kw Valle]]+Tabla9351225[[#This Row],[Kwh Llano]]+Tabla9351225[[#This Row],[Kwh Punta]]+Tabla9351225[[#This Row],[Kwh P1]]+Tabla9351225[[#This Row],[Kwh P2]]+Tabla9351225[[#This Row],[Kwh P3]]+Tabla9351225[[#This Row],[Kwh P4]]+Tabla9351225[[#This Row],[Kwh P5]]+Tabla9351225[[#This Row],[Kwh P6]] -> 5457.28259 | R17: 13243.88 | S17: 17735.58111 | T17: =Tabla9351225[[#This Row],[Prod Solar]]-Tabla9351225[[#This Row],[Exportado]] -> 0 | U17: 17735.58111 | V17: 0 | W17: 4264.47 | X17: 0 | Y17: 33.70739806 | Z17: =IF(W17=0,"No Disp",(Tabla9351225[[#This Row],[Inversion]]-Tabla9351225[[#This Row],[Ahorros(IBI)]])/W17) -> 6.964523141 | AA17: años | AB17: -8377.65 | AC17: 31000.35 | AD17: 12944.7 | AE17: 32300.7 | AF17: 34267.05 | AG17: 33601.05 | AH17: 55589.4 | AI17: 34901.4 | AJ17: 76911.75 | AK17: 36201.75
A18: 14 | B18: 260.07 | C18: 15600 | D18: 15000 | E18: =Tabla9351225[[#This Row],[ Instalacion]]+Tabla9351225[[#This Row],[Coste Hardware]] -> 30600 | G18: 13.838972 | H18: 9.025 | I18: 5315.791246 | K18: 0 | L18: 0 | M18: 0 | N18: 0 | O18: 0 | P18: 0 | Q18: =Tabla9351225[[#This Row],[Kw Valle]]+Tabla9351225[[#This Row],[Kwh Llano]]+Tabla9351225[[#This Row],[Kwh Punta]]+Tabla9351225[[#This Row],[Kwh P1]]+Tabla9351225[[#This Row],[Kwh P2]]+Tabla9351225[[#This Row],[Kwh P3]]+Tabla9351225[[#This Row],[Kwh P4]]+Tabla9351225[[#This Row],[Kwh P5]]+Tabla9351225[[#This Row],[Kwh P6]] -> 5338.655218 | R18: 14262.64 | S18: 19099.85658 | T18: =Tabla9351225[[#This Row],[Prod Solar]]-Tabla9351225[[#This Row],[Exportado]] -> 0 | U18: 19099.85658 | V18: 0 | W18: 4264.47 | X18: 0 | Y18: 33.98179407 | Z18: =IF(W18=0,"No Disp",(Tabla9351225[[#This Row],[Inversion]]-Tabla9351225[[#This Row],[Ahorros(IBI)]])/W18) -> 7.175569297 | AA18: años | AB18: -9277.65 | AC18: 31900.35 | AD18: 12044.7 | AE18: 33200.7 | AF18: 33367.05 | AG18: 34501.05 | AH18: 54689.4 | AI18: 35801.4 | AJ18: 76011.75 | AK18: 37101.75
A19: 15 | B19: 260.07 | C19: 16500 | D19: 15000 | E19: =Tabla9351225[[#This Row],[ Instalacion]]+Tabla9351225[[#This Row],[Coste Hardware]] -> 31500 | G19: 11.02736 | H19: 9.025 | I19: 5216.267666 | K19: 0 | L19: 0 | M19: 0 | N19: 0 | O19: 0 | P19: 0 | Q19: =Tabla9351225[[#This Row],[Kw Valle]]+Tabla9351225[[#This Row],[Kwh Llano]]+Tabla9351225[[#This Row],[Kwh Punta]]+Tabla9351225[[#This Row],[Kwh P1]]+Tabla9351225[[#This Row],[Kwh P2]]+Tabla9351225[[#This Row],[Kwh P3]]+Tabla9351225[[#This Row],[Kwh P4]]+Tabla9351225[[#This Row],[Kwh P5]]+Tabla9351225[[#This Row],[Kwh P6]] -> 5236.320026 | R19: 15281.4 | S19: 20464.13205 | T19: =Tabla9351225[[#This Row],[Prod Solar]]-Tabla9351225[[#This Row],[Exportado]] -> 0 | U19: 20464.13205 | V19: 0 | W19: 4264.47 | X19: 0 | Y19: 34.21629756 | Z19: =IF(W19=0,"No Disp",(Tabla9351225[[#This Row],[Inversion]]-Tabla9351225[[#This Row],[Ahorros(IBI)]])/W19) -> 7.386615453 | AA19: años | AB19: -10177.65 | AC19: 32800.35 | AD19: 11144.7 | AE19: 34100.7 | AF19: 32467.05 | AG19: 35401.05 | AH19: 53789.4 | AI19: 36701.4 | AJ19: 75111.75 | AK19: 38001.75
A20: 16 | C20: =C19+900 -> 17400 | D20: 15000 | E20: =Tabla9351225[[#This Row],[ Instalacion]]+Tabla9351225[[#This Row],[Coste Hardware]] -> 32400 | Q20: =Tabla9351225[[#This Row],[Kw Valle]]+Tabla9351225[[#This Row],[Kwh Llano]]+Tabla9351225[[#This Row],[Kwh Punta]]+Tabla9351225[[#This Row],[Kwh P1]]+Tabla9351225[[#This Row],[Kwh P2]]+Tabla9351225[[#This Row],[Kwh P3]]+Tabla9351225[[#This Row],[Kwh P4]]+Tabla9351225[[#This Row],[Kwh P5]]+Tabla9351225[[#This Row],[Kwh P6]] -> 0 | T20: =Tabla9351225[[#This Row],[Prod Solar]]-Tabla9351225[[#This Row],[Exportado]] -> 0 | W20: 0 | X20: 0 | Y20: 39.84302229 | Z20: =IF(W20=0,"No Disp",(Tabla9351225[[#This Row],[Inversion]]-Tabla9351225[[#This Row],[Ahorros(IBI)]])/W20) -> No Disp | AA20: años | AB20: n/a | AC20: n/a | AD20: n/a | AE20: n/a | AF20: n/a | AG20: n/a | AH20: n/a | AI20: n/a | AJ20: n/a | AK20: n/a
A21: 17 | C21: =C20+900 -> 18300 | D21: 15000 | E21: =Tabla9351225[[#This Row],[ Instalacion]]+Tabla9351225[[#This Row],[Coste Hardware]] -> 33300 | Q21: =Tabla9351225[[#This Row],[Kw Valle]]+Tabla9351225[[#This Row],[Kwh Llano]]+Tabla9351225[[#This Row],[Kwh Punta]]+Tabla9351225[[#This Row],[Kwh P1]]+Tabla9351225[[#This Row],[Kwh P2]]+Tabla9351225[[#This Row],[Kwh P3]]+Tabla9351225[[#This Row],[Kwh P4]]+Tabla9351225[[#This Row],[Kwh P5]]+Tabla9351225[[#This Row],[Kwh P6]] -> 0 | T21: =Tabla9351225[[#This Row],[Prod Solar]]-Tabla9351225[[#This Row],[Exportado]] -> 0 | W21: 0 | X21: 0 | Y21: 36.85281197 | Z21: =IF(W21=0,"No Disp",(Tabla9351225[[#This Row],[Inversion]]-Tabla9351225[[#This Row],[Ahorros(IBI)]])/W21) -> No Disp | AA21: años | AB21: n/a | AC21: n/a | AD21: n/a | AE21: n/a | AF21: n/a | AG21: n/a | AH21: n/a | AI21: n/a | AJ21: n/a | AK21: n/a
A22: 18 | C22: 19200 | D22: 15000 | E22: =Tabla9351225[[#This Row],[ Instalacion]]+Tabla9351225[[#This Row],[Coste Hardware]] -> 34200 | Q22: =Tabla9351225[[#This Row],[Kw Valle]]+Tabla9351225[[#This Row],[Kwh Llano]]+Tabla9351225[[#This Row],[Kwh Punta]]+Tabla9351225[[#This Row],[Kwh P1]]+Tabla9351225[[#This Row],[Kwh P2]]+Tabla9351225[[#This Row],[Kwh P3]]+Tabla9351225[[#This Row],[Kwh P4]]+Tabla9351225[[#This Row],[Kwh P5]]+Tabla9351225[[#This Row],[Kwh P6]] -> 0 | T22: =Tabla9351225[[#This Row],[Prod Solar]]-Tabla9351225[[#This Row],[Exportado]] -> 0 | W22: 0 | X22: 0 | Y22: 34.22636158 | Z22: =IF(W22=0,"No Disp",(Tabla9351225[[#This Row],[Inversion]]-Tabla9351225[[#This Row],[Ahorros(IBI)]])/W22) -> No Disp | AA22: años | AB22: n/a | AC22: n/a | AD22: n/a | AE22: n/a | AF22: n/a | AG22: n/a | AH22: n/a | AI22: n/a | AJ22: n/a | AK22: n/a
A23: 19 | C23: 20100 | D23: 15000 | E23: =Tabla9351225[[#This Row],[ Instalacion]]+Tabla9351225[[#This Row],[Coste Hardware]] -> 35100 | Q23: =Tabla9351225[[#This Row],[Kw Valle]]+Tabla9351225[[#This Row],[Kwh Llano]]+Tabla9351225[[#This Row],[Kwh Punta]]+Tabla9351225[[#This Row],[Kwh P1]]+Tabla9351225[[#This Row],[Kwh P2]]+Tabla9351225[[#This Row],[Kwh P3]]+Tabla9351225[[#This Row],[Kwh P4]]+Tabla9351225[[#This Row],[Kwh P5]]+Tabla9351225[[#This Row],[Kwh P6]] -> 0 | T23: =Tabla9351225[[#This Row],[Prod Solar]]-Tabla9351225[[#This Row],[Exportado]] -> 0 | W23: 0 | X23: 0 | Y23: 31.90588917 | Z23: =IF(W23=0,"No Disp",(Tabla9351225[[#This Row],[Inversion]]-Tabla9351225[[#This Row],[Ahorros(IBI)]])/W23) -> No Disp | AA23: años | AB23: n/a | AC23: n/a | AD23: n/a | AE23: n/a | AF23: n/a | AG23: n/a | AH23: n/a | AI23: n/a | AJ23: n/a | AK23: n/a
A24: 20 | C24: 21000 | D24: 15000 | E24: =Tabla9351225[[#This Row],[ Instalacion]]+Tabla9351225[[#This Row],[Coste Hardware]] -> 36000 | Q24: =Tabla9351225[[#This Row],[Kw Valle]]+Tabla9351225[[#This Row],[Kwh Llano]]+Tabla9351225[[#This Row],[Kwh Punta]]+Tabla9351225[[#This Row],[Kwh P1]]+Tabla9351225[[#This Row],[Kwh P2]]+Tabla9351225[[#This Row],[Kwh P3]]+Tabla9351225[[#This Row],[Kwh P4]]+Tabla9351225[[#This Row],[Kwh P5]]+Tabla9351225[[#This Row],[Kwh P6]] -> 0 | T24: =Tabla9351225[[#This Row],[Prod Solar]]-Tabla9351225[[#This Row],[Exportado]] -> 0 | W24: 0 | X24: 0 | Y24: 29.83296735 | Z24: =IF(W24=0,"No Disp",(Tabla9351225[[#This Row],[Inversion]]-Tabla9351225[[#This Row],[Ahorros(IBI)]])/W24) -> No Disp | AA24: años | AB24: n/a | AC24: n/a | AD24: n/a | AE24: n/a | AF24: n/a | AG24: n/a | AH24: n/a | AI24: n/a | AJ24: n/a | AK24: n/a
A25: 21 | C25: 21900 | D25: 15000 | E25: =Tabla9351225[[#This Row],[ Instalacion]]+Tabla9351225[[#This Row],[Coste Hardware]] -> 36900 | Q25: =Tabla9351225[[#This Row],[Kw Valle]]+Tabla9351225[[#This Row],[Kwh Llano]]+Tabla9351225[[#This Row],[Kwh Punta]]+Tabla9351225[[#This Row],[Kwh P1]]+Tabla9351225[[#This Row],[Kwh P2]]+Tabla9351225[[#This Row],[Kwh P3]]+Tabla9351225[[#This Row],[Kwh P4]]+Tabla9351225[[#This Row],[Kwh P5]]+Tabla9351225[[#This Row],[Kwh P6]] -> 0 | T25: =Tabla9351225[[#This Row],[Prod Solar]]-Tabla9351225[[#This Row],[Exportado]] -> 0 | W25: 0 | X25: 0 | Y25: 28.06658329 | Z25: =IF(W25=0,"No Disp",(Tabla9351225[[#This Row],[Inversion]]-Tabla9351225[[#This Row],[Ahorros(IBI)]])/W25) -> No Disp | AA25: años | AB25: n/a | AC25: n/a | AD25: n/a | AE25: n/a | AF25: n/a | AG25: n/a | AH25: n/a | AI25: n/a | AJ25: n/a | AK25: n/a
A26: 22 | C26: 22800 | D26: 15000 | E26: =Tabla9351225[[#This Row],[ Instalacion]]+Tabla9351225[[#This Row],[Coste Hardware]] -> 37800 | Q26: =Tabla9351225[[#This Row],[Kw Valle]]+Tabla9351225[[#This Row],[Kwh Llano]]+Tabla9351225[[#This Row],[Kwh Punta]]+Tabla9351225[[#This Row],[Kwh P1]]+Tabla9351225[[#This Row],[Kwh P2]]+Tabla9351225[[#This Row],[Kwh P3]]+Tabla9351225[[#This Row],[Kwh P4]]+Tabla9351225[[#This Row],[Kwh P5]]+Tabla9351225[[#This Row],[Kwh P6]] -> 0 | T26: =Tabla9351225[[#This Row],[Prod Solar]]-Tabla9351225[[#This Row],[Exportado]] -> 0 | W26: 0 | X26: 0 | Y26: 26.62710639 | Z26: =IF(W26=0,"No Disp",(Tabla9351225[[#This Row],[Inversion]]-Tabla9351225[[#This Row],[Ahorros(IBI)]])/W26) -> No Disp | AA26: años | AB26: n/a | AC26: n/a | AD26: n/a | AE26: n/a | AF26: n/a | AG26: n/a | AH26: n/a | AI26: n/a | AJ26: n/a | AK26: n/a
A27: 23 | C27: 23700 | D27: 15000 | E27: =Tabla9351225[[#This Row],[ Instalacion]]+Tabla9351225[[#This Row],[Coste Hardware]] -> 38700 | Q27: =Tabla9351225[[#This Row],[Kw Valle]]+Tabla9351225[[#This Row],[Kwh Llano]]+Tabla9351225[[#This Row],[Kwh Punta]]+Tabla9351225[[#This Row],[Kwh P1]]+Tabla9351225[[#This Row],[Kwh P2]]+Tabla9351225[[#This Row],[Kwh P3]]+Tabla9351225[[#This Row],[Kwh P4]]+Tabla9351225[[#This Row],[Kwh P5]]+Tabla9351225[[#This Row],[Kwh P6]] -> 0 | T27: =Tabla9351225[[#This Row],[Prod Solar]]-Tabla9351225[[#This Row],[Exportado]] -> 0 | W27: 0 | X27: 0 | Y27: 25.49089083 | Z27: =IF(W27=0,"No Disp",(Tabla9351225[[#This Row],[Inversion]]-Tabla9351225[[#This Row],[Ahorros(IBI)]])/W27) -> No Disp | AA27: años | AB27: n/a | AC27: n/a | AD27: n/a | AE27: n/a | AF27: n/a | AG27: n/a | AH27: n/a | AI27: n/a | AJ27: n/a | AK27: n/a
A28: 24 | C28: 24600 | D28: 15000 | E28: =Tabla9351225[[#This Row],[ Instalacion]]+Tabla9351225[[#This Row],[Coste Hardware]] -> 39600 | Q28: =Tabla9351225[[#This Row],[Kw Valle]]+Tabla9351225[[#This Row],[Kwh Llano]]+Tabla9351225[[#This Row],[Kwh Punta]]+Tabla9351225[[#This Row],[Kwh P1]]+Tabla9351225[[#This Row],[Kwh P2]]+Tabla9351225[[#This Row],[Kwh P3]]+Tabla9351225[[#This Row],[Kwh P4]]+Tabla9351225[[#This Row],[Kwh P5]]+Tabla9351225[[#This Row],[Kwh P6]] -> 0 | T28: =Tabla9351225[[#This Row],[Prod Solar]]-Tabla9351225[[#This Row],[Exportado]] -> 0 | W28: 0 | X28: 0 | Y28: 24.54445061 | Z28: =IF(W28=0,"No Disp",(Tabla9351225[[#This Row],[Inversion]]-Tabla9351225[[#This Row],[Ahorros(IBI)]])/W28) -> No Disp | AA28: años | AB28: n/a | AC28: n/a | AD28: n/a | AE28: n/a | AF28: n/a | AG28: n/a | AH28: n/a | AI28: n/a | AJ28: n/a | AK28: n/a
A29: 25 | C29: 25500 | D29: 15000 | E29: =Tabla9351225[[#This Row],[ Instalacion]]+Tabla9351225[[#This Row],[Coste Hardware]] -> 40500 | Q29: =Tabla9351225[[#This Row],[Kw Valle]]+Tabla9351225[[#This Row],[Kwh Llano]]+Tabla9351225[[#This Row],[Kwh Punta]]+Tabla9351225[[#This Row],[Kwh P1]]+Tabla9351225[[#This Row],[Kwh P2]]+Tabla9351225[[#This Row],[Kwh P3]]+Tabla9351225[[#This Row],[Kwh P4]]+Tabla9351225[[#This Row],[Kwh P5]]+Tabla9351225[[#This Row],[Kwh P6]] -> 0 | T29: =Tabla9351225[[#This Row],[Prod Solar]]-Tabla9351225[[#This Row],[Exportado]] -> 0 | W29: 0 | X29: 0 | Y29: 23.77221598 | Z29: =IF(W29=0,"No Disp",(Tabla9351225[[#This Row],[Inversion]]-Tabla9351225[[#This Row],[Ahorros(IBI)]])/W29) -> No Disp | AA29: años | AB29: n/a | AC29: n/a | AD29: n/a | AE29: n/a | AF29: n/a | AG29: n/a | AH29: n/a | AI29: n/a | AJ29: n/a | AK29: n/a
A30: 26 | C30: 26400 | D30: 15000 | E30: =Tabla9351225[[#This Row],[ Instalacion]]+Tabla9351225[[#This Row],[Coste Hardware]] -> 41400 | Q30: =Tabla9351225[[#This Row],[Kw Valle]]+Tabla9351225[[#This Row],[Kwh Llano]]+Tabla9351225[[#This Row],[Kwh Punta]]+Tabla9351225[[#This Row],[Kwh P1]]+Tabla9351225[[#This Row],[Kwh P2]]+Tabla9351225[[#This Row],[Kwh P3]]+Tabla9351225[[#This Row],[Kwh P4]]+Tabla9351225[[#This Row],[Kwh P5]]+Tabla9351225[[#This Row],[Kwh P6]] -> 0 | T30: =Tabla9351225[[#This Row],[Prod Solar]]-Tabla9351225[[#This Row],[Exportado]] -> 0 | W30: 0 | X30: 0 | Y30: 23.11036835 | Z30: =IF(W30=0,"No Disp",(Tabla9351225[[#This Row],[Inversion]]-Tabla9351225[[#This Row],[Ahorros(IBI)]])/W30) -> No Disp | AA30: años | AB30: n/a | AC30: n/a | AD30: n/a | AE30: n/a | AF30: n/a | AG30: n/a | AH30: n/a | AI30: n/a | AJ30: n/a | AK30: n/a
A31: 27 | C31: 27300 | D31: 15000 | E31: =Tabla9351225[[#This Row],[ Instalacion]]+Tabla9351225[[#This Row],[Coste Hardware]] -> 42300 | Q31: =Tabla9351225[[#This Row],[Kw Valle]]+Tabla9351225[[#This Row],[Kwh Llano]]+Tabla9351225[[#This Row],[Kwh Punta]]+Tabla9351225[[#This Row],[Kwh P1]]+Tabla9351225[[#This Row],[Kwh P2]]+Tabla9351225[[#This Row],[Kwh P3]]+Tabla9351225[[#This Row],[Kwh P4]]+Tabla9351225[[#This Row],[Kwh P5]]+Tabla9351225[[#This Row],[Kwh P6]] -> 0 | T31: =Tabla9351225[[#This Row],[Prod Solar]]-Tabla9351225[[#This Row],[Exportado]] -> 0 | W31: 0 | X31: 0 | Y31: 22.53298668 | Z31: =IF(W31=0,"No Disp",(Tabla9351225[[#This Row],[Inversion]]-Tabla9351225[[#This Row],[Ahorros(IBI)]])/W31) -> No Disp | AA31: años | AB31: n/a | AC31: n/a | AD31: n/a | AE31: n/a | AF31: n/a | AG31: n/a | AH31: n/a | AI31: n/a | AJ31: n/a | AK31: n/a
A32: 28 | C32: 28200 | D32: 15000 | E32: =Tabla9351225[[#This Row],[ Instalacion]]+Tabla9351225[[#This Row],[Coste Hardware]] -> 43200 | Q32: =Tabla9351225[[#This Row],[Kw Valle]]+Tabla9351225[[#This Row],[Kwh Llano]]+Tabla9351225[[#This Row],[Kwh Punta]]+Tabla9351225[[#This Row],[Kwh P1]]+Tabla9351225[[#This Row],[Kwh P2]]+Tabla9351225[[#This Row],[Kwh P3]]+Tabla9351225[[#This Row],[Kwh P4]]+Tabla9351225[[#This Row],[Kwh P5]]+Tabla9351225[[#This Row],[Kwh P6]] -> 0 | T32: =Tabla9351225[[#This Row],[Prod Solar]]-Tabla9351225[[#This Row],[Exportado]] -> 0 | W32: 0 | X32: 0 | Y32: 22.01199255 | Z32: =IF(W32=0,"No Disp",(Tabla9351225[[#This Row],[Inversion]]-Tabla9351225[[#This Row],[Ahorros(IBI)]])/W32) -> No Disp | AA32: años | AB32: n/a | AC32: n/a | AD32: n/a | AE32: n/a | AF32: n/a | AG32: n/a | AH32: n/a | AI32: n/a | AJ32: n/a | AK32: n/a
A33: 29 | C33: 29100 | D33: 15000 | E33: =Tabla9351225[[#This Row],[ Instalacion]]+Tabla9351225[[#This Row],[Coste Hardware]] -> 44100 | Q33: =Tabla9351225[[#This Row],[Kw Valle]]+Tabla9351225[[#This Row],[Kwh Llano]]+Tabla9351225[[#This Row],[Kwh Punta]]+Tabla9351225[[#This Row],[Kwh P1]]+Tabla9351225[[#This Row],[Kwh P2]]+Tabla9351225[[#This Row],[Kwh P3]]+Tabla9351225[[#This Row],[Kwh P4]]+Tabla9351225[[#This Row],[Kwh P5]]+Tabla9351225[[#This Row],[Kwh P6]] -> 0 | T33: =Tabla9351225[[#This Row],[Prod Solar]]-Tabla9351225[[#This Row],[Exportado]] -> 0 | W33: 0 | X33: 0 | Y33: 21.54584458 | Z33: =IF(W33=0,"No Disp",(Tabla9351225[[#This Row],[Inversion]]-Tabla9351225[[#This Row],[Ahorros(IBI)]])/W33) -> No Disp | AA33: años | AB33: n/a | AC33: n/a | AD33: n/a | AE33: n/a | AF33: n/a | AG33: n/a | AH33: n/a | AI33: n/a | AJ33: n/a | AK33: n/a
A34: 30 | C34: 30000 | D34: 15000 | E34: =Tabla9351225[[#This Row],[ Instalacion]]+Tabla9351225[[#This Row],[Coste Hardware]] -> 45000 | Q34: =Tabla9351225[[#This Row],[Kw Valle]]+Tabla9351225[[#This Row],[Kwh Llano]]+Tabla9351225[[#This Row],[Kwh Punta]]+Tabla9351225[[#This Row],[Kwh P1]]+Tabla9351225[[#This Row],[Kwh P2]]+Tabla9351225[[#This Row],[Kwh P3]]+Tabla9351225[[#This Row],[Kwh P4]]+Tabla9351225[[#This Row],[Kwh P5]]+Tabla9351225[[#This Row],[Kwh P6]] -> 0 | T34: =Tabla9351225[[#This Row],[Prod Solar]]-Tabla9351225[[#This Row],[Exportado]] -> 0 | W34: 0 | X34: 0 | Y34: 21.12061136 | Z34: =IF(W34=0,"No Disp",(Tabla9351225[[#This Row],[Inversion]]-Tabla9351225[[#This Row],[Ahorros(IBI)]])/W34) -> No Disp | AA34: años | AB34: n/a | AC34: n/a | AD34: n/a | AE34: n/a | AF34: n/a | AG34: n/a | AH34: n/a | AI34: n/a | AJ34: n/a | AK34: n/a
A35: 31 | C35: 30900 | D35: 15000 | E35: =Tabla9351225[[#This Row],[ Instalacion]]+Tabla9351225[[#This Row],[Coste Hardware]] -> 45900 | Q35: =Tabla9351225[[#This Row],[Kw Valle]]+Tabla9351225[[#This Row],[Kwh Llano]]+Tabla9351225[[#This Row],[Kwh Punta]]+Tabla9351225[[#This Row],[Kwh P1]]+Tabla9351225[[#This Row],[Kwh P2]]+Tabla9351225[[#This Row],[Kwh P3]]+Tabla9351225[[#This Row],[Kwh P4]]+Tabla9351225[[#This Row],[Kwh P5]]+Tabla9351225[[#This Row],[Kwh P6]] -> 0 | T35: =Tabla9351225[[#This Row],[Prod Solar]]-Tabla9351225[[#This Row],[Exportado]] -> 0 | W35: 0 | X35: 0 | Y35: 20.73654633 | Z35: =IF(W35=0,"No Disp",(Tabla9351225[[#This Row],[Inversion]]-Tabla9351225[[#This Row],[Ahorros(IBI)]])/W35) -> No Disp | AA35: años | AB35: n/a | AC35: n/a | AD35: n/a | AE35: n/a | AF35: n/a | AG35: n/a | AH35: n/a | AI35: n/a | AJ35: n/a | AK35: n/a
A36: 32 | C36: 31800 | D36: 15000 | E36: =Tabla9351225[[#This Row],[ Instalacion]]+Tabla9351225[[#This Row],[Coste Hardware]] -> 46800 | Q36: =Tabla9351225[[#This Row],[Kw Valle]]+Tabla9351225[[#This Row],[Kwh Llano]]+Tabla9351225[[#This Row],[Kwh Punta]]+Tabla9351225[[#This Row],[Kwh P1]]+Tabla9351225[[#This Row],[Kwh P2]]+Tabla9351225[[#This Row],[Kwh P3]]+Tabla9351225[[#This Row],[Kwh P4]]+Tabla9351225[[#This Row],[Kwh P5]]+Tabla9351225[[#This Row],[Kwh P6]] -> 0 | T36: =Tabla9351225[[#This Row],[Prod Solar]]-Tabla9351225[[#This Row],[Exportado]] -> 0 | W36: 0 | X36: 0 | Y36: 20.38576963 | Z36: =IF(W36=0,"No Disp",(Tabla9351225[[#This Row],[Inversion]]-Tabla9351225[[#This Row],[Ahorros(IBI)]])/W36) -> No Disp | AA36: años | AB36: n/a | AC36: n/a | AD36: n/a | AE36: n/a | AF36: n/a | AG36: n/a | AH36: n/a | AI36: n/a | AJ36: n/a | AK36: n/a
A37: 33 | C37: 32700 | D37: 15000 | E37: =Tabla9351225[[#This Row],[ Instalacion]]+Tabla9351225[[#This Row],[Coste Hardware]] -> 47700 | Q37: =Tabla9351225[[#This Row],[Kw Valle]]+Tabla9351225[[#This Row],[Kwh Llano]]+Tabla9351225[[#This Row],[Kwh Punta]]+Tabla9351225[[#This Row],[Kwh P1]]+Tabla9351225[[#This Row],[Kwh P2]]+Tabla9351225[[#This Row],[Kwh P3]]+Tabla9351225[[#This Row],[Kwh P4]]+Tabla9351225[[#This Row],[Kwh P5]]+Tabla9351225[[#This Row],[Kwh P6]] -> 0 | T37: =Tabla9351225[[#This Row],[Prod Solar]]-Tabla9351225[[#This Row],[Exportado]] -> 0 | W37: 0 | X37: 0 | Y37: 20.05629516 | Z37: =IF(W37=0,"No Disp",(Tabla9351225[[#This Row],[Inversion]]-Tabla9351225[[#This Row],[Ahorros(IBI)]])/W37) -> No Disp | AA37: años | AB37: n/a | AC37: n/a | AD37: n/a | AE37: n/a | AF37: n/a | AG37: n/a | AH37: n/a | AI37: n/a | AJ37: n/a | AK37: n/a
A38: 34 | C38: 33600 | D38: 15000 | E38: =Tabla9351225[[#This Row],[ Instalacion]]+Tabla9351225[[#This Row],[Coste Hardware]] -> 48600 | Q38: =Tabla9351225[[#This Row],[Kw Valle]]+Tabla9351225[[#This Row],[Kwh Llano]]+Tabla9351225[[#This Row],[Kwh Punta]]+Tabla9351225[[#This Row],[Kwh P1]]+Tabla9351225[[#This Row],[Kwh P2]]+Tabla9351225[[#This Row],[Kwh P3]]+Tabla9351225[[#This Row],[Kwh P4]]+Tabla9351225[[#This Row],[Kwh P5]]+Tabla9351225[[#This Row],[Kwh P6]] -> 0 | T38: =Tabla9351225[[#This Row],[Prod Solar]]-Tabla9351225[[#This Row],[Exportado]] -> 0 | W38: 0 | X38: 0 | Y38: 19.75077531 | Z38: =IF(W38=0,"No Disp",(Tabla9351225[[#This Row],[Inversion]]-Tabla9351225[[#This Row],[Ahorros(IBI)]])/W38) -> No Disp | AA38: años | AB38: n/a | AC38: n/a | AD38: n/a | AE38: n/a | AF38: n/a | AG38: n/a | AH38: n/a | AI38: n/a | AJ38: n/a | AK38: n/a
A39: 35 | C39: 34500 | D39: 15000 | E39: =Tabla9351225[[#This Row],[ Instalacion]]+Tabla9351225[[#This Row],[Coste Hardware]] -> 49500 | Q39: =Tabla9351225[[#This Row],[Kw Valle]]+Tabla9351225[[#This Row],[Kwh Llano]]+Tabla9351225[[#This Row],[Kwh Punta]]+Tabla9351225[[#This Row],[Kwh P1]]+Tabla9351225[[#This Row],[Kwh P2]]+Tabla9351225[[#This Row],[Kwh P3]]+Tabla9351225[[#This Row],[Kwh P4]]+Tabla9351225[[#This Row],[Kwh P5]]+Tabla9351225[[#This Row],[Kwh P6]] -> 0 | T39: =Tabla9351225[[#This Row],[Prod Solar]]-Tabla9351225[[#This Row],[Exportado]] -> 0 | W39: 0 | X39: 0 | Y39: 19.45970319 | Z39: =IF(W39=0,"No Disp",(Tabla9351225[[#This Row],[Inversion]]-Tabla9351225[[#This Row],[Ahorros(IBI)]])/W39) -> No Disp | AA39: años | AB39: n/a | AC39: n/a | AD39: n/a | AE39: n/a | AF39: n/a | AG39: n/a | AH39: n/a | AI39: n/a | AJ39: n/a | AK39: n/a
A40: 36 | C40: 35400 | D40: 15000 | E40: =Tabla9351225[[#This Row],[ Instalacion]]+Tabla9351225[[#This Row],[Coste Hardware]] -> 50400 | Q40: =Tabla9351225[[#This Row],[Kw Valle]]+Tabla9351225[[#This Row],[Kwh Llano]]+Tabla9351225[[#This Row],[Kwh Punta]]+Tabla9351225[[#This Row],[Kwh P1]]+Tabla9351225[[#This Row],[Kwh P2]]+Tabla9351225[[#This Row],[Kwh P3]]+Tabla9351225[[#This Row],[Kwh P4]]+Tabla9351225[[#This Row],[Kwh P5]]+Tabla9351225[[#This Row],[Kwh P6]] -> 0 | T40: =Tabla9351225[[#This Row],[Prod Solar]]-Tabla9351225[[#This Row],[Exportado]] -> 0 | W40: 0 | X40: 0 | Y40: 19.18663733 | Z40: =IF(W40=0,"No Disp",(Tabla9351225[[#This Row],[Inversion]]-Tabla9351225[[#This Row],[Ahorros(IBI)]])/W40) -> No Disp | AA40: años | AB40: n/a | AC40: n/a | AD40: n/a | AE40: n/a | AF40: n/a | AG40: n/a | AH40: n/a | AI40: n/a | AJ40: n/a | AK40: n/a
A41: 37 | C41: 36300 | D41: 15000 | E41: =Tabla9351225[[#This Row],[ Instalacion]]+Tabla9351225[[#This Row],[Coste Hardware]] -> 51300 | Q41: =Tabla9351225[[#This Row],[Kw Valle]]+Tabla9351225[[#This Row],[Kwh Llano]]+Tabla9351225[[#This Row],[Kwh Punta]]+Tabla9351225[[#This Row],[Kwh P1]]+Tabla9351225[[#This Row],[Kwh P2]]+Tabla9351225[[#This Row],[Kwh P3]]+Tabla9351225[[#This Row],[Kwh P4]]+Tabla9351225[[#This Row],[Kwh P5]]+Tabla9351225[[#This Row],[Kwh P6]] -> 0 | T41: =Tabla9351225[[#This Row],[Prod Solar]]-Tabla9351225[[#This Row],[Exportado]] -> 0 | W41: 0 | X41: 0 | Y41: 18.93584176 | Z41: =IF(W41=0,"No Disp",(Tabla9351225[[#This Row],[Inversion]]-Tabla9351225[[#This Row],[Ahorros(IBI)]])/W41) -> No Disp | AA41: años | AB41: n/a | AC41: n/a | AD41: n/a | AE41: n/a | AF41: n/a | AG41: n/a | AH41: n/a | AI41: n/a | AJ41: n/a | AK41: n/a
A42: 38 | C42: 37200 | D42: 15000 | E42: =Tabla9351225[[#This Row],[ Instalacion]]+Tabla9351225[[#This Row],[Coste Hardware]] -> 52200 | Q42: =Tabla9351225[[#This Row],[Kw Valle]]+Tabla9351225[[#This Row],[Kwh Llano]]+Tabla9351225[[#This Row],[Kwh Punta]]+Tabla9351225[[#This Row],[Kwh P1]]+Tabla9351225[[#This Row],[Kwh P2]]+Tabla9351225[[#This Row],[Kwh P3]]+Tabla9351225[[#This Row],[Kwh P4]]+Tabla9351225[[#This Row],[Kwh P5]]+Tabla9351225[[#This Row],[Kwh P6]] -> 0 | T42: =Tabla9351225[[#This Row],[Prod Solar]]-Tabla9351225[[#This Row],[Exportado]] -> 0 | W42: 0 | X42: 0 | Y42: 18.70422725 | Z42: =IF(W42=0,"No Disp",(Tabla9351225[[#This Row],[Inversion]]-Tabla9351225[[#This Row],[Ahorros(IBI)]])/W42) -> No Disp | AA42: años | AB42: n/a | AC42: n/a | AD42: n/a | AE42: n/a | AF42: n/a | AG42: n/a | AH42: n/a | AI42: n/a | AJ42: n/a | AK42: n/a
A43: 39 | C43: 38100 | D43: 15000 | E43: =Tabla9351225[[#This Row],[ Instalacion]]+Tabla9351225[[#This Row],[Coste Hardware]] -> 53100 | Q43: =Tabla9351225[[#This Row],[Kw Valle]]+Tabla9351225[[#This Row],[Kwh Llano]]+Tabla9351225[[#This Row],[Kwh Punta]]+Tabla9351225[[#This Row],[Kwh P1]]+Tabla9351225[[#This Row],[Kwh P2]]+Tabla9351225[[#This Row],[Kwh P3]]+Tabla9351225[[#This Row],[Kwh P4]]+Tabla9351225[[#This Row],[Kwh P5]]+Tabla9351225[[#This Row],[Kwh P6]] -> 0 | T43: =Tabla9351225[[#This Row],[Prod Solar]]-Tabla9351225[[#This Row],[Exportado]] -> 0 | W43: 0 | X43: 0 | Y43: 18.49558579 | Z43: =IF(W43=0,"No Disp",(Tabla9351225[[#This Row],[Inversion]]-Tabla9351225[[#This Row],[Ahorros(IBI)]])/W43) -> No Disp | AA43: años | AB43: n/a | AC43: n/a | AD43: n/a | AE43: n/a | AF43: n/a | AG43: n/a | AH43: n/a | AI43: n/a | AJ43: n/a | AK43: n/a
A44: 40 | C44: 39000 | D44: 15000 | E44: =Tabla9351225[[#This Row],[ Instalacion]]+Tabla9351225[[#This Row],[Coste Hardware]] -> 54000 | Q44: =Tabla9351225[[#This Row],[Kw Valle]]+Tabla9351225[[#This Row],[Kwh Llano]]+Tabla9351225[[#This Row],[Kwh Punta]]+Tabla9351225[[#This Row],[Kwh P1]]+Tabla9351225[[#This Row],[Kwh P2]]+Tabla9351225[[#This Row],[Kwh P3]]+Tabla9351225[[#This Row],[Kwh P4]]+Tabla9351225[[#This Row],[Kwh P5]]+Tabla9351225[[#This Row],[Kwh P6]] -> 0 | T44: =Tabla9351225[[#This Row],[Prod Solar]]-Tabla9351225[[#This Row],[Exportado]] -> 0 | W44: 0 | X44: 0 | Y44: 18.30669999 | Z44: =IF(W44=0,"No Disp",(Tabla9351225[[#This Row],[Inversion]]-Tabla9351225[[#This Row],[Ahorros(IBI)]])/W44) -> No Disp | AA44: años | AB44: n/a | AC44: n/a | AD44: n/a | AE44: n/a | AF44: n/a | AG44: n/a | AH44: n/a | AI44: n/a | AJ44: n/a | AK44: n/a

Sheet RENT BAT PVPC 20Kwh
G1: 0.35 | H1: 0.29 | I1: 0.25 | K1: 0.16 | L1: 0.14 | M1: 0.11 | N1: 0.09 | O1: 0.08 | P1: 0.08 | U1: 0.27 | V1: 0.24 | W1: 0.2 | AB1: =INDIRECT(CONCATENATE("Y",AB2+4)) -> 23.43244738 | AD1: =INDIRECT(CONCATENATE("Y",AD2+4)) -> 23.43151856 | AF1: =INDIRECT(CONCATENATE("Y",AF2+4)) -> 23.43151856 | AH1: =INDIRECT(CONCATENATE("Y",AH2+4)) -> 23.57965492 | AJ1: =INDIRECT(CONCATENATE("Y",AJ2+4)) -> 23.57965492
A2: RENTABILIDAD BATERIA | D2: 20 | G2: CONSUMO COMPAÑÍA | R2: Ahorro en los X años | AB2: =MATCH(AC2,AC5:AC44,0) -> 6 | AC2: =MIN(AC5:AC44) -> 22354.55 | AD2: =MATCH(AE2,AE5:AE44,0) -> 9 | AE2: =MIN(AE5:AE44) -> 24890 | AF2: =MATCH(AG2,AG5:AG44,0) -> 9 | AG2: =MIN(AG5:AG44) -> 26785 | AH2: =MATCH(AI2,AI5:AI44,0) -> 11 | AI2: =MIN(AI5:AI44) -> 28415.2 | AJ2: =MATCH(AK2,AK5:AK44,0) -> 11 | AK2: =MIN(AK5:AK44) -> 29794
A3: ' | B3: Factura | C3: Coste Hardware | D3: Instalacion | E3: Inversion | F3: Ahorros(IBI) | G3: Kwh Punta | H3: Kwh Llano | I3: Kw Valle | J3: C | K3: Kwh P1 | L3: Kwh P2 | M3: Kwh P3 | N3: Kwh P4 | O3: Kwh P5 | P3: Kwh P6 | Q3: Total | R3: P Max 99.5 | S3: Prod Solar | T3: Consumido | U3: Exportado | V3: %Aut | W3: Dif Anual | X3: Dif Anterior | Y3: Dura Bat | Z3: Amortizacion | AB3: 5 | AC3: 5 años TOT | AD3: 10 | AE3: 10 años TOT | AF3: 15 | AG3: 15 años TOT | AH3: 20 | AI3: 20 años TOT | AJ3: 25 | AK3: 25 años TOT
A4: ORIGINAL | B4: 4524.54 | G4: 3743.782 | H4: 2723.003 | I4: 5026.124 | K4: 0 | L4: 0 | M4: 0 | N4: 0 | O4: 0 | P4: 0 | Q4: =Tabla9351224[[#This Row],[Kw Valle]]+Tabla9351224[[#This Row],[Kwh Llano]]+Tabla9351224[[#This Row],[Kwh Punta]]+Tabla9351224[[#This Row],[Kwh P1]]+Tabla9351224[[#This Row],[Kwh P2]]+Tabla9351224[[#This Row],[Kwh P3]]+Tabla9351224[[#This Row],[Kwh P4]]+Tabla9351224[[#This Row],[Kwh P5]]+Tabla9351224[[#This Row],[Kwh P6]] -> 11492.909 | AC4: =FV(INFLACCION,AB3,-$B$4,0) -> 22622.7 | AE4: =FV(INFLACCION,AD3,-$B$4,0) -> 45245.4 | AG4: =FV(INFLACCION,AF3,-$B$4,0) -> 67868.1 | AI4: =FV(INFLACCION,AH3,-$B$4,0) -> 90490.8 | AK4: =FV(INFLACCION,AJ3,-$B$4,0) -> 113113.5
A5: 1 | B5: 3405.81 | C5: 3000 | D5: =COSTE_BATERIA*CAPACIDAD_BATERIA -> 10000 | E5: =Tabla9351224[[#This Row],[ Instalacion]]+Tabla9351224[[#This Row],[Coste Hardware]] -> 13000 | G5: 392.6665335 | H5: 353.2819085 | I5: 10249.85123 | K5: 0 | L5: 0 | M5: 0 | N5: 0 | O5: 0 | P5: 0 | Q5: =Tabla9351224[[#This Row],[Kw Valle]]+Tabla9351224[[#This Row],[Kwh Llano]]+Tabla9351224[[#This Row],[Kwh Punta]]+Tabla9351224[[#This Row],[Kwh P1]]+Tabla9351224[[#This Row],[Kwh P2]]+Tabla9351224[[#This Row],[Kwh P3]]+Tabla9351224[[#This Row],[Kwh P4]]+Tabla9351224[[#This Row],[Kwh P5]]+Tabla9351224[[#This Row],[Kwh P6]] -> 10995.79968 | R5: 1018.76 | S5: 1364.27547 | T5: =Tabla9351224[[#This Row],[Prod Solar]]-Tabla9351224[[#This Row],[Exportado]] -> 0 | U5: 1364.27547 | V5: 0 | W5: =IF(B5=0,0,B$4-B5) -> 1118.73 | X5: =IF(B5=0,0,B4-B5) -> 1118.73 | Y5: 20.85777604 | Z5: =IF(W5=0,"No Disp",(Tabla9351224[[#This Row],[Inversion]]-Tabla9351224[[#This Row],[Ahorros(IBI)]])/W5) -> 11.62031947 | AA5: años | AB5: =IF($B5=0,"n/a",AC$4-(FV(INFLACCION,AB$3,-$B5,0))-$E5+$F5) -> -7406.35 | AC5: =IF(AB5<>"n/a",AC$4-AB5,"n/a") -> 30029.05 | AD5: =IF($B5=0,"n/a",AE$4-(FV(INFLACCION,AD$3,-$B5,0))-$E5+$F5) -> -1812.7 | AE5: =IF(AD5<>"n/a",AE$4-AD5,"n/a") -> 47058.1 | AF5: =IF($B5=0,"n/a",AG$4-(FV(INFLACCION,AF$3,-$B5,0))-$E5+$F5) -> 3780.95 | AG5: =IF(AF5<>"n/a",AG$4-AF5,"n/a") -> 64087.15 | AH5: =IF($B5=0,"n/a",AI$4-(FV(INFLACCION,AH$3,-$B5,0))-$E5+$F5) -> 9374.6 | AI5: =IF(AH5<>"n/a",AI$4-AH5,"n/a") -> 81116.2 | AJ5: =IF($B5=0,"n/a",AK$4-(FV(INFLACCION,AJ$3,-$B5,0))-$E5+$F5) -> 14968.25 | AK5: =IF(AJ5<>"n/a",AK$4-AJ5,"n/a") -> 98145.25
A6: 2 | B6: 2548.6 | C6: 4820 | D6: 10000 | E6: =Tabla9351224[[#This Row],[ Instalacion]]+Tabla9351224[[#This Row],[Coste Hardware]] -> 14820 | G6: 251.645313 | H6: 223.931036 | I6: 9203.974615 | K6: 0 | L6: 0 | M6: 0 | N6: 0 | O6: 0 | P6: 0 | Q6: =Tabla9351224[[#This Row],[Kw Valle]]+Tabla9351224[[#This Row],[Kwh Llano]]+Tabla9351224[[#This Row],[Kwh Punta]]+Tabla9351224[[#This Row],[Kwh P1]]+Tabla9351224[[#This Row],[Kwh P2]]+Tabla9351224[[#This Row],[Kwh P3]]+Tabla9351224[[#This Row],[Kwh P4]]+Tabla9351224[[#This Row],[Kwh P5]]+Tabla9351224[[#This Row],[Kwh P6]] -> 9679.550964 | R6: 2037.52 | S6: 2728.55094 | T6: =Tabla9351224[[#This Row],[Prod Solar]]-Tabla9351224[[#This Row],[Exportado]] -> 0 | U6: 2728.55094 | V6: 0 | W6: 1975.94 | X6: =IF(B6=0,0,B5-B6) -> 857.21 | Y6: 22.47793369 | Z6: =IF(W6=0,"No Disp",(Tabla9351224[[#This Row],[Inversion]]-Tabla9351224[[#This Row],[Ahorros(IBI)]])/W6) -> 7.50022774 | AA6: años | AB6: =IF($B6=0,"n/a",AC$4-(FV(INFLACCION,AB$3,-$B6,0))-$E6+$F6) -> -4940.3 | AC6: =IF(AB6<>"n/a",AC$4-AB6,"n/a") -> 27563 | AD6: 4939.4 | AE6: =IF(AD6<>"n/a",AE$4-AD6,"n/a") -> 40306 | AF6: 14819.1 | AG6: =IF(AF6<>"n/a",AG$4-AF6,"n/a") -> 53049 | AH6: 24698.8 | AI6: =IF(AH6<>"n/a",AI$4-AH6,"n/a") -> 65792 | AJ6: 34578.5 | AK6: =IF(AJ6<>"n/a",AK$4-AJ6,"n/a") -> 78535
A7: 3 | B7: 1832.57 | C7: 5450 | D7: 10000 | E7: =Tabla9351224[[#This Row],[ Instalacion]]+Tabla9351224[[#This Row],[Coste Hardware]] -> 15450 | G7: 174.093014 | H7: 173.1796575 | I7: 8373.925159 | K7: 0 | L7: 0 | M7: 0 | N7: 0 | O7: 0 | P7: 0 | Q7: =Tabla9351224[[#This Row],[Kw Valle]]+Tabla9351224[[#This Row],[Kwh Llano]]+Tabla9351224[[#This Row],[Kwh Punta]]+Tabla9351224[[#This Row],[Kwh P1]]+Tabla9351224[[#This Row],[Kwh P2]]+Tabla9351224[[#This Row],[Kwh P3]]+Tabla9351224[[#This Row],[Kwh P4]]+Tabla9351224[[#This Row],[Kwh P5]]+Tabla9351224[[#This Row],[Kwh P6]] -> 8721.197831 | R7: 3056.28 | S7: 4092.82641 | T7: =Tabla9351224[[#This Row],[Prod Solar]]-Tabla9351224[[#This Row],[Exportado]] -> 0 | U7: 4092.82641 | V7: 0 | W7: 2691.97 | X7: =IF(B7=0,0,B6-B7) -> 716.03 | Y7: 23.27026768 | Z7: =IF(W7=0,"No Disp",(Tabla9351224[[#This Row],[Inversion]]-Tabla9351224[[#This Row],[Ahorros(IBI)]])/W7) -> 5.7392913 | AA7: años | AB7: -1990.15 | AC7: 24612.85 | AD7: 11469.7 | AE7: 33775.7 | AF7: 24929.55 | AG7: 42938.55 | AH7: 38389.4 | AI7: 52101.4 | AJ7: 51849.25 | AK7: 61264.25
A8: 4 | B8: 1322.35 | C8: 6300 | D8: 10000 | E8: =Tabla9351224[[#This Row],[ Instalacion]]+Tabla9351224[[#This Row],[Coste Hardware]] -> 16300 | G8: 126.50371 | H8: 131.832814 | I8: 7739.494015 | K8: 0 | L8: 0 | M8: 0 | N8: 0 | O8: 0 | P8: 0 | Q8: =Tabla9351224[[#This Row],[Kw Valle]]+Tabla9351224[[#This Row],[Kwh Llano]]+Tabla9351224[[#This Row],[Kwh Punta]]+Tabla9351224[[#This Row],[Kwh P1]]+Tabla9351224[[#This Row],[Kwh P2]]+Tabla9351224[[#This Row],[Kwh P3]]+Tabla9351224[[#This Row],[Kwh P4]]+Tabla9351224[[#This Row],[Kwh P5]]+Tabla9351224[[#This Row],[Kwh P6]] -> 7997.830539 | R8: 4075.04 | S8: 5457.10188 | T8: =Tabla9351224[[#This Row],[Prod Solar]]-Tabla9351224[[#This Row],[Exportado]] -> 0 | U8: 5457.10188 | V8: 0 | W8: 3202.19 | X8: =IF(B8=0,0,B7-B8) -> 510.22 | Y8: 23.44233956 | Z8: =IF(W8=0,"No Disp",(Tabla9351224[[#This Row],[Inversion]]-Tabla9351224[[#This Row],[Ahorros(IBI)]])/W8) -> 5.090266349 | AA8: años | AB8: -289.05 | AC8: 22911.75 | AD8: 15721.9 | AE8: 29523.5 | AF8: 31732.85 | AG8: 36135.25 | AH8: 47743.8 | AI8: 42747 | AJ8: 63754.75 | AK8: 49358.75
A9: 5 | B9: 1034.55 | C9: 7200 | D9: 10000 | E9: =Tabla9351224[[#This Row],[ Instalacion]]+Tabla9351224[[#This Row],[Coste Hardware]] -> 17200 | G9: 93.5990225 | H9: 107.1247875 | I9: 7217.865625 | K9: 0 | L9: 0 | M9: 0 | N9: 0 | O9: 0 | P9: 0 | Q9: =Tabla9351224[[#This Row],[Kw Valle]]+Tabla9351224[[#This Row],[Kwh Llano]]+Tabla9351224[[#This Row],[Kwh Punta]]+Tabla9351224[[#This Row],[Kwh P1]]+Tabla9351224[[#This Row],[Kwh P2]]+Tabla9351224[[#This Row],[Kwh P3]]+Tabla9351224[[#This Row],[Kwh P4]]+Tabla9351224[[#This Row],[Kwh P5]]+Tabla9351224[[#This Row],[Kwh P6]] -> 7418.589435 | R9: 5093.8 | S9: 6821.37735 | T9: =Tabla9351224[[#This Row],[Prod Solar]]-Tabla9351224[[#This Row],[Exportado]] -> 0 | U9: 6821.37735 | V9: 0 | W9: 3489.99 | X9: 287.8 | Y9: 23.4475568 | Z9: =IF(W9=0,"No Disp",(Tabla9351224[[#This Row],[Inversion]]-Tabla9351224[[#This Row],[Ahorros(IBI)]])/W9) -> 4.928380884 | AA9: años | AB9: 249.95 | AC9: 22372.75 | AD9: 17699.9 | AE9: 27545.5 | AF9: 35149.85 | AG9: 32718.25 | AH9: 52599.8 | AI9: 37891 | AJ9: 70049.75 | AK9: 43063.75
A10: 6 | B10: 810.91 | C10: 8300 | D10: 10000 | E10: =Tabla9351224[[#This Row],[ Instalacion]]+Tabla9351224[[#This Row],[Coste Hardware]] -> 18300 | G10: 75.904462 | H10: 87.339463 | I10: 6797.818244 | K10: 0 | L10: 0 | M10: 0 | N10: 0 | O10: 0 | P10: 0 | Q10: =Tabla9351224[[#This Row],[Kw Valle]]+Tabla9351224[[#This Row],[Kwh Llano]]+Tabla9351224[[#This Row],[Kwh Punta]]+Tabla9351224[[#This Row],[Kwh P1]]+Tabla9351224[[#This Row],[Kwh P2]]+Tabla9351224[[#This Row],[Kwh P3]]+Tabla9351224[[#This Row],[Kwh P4]]+Tabla9351224[[#This Row],[Kwh P5]]+Tabla9351224[[#This Row],[Kwh P6]] -> 6961.062169 | R10: 6112.56 | S10: 8185.65282 | T10: =Tabla9351224[[#This Row],[Prod Solar]]-Tabla9351224[[#This Row],[Exportado]] -> 0 | U10: 8185.65282 | V10: 0 | W10: 3713.63 | X10: 223.64 | Y10: 23.43244738 | Z10: =IF(W10=0,"No Disp",(Tabla9351224[[#This Row],[Inversion]]-Tabla9351224[[#This Row],[Ahorros(IBI)]])/W10) -> 4.927793022 | AA10: años | AB10: 268.15 | AC10: 22354.55 | AD10: 18836.3 | AE10: 26409.1 | AF10: 37404.45 | AG10: 30463.65 | AH10: 55972.6 | AI10: 34518.2 | AJ10: 74540.75 | AK10: 38572.75
A11: 7 | B11: 627.84 | C11: 9300 | D11: 10000 | E11: =Tabla9351224[[#This Row],[ Instalacion]]+Tabla9351224[[#This Row],[Coste Hardware]] -> 19300 | G11: 64.3396695 | H11: 69.353273 | I11: 6478.303679 | K11: 0 | L11: 0 | M11: 0 | N11: 0 | O11: 0 | P11: 0 | Q11: =Tabla9351224[[#This Row],[Kw Valle]]+Tabla9351224[[#This Row],[Kwh Llano]]+Tabla9351224[[#This Row],[Kwh Punta]]+Tabla9351224[[#This Row],[Kwh P1]]+Tabla9351224[[#This Row],[Kwh P2]]+Tabla9351224[[#This Row],[Kwh P3]]+Tabla9351224[[#This Row],[Kwh P4]]+Tabla9351224[[#This Row],[Kwh P5]]+Tabla9351224[[#This Row],[Kwh P6]] -> 6611.996622 | R11: 7131.32 | S11: 9549.92829 | T11: =Tabla9351224[[#This Row],[Prod Solar]]-Tabla9351224[[#This Row],[Exportado]] -> 0 | U11: 9549.92829 | V11: 0 | W11: 3896.7 | X11: 183.07 | Y11: 23.41272915 | Z11: =IF(W11=0,"No Disp",(Tabla9351224[[#This Row],[Inversion]]-Tabla9351224[[#This Row],[Ahorros(IBI)]])/W11) -> 4.952908872 | AA11: años | AB11: 183.5 | AC11: 22439.2 | AD11: 19667 | AE11: 25578.4 | AF11: 39150.5 | AG11: 28717.6 | AH11: 58634 | AI11: 31856.8 | AJ11: 78117.5 | AK11: 34996
A12: 8 | B12: 484.2 | C12: 10200 | D12: 10000 | E12: =Tabla9351224[[#This Row],[ Instalacion]]+Tabla9351224[[#This Row],[Coste Hardware]] -> 20200 | G12: 56.512114 | H12: 56.120838 | I12: 6219.155291 | K12: 0 | L12: 0 | M12: 0 | N12: 0 | O12: 0 | P12: 0 | Q12: =Tabla9351224[[#This Row],[Kw Valle]]+Tabla9351224[[#This Row],[Kwh Llano]]+Tabla9351224[[#This Row],[Kwh Punta]]+Tabla9351224[[#This Row],[Kwh P1]]+Tabla9351224[[#This Row],[Kwh P2]]+Tabla9351224[[#This Row],[Kwh P3]]+Tabla9351224[[#This Row],[Kwh P4]]+Tabla9351224[[#This Row],[Kwh P5]]+Tabla9351224[[#This Row],[Kwh P6]] -> 6331.788243 | R12: 8150.08 | S12: 10914.20376 | T12: =Tabla9351224[[#This Row],[Prod Solar]]-Tabla9351224[[#This Row],[Exportado]] -> 0 | U12: 10914.20376 | V12: 0 | W12: 4040.34 | X12: 143.64 | Y12: 23.4267292 | Z12: =IF(W12=0,"No Disp",(Tabla9351224[[#This Row],[Inversion]]-Tabla9351224[[#This Row],[Ahorros(IBI)]])/W12) -> 4.999579243 | AA12: años | AB12: 1.7 | AC12: 22621 | AD12: 20203.4 | AE12: 25042 | AF12: 40405.1 | AG12: 27463 | AH12: 60606.8 | AI12: 29884 | AJ12: 80808.5 | AK12: 32305
A13: 9 | B13: 379 | C13: 11100 | D13: 10000 | E13: =Tabla9351224[[#This Row],[ Instalacion]]+Tabla9351224[[#This Row],[Coste Hardware]] -> 21100 | G13: 51.4570395 | H13: 45.2241065 | I13: 5998.427746 | K13: 0 | L13: 0 | M13: 0 | N13: 0 | O13: 0 | P13: 0 | Q13: =Tabla9351224[[#This Row],[Kw Valle]]+Tabla9351224[[#This Row],[Kwh Llano]]+Tabla9351224[[#This Row],[Kwh Punta]]+Tabla9351224[[#This Row],[Kwh P1]]+Tabla9351224[[#This Row],[Kwh P2]]+Tabla9351224[[#This Row],[Kwh P3]]+Tabla9351224[[#This Row],[Kwh P4]]+Tabla9351224[[#This Row],[Kwh P5]]+Tabla9351224[[#This Row],[Kwh P6]] -> 6095.108892 | R13: 9168.84 | S13: 12278.47923 | T13: =Tabla9351224[[#This Row],[Prod Solar]]-Tabla9351224[[#This Row],[Exportado]] -> 0 | U13: 12278.47923 | V13: 0 | W13: 4145.54 | X13: 105.2 | Y13: 23.43151856 | Z13: =IF(W13=0,"No Disp",(Tabla9351224[[#This Row],[Inversion]]-Tabla9351224[[#This Row],[Ahorros(IBI)]])/W13) -> 5.089807359 | AA13: años | AB13: -372.3 | AC13: 22995 | AD13: 20355.4 | AE13: 24890 | AF13: 41083.1 | AG13: 26785 | AH13: 61810.8 | AI13: 28680 | AJ13: 82538.5 | AK13: 30575
A14: 10 | B14: 325.61 | C14: 12000 | D14: 10000 | E14: =Tabla9351224[[#This Row],[ Instalacion]]+Tabla9351224[[#This Row],[Coste Hardware]] -> 22000 | G14: 49.222965 | H14: 33.923505 | I14: 5801.217807 | K14: 0 | L14: 0 | M14: 0 | N14: 0 | O14: 0 | P14: 0 | Q14: =Tabla9351224[[#This Row],[Kw Valle]]+Tabla9351224[[#This Row],[Kwh Llano]]+Tabla9351224[[#This Row],[Kwh Punta]]+Tabla9351224[[#This Row],[Kwh P1]]+Tabla9351224[[#This Row],[Kwh P2]]+Tabla9351224[[#This Row],[Kwh P3]]+Tabla9351224[[#This Row],[Kwh P4]]+Tabla9351224[[#This Row],[Kwh P5]]+Tabla9351224[[#This Row],[Kwh P6]] -> 5884.364277 | R14: 10187.6 | S14: 13642.7547 | T14: =Tabla9351224[[#This Row],[Prod Solar]]-Tabla9351224[[#This Row],[Exportado]] -> 0 | U14: 13642.7547 | V14: 0 | W14: 4198.93 | X14: 53.39 | Y14: 23.50179025 | Z14: =IF(W14=0,"No Disp",(Tabla9351224[[#This Row],[Inversion]]-Tabla9351224[[#This Row],[Ahorros(IBI)]])/W14) -> 5.239430045 | AA14: años | AB14: -1005.35 | AC14: 23628.05 | AD14: 19989.3 | AE14: 25256.1 | AF14: 40983.95 | AG14: 26884.15 | AH14: 61978.6 | AI14: 28512.2 | AJ14: 82973.25 | AK14: 30140.25
A15: 11 | B15: 275.76 | C15: 12900 | D15: 10000 | E15: =Tabla9351224[[#This Row],[ Instalacion]]+Tabla9351224[[#This Row],[Coste Hardware]] -> 22900 | G15: 47.1377015 | H15: 25.0929385 | I15: 5637.57008 | K15: 0 | L15: 0 | M15: 0 | N15: 0 | O15: 0 | P15: 0 | Q15: =Tabla9351224[[#This Row],[Kw Valle]]+Tabla9351224[[#This Row],[Kwh Llano]]+Tabla9351224[[#This Row],[Kwh Punta]]+Tabla9351224[[#This Row],[Kwh P1]]+Tabla9351224[[#This Row],[Kwh P2]]+Tabla9351224[[#This Row],[Kwh P3]]+Tabla9351224[[#This Row],[Kwh P4]]+Tabla9351224[[#This Row],[Kwh P5]]+Tabla9351224[[#This Row],[Kwh P6]] -> 5709.80072 | R15: 11206.36 | S15: 15007.03017 | T15: =Tabla9351224[[#This Row],[Prod Solar]]-Tabla9351224[[#This Row],[Exportado]] -> 0 | U15: 15007.03017 | V15: 0 | W15: 4248.78 | X15: 49.85 | Y15: 23.57965492 | Z15: =IF(W15=0,"No Disp",(Tabla9351224[[#This Row],[Inversion]]-Tabla9351224[[#This Row],[Ahorros(IBI)]])/W15) -> 5.389782479 | AA15: años | AB15: -1656.1 | AC15: 24278.8 | AD15: 19587.8 | AE15: 25657.6 | AF15: 40831.7 | AG15: 27036.4 | AH15: 62075.6 | AI15: 28415.2 | AJ15: 83319.5 | AK15: 29794
A16: 12 | B16: 260.07 | C16: 13800 | D16: 10000 | E16: =Tabla9351224[[#This Row],[ Instalacion]]+Tabla9351224[[#This Row],[Coste Hardware]] -> 23800 | G16: 45.79104 | H16: 19.08489 | I16: 5502.282284 | K16: 0 | L16: 0 | M16: 0 | N16: 0 | O16: 0 | P16: 0 | Q16: =Tabla9351224[[#This Row],[Kw Valle]]+Tabla9351224[[#This Row],[Kwh Llano]]+Tabla9351224[[#This Row],[Kwh Punta]]+Tabla9351224[[#This Row],[Kwh P1]]+Tabla9351224[[#This Row],[Kwh P2]]+Tabla9351224[[#This Row],[Kwh P3]]+Tabla9351224[[#This Row],[Kwh P4]]+Tabla9351224[[#This Row],[Kwh P5]]+Tabla9351224[[#This Row],[Kwh P6]] -> 5567.158214 | R16: 12225.12 | S16: 16371.30564 | T16: =Tabla9351224[[#This Row],[Prod Solar]]-Tabla9351224[[#This Row],[Exportado]] -> 0 | U16: 16371.30564 | V16: 0 | W16: 4264.47 | X16: 15.69 | Y16: 23.68887973 | Z16: =IF(W16=0,"No Disp",(Tabla9351224[[#This Row],[Inversion]]-Tabla9351224[[#This Row],[Ahorros(IBI)]])/W16) -> 5.580998342 | AA16: años | AB16: -2477.65 | AC16: 25100.35 | AD16: 18844.7 | AE16: 26400.7 | AF16: 40167.05 | AG16: 27701.05 | AH16: 61489.4 | AI16: 29001.4 | AJ16: 82811.75 | AK16: 30301.75
A17: 13 | B17: 260.07 | C17: 14700 | D17: 10000 | E17: =Tabla9351224[[#This Row],[ Instalacion]]+Tabla9351224[[#This Row],[Coste Hardware]] -> 24700 | G17: 44.29281 | H17: 15.59831 | I17: 5377.049438 | K17: 0 | L17: 0 | M17: 0 | N17: 0 | O17: 0 | P17: 0 | Q17: =Tabla9351224[[#This Row],[Kw Valle]]+Tabla9351224[[#This Row],[Kwh Llano]]+Tabla9351224[[#This Row],[Kwh Punta]]+Tabla9351224[[#This Row],[Kwh P1]]+Tabla9351224[[#This Row],[Kwh P2]]+Tabla9351224[[#This Row],[Kwh P3]]+Tabla9351224[[#This Row],[Kwh P4]]+Tabla9351224[[#This Row],[Kwh P5]]+Tabla9351224[[#This Row],[Kwh P6]] -> 5436.940558 | R17: 13243.88 | S17: 17735.58111 | T17: =Tabla9351224[[#This Row],[Prod Solar]]-Tabla9351224[[#This Row],[Exportado]] -> 0 | U17: 17735.58111 | V17: 0 | W17: 4264.47 | X17: 0 | Y17: 23.78783157 | Z17: =IF(W17=0,"No Disp",(Tabla9351224[[#This Row],[Inversion]]-Tabla9351224[[#This Row],[Ahorros(IBI)]])/W17) -> 5.792044498 | AA17: años | AB17: -3377.65 | AC17: 26000.35 | AD17: 17944.7 | AE17: 27300.7 | AF17: 39267.05 | AG17: 28601.05 | AH17: 60589.4 | AI17: 29901.4 | AJ17: 81911.75 | AK17: 31201.75
A18: 14 | B18: 260.07 | C18: 15600 | D18: 10000 | E18: =Tabla9351224[[#This Row],[ Instalacion]]+Tabla9351224[[#This Row],[Coste Hardware]] -> 25600 | G18: 40.376352 | H18: 15.13918 | I18: 5265.935145 | K18: 0 | L18: 0 | M18: 0 | N18: 0 | O18: 0 | P18: 0 | Q18: =Tabla9351224[[#This Row],[Kw Valle]]+Tabla9351224[[#This Row],[Kwh Llano]]+Tabla9351224[[#This Row],[Kwh Punta]]+Tabla9351224[[#This Row],[Kwh P1]]+Tabla9351224[[#This Row],[Kwh P2]]+Tabla9351224[[#This Row],[Kwh P3]]+Tabla9351224[[#This Row],[Kwh P4]]+Tabla9351224[[#This Row],[Kwh P5]]+Tabla9351224[[#This Row],[Kwh P6]] -> 5321.450677 | R18: 14262.64 | S18: 19099.85658 | T18: =Tabla9351224[[#This Row],[Prod Solar]]-Tabla9351224[[#This Row],[Exportado]] -> 0 | U18: 19099.85658 | V18: 0 | W18: 4264.47 | X18: 0 | Y18: 23.89975963 | Z18: =IF(W18=0,"No Disp",(Tabla9351224[[#This Row],[Inversion]]-Tabla9351224[[#This Row],[Ahorros(IBI)]])/W18) -> 6.003090654 | AA18: años | AB18: -4277.65 | AC18: 26900.35 | AD18: 17044.7 | AE18: 28200.7 | AF18: 38367.05 | AG18: 29501.05 | AH18: 59689.4 | AI18: 30801.4 | AJ18: 81011.75 | AK18: 32101.75
A19: 15 | B19: 260.07 | C19: 16500 | D19: 10000 | E19: =Tabla9351224[[#This Row],[ Instalacion]]+Tabla9351224[[#This Row],[Coste Hardware]] -> 26500 | G19: 36.72441 | H19: 14.967 | I19: 5171.403139 | K19: 0 | L19: 0 | M19: 0 | N19: 0 | O19: 0 | P19: 0 | Q19: =Tabla9351224[[#This Row],[Kw Valle]]+Tabla9351224[[#This Row],[Kwh Llano]]+Tabla9351224[[#This Row],[Kwh Punta]]+Tabla9351224[[#This Row],[Kwh P1]]+Tabla9351224[[#This Row],[Kwh P2]]+Tabla9351224[[#This Row],[Kwh P3]]+Tabla9351224[[#This Row],[Kwh P4]]+Tabla9351224[[#This Row],[Kwh P5]]+Tabla9351224[[#This Row],[Kwh P6]] -> 5223.094549 | R19: 15281.4 | S19: 20464.13205 | T19: =Tabla9351224[[#This Row],[Prod Solar]]-Tabla9351224[[#This Row],[Exportado]] -> 0 | U19: 20464.13205 | V19: 0 | W19: 4264.47 | X19: 0 | Y19: 24.00113765 | Z19: =IF(W19=0,"No Disp",(Tabla9351224[[#This Row],[Inversion]]-Tabla9351224[[#This Row],[Ahorros(IBI)]])/W19) -> 6.214136809 | AA19: años | AB19: -5177.65 | AC19: 27800.35 | AD19: 16144.7 | AE19: 29100.7 | AF19: 37467.05 | AG19: 30401.05 | AH19: 58789.4 | AI19: 31701.4 | AJ19: 80111.75 | AK19: 33001.75
A20: 16 | C20: =C19+900 -> 17400 | D20: 10000 | E20: =Tabla9351224[[#This Row],[ Instalacion]]+Tabla9351224[[#This Row],[Coste Hardware]] -> 27400 | Q20: =Tabla9351224[[#This Row],[Kw Valle]]+Tabla9351224[[#This Row],[Kwh Llano]]+Tabla9351224[[#This Row],[Kwh Punta]]+Tabla9351224[[#This Row],[Kwh P1]]+Tabla9351224[[#This Row],[Kwh P2]]+Tabla9351224[[#This Row],[Kwh P3]]+Tabla9351224[[#This Row],[Kwh P4]]+Tabla9351224[[#This Row],[Kwh P5]]+Tabla9351224[[#This Row],[Kwh P6]] -> 0 | T20: =Tabla9351224[[#This Row],[Prod Solar]]-Tabla9351224[[#This Row],[Exportado]] -> 0 | W20: 0 | X20: 0 | Y20: 39.84302229 | Z20: =IF(W20=0,"No Disp",(Tabla9351224[[#This Row],[Inversion]]-Tabla9351224[[#This Row],[Ahorros(IBI)]])/W20) -> No Disp | AA20: años | AB20: n/a | AC20: n/a | AD20: n/a | AE20: n/a | AF20: n/a | AG20: n/a | AH20: n/a | AI20: n/a | AJ20: n/a | AK20: n/a
A21: 17 | C21: =C20+900 -> 18300 | D21: 10000 | E21: =Tabla9351224[[#This Row],[ Instalacion]]+Tabla9351224[[#This Row],[Coste Hardware]] -> 28300 | Q21: =Tabla9351224[[#This Row],[Kw Valle]]+Tabla9351224[[#This Row],[Kwh Llano]]+Tabla9351224[[#This Row],[Kwh Punta]]+Tabla9351224[[#This Row],[Kwh P1]]+Tabla9351224[[#This Row],[Kwh P2]]+Tabla9351224[[#This Row],[Kwh P3]]+Tabla9351224[[#This Row],[Kwh P4]]+Tabla9351224[[#This Row],[Kwh P5]]+Tabla9351224[[#This Row],[Kwh P6]] -> 0 | T21: =Tabla9351224[[#This Row],[Prod Solar]]-Tabla9351224[[#This Row],[Exportado]] -> 0 | W21: 0 | X21: 0 | Y21: 36.85281197 | Z21: =IF(W21=0,"No Disp",(Tabla9351224[[#This Row],[Inversion]]-Tabla9351224[[#This Row],[Ahorros(IBI)]])/W21) -> No Disp | AA21: años | AB21: n/a | AC21: n/a | AD21: n/a | AE21: n/a | AF21: n/a | AG21: n/a | AH21: n/a | AI21: n/a | AJ21: n/a | AK21: n/a
A22: 18 | C22: 19200 | D22: 10000 | E22: =Tabla9351224[[#This Row],[ Instalacion]]+Tabla9351224[[#This Row],[Coste Hardware]] -> 29200 | Q22: =Tabla9351224[[#This Row],[Kw Valle]]+Tabla9351224[[#This Row],[Kwh Llano]]+Tabla9351224[[#This Row],[Kwh Punta]]+Tabla9351224[[#This Row],[Kwh P1]]+Tabla9351224[[#This Row],[Kwh P2]]+Tabla9351224[[#This Row],[Kwh P3]]+Tabla9351224[[#This Row],[Kwh P4]]+Tabla9351224[[#This Row],[Kwh P5]]+Tabla9351224[[#This Row],[Kwh P6]] -> 0 | T22: =Tabla9351224[[#This Row],[Prod Solar]]-Tabla9351224[[#This Row],[Exportado]] -> 0 | W22: 0 | X22: 0 | Y22: 34.22636158 | Z22: =IF(W22=0,"No Disp",(Tabla9351224[[#This Row],[Inversion]]-Tabla9351224[[#This Row],[Ahorros(IBI)]])/W22) -> No Disp | AA22: años | AB22: n/a | AC22: n/a | AD22: n/a | AE22: n/a | AF22: n/a | AG22: n/a | AH22: n/a | AI22: n/a | AJ22: n/a | AK22: n/a
A23: 19 | C23: 20100 | D23: 10000 | E23: =Tabla9351224[[#This Row],[ Instalacion]]+Tabla9351224[[#This Row],[Coste Hardware]] -> 30100 | Q23: =Tabla9351224[[#This Row],[Kw Valle]]+Tabla9351224[[#This Row],[Kwh Llano]]+Tabla9351224[[#This Row],[Kwh Punta]]+Tabla9351224[[#This Row],[Kwh P1]]+Tabla9351224[[#This Row],[Kwh P2]]+Tabla9351224[[#This Row],[Kwh P3]]+Tabla9351224[[#This Row],[Kwh P4]]+Tabla9351224[[#This Row],[Kwh P5]]+Tabla9351224[[#This Row],[Kwh P6]] -> 0 | T23: =Tabla9351224[[#This Row],[Prod Solar]]-Tabla9351224[[#This Row],[Exportado]] -> 0 | W23: 0 | X23: 0 | Y23: 31.90588917 | Z23: =IF(W23=0,"No Disp",(Tabla9351224[[#This Row],[Inversion]]-Tabla9351224[[#This Row],[Ahorros(IBI)]])/W23) -> No Disp | AA23: años | AB23: n/a | AC23: n/a | AD23: n/a | AE23: n/a | AF23: n/a | AG23: n/a | AH23: n/a | AI23: n/a | AJ23: n/a | AK23: n/a
A24: 20 | C24: 21000 | D24: 10000 | E24: =Tabla9351224[[#This Row],[ Instalacion]]+Tabla9351224[[#This Row],[Coste Hardware]] -> 31000 | Q24: =Tabla9351224[[#This Row],[Kw Valle]]+Tabla9351224[[#This Row],[Kwh Llano]]+Tabla9351224[[#This Row],[Kwh Punta]]+Tabla9351224[[#This Row],[Kwh P1]]+Tabla9351224[[#This Row],[Kwh P2]]+Tabla9351224[[#This Row],[Kwh P3]]+Tabla9351224[[#This Row],[Kwh P4]]+Tabla9351224[[#This Row],[Kwh P5]]+Tabla9351224[[#This Row],[Kwh P6]] -> 0 | T24: =Tabla9351224[[#This Row],[Prod Solar]]-Tabla9351224[[#This Row],[Exportado]] -> 0 | W24: 0 | X24: 0 | Y24: 29.83296735 | Z24: =IF(W24=0,"No Disp",(Tabla9351224[[#This Row],[Inversion]]-Tabla9351224[[#This Row],[Ahorros(IBI)]])/W24) -> No Disp | AA24: años | AB24: n/a | AC24: n/a | AD24: n/a | AE24: n/a | AF24: n/a | AG24: n/a | AH24: n/a | AI24: n/a | AJ24: n/a | AK24: n/a
A25: 21 | C25: 21900 | D25: 10000 | E25: =Tabla9351224[[#This Row],[ Instalacion]]+Tabla9351224[[#This Row],[Coste Hardware]] -> 31900 | Q25: =Tabla9351224[[#This Row],[Kw Valle]]+Tabla9351224[[#This Row],[Kwh Llano]]+Tabla9351224[[#This Row],[Kwh Punta]]+Tabla9351224[[#This Row],[Kwh P1]]+Tabla9351224[[#This Row],[Kwh P2]]+Tabla9351224[[#This Row],[Kwh P3]]+Tabla9351224[[#This Row],[Kwh P4]]+Tabla9351224[[#This Row],[Kwh P5]]+Tabla9351224[[#This Row],[Kwh P6]] -> 0 | T25: =Tabla9351224[[#This Row],[Prod Solar]]-Tabla9351224[[#This Row],[Exportado]] -> 0 | W25: 0 | X25: 0 | Y25: 28.06658329 | Z25: =IF(W25=0,"No Disp",(Tabla9351224[[#This Row],[Inversion]]-Tabla9351224[[#This Row],[Ahorros(IBI)]])/W25) -> No Disp | AA25: años | AB25: n/a | AC25: n/a | AD25: n/a | AE25: n/a | AF25: n/a | AG25: n/a | AH25: n/a | AI25: n/a | AJ25: n/a | AK25: n/a
A26: 22 | C26: 22800 | D26: 10000 | E26: =Tabla9351224[[#This Row],[ Instalacion]]+Tabla9351224[[#This Row],[Coste Hardware]] -> 32800 | Q26: =Tabla9351224[[#This Row],[Kw Valle]]+Tabla9351224[[#This Row],[Kwh Llano]]+Tabla9351224[[#This Row],[Kwh Punta]]+Tabla9351224[[#This Row],[Kwh P1]]+Tabla9351224[[#This Row],[Kwh P2]]+Tabla9351224[[#This Row],[Kwh P3]]+Tabla9351224[[#This Row],[Kwh P4]]+Tabla9351224[[#This Row],[Kwh P5]]+Tabla9351224[[#This Row],[Kwh P6]] -> 0 | T26: =Tabla9351224[[#This Row],[Prod Solar]]-Tabla9351224[[#This Row],[Exportado]] -> 0 | W26: 0 | X26: 0 | Y26: 26.62710639 | Z26: =IF(W26=0,"No Disp",(Tabla9351224[[#This Row],[Inversion]]-Tabla9351224[[#This Row],[Ahorros(IBI)]])/W26) -> No Disp | AA26: años | AB26: n/a | AC26: n/a | AD26: n/a | AE26: n/a | AF26: n/a | AG26: n/a | AH26: n/a | AI26: n/a | AJ26: n/a | AK26: n/a
A27: 23 | C27: 23700 | D27: 10000 | E27: =Tabla9351224[[#This Row],[ Instalacion]]+Tabla9351224[[#This Row],[Coste Hardware]] -> 33700 | Q27: =Tabla9351224[[#This Row],[Kw Valle]]+Tabla9351224[[#This Row],[Kwh Llano]]+Tabla9351224[[#This Row],[Kwh Punta]]+Tabla9351224[[#This Row],[Kwh P1]]+Tabla9351224[[#This Row],[Kwh P2]]+Tabla9351224[[#This Row],[Kwh P3]]+Tabla9351224[[#This Row],[Kwh P4]]+Tabla9351224[[#This Row],[Kwh P5]]+Tabla9351224[[#This Row],[Kwh P6]] -> 0 | T27: =Tabla9351224[[#This Row],[Prod Solar]]-Tabla9351224[[#This Row],[Exportado]] -> 0 | W27: 0 | X27: 0 | Y27: 25.49089083 | Z27: =IF(W27=0,"No Disp",(Tabla9351224[[#This Row],[Inversion]]-Tabla9351224[[#This Row],[Ahorros(IBI)]])/W27) -> No Disp | AA27: años | AB27: n/a | AC27: n/a | AD27: n/a | AE27: n/a | AF27: n/a | AG27: n/a | AH27: n/a | AI27: n/a | AJ27: n/a | AK27: n/a
A28: 24 | C28: 24600 | D28: 10000 | E28: =Tabla9351224[[#This Row],[ Instalacion]]+Tabla9351224[[#This Row],[Coste Hardware]] -> 34600 | Q28: =Tabla9351224[[#This Row],[Kw Valle]]+Tabla9351224[[#This Row],[Kwh Llano]]+Tabla9351224[[#This Row],[Kwh Punta]]+Tabla9351224[[#This Row],[Kwh P1]]+Tabla9351224[[#This Row],[Kwh P2]]+Tabla9351224[[#This Row],[Kwh P3]]+Tabla9351224[[#This Row],[Kwh P4]]+Tabla9351224[[#This Row],[Kwh P5]]+Tabla9351224[[#This Row],[Kwh P6]] -> 0 | T28: =Tabla9351224[[#This Row],[Prod Solar]]-Tabla9351224[[#This Row],[Exportado]] -> 0 | W28: 0 | X28: 0 | Y28: 24.54445061 | Z28: =IF(W28=0,"No Disp",(Tabla9351224[[#This Row],[Inversion]]-Tabla9351224[[#This Row],[Ahorros(IBI)]])/W28) -> No Disp | AA28: años | AB28: n/a | AC28: n/a | AD28: n/a | AE28: n/a | AF28: n/a | AG28: n/a | AH28: n/a | AI28: n/a | AJ28: n/a | AK28: n/a
A29: 25 | C29: 25500 | D29: 10000 | E29: =Tabla9351224[[#This Row],[ Instalacion]]+Tabla9351224[[#This Row],[Coste Hardware]] -> 35500 | Q29: =Tabla9351224[[#This Row],[Kw Valle]]+Tabla9351224[[#This Row],[Kwh Llano]]+Tabla9351224[[#This Row],[Kwh Punta]]+Tabla9351224[[#This Row],[Kwh P1]]+Tabla9351224[[#This Row],[Kwh P2]]+Tabla9351224[[#This Row],[Kwh P3]]+Tabla9351224[[#This Row],[Kwh P4]]+Tabla9351224[[#This Row],[Kwh P5]]+Tabla9351224[[#This Row],[Kwh P6]] -> 0 | T29: =Tabla9351224[[#This Row],[Prod Solar]]-Tabla9351224[[#This Row],[Exportado]] -> 0 | W29: 0 | X29: 0 | Y29: 23.77221598 | Z29: =IF(W29=0,"No Disp",(Tabla9351224[[#This Row],[Inversion]]-Tabla9351224[[#This Row],[Ahorros(IBI)]])/W29) -> No Disp | AA29: años | AB29: n/a | AC29: n/a | AD29: n/a | AE29: n/a | AF29: n/a | AG29: n/a | AH29: n/a | AI29: n/a | AJ29: n/a | AK29: n/a
A30: 26 | C30: 26400 | D30: 10000 | E30: =Tabla9351224[[#This Row],[ Instalacion]]+Tabla9351224[[#This Row],[Coste Hardware]] -> 36400 | Q30: =Tabla9351224[[#This Row],[Kw Valle]]+Tabla9351224[[#This Row],[Kwh Llano]]+Tabla9351224[[#This Row],[Kwh Punta]]+Tabla9351224[[#This Row],[Kwh P1]]+Tabla9351224[[#This Row],[Kwh P2]]+Tabla9351224[[#This Row],[Kwh P3]]+Tabla9351224[[#This Row],[Kwh P4]]+Tabla9351224[[#This Row],[Kwh P5]]+Tabla9351224[[#This Row],[Kwh P6]] -> 0 | T30: =Tabla9351224[[#This Row],[Prod Solar]]-Tabla9351224[[#This Row],[Exportado]] -> 0 | W30: 0 | X30: 0 | Y30: 23.11036835 | Z30: =IF(W30=0,"No Disp",(Tabla9351224[[#This Row],[Inversion]]-Tabla9351224[[#This Row],[Ahorros(IBI)]])/W30) -> No Disp | AA30: años | AB30: n/a | AC30: n/a | AD30: n/a | AE30: n/a | AF30: n/a | AG30: n/a | AH30: n/a | AI30: n/a | AJ30: n/a | AK30: n/a
A31: 27 | C31: 27300 | D31: 10000 | E31: =Tabla9351224[[#This Row],[ Instalacion]]+Tabla9351224[[#This Row],[Coste Hardware]] -> 37300 | Q31: =Tabla9351224[[#This Row],[Kw Valle]]+Tabla9351224[[#This Row],[Kwh Llano]]+Tabla9351224[[#This Row],[Kwh Punta]]+Tabla9351224[[#This Row],[Kwh P1]]+Tabla9351224[[#This Row],[Kwh P2]]+Tabla9351224[[#This Row],[Kwh P3]]+Tabla9351224[[#This Row],[Kwh P4]]+Tabla9351224[[#This Row],[Kwh P5]]+Tabla9351224[[#This Row],[Kwh P6]] -> 0 | T31: =Tabla9351224[[#This Row],[Prod Solar]]-Tabla9351224[[#This Row],[Exportado]] -> 0 | W31: 0 | X31: 0 | Y31: 22.53298668 | Z31: =IF(W31=0,"No Disp",(Tabla9351224[[#This Row],[Inversion]]-Tabla9351224[[#This Row],[Ahorros(IBI)]])/W31) -> No Disp | AA31: años | AB31: n/a | AC31: n/a | AD31: n/a | AE31: n/a | AF31: n/a | AG31: n/a | AH31: n/a | AI31: n/a | AJ31: n/a | AK31: n/a
A32: 28 | C32: 28200 | D32: 10000 | E32: =Tabla9351224[[#This Row],[ Instalacion]]+Tabla9351224[[#This Row],[Coste Hardware]] -> 38200 | Q32: =Tabla9351224[[#This Row],[Kw Valle]]+Tabla9351224[[#This Row],[Kwh Llano]]+Tabla9351224[[#This Row],[Kwh Punta]]+Tabla9351224[[#This Row],[Kwh P1]]+Tabla9351224[[#This Row],[Kwh P2]]+Tabla9351224[[#This Row],[Kwh P3]]+Tabla9351224[[#This Row],[Kwh P4]]+Tabla9351224[[#This Row],[Kwh P5]]+Tabla9351224[[#This Row],[Kwh P6]] -> 0 | T32: =Tabla9351224[[#This Row],[Prod Solar]]-Tabla9351224[[#This Row],[Exportado]] -> 0 | W32: 0 | X32: 0 | Y32: 22.01199255 | Z32: =IF(W32=0,"No Disp",(Tabla9351224[[#This Row],[Inversion]]-Tabla9351224[[#This Row],[Ahorros(IBI)]])/W32) -> No Disp | AA32: años | AB32: n/a | AC32: n/a | AD32: n/a | AE32: n/a | AF32: n/a | AG32: n/a | AH32: n/a | AI32: n/a | AJ32: n/a | AK32: n/a
A33: 29 | C33: 29100 | D33: 10000 | E33: =Tabla9351224[[#This Row],[ Instalacion]]+Tabla9351224[[#This Row],[Coste Hardware]] -> 39100 | Q33: =Tabla9351224[[#This Row],[Kw Valle]]+Tabla9351224[[#This Row],[Kwh Llano]]+Tabla9351224[[#This Row],[Kwh Punta]]+Tabla9351224[[#This Row],[Kwh P1]]+Tabla9351224[[#This Row],[Kwh P2]]+Tabla9351224[[#This Row],[Kwh P3]]+Tabla9351224[[#This Row],[Kwh P4]]+Tabla9351224[[#This Row],[Kwh P5]]+Tabla9351224[[#This Row],[Kwh P6]] -> 0 | T33: =Tabla9351224[[#This Row],[Prod Solar]]-Tabla9351224[[#This Row],[Exportado]] -> 0 | W33: 0 | X33: 0 | Y33: 21.54584458 | Z33: =IF(W33=0,"No Disp",(Tabla9351224[[#This Row],[Inversion]]-Tabla9351224[[#This Row],[Ahorros(IBI)]])/W33) -> No Disp | AA33: años | AB33: n/a | AC33: n/a | AD33: n/a | AE33: n/a | AF33: n/a | AG33: n/a | AH33: n/a | AI33: n/a | AJ33: n/a | AK33: n/a
A34: 30 | C34: 30000 | D34: 10000 | E34: =Tabla9351224[[#This Row],[ Instalacion]]+Tabla9351224[[#This Row],[Coste Hardware]] -> 40000 | Q34: =Tabla9351224[[#This Row],[Kw Valle]]+Tabla9351224[[#This Row],[Kwh Llano]]+Tabla9351224[[#This Row],[Kwh Punta]]+Tabla9351224[[#This Row],[Kwh P1]]+Tabla9351224[[#This Row],[Kwh P2]]+Tabla9351224[[#This Row],[Kwh P3]]+Tabla9351224[[#This Row],[Kwh P4]]+Tabla9351224[[#This Row],[Kwh P5]]+Tabla9351224[[#This Row],[Kwh P6]] -> 0 | T34: =Tabla9351224[[#This Row],[Prod Solar]]-Tabla9351224[[#This Row],[Exportado]] -> 0 | W34: 0 | X34: 0 | Y34: 21.12061136 | Z34: =IF(W34=0,"No Disp",(Tabla9351224[[#This Row],[Inversion]]-Tabla9351224[[#This Row],[Ahorros(IBI)]])/W34) -> No Disp | AA34: años | AB34: n/a | AC34: n/a | AD34: n/a | AE34: n/a | AF34: n/a | AG34: n/a | AH34: n/a | AI34: n/a | AJ34: n/a | AK34: n/a
A35: 31 | C35: 30900 | D35: 10000 | E35: =Tabla9351224[[#This Row],[ Instalacion]]+Tabla9351224[[#This Row],[Coste Hardware]] -> 40900 | Q35: =Tabla9351224[[#This Row],[Kw Valle]]+Tabla9351224[[#This Row],[Kwh Llano]]+Tabla9351224[[#This Row],[Kwh Punta]]+Tabla9351224[[#This Row],[Kwh P1]]+Tabla9351224[[#This Row],[Kwh P2]]+Tabla9351224[[#This Row],[Kwh P3]]+Tabla9351224[[#This Row],[Kwh P4]]+Tabla9351224[[#This Row],[Kwh P5]]+Tabla9351224[[#This Row],[Kwh P6]] -> 0 | T35: =Tabla9351224[[#This Row],[Prod Solar]]-Tabla9351224[[#This Row],[Exportado]] -> 0 | W35: 0 | X35: 0 | Y35: 20.73654633 | Z35: =IF(W35=0,"No Disp",(Tabla9351224[[#This Row],[Inversion]]-Tabla9351224[[#This Row],[Ahorros(IBI)]])/W35) -> No Disp | AA35: años | AB35: n/a | AC35: n/a | AD35: n/a | AE35: n/a | AF35: n/a | AG35: n/a | AH35: n/a | AI35: n/a | AJ35: n/a | AK35: n/a
A36: 32 | C36: 31800 | D36: 10000 | E36: =Tabla9351224[[#This Row],[ Instalacion]]+Tabla9351224[[#This Row],[Coste Hardware]] -> 41800 | Q36: =Tabla9351224[[#This Row],[Kw Valle]]+Tabla9351224[[#This Row],[Kwh Llano]]+Tabla9351224[[#This Row],[Kwh Punta]]+Tabla9351224[[#This Row],[Kwh P1]]+Tabla9351224[[#This Row],[Kwh P2]]+Tabla9351224[[#This Row],[Kwh P3]]+Tabla9351224[[#This Row],[Kwh P4]]+Tabla9351224[[#This Row],[Kwh P5]]+Tabla9351224[[#This Row],[Kwh P6]] -> 0 | T36: =Tabla9351224[[#This Row],[Prod Solar]]-Tabla9351224[[#This Row],[Exportado]] -> 0 | W36: 0 | X36: 0 | Y36: 20.38576963 | Z36: =IF(W36=0,"No Disp",(Tabla9351224[[#This Row],[Inversion]]-Tabla9351224[[#This Row],[Ahorros(IBI)]])/W36) -> No Disp | AA36: años | AB36: n/a | AC36: n/a | AD36: n/a | AE36: n/a | AF36: n/a | AG36: n/a | AH36: n/a | AI36: n/a | AJ36: n/a | AK36: n/a
A37: 33 | C37: 32700 | D37: 10000 | E37: =Tabla9351224[[#This Row],[ Instalacion]]+Tabla9351224[[#This Row],[Coste Hardware]] -> 42700 | Q37: =Tabla9351224[[#This Row],[Kw Valle]]+Tabla9351224[[#This Row],[Kwh Llano]]+Tabla9351224[[#This Row],[Kwh Punta]]+Tabla9351224[[#This Row],[Kwh P1]]+Tabla9351224[[#This Row],[Kwh P2]]+Tabla9351224[[#This Row],[Kwh P3]]+Tabla9351224[[#This Row],[Kwh P4]]+Tabla9351224[[#This Row],[Kwh P5]]+Tabla9351224[[#This Row],[Kwh P6]] -> 0 | T37: =Tabla9351224[[#This Row],[Prod Solar]]-Tabla9351224[[#This Row],[Exportado]] -> 0 | W37: 0 | X37: 0 | Y37: 20.05629516 | Z37: =IF(W37=0,"No Disp",(Tabla9351224[[#This Row],[Inversion]]-Tabla9351224[[#This Row],[Ahorros(IBI)]])/W37) -> No Disp | AA37: años | AB37: n/a | AC37: n/a | AD37: n/a | AE37: n/a | AF37: n/a | AG37: n/a | AH37: n/a | AI37: n/a | AJ37: n/a | AK37: n/a
A38: 34 | C38: 33600 | D38: 10000 | E38: =Tabla9351224[[#This Row],[ Instalacion]]+Tabla9351224[[#This Row],[Coste Hardware]] -> 43600 | Q38: =Tabla9351224[[#This Row],[Kw Valle]]+Tabla9351224[[#This Row],[Kwh Llano]]+Tabla9351224[[#This Row],[Kwh Punta]]+Tabla9351224[[#This Row],[Kwh P1]]+Tabla9351224[[#This Row],[Kwh P2]]+Tabla9351224[[#This Row],[Kwh P3]]+Tabla9351224[[#This Row],[Kwh P4]]+Tabla9351224[[#This Row],[Kwh P5]]+Tabla9351224[[#This Row],[Kwh P6]] -> 0 | T38: =Tabla9351224[[#This Row],[Prod Solar]]-Tabla9351224[[#This Row],[Exportado]] -> 0 | W38: 0 | X38: 0 | Y38: 19.75077531 | Z38: =IF(W38=0,"No Disp",(Tabla9351224[[#This Row],[Inversion]]-Tabla9351224[[#This Row],[Ahorros(IBI)]])/W38) -> No Disp | AA38: años | AB38: n/a | AC38: n/a | AD38: n/a | AE38: n/a | AF38: n/a | AG38: n/a | AH38: n/a | AI38: n/a | AJ38: n/a | AK38: n/a
A39: 35 | C39: 34500 | D39: 10000 | E39: =Tabla9351224[[#This Row],[ Instalacion]]+Tabla9351224[[#This Row],[Coste Hardware]] -> 44500 | Q39: =Tabla9351224[[#This Row],[Kw Valle]]+Tabla9351224[[#This Row],[Kwh Llano]]+Tabla9351224[[#This Row],[Kwh Punta]]+Tabla9351224[[#This Row],[Kwh P1]]+Tabla9351224[[#This Row],[Kwh P2]]+Tabla9351224[[#This Row],[Kwh P3]]+Tabla9351224[[#This Row],[Kwh P4]]+Tabla9351224[[#This Row],[Kwh P5]]+Tabla9351224[[#This Row],[Kwh P6]] -> 0 | T39: =Tabla9351224[[#This Row],[Prod Solar]]-Tabla9351224[[#This Row],[Exportado]] -> 0 | W39: 0 | X39: 0 | Y39: 19.45970319 | Z39: =IF(W39=0,"No Disp",(Tabla9351224[[#This Row],[Inversion]]-Tabla9351224[[#This Row],[Ahorros(IBI)]])/W39) -> No Disp | AA39: años | AB39: n/a | AC39: n/a | AD39: n/a | AE39: n/a | AF39: n/a | AG39: n/a | AH39: n/a | AI39: n/a | AJ39: n/a | AK39: n/a
A40: 36 | C40: 35400 | D40: 10000 | E40: =Tabla9351224[[#This Row],[ Instalacion]]+Tabla9351224[[#This Row],[Coste Hardware]] -> 45400 | Q40: =Tabla9351224[[#This Row],[Kw Valle]]+Tabla9351224[[#This Row],[Kwh Llano]]+Tabla9351224[[#This Row],[Kwh Punta]]+Tabla9351224[[#This Row],[Kwh P1]]+Tabla9351224[[#This Row],[Kwh P2]]+Tabla9351224[[#This Row],[Kwh P3]]+Tabla9351224[[#This Row],[Kwh P4]]+Tabla9351224[[#This Row],[Kwh P5]]+Tabla9351224[[#This Row],[Kwh P6]] -> 0 | T40: =Tabla9351224[[#This Row],[Prod Solar]]-Tabla9351224[[#This Row],[Exportado]] -> 0 | W40: 0 | X40: 0 | Y40: 19.18663733 | Z40: =IF(W40=0,"No Disp",(Tabla9351224[[#This Row],[Inversion]]-Tabla9351224[[#This Row],[Ahorros(IBI)]])/W40) -> No Disp | AA40: años | AB40: n/a | AC40: n/a | AD40: n/a | AE40: n/a | AF40: n/a | AG40: n/a | AH40: n/a | AI40: n/a | AJ40: n/a | AK40: n/a
A41: 37 | C41: 36300 | D41: 10000 | E41: =Tabla9351224[[#This Row],[ Instalacion]]+Tabla9351224[[#This Row],[Coste Hardware]] -> 46300 | Q41: =Tabla9351224[[#This Row],[Kw Valle]]+Tabla9351224[[#This Row],[Kwh Llano]]+Tabla9351224[[#This Row],[Kwh Punta]]+Tabla9351224[[#This Row],[Kwh P1]]+Tabla9351224[[#This Row],[Kwh P2]]+Tabla9351224[[#This Row],[Kwh P3]]+Tabla9351224[[#This Row],[Kwh P4]]+Tabla9351224[[#This Row],[Kwh P5]]+Tabla9351224[[#This Row],[Kwh P6]] -> 0 | T41: =Tabla9351224[[#This Row],[Prod Solar]]-Tabla9351224[[#This Row],[Exportado]] -> 0 | W41: 0 | X41: 0 | Y41: 18.93584176 | Z41: =IF(W41=0,"No Disp",(Tabla9351224[[#This Row],[Inversion]]-Tabla9351224[[#This Row],[Ahorros(IBI)]])/W41) -> No Disp | AA41: años | AB41: n/a | AC41: n/a | AD41: n/a | AE41: n/a | AF41: n/a | AG41: n/a | AH41: n/a | AI41: n/a | AJ41: n/a | AK41: n/a
A42: 38 | C42: 37200 | D42: 10000 | E42: =Tabla9351224[[#This Row],[ Instalacion]]+Tabla9351224[[#This Row],[Coste Hardware]] -> 47200 | Q42: =Tabla9351224[[#This Row],[Kw Valle]]+Tabla9351224[[#This Row],[Kwh Llano]]+Tabla9351224[[#This Row],[Kwh Punta]]+Tabla9351224[[#This Row],[Kwh P1]]+Tabla9351224[[#This Row],[Kwh P2]]+Tabla9351224[[#This Row],[Kwh P3]]+Tabla9351224[[#This Row],[Kwh P4]]+Tabla9351224[[#This Row],[Kwh P5]]+Tabla9351224[[#This Row],[Kwh P6]] -> 0 | T42: =Tabla9351224[[#This Row],[Prod Solar]]-Tabla9351224[[#This Row],[Exportado]] -> 0 | W42: 0 | X42: 0 | Y42: 18.70422725 | Z42: =IF(W42=0,"No Disp",(Tabla9351224[[#This Row],[Inversion]]-Tabla9351224[[#This Row],[Ahorros(IBI)]])/W42) -> No Disp | AA42: años | AB42: n/a | AC42: n/a | AD42: n/a | AE42: n/a | AF42: n/a | AG42: n/a | AH42: n/a | AI42: n/a | AJ42: n/a | AK42: n/a
A43: 39 | C43: 38100 | D43: 10000 | E43: =Tabla9351224[[#This Row],[ Instalacion]]+Tabla9351224[[#This Row],[Coste Hardware]] -> 48100 | Q43: =Tabla9351224[[#This Row],[Kw Valle]]+Tabla9351224[[#This Row],[Kwh Llano]]+Tabla9351224[[#This Row],[Kwh Punta]]+Tabla9351224[[#This Row],[Kwh P1]]+Tabla9351224[[#This Row],[Kwh P2]]+Tabla9351224[[#This Row],[Kwh P3]]+Tabla9351224[[#This Row],[Kwh P4]]+Tabla9351224[[#This Row],[Kwh P5]]+Tabla9351224[[#This Row],[Kwh P6]] -> 0 | T43: =Tabla9351224[[#This Row],[Prod Solar]]-Tabla9351224[[#This Row],[Exportado]] -> 0 | W43: 0 | X43: 0 | Y43: 18.49558579 | Z43: =IF(W43=0,"No Disp",(Tabla9351224[[#This Row],[Inversion]]-Tabla9351224[[#This Row],[Ahorros(IBI)]])/W43) -> No Disp | AA43: años | AB43: n/a | AC43: n/a | AD43: n/a | AE43: n/a | AF43: n/a | AG43: n/a | AH43: n/a | AI43: n/a | AJ43: n/a | AK43: n/a
A44: 40 | C44: 39000 | D44: 10000 | E44: =Tabla9351224[[#This Row],[ Instalacion]]+Tabla9351224[[#This Row],[Coste Hardware]] -> 49000 | Q44: =Tabla9351224[[#This Row],[Kw Valle]]+Tabla9351224[[#This Row],[Kwh Llano]]+Tabla9351224[[#This Row],[Kwh Punta]]+Tabla9351224[[#This Row],[Kwh P1]]+Tabla9351224[[#This Row],[Kwh P2]]+Tabla9351224[[#This Row],[Kwh P3]]+Tabla9351224[[#This Row],[Kwh P4]]+Tabla9351224[[#This Row],[Kwh P5]]+Tabla9351224[[#This Row],[Kwh P6]] -> 0 | T44: =Tabla9351224[[#This Row],[Prod Solar]]-Tabla9351224[[#This Row],[Exportado]] -> 0 | W44: 0 | X44: 0 | Y44: 18.30669999 | Z44: =IF(W44=0,"No Disp",(Tabla9351224[[#This Row],[Inversion]]-Tabla9351224[[#This Row],[Ahorros(IBI)]])/W44) -> No Disp | AA44: años | AB44: n/a | AC44: n/a | AD44: n/a | AE44: n/a | AF44: n/a | AG44: n/a | AH44: n/a | AI44: n/a | AJ44: n/a | AK44: n/a

Sheet RENT BAT PVPC 10Kwh
G1: 0.35 | H1: 0.29 | I1: 0.25 | K1: 0.16 | L1: 0.14 | M1: 0.11 | N1: 0.09 | O1: 0.08 | P1: 0.08 | U1: 0.27 | V1: 0.24 | W1: 0.2 | AB1: =INDIRECT(CONCATENATE("Y",AB2+4)) -> 16.42281523 | AD1: =INDIRECT(CONCATENATE("Y",AD2+4)) -> 15.73914982 | AF1: =INDIRECT(CONCATENATE("Y",AF2+4)) -> 15.64018401 | AH1: =INDIRECT(CONCATENATE("Y",AH2+4)) -> 15.53118999 | AJ1: =INDIRECT(CONCATENATE("Y",AJ2+4)) -> 15.53118999
A2: RENTABILIDAD BATERIA | D2: 10 | G2: CONSUMO COMPAÑÍA | R2: Ahorro en los X años | AB2: =MATCH(AC2,AC5:AC44,0) -> 6 | AC2: =MIN(AC5:AC44) -> 17497.15 | AD2: =MATCH(AE2,AE5:AE44,0) -> 9 | AE2: =MIN(AE5:AE44) -> 20158.9 | AF2: =MATCH(AG2,AG5:AG44,0) -> 10 | AG2: =MIN(AG5:AG44) -> 22170.95 | AH2: =MATCH(AI2,AI5:AI44,0) -> 11 | AI2: =MIN(AI5:AI44) -> 23798.6 | AJ2: =MATCH(AK2,AK5:AK44,0) -> 11 | AK2: =MIN(AK5:AK44) -> 25273.25
A3: ' | B3: Factura | C3: Coste Hardware | D3: Instalacion | E3: Inversion | F3: Ahorros(IBI) | G3: Kwh Punta | H3: Kwh Llano | I3: Kw Valle | J3: C | K3: Kwh P1 | L3: Kwh P2 | M3: Kwh P3 | N3: Kwh P4 | O3: Kwh P5 | P3: Kwh P6 | Q3: Total | R3: P Max 99.5 | S3: Prod Solar | T3: Consumido | U3: Exportado | V3: %Aut | W3: Dif Anual | X3: Dif Anterior | Y3: Dura Bat | Z3: Amortizacion | AB3: 5 | AC3: 5 años TOT | AD3: 10 | AE3: 10 años TOT | AF3: 15 | AG3: 15 años TOT | AH3: 20 | AI3: 20 años TOT | AJ3: 25 | AK3: 25 años TOT
A4: ORIGINAL | B4: 4524.54 | G4: 3743.782 | H4: 2723.003 | I4: 5026.124 | K4: 0 | L4: 0 | M4: 0 | N4: 0 | O4: 0 | P4: 0 | Q4: =Tabla9351223[[#This Row],[Kw Valle]]+Tabla9351223[[#This Row],[Kwh Llano]]+Tabla9351223[[#This Row],[Kwh Punta]]+Tabla9351223[[#This Row],[Kwh P1]]+Tabla9351223[[#This Row],[Kwh P2]]+Tabla9351223[[#This Row],[Kwh P3]]+Tabla9351223[[#This Row],[Kwh P4]]+Tabla9351223[[#This Row],[Kwh P5]]+Tabla9351223[[#This Row],[Kwh P6]] -> 11492.909 | AC4: =FV(INFLACCION,AB3,-$B$4,0) -> 22622.7 | AE4: =FV(INFLACCION,AD3,-$B$4,0) -> 45245.4 | AG4: =FV(INFLACCION,AF3,-$B$4,0) -> 67868.1 | AI4: =FV(INFLACCION,AH3,-$B$4,0) -> 90490.8 | AK4: =FV(INFLACCION,AJ3,-$B$4,0) -> 113113.5
A5: 1 | B5: 3490.93 | C5: 3000 | D5: =COSTE_BATERIA*CAPACIDAD_BATERIA -> 5000 | E5: =Tabla9351223[[#This Row],[ Instalacion]]+Tabla9351223[[#This Row],[Coste Hardware]] -> 8000 | G5: 1743.283674 | H5: 1198.098817 | I5: 7646.974903 | K5: 0 | L5: 0 | M5: 0 | N5: 0 | O5: 0 | P5: 0 | Q5: =Tabla9351223[[#This Row],[Kw Valle]]+Tabla9351223[[#This Row],[Kwh Llano]]+Tabla9351223[[#This Row],[Kwh Punta]]+Tabla9351223[[#This Row],[Kwh P1]]+Tabla9351223[[#This Row],[Kwh P2]]+Tabla9351223[[#This Row],[Kwh P3]]+Tabla9351223[[#This Row],[Kwh P4]]+Tabla9351223[[#This Row],[Kwh P5]]+Tabla9351223[[#This Row],[Kwh P6]] -> 10588.35739 | R5: 1018.76 | S5: 1364.27547 | T5: =Tabla9351223[[#This Row],[Prod Solar]]-Tabla9351223[[#This Row],[Exportado]] -> 0 | U5: 1364.27547 | V5: 0 | W5: =IF(B5=0,0,B$4-B5) -> 1033.61 | X5: =IF(B5=0,0,B4-B5) -> 1033.61 | Y5: 19.58726371 | Z5: =IF(W5=0,"No Disp",(Tabla9351223[[#This Row],[Inversion]]-Tabla9351223[[#This Row],[Ahorros(IBI)]])/W5) -> 7.739863198 | AA5: años | AB5: =IF($B5=0,"n/a",AC$4-(FV(INFLACCION,AB$3,-$B5,0))-$E5+$F5) -> -2831.95 | AC5: =IF(AB5<>"n/a",AC$4-AB5,"n/a") -> 25454.65 | AD5: =IF($B5=0,"n/a",AE$4-(FV(INFLACCION,AD$3,-$B5,0))-$E5+$F5) -> 2336.1 | AE5: =IF(AD5<>"n/a",AE$4-AD5,"n/a") -> 42909.3 | AF5: =IF($B5=0,"n/a",AG$4-(FV(INFLACCION,AF$3,-$B5,0))-$E5+$F5) -> 7504.15 | AG5: =IF(AF5<>"n/a",AG$4-AF5,"n/a") -> 60363.95 | AH5: =IF($B5=0,"n/a",AI$4-(FV(INFLACCION,AH$3,-$B5,0))-$E5+$F5) -> 12672.2 | AI5: =IF(AH5<>"n/a",AI$4-AH5,"n/a") -> 77818.6 | AJ5: =IF($B5=0,"n/a",AK$4-(FV(INFLACCION,AJ$3,-$B5,0))-$E5+$F5) -> 17840.25 | AK5: =IF(AJ5<>"n/a",AK$4-AJ5,"n/a") -> 95273.25
A6: 2 | B6: 2605.37 | C6: 4820 | D6: 5000 | E6: =Tabla9351223[[#This Row],[ Instalacion]]+Tabla9351223[[#This Row],[Coste Hardware]] -> 9820 | G6: 1285.679364 | H6: 871.578358 | I6: 7183.795661 | K6: 0 | L6: 0 | M6: 0 | N6: 0 | O6: 0 | P6: 0 | Q6: =Tabla9351223[[#This Row],[Kw Valle]]+Tabla9351223[[#This Row],[Kwh Llano]]+Tabla9351223[[#This Row],[Kwh Punta]]+Tabla9351223[[#This Row],[Kwh P1]]+Tabla9351223[[#This Row],[Kwh P2]]+Tabla9351223[[#This Row],[Kwh P3]]+Tabla9351223[[#This Row],[Kwh P4]]+Tabla9351223[[#This Row],[Kwh P5]]+Tabla9351223[[#This Row],[Kwh P6]] -> 9341.053383 | R6: 2037.52 | S6: 2728.55094 | T6: =Tabla9351223[[#This Row],[Prod Solar]]-Tabla9351223[[#This Row],[Exportado]] -> 0 | U6: 2728.55094 | V6: 0 | W6: 1919.17 | X6: =IF(B6=0,0,B5-B6) -> 885.56 | Y6: 19.14089903 | Z6: =IF(W6=0,"No Disp",(Tabla9351223[[#This Row],[Inversion]]-Tabla9351223[[#This Row],[Ahorros(IBI)]])/W6) -> 5.116795281 | AA6: años | AB6: =IF($B6=0,"n/a",AC$4-(FV(INFLACCION,AB$3,-$B6,0))-$E6+$F6) -> -224.15 | AC6: =IF(AB6<>"n/a",AC$4-AB6,"n/a") -> 22846.85 | AD6: 9371.7 | AE6: =IF(AD6<>"n/a",AE$4-AD6,"n/a") -> 35873.7 | AF6: 18967.55 | AG6: =IF(AF6<>"n/a",AG$4-AF6,"n/a") -> 48900.55 | AH6: 28563.4 | AI6: =IF(AH6<>"n/a",AI$4-AH6,"n/a") -> 61927.4 | AJ6: 38159.25 | AK6: =IF(AJ6<>"n/a",AK$4-AJ6,"n/a") -> 74954.25
A7: 3 | B7: 1874.36 | C7: 5450 | D7: 5000 | E7: =Tabla9351223[[#This Row],[ Instalacion]]+Tabla9351223[[#This Row],[Coste Hardware]] -> 10450 | G7: 1013.404443 | H7: 682.7597235 | I7: 6729.456518 | K7: 0 | L7: 0 | M7: 0 | N7: 0 | O7: 0 | P7: 0 | Q7: =Tabla9351223[[#This Row],[Kw Valle]]+Tabla9351223[[#This Row],[Kwh Llano]]+Tabla9351223[[#This Row],[Kwh Punta]]+Tabla9351223[[#This Row],[Kwh P1]]+Tabla9351223[[#This Row],[Kwh P2]]+Tabla9351223[[#This Row],[Kwh P3]]+Tabla9351223[[#This Row],[Kwh P4]]+Tabla9351223[[#This Row],[Kwh P5]]+Tabla9351223[[#This Row],[Kwh P6]] -> 8425.620685 | R7: 3056.28 | S7: 4092.82641 | T7: =Tabla9351223[[#This Row],[Prod Solar]]-Tabla9351223[[#This Row],[Exportado]] -> 0 | U7: 4092.82641 | V7: 0 | W7: 2650.18 | X7: =IF(B7=0,0,B6-B7) -> 731.01 | Y7: 18.44420091 | Z7: =IF(W7=0,"No Disp",(Tabla9351223[[#This Row],[Inversion]]-Tabla9351223[[#This Row],[Ahorros(IBI)]])/W7) -> 3.943128391 | AA7: años | AB7: 2800.9 | AC7: 19821.8 | AD7: 16051.8 | AE7: 29193.6 | AF7: 29302.7 | AG7: 38565.4 | AH7: 42553.6 | AI7: 47937.2 | AJ7: 55804.5 | AK7: 57309
A8: 4 | B8: 1353.22 | C8: 6300 | D8: 5000 | E8: =Tabla9351223[[#This Row],[ Instalacion]]+Tabla9351223[[#This Row],[Coste Hardware]] -> 11300 | G8: 829.021118 | H8: 565.558142 | I8: 6352.681324 | K8: 0 | L8: 0 | M8: 0 | N8: 0 | O8: 0 | P8: 0 | Q8: =Tabla9351223[[#This Row],[Kw Valle]]+Tabla9351223[[#This Row],[Kwh Llano]]+Tabla9351223[[#This Row],[Kwh Punta]]+Tabla9351223[[#This Row],[Kwh P1]]+Tabla9351223[[#This Row],[Kwh P2]]+Tabla9351223[[#This Row],[Kwh P3]]+Tabla9351223[[#This Row],[Kwh P4]]+Tabla9351223[[#This Row],[Kwh P5]]+Tabla9351223[[#This Row],[Kwh P6]] -> 7747.260584 | R8: 4075.04 | S8: 5457.10188 | T8: =Tabla9351223[[#This Row],[Prod Solar]]-Tabla9351223[[#This Row],[Exportado]] -> 0 | U8: 5457.10188 | V8: 0 | W8: 3171.32 | X8: =IF(B8=0,0,B7-B8) -> 521.14 | Y8: 17.5856384 | Z8: =IF(W8=0,"No Disp",(Tabla9351223[[#This Row],[Inversion]]-Tabla9351223[[#This Row],[Ahorros(IBI)]])/W8) -> 3.563185046 | AA8: años | AB8: 4556.6 | AC8: 18066.1 | AD8: 20413.2 | AE8: 24832.2 | AF8: 36269.8 | AG8: 31598.3 | AH8: 52126.4 | AI8: 38364.4 | AJ8: 67983 | AK8: 45130.5
A9: 5 | B9: 1063.18 | C9: 7200 | D9: 5000 | E9: =Tabla9351223[[#This Row],[ Instalacion]]+Tabla9351223[[#This Row],[Coste Hardware]] -> 12200 | G9: 699.8068675 | H9: 484.6534425 | I9: 6055.560821 | K9: 0 | L9: 0 | M9: 0 | N9: 0 | O9: 0 | P9: 0 | Q9: =Tabla9351223[[#This Row],[Kw Valle]]+Tabla9351223[[#This Row],[Kwh Llano]]+Tabla9351223[[#This Row],[Kwh Punta]]+Tabla9351223[[#This Row],[Kwh P1]]+Tabla9351223[[#This Row],[Kwh P2]]+Tabla9351223[[#This Row],[Kwh P3]]+Tabla9351223[[#This Row],[Kwh P4]]+Tabla9351223[[#This Row],[Kwh P5]]+Tabla9351223[[#This Row],[Kwh P6]] -> 7240.021131 | R9: 5093.8 | S9: 6821.37735 | T9: =Tabla9351223[[#This Row],[Prod Solar]]-Tabla9351223[[#This Row],[Exportado]] -> 0 | U9: 6821.37735 | V9: 0 | W9: 3461.36 | X9: 290.04 | Y9: 16.91432528 | Z9: =IF(W9=0,"No Disp",(Tabla9351223[[#This Row],[Inversion]]-Tabla9351223[[#This Row],[Ahorros(IBI)]])/W9) -> 3.524626159 | AA9: años | AB9: 5106.8 | AC9: 17515.9 | AD9: 22413.6 | AE9: 22831.8 | AF9: 39720.4 | AG9: 28147.7 | AH9: 57027.2 | AI9: 33463.6 | AJ9: 74334 | AK9: 38779.5
A10: 6 | B10: 839.43 | C10: 8300 | D10: 5000 | E10: =Tabla9351223[[#This Row],[ Instalacion]]+Tabla9351223[[#This Row],[Coste Hardware]] -> 13300 | G10: 610.876588 | H10: 427.165938 | I10: 5821.166983 | K10: 0 | L10: 0 | M10: 0 | N10: 0 | O10: 0 | P10: 0 | Q10: =Tabla9351223[[#This Row],[Kw Valle]]+Tabla9351223[[#This Row],[Kwh Llano]]+Tabla9351223[[#This Row],[Kwh Punta]]+Tabla9351223[[#This Row],[Kwh P1]]+Tabla9351223[[#This Row],[Kwh P2]]+Tabla9351223[[#This Row],[Kwh P3]]+Tabla9351223[[#This Row],[Kwh P4]]+Tabla9351223[[#This Row],[Kwh P5]]+Tabla9351223[[#This Row],[Kwh P6]] -> 6859.209509 | R10: 6112.56 | S10: 8185.65282 | T10: =Tabla9351223[[#This Row],[Prod Solar]]-Tabla9351223[[#This Row],[Exportado]] -> 0 | U10: 8185.65282 | V10: 0 | W10: 3685.11 | X10: 223.75 | Y10: 16.42281523 | Z10: =IF(W10=0,"No Disp",(Tabla9351223[[#This Row],[Inversion]]-Tabla9351223[[#This Row],[Ahorros(IBI)]])/W10) -> 3.609118859 | AA10: años | AB10: 5125.55 | AC10: 17497.15 | AD10: 23551.1 | AE10: 21694.3 | AF10: 41976.65 | AG10: 25891.45 | AH10: 60402.2 | AI10: 30088.6 | AJ10: 78827.75 | AK10: 34285.75
A11: 7 | B11: 660.15 | C11: 9300 | D11: 5000 | E11: =Tabla9351223[[#This Row],[ Instalacion]]+Tabla9351223[[#This Row],[Coste Hardware]] -> 14300 | G11: 545.8608195 | H11: 384.9449685 | I11: 5629.751254 | K11: 0 | L11: 0 | M11: 0 | N11: 0 | O11: 0 | P11: 0 | Q11: =Tabla9351223[[#This Row],[Kw Valle]]+Tabla9351223[[#This Row],[Kwh Llano]]+Tabla9351223[[#This Row],[Kwh Punta]]+Tabla9351223[[#This Row],[Kwh P1]]+Tabla9351223[[#This Row],[Kwh P2]]+Tabla9351223[[#This Row],[Kwh P3]]+Tabla9351223[[#This Row],[Kwh P4]]+Tabla9351223[[#This Row],[Kwh P5]]+Tabla9351223[[#This Row],[Kwh P6]] -> 6560.557042 | R11: 7131.32 | S11: 9549.92829 | T11: =Tabla9351223[[#This Row],[Prod Solar]]-Tabla9351223[[#This Row],[Exportado]] -> 0 | U11: 9549.92829 | V11: 0 | W11: 3864.39 | X11: 179.28 | Y11: 16.09273708 | Z11: =IF(W11=0,"No Disp",(Tabla9351223[[#This Row],[Inversion]]-Tabla9351223[[#This Row],[Ahorros(IBI)]])/W11) -> 3.700454664 | AA11: años | AB11: 5021.95 | AC11: 17600.75 | AD11: 24343.9 | AE11: 20901.5 | AF11: 43665.85 | AG11: 24202.25 | AH11: 62987.8 | AI11: 27503 | AJ11: 82309.75 | AK11: 30803.75
A12: 8 | B12: 518.77 | C12: 10200 | D12: 5000 | E12: =Tabla9351223[[#This Row],[ Instalacion]]+Tabla9351223[[#This Row],[Coste Hardware]] -> 15200 | G12: 493.990442 | H12: 353.282304 | I12: 5476.02776 | K12: 0 | L12: 0 | M12: 0 | N12: 0 | O12: 0 | P12: 0 | Q12: =Tabla9351223[[#This Row],[Kw Valle]]+Tabla9351223[[#This Row],[Kwh Llano]]+Tabla9351223[[#This Row],[Kwh Punta]]+Tabla9351223[[#This Row],[Kwh P1]]+Tabla9351223[[#This Row],[Kwh P2]]+Tabla9351223[[#This Row],[Kwh P3]]+Tabla9351223[[#This Row],[Kwh P4]]+Tabla9351223[[#This Row],[Kwh P5]]+Tabla9351223[[#This Row],[Kwh P6]] -> 6323.300506 | R12: 8150.08 | S12: 10914.20376 | T12: =Tabla9351223[[#This Row],[Prod Solar]]-Tabla9351223[[#This Row],[Exportado]] -> 0 | U12: 10914.20376 | V12: 0 | W12: 4005.77 | X12: 141.38 | Y12: 15.87031624 | Z12: =IF(W12=0,"No Disp",(Tabla9351223[[#This Row],[Inversion]]-Tabla9351223[[#This Row],[Ahorros(IBI)]])/W12) -> 3.794526396 | AA12: años | AB12: 4828.85 | AC12: 17793.85 | AD12: 24857.7 | AE12: 20387.7 | AF12: 44886.55 | AG12: 22981.55 | AH12: 64915.4 | AI12: 25575.4 | AJ12: 84944.25 | AK12: 28169.25
A13: 9 | B13: 405.89 | C13: 11100 | D13: 5000 | E13: =Tabla9351223[[#This Row],[ Instalacion]]+Tabla9351223[[#This Row],[Coste Hardware]] -> 16100 | G13: 445.823537 | H13: 330.9301355 | I13: 5355.433673 | K13: 0 | L13: 0 | M13: 0 | N13: 0 | O13: 0 | P13: 0 | Q13: =Tabla9351223[[#This Row],[Kw Valle]]+Tabla9351223[[#This Row],[Kwh Llano]]+Tabla9351223[[#This Row],[Kwh Punta]]+Tabla9351223[[#This Row],[Kwh P1]]+Tabla9351223[[#This Row],[Kwh P2]]+Tabla9351223[[#This Row],[Kwh P3]]+Tabla9351223[[#This Row],[Kwh P4]]+Tabla9351223[[#This Row],[Kwh P5]]+Tabla9351223[[#This Row],[Kwh P6]] -> 6132.187345 | R13: 9168.84 | S13: 12278.47923 | T13: =Tabla9351223[[#This Row],[Prod Solar]]-Tabla9351223[[#This Row],[Exportado]] -> 0 | U13: 12278.47923 | V13: 0 | W13: 4118.65 | X13: 112.88 | Y13: 15.73914982 | Z13: =IF(W13=0,"No Disp",(Tabla9351223[[#This Row],[Inversion]]-Tabla9351223[[#This Row],[Ahorros(IBI)]])/W13) -> 3.909047868 | AA13: años | AB13: 4493.25 | AC13: 18129.45 | AD13: 25086.5 | AE13: 20158.9 | AF13: 45679.75 | AG13: 22188.35 | AH13: 66273 | AI13: 24217.8 | AJ13: 86866.25 | AK13: 26247.25
A14: 10 | B14: 344.73 | C14: 12000 | D14: 5000 | E14: =Tabla9351223[[#This Row],[ Instalacion]]+Tabla9351223[[#This Row],[Coste Hardware]] -> 17000 | G14: 399.63542 | H14: 316.221205 | I14: 5254.882591 | K14: 0 | L14: 0 | M14: 0 | N14: 0 | O14: 0 | P14: 0 | Q14: =Tabla9351223[[#This Row],[Kw Valle]]+Tabla9351223[[#This Row],[Kwh Llano]]+Tabla9351223[[#This Row],[Kwh Punta]]+Tabla9351223[[#This Row],[Kwh P1]]+Tabla9351223[[#This Row],[Kwh P2]]+Tabla9351223[[#This Row],[Kwh P3]]+Tabla9351223[[#This Row],[Kwh P4]]+Tabla9351223[[#This Row],[Kwh P5]]+Tabla9351223[[#This Row],[Kwh P6]] -> 5970.739216 | R14: 10187.6 | S14: 13642.7547 | T14: =Tabla9351223[[#This Row],[Prod Solar]]-Tabla9351223[[#This Row],[Exportado]] -> 0 | U14: 13642.7547 | V14: 0 | W14: 4179.81 | X14: 61.16 | Y14: 15.64018401 | Z14: =IF(W14=0,"No Disp",(Tabla9351223[[#This Row],[Inversion]]-Tabla9351223[[#This Row],[Ahorros(IBI)]])/W14) -> 4.067170517 | AA14: años | AB14: 3899.05 | AC14: 18723.65 | AD14: 24798.1 | AE14: 20447.3 | AF14: 45697.15 | AG14: 22170.95 | AH14: 66596.2 | AI14: 23894.6 | AJ14: 87495.25 | AK14: 25618.25
A15: 11 | B15: 294.93 | C15: 12900 | D15: 5000 | E15: =Tabla9351223[[#This Row],[ Instalacion]]+Tabla9351223[[#This Row],[Coste Hardware]] -> 17900 | G15: 357.981822 | H15: 304.276229 | I15: 5164.724968 | K15: 0 | L15: 0 | M15: 0 | N15: 0 | O15: 0 | P15: 0 | Q15: =Tabla9351223[[#This Row],[Kw Valle]]+Tabla9351223[[#This Row],[Kwh Llano]]+Tabla9351223[[#This Row],[Kwh Punta]]+Tabla9351223[[#This Row],[Kwh P1]]+Tabla9351223[[#This Row],[Kwh P2]]+Tabla9351223[[#This Row],[Kwh P3]]+Tabla9351223[[#This Row],[Kwh P4]]+Tabla9351223[[#This Row],[Kwh P5]]+Tabla9351223[[#This Row],[Kwh P6]] -> 5826.983019 | R15: 11206.36 | S15: 15007.03017 | T15: =Tabla9351223[[#This Row],[Prod Solar]]-Tabla9351223[[#This Row],[Exportado]] -> 0 | U15: 15007.03017 | V15: 0 | W15: 4229.61 | X15: 49.8 | Y15: 15.53118999 | Z15: =IF(W15=0,"No Disp",(Tabla9351223[[#This Row],[Inversion]]-Tabla9351223[[#This Row],[Ahorros(IBI)]])/W15) -> 4.232068678 | AA15: años | AB15: 3248.05 | AC15: 19374.65 | AD15: 24396.1 | AE15: 20849.3 | AF15: 45544.15 | AG15: 22323.95 | AH15: 66692.2 | AI15: 23798.6 | AJ15: 87840.25 | AK15: 25273.25
A16: 12 | B16: 260.07 | C16: 13800 | D16: 5000 | E16: =Tabla9351223[[#This Row],[ Instalacion]]+Tabla9351223[[#This Row],[Coste Hardware]] -> 18800 | G16: 320.392778 | H16: 295.259028 | I16: 5084.315595 | K16: 0 | L16: 0 | M16: 0 | N16: 0 | O16: 0 | P16: 0 | Q16: =Tabla9351223[[#This Row],[Kw Valle]]+Tabla9351223[[#This Row],[Kwh Llano]]+Tabla9351223[[#This Row],[Kwh Punta]]+Tabla9351223[[#This Row],[Kwh P1]]+Tabla9351223[[#This Row],[Kwh P2]]+Tabla9351223[[#This Row],[Kwh P3]]+Tabla9351223[[#This Row],[Kwh P4]]+Tabla9351223[[#This Row],[Kwh P5]]+Tabla9351223[[#This Row],[Kwh P6]] -> 5699.967401 | R16: 12225.12 | S16: 16371.30564 | T16: =Tabla9351223[[#This Row],[Prod Solar]]-Tabla9351223[[#This Row],[Exportado]] -> 0 | U16: 16371.30564 | V16: 0 | W16: 4264.47 | X16: 34.86 | Y16: 15.43007079 | Z16: =IF(W16=0,"No Disp",(Tabla9351223[[#This Row],[Inversion]]-Tabla9351223[[#This Row],[Ahorros(IBI)]])/W16) -> 4.408519699 | AA16: años | AB16: 2522.35 | AC16: 20100.35 | AD16: 23844.7 | AE16: 21400.7 | AF16: 45167.05 | AG16: 22701.05 | AH16: 66489.4 | AI16: 24001.4 | AJ16: 87811.75 | AK16: 25301.75
A17: 13 | B17: 260.07 | C17: 14700 | D17: 5000 | E17: =Tabla9351223[[#This Row],[ Instalacion]]+Tabla9351223[[#This Row],[Coste Hardware]] -> 19700 | G17: 287.9912165 | H17: 287.0299425 | I17: 5012.891653 | K17: 0 | L17: 0 | M17: 0 | N17: 0 | O17: 0 | P17: 0 | Q17: =Tabla9351223[[#This Row],[Kw Valle]]+Tabla9351223[[#This Row],[Kwh Llano]]+Tabla9351223[[#This Row],[Kwh Punta]]+Tabla9351223[[#This Row],[Kwh P1]]+Tabla9351223[[#This Row],[Kwh P2]]+Tabla9351223[[#This Row],[Kwh P3]]+Tabla9351223[[#This Row],[Kwh P4]]+Tabla9351223[[#This Row],[Kwh P5]]+Tabla9351223[[#This Row],[Kwh P6]] -> 5587.912812 | R17: 13243.88 | S17: 17735.58111 | T17: =Tabla9351223[[#This Row],[Prod Solar]]-Tabla9351223[[#This Row],[Exportado]] -> 0 | U17: 17735.58111 | V17: 0 | W17: 4264.47 | X17: 0 | Y17: 15.36577065 | Z17: =IF(W17=0,"No Disp",(Tabla9351223[[#This Row],[Inversion]]-Tabla9351223[[#This Row],[Ahorros(IBI)]])/W17) -> 4.619565855 | AA17: años | AB17: 1622.35 | AC17: 21000.35 | AD17: 22944.7 | AE17: 22300.7 | AF17: 44267.05 | AG17: 23601.05 | AH17: 65589.4 | AI17: 24901.4 | AJ17: 86911.75 | AK17: 26201.75
A18: 14 | B18: 260.07 | C18: 15600 | D18: 5000 | E18: =Tabla9351223[[#This Row],[ Instalacion]]+Tabla9351223[[#This Row],[Coste Hardware]] -> 20600 | G18: 260.647443 | H18: 279.21179 | I18: 4948.982886 | K18: 0 | L18: 0 | M18: 0 | N18: 0 | O18: 0 | P18: 0 | Q18: =Tabla9351223[[#This Row],[Kw Valle]]+Tabla9351223[[#This Row],[Kwh Llano]]+Tabla9351223[[#This Row],[Kwh Punta]]+Tabla9351223[[#This Row],[Kwh P1]]+Tabla9351223[[#This Row],[Kwh P2]]+Tabla9351223[[#This Row],[Kwh P3]]+Tabla9351223[[#This Row],[Kwh P4]]+Tabla9351223[[#This Row],[Kwh P5]]+Tabla9351223[[#This Row],[Kwh P6]] -> 5488.842119 | R18: 14262.64 | S18: 19099.85658 | T18: =Tabla9351223[[#This Row],[Prod Solar]]-Tabla9351223[[#This Row],[Exportado]] -> 0 | U18: 19099.85658 | V18: 0 | W18: 4264.47 | X18: 0 | Y18: 15.32083749 | Z18: =IF(W18=0,"No Disp",(Tabla9351223[[#This Row],[Inversion]]-Tabla9351223[[#This Row],[Ahorros(IBI)]])/W18) -> 4.83061201 | AA18: años | AB18: 722.35 | AC18: 21900.35 | AD18: 22044.7 | AE18: 23200.7 | AF18: 43367.05 | AG18: 24501.05 | AH18: 64689.4 | AI18: 25801.4 | AJ18: 86011.75 | AK18: 27101.75
A19: 15 | B19: 260.07 | C19: 16500 | D19: 5000 | E19: =Tabla9351223[[#This Row],[ Instalacion]]+Tabla9351223[[#This Row],[Coste Hardware]] -> 21500 | G19: 239.42917 | H19: 269.92162 | I19: 4894.371729 | K19: 0 | L19: 0 | M19: 0 | N19: 0 | O19: 0 | P19: 0 | Q19: =Tabla9351223[[#This Row],[Kw Valle]]+Tabla9351223[[#This Row],[Kwh Llano]]+Tabla9351223[[#This Row],[Kwh Punta]]+Tabla9351223[[#This Row],[Kwh P1]]+Tabla9351223[[#This Row],[Kwh P2]]+Tabla9351223[[#This Row],[Kwh P3]]+Tabla9351223[[#This Row],[Kwh P4]]+Tabla9351223[[#This Row],[Kwh P5]]+Tabla9351223[[#This Row],[Kwh P6]] -> 5403.722519 | R19: 15281.4 | S19: 20464.13205 | T19: =Tabla9351223[[#This Row],[Prod Solar]]-Tabla9351223[[#This Row],[Exportado]] -> 0 | U19: 20464.13205 | V19: 0 | W19: 4264.47 | X19: 0 | Y19: 15.27986992 | Z19: =IF(W19=0,"No Disp",(Tabla9351223[[#This Row],[Inversion]]-Tabla9351223[[#This Row],[Ahorros(IBI)]])/W19) -> 5.041658166 | AA19: años | AB19: -177.65 | AC19: 22800.35 | AD19: 21144.7 | AE19: 24100.7 | AF19: 42467.05 | AG19: 25401.05 | AH19: 63789.4 | AI19: 26701.4 | AJ19: 85111.75 | AK19: 28001.75
A20: 16 | C20: =C19+900 -> 17400 | D20: 5000 | E20: =Tabla9351223[[#This Row],[ Instalacion]]+Tabla9351223[[#This Row],[Coste Hardware]] -> 22400 | Q20: =Tabla9351223[[#This Row],[Kw Valle]]+Tabla9351223[[#This Row],[Kwh Llano]]+Tabla9351223[[#This Row],[Kwh Punta]]+Tabla9351223[[#This Row],[Kwh P1]]+Tabla9351223[[#This Row],[Kwh P2]]+Tabla9351223[[#This Row],[Kwh P3]]+Tabla9351223[[#This Row],[Kwh P4]]+Tabla9351223[[#This Row],[Kwh P5]]+Tabla9351223[[#This Row],[Kwh P6]] -> 0 | T20: =Tabla9351223[[#This Row],[Prod Solar]]-Tabla9351223[[#This Row],[Exportado]] -> 0 | W20: 0 | X20: 0 | Y20: 39.84302229 | Z20: =IF(W20=0,"No Disp",(Tabla9351223[[#This Row],[Inversion]]-Tabla9351223[[#This Row],[Ahorros(IBI)]])/W20) -> No Disp | AA20: años | AB20: n/a | AC20: n/a | AD20: n/a | AE20: n/a | AF20: n/a | AG20: n/a | AH20: n/a | AI20: n/a | AJ20: n/a | AK20: n/a
A21: 17 | C21: =C20+900 -> 18300 | D21: 5000 | E21: =Tabla9351223[[#This Row],[ Instalacion]]+Tabla9351223[[#This Row],[Coste Hardware]] -> 23300 | Q21: =Tabla9351223[[#This Row],[Kw Valle]]+Tabla9351223[[#This Row],[Kwh Llano]]+Tabla9351223[[#This Row],[Kwh Punta]]+Tabla9351223[[#This Row],[Kwh P1]]+Tabla9351223[[#This Row],[Kwh P2]]+Tabla9351223[[#This Row],[Kwh P3]]+Tabla9351223[[#This Row],[Kwh P4]]+Tabla9351223[[#This Row],[Kwh P5]]+Tabla9351223[[#This Row],[Kwh P6]] -> 0 | T21: =Tabla9351223[[#This Row],[Prod Solar]]-Tabla9351223[[#This Row],[Exportado]] -> 0 | W21: 0 | X21: 0 | Y21: 36.85281197 | Z21: =IF(W21=0,"No Disp",(Tabla9351223[[#This Row],[Inversion]]-Tabla9351223[[#This Row],[Ahorros(IBI)]])/W21) -> No Disp | AA21: años | AB21: n/a | AC21: n/a | AD21: n/a | AE21: n/a | AF21: n/a | AG21: n/a | AH21: n/a | AI21: n/a | AJ21: n/a | AK21: n/a
A22: 18 | C22: 19200 | D22: 5000 | E22: =Tabla9351223[[#This Row],[ Instalacion]]+Tabla9351223[[#This Row],[Coste Hardware]] -> 24200 | Q22: =Tabla9351223[[#This Row],[Kw Valle]]+Tabla9351223[[#This Row],[Kwh Llano]]+Tabla9351223[[#This Row],[Kwh Punta]]+Tabla9351223[[#This Row],[Kwh P1]]+Tabla9351223[[#This Row],[Kwh P2]]+Tabla9351223[[#This Row],[Kwh P3]]+Tabla9351223[[#This Row],[Kwh P4]]+Tabla9351223[[#This Row],[Kwh P5]]+Tabla9351223[[#This Row],[Kwh P6]] -> 0 | T22: =Tabla9351223[[#This Row],[Prod Solar]]-Tabla9351223[[#This Row],[Exportado]] -> 0 | W22: 0 | X22: 0 | Y22: 34.22636158 | Z22: =IF(W22=0,"No Disp",(Tabla9351223[[#This Row],[Inversion]]-Tabla9351223[[#This Row],[Ahorros(IBI)]])/W22) -> No Disp | AA22: años | AB22: n/a | AC22: n/a | AD22: n/a | AE22: n/a | AF22: n/a | AG22: n/a | AH22: n/a | AI22: n/a | AJ22: n/a | AK22: n/a
A23: 19 | C23: 20100 | D23: 5000 | E23: =Tabla9351223[[#This Row],[ Instalacion]]+Tabla9351223[[#This Row],[Coste Hardware]] -> 25100 | Q23: =Tabla9351223[[#This Row],[Kw Valle]]+Tabla9351223[[#This Row],[Kwh Llano]]+Tabla9351223[[#This Row],[Kwh Punta]]+Tabla9351223[[#This Row],[Kwh P1]]+Tabla9351223[[#This Row],[Kwh P2]]+Tabla9351223[[#This Row],[Kwh P3]]+Tabla9351223[[#This Row],[Kwh P4]]+Tabla9351223[[#This Row],[Kwh P5]]+Tabla9351223[[#This Row],[Kwh P6]] -> 0 | T23: =Tabla9351223[[#This Row],[Prod Solar]]-Tabla9351223[[#This Row],[Exportado]] -> 0 | W23: 0 | X23: 0 | Y23: 31.90588917 | Z23: =IF(W23=0,"No Disp",(Tabla9351223[[#This Row],[Inversion]]-Tabla9351223[[#This Row],[Ahorros(IBI)]])/W23) -> No Disp | AA23: años | AB23: n/a | AC23: n/a | AD23: n/a | AE23: n/a | AF23: n/a | AG23: n/a | AH23: n/a | AI23: n/a | AJ23: n/a | AK23: n/a
A24: 20 | C24: 21000 | D24: 5000 | E24: =Tabla9351223[[#This Row],[ Instalacion]]+Tabla9351223[[#This Row],[Coste Hardware]] -> 26000 | Q24: =Tabla9351223[[#This Row],[Kw Valle]]+Tabla9351223[[#This Row],[Kwh Llano]]+Tabla9351223[[#This Row],[Kwh Punta]]+Tabla9351223[[#This Row],[Kwh P1]]+Tabla9351223[[#This Row],[Kwh P2]]+Tabla9351223[[#This Row],[Kwh P3]]+Tabla9351223[[#This Row],[Kwh P4]]+Tabla9351223[[#This Row],[Kwh P5]]+Tabla9351223[[#This Row],[Kwh P6]] -> 0 | T24: =Tabla9351223[[#This Row],[Prod Solar]]-Tabla9351223[[#This Row],[Exportado]] -> 0 | W24: 0 | X24: 0 | Y24: 29.83296735 | Z24: =IF(W24=0,"No Disp",(Tabla9351223[[#This Row],[Inversion]]-Tabla9351223[[#This Row],[Ahorros(IBI)]])/W24) -> No Disp | AA24: años | AB24: n/a | AC24: n/a | AD24: n/a | AE24: n/a | AF24: n/a | AG24: n/a | AH24: n/a | AI24: n/a | AJ24: n/a | AK24: n/a
A25: 21 | C25: 21900 | D25: 5000 | E25: =Tabla9351223[[#This Row],[ Instalacion]]+Tabla9351223[[#This Row],[Coste Hardware]] -> 26900 | Q25: =Tabla9351223[[#This Row],[Kw Valle]]+Tabla9351223[[#This Row],[Kwh Llano]]+Tabla9351223[[#This Row],[Kwh Punta]]+Tabla9351223[[#This Row],[Kwh P1]]+Tabla9351223[[#This Row],[Kwh P2]]+Tabla9351223[[#This Row],[Kwh P3]]+Tabla9351223[[#This Row],[Kwh P4]]+Tabla9351223[[#This Row],[Kwh P5]]+Tabla9351223[[#This Row],[Kwh P6]] -> 0 | T25: =Tabla9351223[[#This Row],[Prod Solar]]-Tabla9351223[[#This Row],[Exportado]] -> 0 | W25: 0 | X25: 0 | Y25: 28.06658329 | Z25: =IF(W25=0,"No Disp",(Tabla9351223[[#This Row],[Inversion]]-Tabla9351223[[#This Row],[Ahorros(IBI)]])/W25) -> No Disp | AA25: años | AB25: n/a | AC25: n/a | AD25: n/a | AE25: n/a | AF25: n/a | AG25: n/a | AH25: n/a | AI25: n/a | AJ25: n/a | AK25: n/a
A26: 22 | C26: 22800 | D26: 5000 | E26: =Tabla9351223[[#This Row],[ Instalacion]]+Tabla9351223[[#This Row],[Coste Hardware]] -> 27800 | Q26: =Tabla9351223[[#This Row],[Kw Valle]]+Tabla9351223[[#This Row],[Kwh Llano]]+Tabla9351223[[#This Row],[Kwh Punta]]+Tabla9351223[[#This Row],[Kwh P1]]+Tabla9351223[[#This Row],[Kwh P2]]+Tabla9351223[[#This Row],[Kwh P3]]+Tabla9351223[[#This Row],[Kwh P4]]+Tabla9351223[[#This Row],[Kwh P5]]+Tabla9351223[[#This Row],[Kwh P6]] -> 0 | T26: =Tabla9351223[[#This Row],[Prod Solar]]-Tabla9351223[[#This Row],[Exportado]] -> 0 | W26: 0 | X26: 0 | Y26: 26.62710639 | Z26: =IF(W26=0,"No Disp",(Tabla9351223[[#This Row],[Inversion]]-Tabla9351223[[#This Row],[Ahorros(IBI)]])/W26) -> No Disp | AA26: años | AB26: n/a | AC26: n/a | AD26: n/a | AE26: n/a | AF26: n/a | AG26: n/a | AH26: n/a | AI26: n/a | AJ26: n/a | AK26: n/a
A27: 23 | C27: 23700 | D27: 5000 | E27: =Tabla9351223[[#This Row],[ Instalacion]]+Tabla9351223[[#This Row],[Coste Hardware]] -> 28700 | Q27: =Tabla9351223[[#This Row],[Kw Valle]]+Tabla9351223[[#This Row],[Kwh Llano]]+Tabla9351223[[#This Row],[Kwh Punta]]+Tabla9351223[[#This Row],[Kwh P1]]+Tabla9351223[[#This Row],[Kwh P2]]+Tabla9351223[[#This Row],[Kwh P3]]+Tabla9351223[[#This Row],[Kwh P4]]+Tabla9351223[[#This Row],[Kwh P5]]+Tabla9351223[[#This Row],[Kwh P6]] -> 0 | T27: =Tabla9351223[[#This Row],[Prod Solar]]-Tabla9351223[[#This Row],[Exportado]] -> 0 | W27: 0 | X27: 0 | Y27: 25.49089083 | Z27: =IF(W27=0,"No Disp",(Tabla9351223[[#This Row],[Inversion]]-Tabla9351223[[#This Row],[Ahorros(IBI)]])/W27) -> No Disp | AA27: años | AB27: n/a | AC27: n/a | AD27: n/a | AE27: n/a | AF27: n/a | AG27: n/a | AH27: n/a | AI27: n/a | AJ27: n/a | AK27: n/a
A28: 24 | C28: 24600 | D28: 5000 | E28: =Tabla9351223[[#This Row],[ Instalacion]]+Tabla9351223[[#This Row],[Coste Hardware]] -> 29600 | Q28: =Tabla9351223[[#This Row],[Kw Valle]]+Tabla9351223[[#This Row],[Kwh Llano]]+Tabla9351223[[#This Row],[Kwh Punta]]+Tabla9351223[[#This Row],[Kwh P1]]+Tabla9351223[[#This Row],[Kwh P2]]+Tabla9351223[[#This Row],[Kwh P3]]+Tabla9351223[[#This Row],[Kwh P4]]+Tabla9351223[[#This Row],[Kwh P5]]+Tabla9351223[[#This Row],[Kwh P6]] -> 0 | T28: =Tabla9351223[[#This Row],[Prod Solar]]-Tabla9351223[[#This Row],[Exportado]] -> 0 | W28: 0 | X28: 0 | Y28: 24.54445061 | Z28: =IF(W28=0,"No Disp",(Tabla9351223[[#This Row],[Inversion]]-Tabla9351223[[#This Row],[Ahorros(IBI)]])/W28) -> No Disp | AA28: años | AB28: n/a | AC28: n/a | AD28: n/a | AE28: n/a | AF28: n/a | AG28: n/a | AH28: n/a | AI28: n/a | AJ28: n/a | AK28: n/a
A29: 25 | C29: 25500 | D29: 5000 | E29: =Tabla9351223[[#This Row],[ Instalacion]]+Tabla9351223[[#This Row],[Coste Hardware]] -> 30500 | Q29: =Tabla9351223[[#This Row],[Kw Valle]]+Tabla9351223[[#This Row],[Kwh Llano]]+Tabla9351223[[#This Row],[Kwh Punta]]+Tabla9351223[[#This Row],[Kwh P1]]+Tabla9351223[[#This Row],[Kwh P2]]+Tabla9351223[[#This Row],[Kwh P3]]+Tabla9351223[[#This Row],[Kwh P4]]+Tabla9351223[[#This Row],[Kwh P5]]+Tabla9351223[[#This Row],[Kwh P6]] -> 0 | T29: =Tabla9351223[[#This Row],[Prod Solar]]-Tabla9351223[[#This Row],[Exportado]] -> 0 | W29: 0 | X29: 0 | Y29: 23.77221598 | Z29: =IF(W29=0,"No Disp",(Tabla9351223[[#This Row],[Inversion]]-Tabla9351223[[#This Row],[Ahorros(IBI)]])/W29) -> No Disp | AA29: años | AB29: n/a | AC29: n/a | AD29: n/a | AE29: n/a | AF29: n/a | AG29: n/a | AH29: n/a | AI29: n/a | AJ29: n/a | AK29: n/a
A30: 26 | C30: 26400 | D30: 5000 | E30: =Tabla9351223[[#This Row],[ Instalacion]]+Tabla9351223[[#This Row],[Coste Hardware]] -> 31400 | Q30: =Tabla9351223[[#This Row],[Kw Valle]]+Tabla9351223[[#This Row],[Kwh Llano]]+Tabla9351223[[#This Row],[Kwh Punta]]+Tabla9351223[[#This Row],[Kwh P1]]+Tabla9351223[[#This Row],[Kwh P2]]+Tabla9351223[[#This Row],[Kwh P3]]+Tabla9351223[[#This Row],[Kwh P4]]+Tabla9351223[[#This Row],[Kwh P5]]+Tabla9351223[[#This Row],[Kwh P6]] -> 0 | T30: =Tabla9351223[[#This Row],[Prod Solar]]-Tabla9351223[[#This Row],[Exportado]] -> 0 | W30: 0 | X30: 0 | Y30: 23.11036835 | Z30: =IF(W30=0,"No Disp",(Tabla9351223[[#This Row],[Inversion]]-Tabla9351223[[#This Row],[Ahorros(IBI)]])/W30) -> No Disp | AA30: años | AB30: n/a | AC30: n/a | AD30: n/a | AE30: n/a | AF30: n/a | AG30: n/a | AH30: n/a | AI30: n/a | AJ30: n/a | AK30: n/a
A31: 27 | C31: 27300 | D31: 5000 | E31: =Tabla9351223[[#This Row],[ Instalacion]]+Tabla9351223[[#This Row],[Coste Hardware]] -> 32300 | Q31: =Tabla9351223[[#This Row],[Kw Valle]]+Tabla9351223[[#This Row],[Kwh Llano]]+Tabla9351223[[#This Row],[Kwh Punta]]+Tabla9351223[[#This Row],[Kwh P1]]+Tabla9351223[[#This Row],[Kwh P2]]+Tabla9351223[[#This Row],[Kwh P3]]+Tabla9351223[[#This Row],[Kwh P4]]+Tabla9351223[[#This Row],[Kwh P5]]+Tabla9351223[[#This Row],[Kwh P6]] -> 0 | T31: =Tabla9351223[[#This Row],[Prod Solar]]-Tabla9351223[[#This Row],[Exportado]] -> 0 | W31: 0 | X31: 0 | Y31: 22.53298668 | Z31: =IF(W31=0,"No Disp",(Tabla9351223[[#This Row],[Inversion]]-Tabla9351223[[#This Row],[Ahorros(IBI)]])/W31) -> No Disp | AA31: años | AB31: n/a | AC31: n/a | AD31: n/a | AE31: n/a | AF31: n/a | AG31: n/a | AH31: n/a | AI31: n/a | AJ31: n/a | AK31: n/a
A32: 28 | C32: 28200 | D32: 5000 | E32: =Tabla9351223[[#This Row],[ Instalacion]]+Tabla9351223[[#This Row],[Coste Hardware]] -> 33200 | Q32: =Tabla9351223[[#This Row],[Kw Valle]]+Tabla9351223[[#This Row],[Kwh Llano]]+Tabla9351223[[#This Row],[Kwh Punta]]+Tabla9351223[[#This Row],[Kwh P1]]+Tabla9351223[[#This Row],[Kwh P2]]+Tabla9351223[[#This Row],[Kwh P3]]+Tabla9351223[[#This Row],[Kwh P4]]+Tabla9351223[[#This Row],[Kwh P5]]+Tabla9351223[[#This Row],[Kwh P6]] -> 0 | T32: =Tabla9351223[[#This Row],[Prod Solar]]-Tabla9351223[[#This Row],[Exportado]] -> 0 | W32: 0 | X32: 0 | Y32: 22.01199255 | Z32: =IF(W32=0,"No Disp",(Tabla9351223[[#This Row],[Inversion]]-Tabla9351223[[#This Row],[Ahorros(IBI)]])/W32) -> No Disp | AA32: años | AB32: n/a | AC32: n/a | AD32: n/a | AE32: n/a | AF32: n/a | AG32: n/a | AH32: n/a | AI32: n/a | AJ32: n/a | AK32: n/a
A33: 29 | C33: 29100 | D33: 5000 | E33: =Tabla9351223[[#This Row],[ Instalacion]]+Tabla9351223[[#This Row],[Coste Hardware]] -> 34100 | Q33: =Tabla9351223[[#This Row],[Kw Valle]]+Tabla9351223[[#This Row],[Kwh Llano]]+Tabla9351223[[#This Row],[Kwh Punta]]+Tabla9351223[[#This Row],[Kwh P1]]+Tabla9351223[[#This Row],[Kwh P2]]+Tabla9351223[[#This Row],[Kwh P3]]+Tabla9351223[[#This Row],[Kwh P4]]+Tabla9351223[[#This Row],[Kwh P5]]+Tabla9351223[[#This Row],[Kwh P6]] -> 0 | T33: =Tabla9351223[[#This Row],[Prod Solar]]-Tabla9351223[[#This Row],[Exportado]] -> 0 | W33: 0 | X33: 0 | Y33: 21.54584458 | Z33: =IF(W33=0,"No Disp",(Tabla9351223[[#This Row],[Inversion]]-Tabla9351223[[#This Row],[Ahorros(IBI)]])/W33) -> No Disp | AA33: años | AB33: n/a | AC33: n/a | AD33: n/a | AE33: n/a | AF33: n/a | AG33: n/a | AH33: n/a | AI33: n/a | AJ33: n/a | AK33: n/a
A34: 30 | C34: 30000 | D34: 5000 | E34: =Tabla9351223[[#This Row],[ Instalacion]]+Tabla9351223[[#This Row],[Coste Hardware]] -> 35000 | Q34: =Tabla9351223[[#This Row],[Kw Valle]]+Tabla9351223[[#This Row],[Kwh Llano]]+Tabla9351223[[#This Row],[Kwh Punta]]+Tabla9351223[[#This Row],[Kwh P1]]+Tabla9351223[[#This Row],[Kwh P2]]+Tabla9351223[[#This Row],[Kwh P3]]+Tabla9351223[[#This Row],[Kwh P4]]+Tabla9351223[[#This Row],[Kwh P5]]+Tabla9351223[[#This Row],[Kwh P6]] -> 0 | T34: =Tabla9351223[[#This Row],[Prod Solar]]-Tabla9351223[[#This Row],[Exportado]] -> 0 | W34: 0 | X34: 0 | Y34: 21.12061136 | Z34: =IF(W34=0,"No Disp",(Tabla9351223[[#This Row],[Inversion]]-Tabla9351223[[#This Row],[Ahorros(IBI)]])/W34) -> No Disp | AA34: años | AB34: n/a | AC34: n/a | AD34: n/a | AE34: n/a | AF34: n/a | AG34: n/a | AH34: n/a | AI34: n/a | AJ34: n/a | AK34: n/a
A35: 31 | C35: 30900 | D35: 5000 | E35: =Tabla9351223[[#This Row],[ Instalacion]]+Tabla9351223[[#This Row],[Coste Hardware]] -> 35900 | Q35: =Tabla9351223[[#This Row],[Kw Valle]]+Tabla9351223[[#This Row],[Kwh Llano]]+Tabla9351223[[#This Row],[Kwh Punta]]+Tabla9351223[[#This Row],[Kwh P1]]+Tabla9351223[[#This Row],[Kwh P2]]+Tabla9351223[[#This Row],[Kwh P3]]+Tabla9351223[[#This Row],[Kwh P4]]+Tabla9351223[[#This Row],[Kwh P5]]+Tabla9351223[[#This Row],[Kwh P6]] -> 0 | T35: =Tabla9351223[[#This Row],[Prod Solar]]-Tabla9351223[[#This Row],[Exportado]] -> 0 | W35: 0 | X35: 0 | Y35: 20.73654633 | Z35: =IF(W35=0,"No Disp",(Tabla9351223[[#This Row],[Inversion]]-Tabla9351223[[#This Row],[Ahorros(IBI)]])/W35) -> No Disp | AA35: años | AB35: n/a | AC35: n/a | AD35: n/a | AE35: n/a | AF35: n/a | AG35: n/a | AH35: n/a | AI35: n/a | AJ35: n/a | AK35: n/a
A36: 32 | C36: 31800 | D36: 5000 | E36: =Tabla9351223[[#This Row],[ Instalacion]]+Tabla9351223[[#This Row],[Coste Hardware]] -> 36800 | Q36: =Tabla9351223[[#This Row],[Kw Valle]]+Tabla9351223[[#This Row],[Kwh Llano]]+Tabla9351223[[#This Row],[Kwh Punta]]+Tabla9351223[[#This Row],[Kwh P1]]+Tabla9351223[[#This Row],[Kwh P2]]+Tabla9351223[[#This Row],[Kwh P3]]+Tabla9351223[[#This Row],[Kwh P4]]+Tabla9351223[[#This Row],[Kwh P5]]+Tabla9351223[[#This Row],[Kwh P6]] -> 0 | T36: =Tabla9351223[[#This Row],[Prod Solar]]-Tabla9351223[[#This Row],[Exportado]] -> 0 | W36: 0 | X36: 0 | Y36: 20.38576963 | Z36: =IF(W36=0,"No Disp",(Tabla9351223[[#This Row],[Inversion]]-Tabla9351223[[#This Row],[Ahorros(IBI)]])/W36) -> No Disp | AA36: años | AB36: n/a | AC36: n/a | AD36: n/a | AE36: n/a | AF36: n/a | AG36: n/a | AH36: n/a | AI36: n/a | AJ36: n/a | AK36: n/a
A37: 33 | C37: 32700 | D37: 5000 | E37: =Tabla9351223[[#This Row],[ Instalacion]]+Tabla9351223[[#This Row],[Coste Hardware]] -> 37700 | Q37: =Tabla9351223[[#This Row],[Kw Valle]]+Tabla9351223[[#This Row],[Kwh Llano]]+Tabla9351223[[#This Row],[Kwh Punta]]+Tabla9351223[[#This Row],[Kwh P1]]+Tabla9351223[[#This Row],[Kwh P2]]+Tabla9351223[[#This Row],[Kwh P3]]+Tabla9351223[[#This Row],[Kwh P4]]+Tabla9351223[[#This Row],[Kwh P5]]+Tabla9351223[[#This Row],[Kwh P6]] -> 0 | T37: =Tabla9351223[[#This Row],[Prod Solar]]-Tabla9351223[[#This Row],[Exportado]] -> 0 | W37: 0 | X37: 0 | Y37: 20.05629516 | Z37: =IF(W37=0,"No Disp",(Tabla9351223[[#This Row],[Inversion]]-Tabla9351223[[#This Row],[Ahorros(IBI)]])/W37) -> No Disp | AA37: años | AB37: n/a | AC37: n/a | AD37: n/a | AE37: n/a | AF37: n/a | AG37: n/a | AH37: n/a | AI37: n/a | AJ37: n/a | AK37: n/a
A38: 34 | C38: 33600 | D38: 5000 | E38: =Tabla9351223[[#This Row],[ Instalacion]]+Tabla9351223[[#This Row],[Coste Hardware]] -> 38600 | Q38: =Tabla9351223[[#This Row],[Kw Valle]]+Tabla9351223[[#This Row],[Kwh Llano]]+Tabla9351223[[#This Row],[Kwh Punta]]+Tabla9351223[[#This Row],[Kwh P1]]+Tabla9351223[[#This Row],[Kwh P2]]+Tabla9351223[[#This Row],[Kwh P3]]+Tabla9351223[[#This Row],[Kwh P4]]+Tabla9351223[[#This Row],[Kwh P5]]+Tabla9351223[[#This Row],[Kwh P6]] -> 0 | T38: =Tabla9351223[[#This Row],[Prod Solar]]-Tabla9351223[[#This Row],[Exportado]] -> 0 | W38: 0 | X38: 0 | Y38: 19.75077531 | Z38: =IF(W38=0,"No Disp",(Tabla9351223[[#This Row],[Inversion]]-Tabla9351223[[#This Row],[Ahorros(IBI)]])/W38) -> No Disp | AA38: años | AB38: n/a | AC38: n/a | AD38: n/a | AE38: n/a | AF38: n/a | AG38: n/a | AH38: n/a | AI38: n/a | AJ38: n/a | AK38: n/a
A39: 35 | C39: 34500 | D39: 5000 | E39: =Tabla9351223[[#This Row],[ Instalacion]]+Tabla9351223[[#This Row],[Coste Hardware]] -> 39500 | Q39: =Tabla9351223[[#This Row],[Kw Valle]]+Tabla9351223[[#This Row],[Kwh Llano]]+Tabla9351223[[#This Row],[Kwh Punta]]+Tabla9351223[[#This Row],[Kwh P1]]+Tabla9351223[[#This Row],[Kwh P2]]+Tabla9351223[[#This Row],[Kwh P3]]+Tabla9351223[[#This Row],[Kwh P4]]+Tabla9351223[[#This Row],[Kwh P5]]+Tabla9351223[[#This Row],[Kwh P6]] -> 0 | T39: =Tabla9351223[[#This Row],[Prod Solar]]-Tabla9351223[[#This Row],[Exportado]] -> 0 | W39: 0 | X39: 0 | Y39: 19.45970319 | Z39: =IF(W39=0,"No Disp",(Tabla9351223[[#This Row],[Inversion]]-Tabla9351223[[#This Row],[Ahorros(IBI)]])/W39) -> No Disp | AA39: años | AB39: n/a | AC39: n/a | AD39: n/a | AE39: n/a | AF39: n/a | AG39: n/a | AH39: n/a | AI39: n/a | AJ39: n/a | AK39: n/a
A40: 36 | C40: 35400 | D40: 5000 | E40: =Tabla9351223[[#This Row],[ Instalacion]]+Tabla9351223[[#This Row],[Coste Hardware]] -> 40400 | Q40: =Tabla9351223[[#This Row],[Kw Valle]]+Tabla9351223[[#This Row],[Kwh Llano]]+Tabla9351223[[#This Row],[Kwh Punta]]+Tabla9351223[[#This Row],[Kwh P1]]+Tabla9351223[[#This Row],[Kwh P2]]+Tabla9351223[[#This Row],[Kwh P3]]+Tabla9351223[[#This Row],[Kwh P4]]+Tabla9351223[[#This Row],[Kwh P5]]+Tabla9351223[[#This Row],[Kwh P6]] -> 0 | T40: =Tabla9351223[[#This Row],[Prod Solar]]-Tabla9351223[[#This Row],[Exportado]] -> 0 | W40: 0 | X40: 0 | Y40: 19.18663733 | Z40: =IF(W40=0,"No Disp",(Tabla9351223[[#This Row],[Inversion]]-Tabla9351223[[#This Row],[Ahorros(IBI)]])/W40) -> No Disp | AA40: años | AB40: n/a | AC40: n/a | AD40: n/a | AE40: n/a | AF40: n/a | AG40: n/a | AH40: n/a | AI40: n/a | AJ40: n/a | AK40: n/a
A41: 37 | C41: 36300 | D41: 5000 | E41: =Tabla9351223[[#This Row],[ Instalacion]]+Tabla9351223[[#This Row],[Coste Hardware]] -> 41300 | Q41: =Tabla9351223[[#This Row],[Kw Valle]]+Tabla9351223[[#This Row],[Kwh Llano]]+Tabla9351223[[#This Row],[Kwh Punta]]+Tabla9351223[[#This Row],[Kwh P1]]+Tabla9351223[[#This Row],[Kwh P2]]+Tabla9351223[[#This Row],[Kwh P3]]+Tabla9351223[[#This Row],[Kwh P4]]+Tabla9351223[[#This Row],[Kwh P5]]+Tabla9351223[[#This Row],[Kwh P6]] -> 0 | T41: =Tabla9351223[[#This Row],[Prod Solar]]-Tabla9351223[[#This Row],[Exportado]] -> 0 | W41: 0 | X41: 0 | Y41: 18.93584176 | Z41: =IF(W41=0,"No Disp",(Tabla9351223[[#This Row],[Inversion]]-Tabla9351223[[#This Row],[Ahorros(IBI)]])/W41) -> No Disp | AA41: años | AB41: n/a | AC41: n/a | AD41: n/a | AE41: n/a | AF41: n/a | AG41: n/a | AH41: n/a | AI41: n/a | AJ41: n/a | AK41: n/a
A42: 38 | C42: 37200 | D42: 5000 | E42: =Tabla9351223[[#This Row],[ Instalacion]]+Tabla9351223[[#This Row],[Coste Hardware]] -> 42200 | Q42: =Tabla9351223[[#This Row],[Kw Valle]]+Tabla9351223[[#This Row],[Kwh Llano]]+Tabla9351223[[#This Row],[Kwh Punta]]+Tabla9351223[[#This Row],[Kwh P1]]+Tabla9351223[[#This Row],[Kwh P2]]+Tabla9351223[[#This Row],[Kwh P3]]+Tabla9351223[[#This Row],[Kwh P4]]+Tabla9351223[[#This Row],[Kwh P5]]+Tabla9351223[[#This Row],[Kwh P6]] -> 0 | T42: =Tabla9351223[[#This Row],[Prod Solar]]-Tabla9351223[[#This Row],[Exportado]] -> 0 | W42: 0 | X42: 0 | Y42: 18.70422725 | Z42: =IF(W42=0,"No Disp",(Tabla9351223[[#This Row],[Inversion]]-Tabla9351223[[#This Row],[Ahorros(IBI)]])/W42) -> No Disp | AA42: años | AB42: n/a | AC42: n/a | AD42: n/a | AE42: n/a | AF42: n/a | AG42: n/a | AH42: n/a | AI42: n/a | AJ42: n/a | AK42: n/a
A43: 39 | C43: 38100 | D43: 5000 | E43: =Tabla9351223[[#This Row],[ Instalacion]]+Tabla9351223[[#This Row],[Coste Hardware]] -> 43100 | Q43: =Tabla9351223[[#This Row],[Kw Valle]]+Tabla9351223[[#This Row],[Kwh Llano]]+Tabla9351223[[#This Row],[Kwh Punta]]+Tabla9351223[[#This Row],[Kwh P1]]+Tabla9351223[[#This Row],[Kwh P2]]+Tabla9351223[[#This Row],[Kwh P3]]+Tabla9351223[[#This Row],[Kwh P4]]+Tabla9351223[[#This Row],[Kwh P5]]+Tabla9351223[[#This Row],[Kwh P6]] -> 0 | T43: =Tabla9351223[[#This Row],[Prod Solar]]-Tabla9351223[[#This Row],[Exportado]] -> 0 | W43: 0 | X43: 0 | Y43: 18.49558579 | Z43: =IF(W43=0,"No Disp",(Tabla9351223[[#This Row],[Inversion]]-Tabla9351223[[#This Row],[Ahorros(IBI)]])/W43) -> No Disp | AA43: años | AB43: n/a | AC43: n/a | AD43: n/a | AE43: n/a | AF43: n/a | AG43: n/a | AH43: n/a | AI43: n/a | AJ43: n/a | AK43: n/a
A44: 40 | C44: 39000 | D44: 5000 | E44: =Tabla9351223[[#This Row],[ Instalacion]]+Tabla9351223[[#This Row],[Coste Hardware]] -> 44000 | Q44: =Tabla9351223[[#This Row],[Kw Valle]]+Tabla9351223[[#This Row],[Kwh Llano]]+Tabla9351223[[#This Row],[Kwh Punta]]+Tabla9351223[[#This Row],[Kwh P1]]+Tabla9351223[[#This Row],[Kwh P2]]+Tabla9351223[[#This Row],[Kwh P3]]+Tabla9351223[[#This Row],[Kwh P4]]+Tabla9351223[[#This Row],[Kwh P5]]+Tabla9351223[[#This Row],[Kwh P6]] -> 0 | T44: =Tabla9351223[[#This Row],[Prod Solar]]-Tabla9351223[[#This Row],[Exportado]] -> 0 | W44: 0 | X44: 0 | Y44: 18.30669999 | Z44: =IF(W44=0,"No Disp",(Tabla9351223[[#This Row],[Inversion]]-Tabla9351223[[#This Row],[Ahorros(IBI)]])/W44) -> No Disp | AA44: años | AB44: n/a | AC44: n/a | AD44: n/a | AE44: n/a | AF44: n/a | AG44: n/a | AH44: n/a | AI44: n/a | AJ44: n/a | AK44: n/a

Sheet RENT BAT PVPC 5Kwh
G1: 0.35 | H1: 0.29 | I1: 0.25 | K1: 0.16 | L1: 0.14 | M1: 0.11 | N1: 0.09 | O1: 0.08 | P1: 0.08 | U1: 0.27 | V1: 0.24 | W1: 0.2 | AB1: =INDIRECT(CONCATENATE("Y",AB2+4)) -> 14.6193772 | AD1: =INDIRECT(CONCATENATE("Y",AD2+4)) -> 13.5656128 | AF1: =INDIRECT(CONCATENATE("Y",AF2+4)) -> 13.43235065 | AH1: =INDIRECT(CONCATENATE("Y",AH2+4)) -> 13.25874259 | AJ1: =INDIRECT(CONCATENATE("Y",AJ2+4)) -> 13.25874259
A2: RENTABILIDAD BATERIA | D2: 5 | G2: CONSUMO COMPAÑÍA | R2: Ahorro en los X años | AB2: =MATCH(AC2,AC5:AC44,0) -> 5 | AC2: =MIN(AC5:AC44) -> 15201.4 | AD2: =MATCH(AE2,AE5:AE44,0) -> 9 | AE2: =MIN(AE5:AE44) -> 18127.9 | AF2: =MATCH(AG2,AG5:AG44,0) -> 10 | AG2: =MIN(AG5:AG44) -> 19950.7 | AH2: =MATCH(AI2,AI5:AI44,0) -> 12 | AI2: =MIN(AI5:AI44) -> 21663.4 | AJ2: =MATCH(AK2,AK5:AK44,0) -> 12 | AK2: =MIN(AK5:AK44) -> 23004.25
A3: ' | B3: Factura | C3: Coste Hardware | D3: Instalacion | E3: Inversion | F3: Ahorros(IBI) | G3: Kwh Punta | H3: Kwh Llano | I3: Kw Valle | J3: C | K3: Kwh P1 | L3: Kwh P2 | M3: Kwh P3 | N3: Kwh P4 | O3: Kwh P5 | P3: Kwh P6 | Q3: Total | R3: P Max 99.5 | S3: Prod Solar | T3: Consumido | U3: Exportado | V3: %Aut | W3: Dif Anual | X3: Dif Anterior | Y3: Dura Bat | Z3: Amortizacion | AB3: 5 | AC3: 5 años TOT | AD3: 10 | AE3: 10 años TOT | AF3: 15 | AG3: 15 años TOT | AH3: 20 | AI3: 20 años TOT | AJ3: 25 | AK3: 25 años TOT
A4: ORIGINAL | B4: 4524.54 | G4: 3743.782 | H4: 2723.003 | I4: 5026.124 | K4: 0 | L4: 0 | M4: 0 | N4: 0 | O4: 0 | P4: 0 | Q4: =Tabla9351222[[#This Row],[Kw Valle]]+Tabla9351222[[#This Row],[Kwh Llano]]+Tabla9351222[[#This Row],[Kwh Punta]]+Tabla9351222[[#This Row],[Kwh P1]]+Tabla9351222[[#This Row],[Kwh P2]]+Tabla9351222[[#This Row],[Kwh P3]]+Tabla9351222[[#This Row],[Kwh P4]]+Tabla9351222[[#This Row],[Kwh P5]]+Tabla9351222[[#This Row],[Kwh P6]] -> 11492.909 | AC4: =FV(INFLACCION,AB3,-$B$4,0) -> 22622.7 | AE4: =FV(INFLACCION,AD3,-$B$4,0) -> 45245.4 | AG4: =FV(INFLACCION,AF3,-$B$4,0) -> 67868.1 | AI4: =FV(INFLACCION,AH3,-$B$4,0) -> 90490.8 | AK4: =FV(INFLACCION,AJ3,-$B$4,0) -> 113113.5
A5: 1 | B5: 3544.74 | C5: 3000 | D5: =COSTE_BATERIA*CAPACIDAD_BATERIA -> 2500 | E5: =Tabla9351222[[#This Row],[ Instalacion]]+Tabla9351222[[#This Row],[Coste Hardware]] -> 5500 | G5: 2545.003502 | H5: 1685.306335 | I5: 6128.825084 | K5: 0 | L5: 0 | M5: 0 | N5: 0 | O5: 0 | P5: 0 | Q5: =Tabla9351222[[#This Row],[Kw Valle]]+Tabla9351222[[#This Row],[Kwh Llano]]+Tabla9351222[[#This Row],[Kwh Punta]]+Tabla9351222[[#This Row],[Kwh P1]]+Tabla9351222[[#This Row],[Kwh P2]]+Tabla9351222[[#This Row],[Kwh P3]]+Tabla9351222[[#This Row],[Kwh P4]]+Tabla9351222[[#This Row],[Kwh P5]]+Tabla9351222[[#This Row],[Kwh P6]] -> 10359.13492 | R5: 1018.76 | S5: 1364.27547 | T5: =Tabla9351222[[#This Row],[Prod Solar]]-Tabla9351222[[#This Row],[Exportado]] -> 0 | U5: 1364.27547 | V5: 0 | W5: =IF(B5=0,0,B$4-B5) -> 979.8 | X5: =IF(B5=0,0,B4-B5) -> 979.8 | Y5: 19.54528545 | Z5: =IF(W5=0,"No Disp",(Tabla9351222[[#This Row],[Inversion]]-Tabla9351222[[#This Row],[Ahorros(IBI)]])/W5) -> 5.613390488 | AA5: años | AB5: =IF($B5=0,"n/a",AC$4-(FV(INFLACCION,AB$3,-$B5,0))-$E5+$F5) -> -601 | AC5: =IF(AB5<>"n/a",AC$4-AB5,"n/a") -> 23223.7 | AD5: =IF($B5=0,"n/a",AE$4-(FV(INFLACCION,AD$3,-$B5,0))-$E5+$F5) -> 4298 | AE5: =IF(AD5<>"n/a",AE$4-AD5,"n/a") -> 40947.4 | AF5: =IF($B5=0,"n/a",AG$4-(FV(INFLACCION,AF$3,-$B5,0))-$E5+$F5) -> 9197 | AG5: =IF(AF5<>"n/a",AG$4-AF5,"n/a") -> 58671.1 | AH5: =IF($B5=0,"n/a",AI$4-(FV(INFLACCION,AH$3,-$B5,0))-$E5+$F5) -> 14096 | AI5: =IF(AH5<>"n/a",AI$4-AH5,"n/a") -> 76394.8 | AJ5: =IF($B5=0,"n/a",AK$4-(FV(INFLACCION,AJ$3,-$B5,0))-$E5+$F5) -> 18995 | AK5: =IF(AJ5<>"n/a",AK$4-AJ5,"n/a") -> 94118.5
A6: 2 | B6: 2658.31 | C6: 4820 | D6: 2500 | E6: =Tabla9351222[[#This Row],[ Instalacion]]+Tabla9351222[[#This Row],[Coste Hardware]] -> 7320 | G6: 2080.242673 | H6: 1316.307799 | I6: 5722.168018 | K6: 0 | L6: 0 | M6: 0 | N6: 0 | O6: 0 | P6: 0 | Q6: =Tabla9351222[[#This Row],[Kw Valle]]+Tabla9351222[[#This Row],[Kwh Llano]]+Tabla9351222[[#This Row],[Kwh Punta]]+Tabla9351222[[#This Row],[Kwh P1]]+Tabla9351222[[#This Row],[Kwh P2]]+Tabla9351222[[#This Row],[Kwh P3]]+Tabla9351222[[#This Row],[Kwh P4]]+Tabla9351222[[#This Row],[Kwh P5]]+Tabla9351222[[#This Row],[Kwh P6]] -> 9118.71849 | R6: 2037.52 | S6: 2728.55094 | T6: =Tabla9351222[[#This Row],[Prod Solar]]-Tabla9351222[[#This Row],[Exportado]] -> 0 | U6: 2728.55094 | V6: 0 | W6: 1866.23 | X6: =IF(B6=0,0,B5-B6) -> 886.43 | Y6: 18.15699262 | Z6: =IF(W6=0,"No Disp",(Tabla9351222[[#This Row],[Inversion]]-Tabla9351222[[#This Row],[Ahorros(IBI)]])/W6) -> 3.92234612 | AA6: años | AB6: =IF($B6=0,"n/a",AC$4-(FV(INFLACCION,AB$3,-$B6,0))-$E6+$F6) -> 2011.15 | AC6: =IF(AB6<>"n/a",AC$4-AB6,"n/a") -> 20611.55 | AD6: 11342.3 | AE6: =IF(AD6<>"n/a",AE$4-AD6,"n/a") -> 33903.1 | AF6: 20673.45 | AG6: =IF(AF6<>"n/a",AG$4-AF6,"n/a") -> 47194.65 | AH6: 30004.6 | AI6: =IF(AH6<>"n/a",AI$4-AH6,"n/a") -> 60486.2 | AJ6: 39335.75 | AK6: =IF(AJ6<>"n/a",AK$4-AJ6,"n/a") -> 73777.75
A7: 3 | B7: 1922.82 | C7: 5450 | D7: 2500 | E7: =Tabla9351222[[#This Row],[ Instalacion]]+Tabla9351222[[#This Row],[Coste Hardware]] -> 7950 | G7: 1761.656452 | H7: 1114.674823 | I7: 5353.09626 | K7: 0 | L7: 0 | M7: 0 | N7: 0 | O7: 0 | P7: 0 | Q7: =Tabla9351222[[#This Row],[Kw Valle]]+Tabla9351222[[#This Row],[Kwh Llano]]+Tabla9351222[[#This Row],[Kwh Punta]]+Tabla9351222[[#This Row],[Kwh P1]]+Tabla9351222[[#This Row],[Kwh P2]]+Tabla9351222[[#This Row],[Kwh P3]]+Tabla9351222[[#This Row],[Kwh P4]]+Tabla9351222[[#This Row],[Kwh P5]]+Tabla9351222[[#This Row],[Kwh P6]] -> 8229.427535 | R7: 3056.28 | S7: 4092.82641 | T7: =Tabla9351222[[#This Row],[Prod Solar]]-Tabla9351222[[#This Row],[Exportado]] -> 0 | U7: 4092.82641 | V7: 0 | W7: 2601.72 | X7: =IF(B7=0,0,B6-B7) -> 735.49 | Y7: 16.54757925 | Z7: =IF(W7=0,"No Disp",(Tabla9351222[[#This Row],[Inversion]]-Tabla9351222[[#This Row],[Ahorros(IBI)]])/W7) -> 3.055670864 | AA7: años | AB7: 5058.6 | AC7: 17564.1 | AD7: 18067.2 | AE7: 27178.2 | AF7: 31075.8 | AG7: 36792.3 | AH7: 44084.4 | AI7: 46406.4 | AJ7: 57093 | AK7: 56020.5
A8: 4 | B8: 1397.15 | C8: 6300 | D8: 2500 | E8: =Tabla9351222[[#This Row],[ Instalacion]]+Tabla9351222[[#This Row],[Coste Hardware]] -> 8800 | G8: 1558.593678 | H8: 985.159542 | I8: 5073.979933 | K8: 0 | L8: 0 | M8: 0 | N8: 0 | O8: 0 | P8: 0 | Q8: =Tabla9351222[[#This Row],[Kw Valle]]+Tabla9351222[[#This Row],[Kwh Llano]]+Tabla9351222[[#This Row],[Kwh Punta]]+Tabla9351222[[#This Row],[Kwh P1]]+Tabla9351222[[#This Row],[Kwh P2]]+Tabla9351222[[#This Row],[Kwh P3]]+Tabla9351222[[#This Row],[Kwh P4]]+Tabla9351222[[#This Row],[Kwh P5]]+Tabla9351222[[#This Row],[Kwh P6]] -> 7617.733153 | R8: 4075.04 | S8: 5457.10188 | T8: =Tabla9351222[[#This Row],[Prod Solar]]-Tabla9351222[[#This Row],[Exportado]] -> 0 | U8: 5457.10188 | V8: 0 | W8: 3127.39 | X8: =IF(B8=0,0,B7-B8) -> 525.67 | Y8: 15.41744268 | Z8: =IF(W8=0,"No Disp",(Tabla9351222[[#This Row],[Inversion]]-Tabla9351222[[#This Row],[Ahorros(IBI)]])/W8) -> 2.813847969 | AA8: años | AB8: 6836.95 | AC8: 15785.75 | AD8: 22473.9 | AE8: 22771.5 | AF8: 38110.85 | AG8: 29757.25 | AH8: 53747.8 | AI8: 36743 | AJ8: 69384.75 | AK8: 43728.75
A9: 5 | B9: 1100.28 | C9: 7200 | D9: 2500 | E9: =Tabla9351222[[#This Row],[ Instalacion]]+Tabla9351222[[#This Row],[Coste Hardware]] -> 9700 | G9: 1410.2396 | H9: 895.6954875 | I9: 4866.399285 | K9: 0 | L9: 0 | M9: 0 | N9: 0 | O9: 0 | P9: 0 | Q9: =Tabla9351222[[#This Row],[Kw Valle]]+Tabla9351222[[#This Row],[Kwh Llano]]+Tabla9351222[[#This Row],[Kwh Punta]]+Tabla9351222[[#This Row],[Kwh P1]]+Tabla9351222[[#This Row],[Kwh P2]]+Tabla9351222[[#This Row],[Kwh P3]]+Tabla9351222[[#This Row],[Kwh P4]]+Tabla9351222[[#This Row],[Kwh P5]]+Tabla9351222[[#This Row],[Kwh P6]] -> 7172.334372 | R9: 5093.8 | S9: 6821.37735 | T9: =Tabla9351222[[#This Row],[Prod Solar]]-Tabla9351222[[#This Row],[Exportado]] -> 0 | U9: 6821.37735 | V9: 0 | W9: 3424.26 | X9: 296.87 | Y9: 14.6193772 | Z9: =IF(W9=0,"No Disp",(Tabla9351222[[#This Row],[Inversion]]-Tabla9351222[[#This Row],[Ahorros(IBI)]])/W9) -> 2.832728823 | AA9: años | AB9: 7421.3 | AC9: 15201.4 | AD9: 24542.6 | AE9: 20702.8 | AF9: 41663.9 | AG9: 26204.2 | AH9: 58785.2 | AI9: 31705.6 | AJ9: 75906.5 | AK9: 37207
A10: 6 | B10: 886.71 | C10: 8300 | D10: 2500 | E10: =Tabla9351222[[#This Row],[ Instalacion]]+Tabla9351222[[#This Row],[Coste Hardware]] -> 10800 | G10: 1300.896997 | H10: 836.953979 | I10: 4711.367662 | K10: 0 | L10: 0 | M10: 0 | N10: 0 | O10: 0 | P10: 0 | Q10: =Tabla9351222[[#This Row],[Kw Valle]]+Tabla9351222[[#This Row],[Kwh Llano]]+Tabla9351222[[#This Row],[Kwh Punta]]+Tabla9351222[[#This Row],[Kwh P1]]+Tabla9351222[[#This Row],[Kwh P2]]+Tabla9351222[[#This Row],[Kwh P3]]+Tabla9351222[[#This Row],[Kwh P4]]+Tabla9351222[[#This Row],[Kwh P5]]+Tabla9351222[[#This Row],[Kwh P6]] -> 6849.218638 | R10: 6112.56 | S10: 8185.65282 | T10: =Tabla9351222[[#This Row],[Prod Solar]]-Tabla9351222[[#This Row],[Exportado]] -> 0 | U10: 8185.65282 | V10: 0 | W10: 3637.83 | X10: 213.57 | Y10: 14.16361047 | Z10: =IF(W10=0,"No Disp",(Tabla9351222[[#This Row],[Inversion]]-Tabla9351222[[#This Row],[Ahorros(IBI)]])/W10) -> 2.96880283 | AA10: años | AB10: 7389.15 | AC10: 15233.55 | AD10: 25578.3 | AE10: 19667.1 | AF10: 43767.45 | AG10: 24100.65 | AH10: 61956.6 | AI10: 28534.2 | AJ10: 80145.75 | AK10: 32967.75
A11: 7 | B11: 707.07 | C11: 9300 | D11: 2500 | E11: =Tabla9351222[[#This Row],[ Instalacion]]+Tabla9351222[[#This Row],[Coste Hardware]] -> 11800 | G11: 1219.152096 | H11: 789.923395 | I11: 4597.725191 | K11: 0 | L11: 0 | M11: 0 | N11: 0 | O11: 0 | P11: 0 | Q11: =Tabla9351222[[#This Row],[Kw Valle]]+Tabla9351222[[#This Row],[Kwh Llano]]+Tabla9351222[[#This Row],[Kwh Punta]]+Tabla9351222[[#This Row],[Kwh P1]]+Tabla9351222[[#This Row],[Kwh P2]]+Tabla9351222[[#This Row],[Kwh P3]]+Tabla9351222[[#This Row],[Kwh P4]]+Tabla9351222[[#This Row],[Kwh P5]]+Tabla9351222[[#This Row],[Kwh P6]] -> 6606.800682 | R11: 7131.32 | S11: 9549.92829 | T11: =Tabla9351222[[#This Row],[Prod Solar]]-Tabla9351222[[#This Row],[Exportado]] -> 0 | U11: 9549.92829 | V11: 0 | W11: 3817.47 | X11: 179.64 | Y11: 13.9039515 | Z11: =IF(W11=0,"No Disp",(Tabla9351222[[#This Row],[Inversion]]-Tabla9351222[[#This Row],[Ahorros(IBI)]])/W11) -> 3.091052451 | AA11: años | AB11: 7287.35 | AC11: 15335.35 | AD11: 26374.7 | AE11: 18870.7 | AF11: 45462.05 | AG11: 22406.05 | AH11: 64549.4 | AI11: 25941.4 | AJ11: 83636.75 | AK11: 29476.75
A12: 8 | B12: 562.88 | C12: 10200 | D12: 2500 | E12: =Tabla9351222[[#This Row],[ Instalacion]]+Tabla9351222[[#This Row],[Coste Hardware]] -> 12700 | G12: 1156.582438 | H12: 748.8685 | I12: 4503.62629 | K12: 0 | L12: 0 | M12: 0 | N12: 0 | O12: 0 | P12: 0 | Q12: =Tabla9351222[[#This Row],[Kw Valle]]+Tabla9351222[[#This Row],[Kwh Llano]]+Tabla9351222[[#This Row],[Kwh Punta]]+Tabla9351222[[#This Row],[Kwh P1]]+Tabla9351222[[#This Row],[Kwh P2]]+Tabla9351222[[#This Row],[Kwh P3]]+Tabla9351222[[#This Row],[Kwh P4]]+Tabla9351222[[#This Row],[Kwh P5]]+Tabla9351222[[#This Row],[Kwh P6]] -> 6409.077228 | R12: 8150.08 | S12: 10914.20376 | T12: =Tabla9351222[[#This Row],[Prod Solar]]-Tabla9351222[[#This Row],[Exportado]] -> 0 | U12: 10914.20376 | V12: 0 | W12: 3961.66 | X12: 144.19 | Y12: 13.71954775 | Z12: =IF(W12=0,"No Disp",(Tabla9351222[[#This Row],[Inversion]]-Tabla9351222[[#This Row],[Ahorros(IBI)]])/W12) -> 3.205726892 | AA12: años | AB12: 7108.3 | AC12: 15514.4 | AD12: 26916.6 | AE12: 18328.8 | AF12: 46724.9 | AG12: 21143.2 | AH12: 66533.2 | AI12: 23957.6 | AJ12: 86341.5 | AK12: 26772
A13: 9 | B13: 452.79 | C13: 11100 | D13: 2500 | E13: =Tabla9351222[[#This Row],[ Instalacion]]+Tabla9351222[[#This Row],[Coste Hardware]] -> 13600 | G13: 1105.528186 | H13: 713.328002 | I13: 4422.96064 | K13: 0 | L13: 0 | M13: 0 | N13: 0 | O13: 0 | P13: 0 | Q13: =Tabla9351222[[#This Row],[Kw Valle]]+Tabla9351222[[#This Row],[Kwh Llano]]+Tabla9351222[[#This Row],[Kwh Punta]]+Tabla9351222[[#This Row],[Kwh P1]]+Tabla9351222[[#This Row],[Kwh P2]]+Tabla9351222[[#This Row],[Kwh P3]]+Tabla9351222[[#This Row],[Kwh P4]]+Tabla9351222[[#This Row],[Kwh P5]]+Tabla9351222[[#This Row],[Kwh P6]] -> 6241.816828 | R13: 9168.84 | S13: 12278.47923 | T13: =Tabla9351222[[#This Row],[Prod Solar]]-Tabla9351222[[#This Row],[Exportado]] -> 0 | U13: 12278.47923 | V13: 0 | W13: 4071.75 | X13: 110.09 | Y13: 13.5656128 | Z13: =IF(W13=0,"No Disp",(Tabla9351222[[#This Row],[Inversion]]-Tabla9351222[[#This Row],[Ahorros(IBI)]])/W13) -> 3.340087186 | AA13: años | AB13: 6758.75 | AC13: 15863.95 | AD13: 27117.5 | AE13: 18127.9 | AF13: 47476.25 | AG13: 20391.85 | AH13: 67835 | AI13: 22655.8 | AJ13: 88193.75 | AK13: 24919.75
A14: 10 | B14: 363.38 | C14: 12000 | D14: 2500 | E14: =Tabla9351222[[#This Row],[ Instalacion]]+Tabla9351222[[#This Row],[Coste Hardware]] -> 14500 | G14: 1062.61736 | H14: 682.28255 | I14: 4351.772251 | K14: 0 | L14: 0 | M14: 0 | N14: 0 | O14: 0 | P14: 0 | Q14: =Tabla9351222[[#This Row],[Kw Valle]]+Tabla9351222[[#This Row],[Kwh Llano]]+Tabla9351222[[#This Row],[Kwh Punta]]+Tabla9351222[[#This Row],[Kwh P1]]+Tabla9351222[[#This Row],[Kwh P2]]+Tabla9351222[[#This Row],[Kwh P3]]+Tabla9351222[[#This Row],[Kwh P4]]+Tabla9351222[[#This Row],[Kwh P5]]+Tabla9351222[[#This Row],[Kwh P6]] -> 6096.672161 | R14: 10187.6 | S14: 13642.7547 | T14: =Tabla9351222[[#This Row],[Prod Solar]]-Tabla9351222[[#This Row],[Exportado]] -> 0 | U14: 13642.7547 | V14: 0 | W14: 4161.16 | X14: 89.41 | Y14: 13.43235065 | Z14: =IF(W14=0,"No Disp",(Tabla9351222[[#This Row],[Inversion]]-Tabla9351222[[#This Row],[Ahorros(IBI)]])/W14) -> 3.484605254 | AA14: años | AB14: 6305.8 | AC14: 16316.9 | AD14: 27111.6 | AE14: 18133.8 | AF14: 47917.4 | AG14: 19950.7 | AH14: 68723.2 | AI14: 21767.6 | AJ14: 89529 | AK14: 23584.5
A15: 11 | B15: 315.19 | C15: 12900 | D15: 2500 | E15: =Tabla9351222[[#This Row],[ Instalacion]]+Tabla9351222[[#This Row],[Coste Hardware]] -> 15400 | G15: 1022.412698 | H15: 658.5228535 | I15: 4290.083867 | K15: 0 | L15: 0 | M15: 0 | N15: 0 | O15: 0 | P15: 0 | Q15: =Tabla9351222[[#This Row],[Kw Valle]]+Tabla9351222[[#This Row],[Kwh Llano]]+Tabla9351222[[#This Row],[Kwh Punta]]+Tabla9351222[[#This Row],[Kwh P1]]+Tabla9351222[[#This Row],[Kwh P2]]+Tabla9351222[[#This Row],[Kwh P3]]+Tabla9351222[[#This Row],[Kwh P4]]+Tabla9351222[[#This Row],[Kwh P5]]+Tabla9351222[[#This Row],[Kwh P6]] -> 5971.019419 | R15: 11206.36 | S15: 15007.03017 | T15: =Tabla9351222[[#This Row],[Prod Solar]]-Tabla9351222[[#This Row],[Exportado]] -> 0 | U15: 15007.03017 | V15: 0 | W15: 4209.35 | X15: 48.19 | Y15: 13.33035326 | Z15: =IF(W15=0,"No Disp",(Tabla9351222[[#This Row],[Inversion]]-Tabla9351222[[#This Row],[Ahorros(IBI)]])/W15) -> 3.6585221 | AA15: años | AB15: 5646.75 | AC15: 16975.95 | AD15: 26693.5 | AE15: 18551.9 | AF15: 47740.25 | AG15: 20127.85 | AH15: 68787 | AI15: 21703.8 | AJ15: 89833.75 | AK15: 23279.75
A16: 12 | B16: 268.17 | C16: 13800 | D16: 2500 | E16: =Tabla9351222[[#This Row],[ Instalacion]]+Tabla9351222[[#This Row],[Coste Hardware]] -> 16300 | G16: 985.15645 | H16: 640.251752 | I16: 4237.883438 | K16: 0 | L16: 0 | M16: 0 | N16: 0 | O16: 0 | P16: 0 | Q16: =Tabla9351222[[#This Row],[Kw Valle]]+Tabla9351222[[#This Row],[Kwh Llano]]+Tabla9351222[[#This Row],[Kwh Punta]]+Tabla9351222[[#This Row],[Kwh P1]]+Tabla9351222[[#This Row],[Kwh P2]]+Tabla9351222[[#This Row],[Kwh P3]]+Tabla9351222[[#This Row],[Kwh P4]]+Tabla9351222[[#This Row],[Kwh P5]]+Tabla9351222[[#This Row],[Kwh P6]] -> 5863.29164 | R16: 12225.12 | S16: 16371.30564 | T16: =Tabla9351222[[#This Row],[Prod Solar]]-Tabla9351222[[#This Row],[Exportado]] -> 0 | U16: 16371.30564 | V16: 0 | W16: 4256.37 | X16: 47.02 | Y16: 13.25874259 | Z16: =IF(W16=0,"No Disp",(Tabla9351222[[#This Row],[Inversion]]-Tabla9351222[[#This Row],[Ahorros(IBI)]])/W16) -> 3.829554292 | AA16: años | AB16: 4981.85 | AC16: 17640.85 | AD16: 26263.7 | AE16: 18981.7 | AF16: 47545.55 | AG16: 20322.55 | AH16: 68827.4 | AI16: 21663.4 | AJ16: 90109.25 | AK16: 23004.25
A17: 13 | B17: 260.07 | C17: 14700 | D17: 2500 | E17: =Tabla9351222[[#This Row],[ Instalacion]]+Tabla9351222[[#This Row],[Coste Hardware]] -> 17200 | G17: 953.2884525 | H17: 623.71011 | I17: 4193.241531 | K17: 0 | L17: 0 | M17: 0 | N17: 0 | O17: 0 | P17: 0 | Q17: =Tabla9351222[[#This Row],[Kw Valle]]+Tabla9351222[[#This Row],[Kwh Llano]]+Tabla9351222[[#This Row],[Kwh Punta]]+Tabla9351222[[#This Row],[Kwh P1]]+Tabla9351222[[#This Row],[Kwh P2]]+Tabla9351222[[#This Row],[Kwh P3]]+Tabla9351222[[#This Row],[Kwh P4]]+Tabla9351222[[#This Row],[Kwh P5]]+Tabla9351222[[#This Row],[Kwh P6]] -> 5770.240094 | R17: 13243.88 | S17: 17735.58111 | T17: =Tabla9351222[[#This Row],[Prod Solar]]-Tabla9351222[[#This Row],[Exportado]] -> 0 | U17: 17735.58111 | V17: 0 | W17: 4264.47 | X17: 8.1 | Y17: 13.21676732 | Z17: =IF(W17=0,"No Disp",(Tabla9351222[[#This Row],[Inversion]]-Tabla9351222[[#This Row],[Ahorros(IBI)]])/W17) -> 4.033326533 | AA17: años | AB17: 4122.35 | AC17: 18500.35 | AD17: 25444.7 | AE17: 19800.7 | AF17: 46767.05 | AG17: 21101.05 | AH17: 68089.4 | AI17: 22401.4 | AJ17: 89411.75 | AK17: 23701.75
A18: 14 | B18: 260.07 | C18: 15600 | D18: 2500 | E18: =Tabla9351222[[#This Row],[ Instalacion]]+Tabla9351222[[#This Row],[Coste Hardware]] -> 18100 | G18: 924.474154 | H18: 609.689673 | I18: 4152.396708 | K18: 0 | L18: 0 | M18: 0 | N18: 0 | O18: 0 | P18: 0 | Q18: =Tabla9351222[[#This Row],[Kw Valle]]+Tabla9351222[[#This Row],[Kwh Llano]]+Tabla9351222[[#This Row],[Kwh Punta]]+Tabla9351222[[#This Row],[Kwh P1]]+Tabla9351222[[#This Row],[Kwh P2]]+Tabla9351222[[#This Row],[Kwh P3]]+Tabla9351222[[#This Row],[Kwh P4]]+Tabla9351222[[#This Row],[Kwh P5]]+Tabla9351222[[#This Row],[Kwh P6]] -> 5686.560535 | R18: 14262.64 | S18: 19099.85658 | T18: =Tabla9351222[[#This Row],[Prod Solar]]-Tabla9351222[[#This Row],[Exportado]] -> 0 | U18: 19099.85658 | V18: 0 | W18: 4264.47 | X18: 0 | Y18: 13.18338261 | Z18: =IF(W18=0,"No Disp",(Tabla9351222[[#This Row],[Inversion]]-Tabla9351222[[#This Row],[Ahorros(IBI)]])/W18) -> 4.244372689 | AA18: años | AB18: 3222.35 | AC18: 19400.35 | AD18: 24544.7 | AE18: 20700.7 | AF18: 45867.05 | AG18: 22001.05 | AH18: 67189.4 | AI18: 23301.4 | AJ18: 88511.75 | AK18: 24601.75
A19: 15 | B19: 260.07 | C19: 16500 | D19: 2500 | E19: =Tabla9351222[[#This Row],[ Instalacion]]+Tabla9351222[[#This Row],[Coste Hardware]] -> 19000 | G19: 898.58297 | H19: 598.9044425 | I19: 4116.114307 | K19: 0 | L19: 0 | M19: 0 | N19: 0 | O19: 0 | P19: 0 | Q19: =Tabla9351222[[#This Row],[Kw Valle]]+Tabla9351222[[#This Row],[Kwh Llano]]+Tabla9351222[[#This Row],[Kwh Punta]]+Tabla9351222[[#This Row],[Kwh P1]]+Tabla9351222[[#This Row],[Kwh P2]]+Tabla9351222[[#This Row],[Kwh P3]]+Tabla9351222[[#This Row],[Kwh P4]]+Tabla9351222[[#This Row],[Kwh P5]]+Tabla9351222[[#This Row],[Kwh P6]] -> 5613.601719 | R19: 15281.4 | S19: 20464.13205 | T19: =Tabla9351222[[#This Row],[Prod Solar]]-Tabla9351222[[#This Row],[Exportado]] -> 0 | U19: 20464.13205 | V19: 0 | W19: 4264.47 | X19: 0 | Y19: 13.15621559 | Z19: =IF(W19=0,"No Disp",(Tabla9351222[[#This Row],[Inversion]]-Tabla9351222[[#This Row],[Ahorros(IBI)]])/W19) -> 4.455418845 | AA19: años | AB19: 2322.35 | AC19: 20300.35 | AD19: 23644.7 | AE19: 21600.7 | AF19: 44967.05 | AG19: 22901.05 | AH19: 66289.4 | AI19: 24201.4 | AJ19: 87611.75 | AK19: 25501.75
A20: 16 | C20: =C19+900 -> 17400 | D20: 2500 | E20: =Tabla9351222[[#This Row],[ Instalacion]]+Tabla9351222[[#This Row],[Coste Hardware]] -> 19900 | Q20: =Tabla9351222[[#This Row],[Kw Valle]]+Tabla9351222[[#This Row],[Kwh Llano]]+Tabla9351222[[#This Row],[Kwh Punta]]+Tabla9351222[[#This Row],[Kwh P1]]+Tabla9351222[[#This Row],[Kwh P2]]+Tabla9351222[[#This Row],[Kwh P3]]+Tabla9351222[[#This Row],[Kwh P4]]+Tabla9351222[[#This Row],[Kwh P5]]+Tabla9351222[[#This Row],[Kwh P6]] -> 0 | T20: =Tabla9351222[[#This Row],[Prod Solar]]-Tabla9351222[[#This Row],[Exportado]] -> 0 | W20: 0 | X20: 0 | Y20: 39.84302229 | Z20: =IF(W20=0,"No Disp",(Tabla9351222[[#This Row],[Inversion]]-Tabla9351222[[#This Row],[Ahorros(IBI)]])/W20) -> No Disp | AA20: años | AB20: n/a | AC20: n/a | AD20: n/a | AE20: n/a | AF20: n/a | AG20: n/a | AH20: n/a | AI20: n/a | AJ20: n/a | AK20: n/a
A21: 17 | C21: =C20+900 -> 18300 | D21: 2500 | E21: =Tabla9351222[[#This Row],[ Instalacion]]+Tabla9351222[[#This Row],[Coste Hardware]] -> 20800 | Q21: =Tabla9351222[[#This Row],[Kw Valle]]+Tabla9351222[[#This Row],[Kwh Llano]]+Tabla9351222[[#This Row],[Kwh Punta]]+Tabla9351222[[#This Row],[Kwh P1]]+Tabla9351222[[#This Row],[Kwh P2]]+Tabla9351222[[#This Row],[Kwh P3]]+Tabla9351222[[#This Row],[Kwh P4]]+Tabla9351222[[#This Row],[Kwh P5]]+Tabla9351222[[#This Row],[Kwh P6]] -> 0 | T21: =Tabla9351222[[#This Row],[Prod Solar]]-Tabla9351222[[#This Row],[Exportado]] -> 0 | W21: 0 | X21: 0 | Y21: 36.85281197 | Z21: =IF(W21=0,"No Disp",(Tabla9351222[[#This Row],[Inversion]]-Tabla9351222[[#This Row],[Ahorros(IBI)]])/W21) -> No Disp | AA21: años | AB21: n/a | AC21: n/a | AD21: n/a | AE21: n/a | AF21: n/a | AG21: n/a | AH21: n/a | AI21: n/a | AJ21: n/a | AK21: n/a
A22: 18 | C22: 19200 | D22: 2500 | E22: =Tabla9351222[[#This Row],[ Instalacion]]+Tabla9351222[[#This Row],[Coste Hardware]] -> 21700 | Q22: =Tabla9351222[[#This Row],[Kw Valle]]+Tabla9351222[[#This Row],[Kwh Llano]]+Tabla9351222[[#This Row],[Kwh Punta]]+Tabla9351222[[#This Row],[Kwh P1]]+Tabla9351222[[#This Row],[Kwh P2]]+Tabla9351222[[#This Row],[Kwh P3]]+Tabla9351222[[#This Row],[Kwh P4]]+Tabla9351222[[#This Row],[Kwh P5]]+Tabla9351222[[#This Row],[Kwh P6]] -> 0 | T22: =Tabla9351222[[#This Row],[Prod Solar]]-Tabla9351222[[#This Row],[Exportado]] -> 0 | W22: 0 | X22: 0 | Y22: 34.22636158 | Z22: =IF(W22=0,"No Disp",(Tabla9351222[[#This Row],[Inversion]]-Tabla9351222[[#This Row],[Ahorros(IBI)]])/W22) -> No Disp | AA22: años | AB22: n/a | AC22: n/a | AD22: n/a | AE22: n/a | AF22: n/a | AG22: n/a | AH22: n/a | AI22: n/a | AJ22: n/a | AK22: n/a
A23: 19 | C23: 20100 | D23: 2500 | E23: =Tabla9351222[[#This Row],[ Instalacion]]+Tabla9351222[[#This Row],[Coste Hardware]] -> 22600 | Q23: =Tabla9351222[[#This Row],[Kw Valle]]+Tabla9351222[[#This Row],[Kwh Llano]]+Tabla9351222[[#This Row],[Kwh Punta]]+Tabla9351222[[#This Row],[Kwh P1]]+Tabla9351222[[#This Row],[Kwh P2]]+Tabla9351222[[#This Row],[Kwh P3]]+Tabla9351222[[#This Row],[Kwh P4]]+Tabla9351222[[#This Row],[Kwh P5]]+Tabla9351222[[#This Row],[Kwh P6]] -> 0 | T23: =Tabla9351222[[#This Row],[Prod Solar]]-Tabla9351222[[#This Row],[Exportado]] -> 0 | W23: 0 | X23: 0 | Y23: 31.90588917 | Z23: =IF(W23=0,"No Disp",(Tabla9351222[[#This Row],[Inversion]]-Tabla9351222[[#This Row],[Ahorros(IBI)]])/W23) -> No Disp | AA23: años | AB23: n/a | AC23: n/a | AD23: n/a | AE23: n/a | AF23: n/a | AG23: n/a | AH23: n/a | AI23: n/a | AJ23: n/a | AK23: n/a
A24: 20 | C24: 21000 | D24: 2500 | E24: =Tabla9351222[[#This Row],[ Instalacion]]+Tabla9351222[[#This Row],[Coste Hardware]] -> 23500 | Q24: =Tabla9351222[[#This Row],[Kw Valle]]+Tabla9351222[[#This Row],[Kwh Llano]]+Tabla9351222[[#This Row],[Kwh Punta]]+Tabla9351222[[#This Row],[Kwh P1]]+Tabla9351222[[#This Row],[Kwh P2]]+Tabla9351222[[#This Row],[Kwh P3]]+Tabla9351222[[#This Row],[Kwh P4]]+Tabla9351222[[#This Row],[Kwh P5]]+Tabla9351222[[#This Row],[Kwh P6]] -> 0 | T24: =Tabla9351222[[#This Row],[Prod Solar]]-Tabla9351222[[#This Row],[Exportado]] -> 0 | W24: 0 | X24: 0 | Y24: 29.83296735 | Z24: =IF(W24=0,"No Disp",(Tabla9351222[[#This Row],[Inversion]]-Tabla9351222[[#This Row],[Ahorros(IBI)]])/W24) -> No Disp | AA24: años | AB24: n/a | AC24: n/a | AD24: n/a | AE24: n/a | AF24: n/a | AG24: n/a | AH24: n/a | AI24: n/a | AJ24: n/a | AK24: n/a
A25: 21 | C25: 21900 | D25: 2500 | E25: =Tabla9351222[[#This Row],[ Instalacion]]+Tabla9351222[[#This Row],[Coste Hardware]] -> 24400 | Q25: =Tabla9351222[[#This Row],[Kw Valle]]+Tabla9351222[[#This Row],[Kwh Llano]]+Tabla9351222[[#This Row],[Kwh Punta]]+Tabla9351222[[#This Row],[Kwh P1]]+Tabla9351222[[#This Row],[Kwh P2]]+Tabla9351222[[#This Row],[Kwh P3]]+Tabla9351222[[#This Row],[Kwh P4]]+Tabla9351222[[#This Row],[Kwh P5]]+Tabla9351222[[#This Row],[Kwh P6]] -> 0 | T25: =Tabla9351222[[#This Row],[Prod Solar]]-Tabla9351222[[#This Row],[Exportado]] -> 0 | W25: 0 | X25: 0 | Y25: 28.06658329 | Z25: =IF(W25=0,"No Disp",(Tabla9351222[[#This Row],[Inversion]]-Tabla9351222[[#This Row],[Ahorros(IBI)]])/W25) -> No Disp | AA25: años | AB25: n/a | AC25: n/a | AD25: n/a | AE25: n/a | AF25: n/a | AG25: n/a | AH25: n/a | AI25: n/a | AJ25: n/a | AK25: n/a
A26: 22 | C26: 22800 | D26: 2500 | E26: =Tabla9351222[[#This Row],[ Instalacion]]+Tabla9351222[[#This Row],[Coste Hardware]] -> 25300 | Q26: =Tabla9351222[[#This Row],[Kw Valle]]+Tabla9351222[[#This Row],[Kwh Llano]]+Tabla9351222[[#This Row],[Kwh Punta]]+Tabla9351222[[#This Row],[Kwh P1]]+Tabla9351222[[#This Row],[Kwh P2]]+Tabla9351222[[#This Row],[Kwh P3]]+Tabla9351222[[#This Row],[Kwh P4]]+Tabla9351222[[#This Row],[Kwh P5]]+Tabla9351222[[#This Row],[Kwh P6]] -> 0 | T26: =Tabla9351222[[#This Row],[Prod Solar]]-Tabla9351222[[#This Row],[Exportado]] -> 0 | W26: 0 | X26: 0 | Y26: 26.62710639 | Z26: =IF(W26=0,"No Disp",(Tabla9351222[[#This Row],[Inversion]]-Tabla9351222[[#This Row],[Ahorros(IBI)]])/W26) -> No Disp | AA26: años | AB26: n/a | AC26: n/a | AD26: n/a | AE26: n/a | AF26: n/a | AG26: n/a | AH26: n/a | AI26: n/a | AJ26: n/a | AK26: n/a
A27: 23 | C27: 23700 | D27: 2500 | E27: =Tabla9351222[[#This Row],[ Instalacion]]+Tabla9351222[[#This Row],[Coste Hardware]] -> 26200 | Q27: =Tabla9351222[[#This Row],[Kw Valle]]+Tabla9351222[[#This Row],[Kwh Llano]]+Tabla9351222[[#This Row],[Kwh Punta]]+Tabla9351222[[#This Row],[Kwh P1]]+Tabla9351222[[#This Row],[Kwh P2]]+Tabla9351222[[#This Row],[Kwh P3]]+Tabla9351222[[#This Row],[Kwh P4]]+Tabla9351222[[#This Row],[Kwh P5]]+Tabla9351222[[#This Row],[Kwh P6]] -> 0 | T27: =Tabla9351222[[#This Row],[Prod Solar]]-Tabla9351222[[#This Row],[Exportado]] -> 0 | W27: 0 | X27: 0 | Y27: 25.49089083 | Z27: =IF(W27=0,"No Disp",(Tabla9351222[[#This Row],[Inversion]]-Tabla9351222[[#This Row],[Ahorros(IBI)]])/W27) -> No Disp | AA27: años | AB27: n/a | AC27: n/a | AD27: n/a | AE27: n/a | AF27: n/a | AG27: n/a | AH27: n/a | AI27: n/a | AJ27: n/a | AK27: n/a
A28: 24 | C28: 24600 | D28: 2500 | E28: =Tabla9351222[[#This Row],[ Instalacion]]+Tabla9351222[[#This Row],[Coste Hardware]] -> 27100 | Q28: =Tabla9351222[[#This Row],[Kw Valle]]+Tabla9351222[[#This Row],[Kwh Llano]]+Tabla9351222[[#This Row],[Kwh Punta]]+Tabla9351222[[#This Row],[Kwh P1]]+Tabla9351222[[#This Row],[Kwh P2]]+Tabla9351222[[#This Row],[Kwh P3]]+Tabla9351222[[#This Row],[Kwh P4]]+Tabla9351222[[#This Row],[Kwh P5]]+Tabla9351222[[#This Row],[Kwh P6]] -> 0 | T28: =Tabla9351222[[#This Row],[Prod Solar]]-Tabla9351222[[#This Row],[Exportado]] -> 0 | W28: 0 | X28: 0 | Y28: 24.54445061 | Z28: =IF(W28=0,"No Disp",(Tabla9351222[[#This Row],[Inversion]]-Tabla9351222[[#This Row],[Ahorros(IBI)]])/W28) -> No Disp | AA28: años | AB28: n/a | AC28: n/a | AD28: n/a | AE28: n/a | AF28: n/a | AG28: n/a | AH28: n/a | AI28: n/a | AJ28: n/a | AK28: n/a
A29: 25 | C29: 25500 | D29: 2500 | E29: =Tabla9351222[[#This Row],[ Instalacion]]+Tabla9351222[[#This Row],[Coste Hardware]] -> 28000 | Q29: =Tabla9351222[[#This Row],[Kw Valle]]+Tabla9351222[[#This Row],[Kwh Llano]]+Tabla9351222[[#This Row],[Kwh Punta]]+Tabla9351222[[#This Row],[Kwh P1]]+Tabla9351222[[#This Row],[Kwh P2]]+Tabla9351222[[#This Row],[Kwh P3]]+Tabla9351222[[#This Row],[Kwh P4]]+Tabla9351222[[#This Row],[Kwh P5]]+Tabla9351222[[#This Row],[Kwh P6]] -> 0 | T29: =Tabla9351222[[#This Row],[Prod Solar]]-Tabla9351222[[#This Row],[Exportado]] -> 0 | W29: 0 | X29: 0 | Y29: 23.77221598 | Z29: =IF(W29=0,"No Disp",(Tabla9351222[[#This Row],[Inversion]]-Tabla9351222[[#This Row],[Ahorros(IBI)]])/W29) -> No Disp | AA29: años | AB29: n/a | AC29: n/a | AD29: n/a | AE29: n/a | AF29: n/a | AG29: n/a | AH29: n/a | AI29: n/a | AJ29: n/a | AK29: n/a
A30: 26 | C30: 26400 | D30: 2500 | E30: =Tabla9351222[[#This Row],[ Instalacion]]+Tabla9351222[[#This Row],[Coste Hardware]] -> 28900 | Q30: =Tabla9351222[[#This Row],[Kw Valle]]+Tabla9351222[[#This Row],[Kwh Llano]]+Tabla9351222[[#This Row],[Kwh Punta]]+Tabla9351222[[#This Row],[Kwh P1]]+Tabla9351222[[#This Row],[Kwh P2]]+Tabla9351222[[#This Row],[Kwh P3]]+Tabla9351222[[#This Row],[Kwh P4]]+Tabla9351222[[#This Row],[Kwh P5]]+Tabla9351222[[#This Row],[Kwh P6]] -> 0 | T30: =Tabla9351222[[#This Row],[Prod Solar]]-Tabla9351222[[#This Row],[Exportado]] -> 0 | W30: 0 | X30: 0 | Y30: 23.11036835 | Z30: =IF(W30=0,"No Disp",(Tabla9351222[[#This Row],[Inversion]]-Tabla9351222[[#This Row],[Ahorros(IBI)]])/W30) -> No Disp | AA30: años | AB30: n/a | AC30: n/a | AD30: n/a | AE30: n/a | AF30: n/a | AG30: n/a | AH30: n/a | AI30: n/a | AJ30: n/a | AK30: n/a
A31: 27 | C31: 27300 | D31: 2500 | E31: =Tabla9351222[[#This Row],[ Instalacion]]+Tabla9351222[[#This Row],[Coste Hardware]] -> 29800 | Q31: =Tabla9351222[[#This Row],[Kw Valle]]+Tabla9351222[[#This Row],[Kwh Llano]]+Tabla9351222[[#This Row],[Kwh Punta]]+Tabla9351222[[#This Row],[Kwh P1]]+Tabla9351222[[#This Row],[Kwh P2]]+Tabla9351222[[#This Row],[Kwh P3]]+Tabla9351222[[#This Row],[Kwh P4]]+Tabla9351222[[#This Row],[Kwh P5]]+Tabla9351222[[#This Row],[Kwh P6]] -> 0 | T31: =Tabla9351222[[#This Row],[Prod Solar]]-Tabla9351222[[#This Row],[Exportado]] -> 0 | W31: 0 | X31: 0 | Y31: 22.53298668 | Z31: =IF(W31=0,"No Disp",(Tabla9351222[[#This Row],[Inversion]]-Tabla9351222[[#This Row],[Ahorros(IBI)]])/W31) -> No Disp | AA31: años | AB31: n/a | AC31: n/a | AD31: n/a | AE31: n/a | AF31: n/a | AG31: n/a | AH31: n/a | AI31: n/a | AJ31: n/a | AK31: n/a
A32: 28 | C32: 28200 | D32: 2500 | E32: =Tabla9351222[[#This Row],[ Instalacion]]+Tabla9351222[[#This Row],[Coste Hardware]] -> 30700 | Q32: =Tabla9351222[[#This Row],[Kw Valle]]+Tabla9351222[[#This Row],[Kwh Llano]]+Tabla9351222[[#This Row],[Kwh Punta]]+Tabla9351222[[#This Row],[Kwh P1]]+Tabla9351222[[#This Row],[Kwh P2]]+Tabla9351222[[#This Row],[Kwh P3]]+Tabla9351222[[#This Row],[Kwh P4]]+Tabla9351222[[#This Row],[Kwh P5]]+Tabla9351222[[#This Row],[Kwh P6]] -> 0 | T32: =Tabla9351222[[#This Row],[Prod Solar]]-Tabla9351222[[#This Row],[Exportado]] -> 0 | W32: 0 | X32: 0 | Y32: 22.01199255 | Z32: =IF(W32=0,"No Disp",(Tabla9351222[[#This Row],[Inversion]]-Tabla9351222[[#This Row],[Ahorros(IBI)]])/W32) -> No Disp | AA32: años | AB32: n/a | AC32: n/a | AD32: n/a | AE32: n/a | AF32: n/a | AG32: n/a | AH32: n/a | AI32: n/a | AJ32: n/a | AK32: n/a
A33: 29 | C33: 29100 | D33: 2500 | E33: =Tabla9351222[[#This Row],[ Instalacion]]+Tabla9351222[[#This Row],[Coste Hardware]] -> 31600 | Q33: =Tabla9351222[[#This Row],[Kw Valle]]+Tabla9351222[[#This Row],[Kwh Llano]]+Tabla9351222[[#This Row],[Kwh Punta]]+Tabla9351222[[#This Row],[Kwh P1]]+Tabla9351222[[#This Row],[Kwh P2]]+Tabla9351222[[#This Row],[Kwh P3]]+Tabla9351222[[#This Row],[Kwh P4]]+Tabla9351222[[#This Row],[Kwh P5]]+Tabla9351222[[#This Row],[Kwh P6]] -> 0 | T33: =Tabla9351222[[#This Row],[Prod Solar]]-Tabla9351222[[#This Row],[Exportado]] -> 0 | W33: 0 | X33: 0 | Y33: 21.54584458 | Z33: =IF(W33=0,"No Disp",(Tabla9351222[[#This Row],[Inversion]]-Tabla9351222[[#This Row],[Ahorros(IBI)]])/W33) -> No Disp | AA33: años | AB33: n/a | AC33: n/a | AD33: n/a | AE33: n/a | AF33: n/a | AG33: n/a | AH33: n/a | AI33: n/a | AJ33: n/a | AK33: n/a
A34: 30 | C34: 30000 | D34: 2500 | E34: =Tabla9351222[[#This Row],[ Instalacion]]+Tabla9351222[[#This Row],[Coste Hardware]] -> 32500 | Q34: =Tabla9351222[[#This Row],[Kw Valle]]+Tabla9351222[[#This Row],[Kwh Llano]]+Tabla9351222[[#This Row],[Kwh Punta]]+Tabla9351222[[#This Row],[Kwh P1]]+Tabla9351222[[#This Row],[Kwh P2]]+Tabla9351222[[#This Row],[Kwh P3]]+Tabla9351222[[#This Row],[Kwh P4]]+Tabla9351222[[#This Row],[Kwh P5]]+Tabla9351222[[#This Row],[Kwh P6]] -> 0 | T34: =Tabla9351222[[#This Row],[Prod Solar]]-Tabla9351222[[#This Row],[Exportado]] -> 0 | W34: 0 | X34: 0 | Y34: 21.12061136 | Z34: =IF(W34=0,"No Disp",(Tabla9351222[[#This Row],[Inversion]]-Tabla9351222[[#This Row],[Ahorros(IBI)]])/W34) -> No Disp | AA34: años | AB34: n/a | AC34: n/a | AD34: n/a | AE34: n/a | AF34: n/a | AG34: n/a | AH34: n/a | AI34: n/a | AJ34: n/a | AK34: n/a
A35: 31 | C35: 30900 | D35: 2500 | E35: =Tabla9351222[[#This Row],[ Instalacion]]+Tabla9351222[[#This Row],[Coste Hardware]] -> 33400 | Q35: =Tabla9351222[[#This Row],[Kw Valle]]+Tabla9351222[[#This Row],[Kwh Llano]]+Tabla9351222[[#This Row],[Kwh Punta]]+Tabla9351222[[#This Row],[Kwh P1]]+Tabla9351222[[#This Row],[Kwh P2]]+Tabla9351222[[#This Row],[Kwh P3]]+Tabla9351222[[#This Row],[Kwh P4]]+Tabla9351222[[#This Row],[Kwh P5]]+Tabla9351222[[#This Row],[Kwh P6]] -> 0 | T35: =Tabla9351222[[#This Row],[Prod Solar]]-Tabla9351222[[#This Row],[Exportado]] -> 0 | W35: 0 | X35: 0 | Y35: 20.73654633 | Z35: =IF(W35=0,"No Disp",(Tabla9351222[[#This Row],[Inversion]]-Tabla9351222[[#This Row],[Ahorros(IBI)]])/W35) -> No Disp | AA35: años | AB35: n/a | AC35: n/a | AD35: n/a | AE35: n/a | AF35: n/a | AG35: n/a | AH35: n/a | AI35: n/a | AJ35: n/a | AK35: n/a
A36: 32 | C36: 31800 | D36: 2500 | E36: =Tabla9351222[[#This Row],[ Instalacion]]+Tabla9351222[[#This Row],[Coste Hardware]] -> 34300 | Q36: =Tabla9351222[[#This Row],[Kw Valle]]+Tabla9351222[[#This Row],[Kwh Llano]]+Tabla9351222[[#This Row],[Kwh Punta]]+Tabla9351222[[#This Row],[Kwh P1]]+Tabla9351222[[#This Row],[Kwh P2]]+Tabla9351222[[#This Row],[Kwh P3]]+Tabla9351222[[#This Row],[Kwh P4]]+Tabla9351222[[#This Row],[Kwh P5]]+Tabla9351222[[#This Row],[Kwh P6]] -> 0 | T36: =Tabla9351222[[#This Row],[Prod Solar]]-Tabla9351222[[#This Row],[Exportado]] -> 0 | W36: 0 | X36: 0 | Y36: 20.38576963 | Z36: =IF(W36=0,"No Disp",(Tabla9351222[[#This Row],[Inversion]]-Tabla9351222[[#This Row],[Ahorros(IBI)]])/W36) -> No Disp | AA36: años | AB36: n/a | AC36: n/a | AD36: n/a | AE36: n/a | AF36: n/a | AG36: n/a | AH36: n/a | AI36: n/a | AJ36: n/a | AK36: n/a
A37: 33 | C37: 32700 | D37: 2500 | E37: =Tabla9351222[[#This Row],[ Instalacion]]+Tabla9351222[[#This Row],[Coste Hardware]] -> 35200 | Q37: =Tabla9351222[[#This Row],[Kw Valle]]+Tabla9351222[[#This Row],[Kwh Llano]]+Tabla9351222[[#This Row],[Kwh Punta]]+Tabla9351222[[#This Row],[Kwh P1]]+Tabla9351222[[#This Row],[Kwh P2]]+Tabla9351222[[#This Row],[Kwh P3]]+Tabla9351222[[#This Row],[Kwh P4]]+Tabla9351222[[#This Row],[Kwh P5]]+Tabla9351222[[#This Row],[Kwh P6]] -> 0 | T37: =Tabla9351222[[#This Row],[Prod Solar]]-Tabla9351222[[#This Row],[Exportado]] -> 0 | W37: 0 | X37: 0 | Y37: 20.05629516 | Z37: =IF(W37=0,"No Disp",(Tabla9351222[[#This Row],[Inversion]]-Tabla9351222[[#This Row],[Ahorros(IBI)]])/W37) -> No Disp | AA37: años | AB37: n/a | AC37: n/a | AD37: n/a | AE37: n/a | AF37: n/a | AG37: n/a | AH37: n/a | AI37: n/a | AJ37: n/a | AK37: n/a
A38: 34 | C38: 33600 | D38: 2500 | E38: =Tabla9351222[[#This Row],[ Instalacion]]+Tabla9351222[[#This Row],[Coste Hardware]] -> 36100 | Q38: =Tabla9351222[[#This Row],[Kw Valle]]+Tabla9351222[[#This Row],[Kwh Llano]]+Tabla9351222[[#This Row],[Kwh Punta]]+Tabla9351222[[#This Row],[Kwh P1]]+Tabla9351222[[#This Row],[Kwh P2]]+Tabla9351222[[#This Row],[Kwh P3]]+Tabla9351222[[#This Row],[Kwh P4]]+Tabla9351222[[#This Row],[Kwh P5]]+Tabla9351222[[#This Row],[Kwh P6]] -> 0 | T38: =Tabla9351222[[#This Row],[Prod Solar]]-Tabla9351222[[#This Row],[Exportado]] -> 0 | W38: 0 | X38: 0 | Y38: 19.75077531 | Z38: =IF(W38=0,"No Disp",(Tabla9351222[[#This Row],[Inversion]]-Tabla9351222[[#This Row],[Ahorros(IBI)]])/W38) -> No Disp | AA38: años | AB38: n/a | AC38: n/a | AD38: n/a | AE38: n/a | AF38: n/a | AG38: n/a | AH38: n/a | AI38: n/a | AJ38: n/a | AK38: n/a
A39: 35 | C39: 34500 | D39: 2500 | E39: =Tabla9351222[[#This Row],[ Instalacion]]+Tabla9351222[[#This Row],[Coste Hardware]] -> 37000 | Q39: =Tabla9351222[[#This Row],[Kw Valle]]+Tabla9351222[[#This Row],[Kwh Llano]]+Tabla9351222[[#This Row],[Kwh Punta]]+Tabla9351222[[#This Row],[Kwh P1]]+Tabla9351222[[#This Row],[Kwh P2]]+Tabla9351222[[#This Row],[Kwh P3]]+Tabla9351222[[#This Row],[Kwh P4]]+Tabla9351222[[#This Row],[Kwh P5]]+Tabla9351222[[#This Row],[Kwh P6]] -> 0 | T39: =Tabla9351222[[#This Row],[Prod Solar]]-Tabla9351222[[#This Row],[Exportado]] -> 0 | W39: 0 | X39: 0 | Y39: 19.45970319 | Z39: =IF(W39=0,"No Disp",(Tabla9351222[[#This Row],[Inversion]]-Tabla9351222[[#This Row],[Ahorros(IBI)]])/W39) -> No Disp | AA39: años | AB39: n/a | AC39: n/a | AD39: n/a | AE39: n/a | AF39: n/a | AG39: n/a | AH39: n/a | AI39: n/a | AJ39: n/a | AK39: n/a
A40: 36 | C40: 35400 | D40: 2500 | E40: =Tabla9351222[[#This Row],[ Instalacion]]+Tabla9351222[[#This Row],[Coste Hardware]] -> 37900 | Q40: =Tabla9351222[[#This Row],[Kw Valle]]+Tabla9351222[[#This Row],[Kwh Llano]]+Tabla9351222[[#This Row],[Kwh Punta]]+Tabla9351222[[#This Row],[Kwh P1]]+Tabla9351222[[#This Row],[Kwh P2]]+Tabla9351222[[#This Row],[Kwh P3]]+Tabla9351222[[#This Row],[Kwh P4]]+Tabla9351222[[#This Row],[Kwh P5]]+Tabla9351222[[#This Row],[Kwh P6]] -> 0 | T40: =Tabla9351222[[#This Row],[Prod Solar]]-Tabla9351222[[#This Row],[Exportado]] -> 0 | W40: 0 | X40: 0 | Y40: 19.18663733 | Z40: =IF(W40=0,"No Disp",(Tabla9351222[[#This Row],[Inversion]]-Tabla9351222[[#This Row],[Ahorros(IBI)]])/W40) -> No Disp | AA40: años | AB40: n/a | AC40: n/a | AD40: n/a | AE40: n/a | AF40: n/a | AG40: n/a | AH40: n/a | AI40: n/a | AJ40: n/a | AK40: n/a
A41: 37 | C41: 36300 | D41: 2500 | E41: =Tabla9351222[[#This Row],[ Instalacion]]+Tabla9351222[[#This Row],[Coste Hardware]] -> 38800 | Q41: =Tabla9351222[[#This Row],[Kw Valle]]+Tabla9351222[[#This Row],[Kwh Llano]]+Tabla9351222[[#This Row],[Kwh Punta]]+Tabla9351222[[#This Row],[Kwh P1]]+Tabla9351222[[#This Row],[Kwh P2]]+Tabla9351222[[#This Row],[Kwh P3]]+Tabla9351222[[#This Row],[Kwh P4]]+Tabla9351222[[#This Row],[Kwh P5]]+Tabla9351222[[#This Row],[Kwh P6]] -> 0 | T41: =Tabla9351222[[#This Row],[Prod Solar]]-Tabla9351222[[#This Row],[Exportado]] -> 0 | W41: 0 | X41: 0 | Y41: 18.93584176 | Z41: =IF(W41=0,"No Disp",(Tabla9351222[[#This Row],[Inversion]]-Tabla9351222[[#This Row],[Ahorros(IBI)]])/W41) -> No Disp | AA41: años | AB41: n/a | AC41: n/a | AD41: n/a | AE41: n/a | AF41: n/a | AG41: n/a | AH41: n/a | AI41: n/a | AJ41: n/a | AK41: n/a
A42: 38 | C42: 37200 | D42: 2500 | E42: =Tabla9351222[[#This Row],[ Instalacion]]+Tabla9351222[[#This Row],[Coste Hardware]] -> 39700 | Q42: =Tabla9351222[[#This Row],[Kw Valle]]+Tabla9351222[[#This Row],[Kwh Llano]]+Tabla9351222[[#This Row],[Kwh Punta]]+Tabla9351222[[#This Row],[Kwh P1]]+Tabla9351222[[#This Row],[Kwh P2]]+Tabla9351222[[#This Row],[Kwh P3]]+Tabla9351222[[#This Row],[Kwh P4]]+Tabla9351222[[#This Row],[Kwh P5]]+Tabla9351222[[#This Row],[Kwh P6]] -> 0 | T42: =Tabla9351222[[#This Row],[Prod Solar]]-Tabla9351222[[#This Row],[Exportado]] -> 0 | W42: 0 | X42: 0 | Y42: 18.70422725 | Z42: =IF(W42=0,"No Disp",(Tabla9351222[[#This Row],[Inversion]]-Tabla9351222[[#This Row],[Ahorros(IBI)]])/W42) -> No Disp | AA42: años | AB42: n/a | AC42: n/a | AD42: n/a | AE42: n/a | AF42: n/a | AG42: n/a | AH42: n/a | AI42: n/a | AJ42: n/a | AK42: n/a
A43: 39 | C43: 38100 | D43: 2500 | E43: =Tabla9351222[[#This Row],[ Instalacion]]+Tabla9351222[[#This Row],[Coste Hardware]] -> 40600 | Q43: =Tabla9351222[[#This Row],[Kw Valle]]+Tabla9351222[[#This Row],[Kwh Llano]]+Tabla9351222[[#This Row],[Kwh Punta]]+Tabla9351222[[#This Row],[Kwh P1]]+Tabla9351222[[#This Row],[Kwh P2]]+Tabla9351222[[#This Row],[Kwh P3]]+Tabla9351222[[#This Row],[Kwh P4]]+Tabla9351222[[#This Row],[Kwh P5]]+Tabla9351222[[#This Row],[Kwh P6]] -> 0 | T43: =Tabla9351222[[#This Row],[Prod Solar]]-Tabla9351222[[#This Row],[Exportado]] -> 0 | W43: 0 | X43: 0 | Y43: 18.49558579 | Z43: =IF(W43=0,"No Disp",(Tabla9351222[[#This Row],[Inversion]]-Tabla9351222[[#This Row],[Ahorros(IBI)]])/W43) -> No Disp | AA43: años | AB43: n/a | AC43: n/a | AD43: n/a | AE43: n/a | AF43: n/a | AG43: n/a | AH43: n/a | AI43: n/a | AJ43: n/a | AK43: n/a
A44: 40 | C44: 39000 | D44: 2500 | E44: =Tabla9351222[[#This Row],[ Instalacion]]+Tabla9351222[[#This Row],[Coste Hardware]] -> 41500 | Q44: =Tabla9351222[[#This Row],[Kw Valle]]+Tabla9351222[[#This Row],[Kwh Llano]]+Tabla9351222[[#This Row],[Kwh Punta]]+Tabla9351222[[#This Row],[Kwh P1]]+Tabla9351222[[#This Row],[Kwh P2]]+Tabla9351222[[#This Row],[Kwh P3]]+Tabla9351222[[#This Row],[Kwh P4]]+Tabla9351222[[#This Row],[Kwh P5]]+Tabla9351222[[#This Row],[Kwh P6]] -> 0 | T44: =Tabla9351222[[#This Row],[Prod Solar]]-Tabla9351222[[#This Row],[Exportado]] -> 0 | W44: 0 | X44: 0 | Y44: 18.30669999 | Z44: =IF(W44=0,"No Disp",(Tabla9351222[[#This Row],[Inversion]]-Tabla9351222[[#This Row],[Ahorros(IBI)]])/W44) -> No Disp | AA44: años | AB44: n/a | AC44: n/a | AD44: n/a | AE44: n/a | AF44: n/a | AG44: n/a | AH44: n/a | AI44: n/a | AJ44: n/a | AK44: n/a

Sheet RENT PVPC
H1: 0.35 | I1: 0.29 | J1: 0.25 | L1: 0.16 | M1: 0.14 | N1: 0.11 | O1: 0.09 | P1: 0.08 | Q1: 0.08 | V1: 0.27 | W1: 0.24 | X1: 0.2
A2: RENTABILIDAD | H2: CONSUMO COMPAÑÍA | S2: Ahorro en los X años | AB2: =MATCH(AC2,AC5:AC44,0) -> 8 | AC2: =MIN(AC5:AC44) -> 16476.9 | AD2: =MATCH(AE2,AE5:AE44,0) -> 13 | AE2: =MIN(AE5:AE44) -> 20631.3 | AF2: =MATCH(AG2,AG5:AG44,0) -> 15 | AG2: =MIN(AG5:AG44) -> 22750.65 | AH2: =MATCH(AI2,AI5:AI44,0) -> 15 | AI2: =MIN(AI5:AI44) -> 24834.2 | AJ2: =MATCH(AK2,AK5:AK44,0) -> 18 | AK2: =MIN(AK5:AK44) -> 26587.75
A3: ' | B3: Factura | C3: Coste Hardware | D3: Instalacion | E3: Legalizacion | F3: Inversion | G3: Ahorros(IBI) | H3: Kwh Punta | I3: Kwh Llano | J3: Kw Valle | K3: C | L3: Kwh P1 | M3: Kwh P2 | N3: Kwh P3 | O3: Kwh P4 | P3: Kwh P5 | Q3: Kwh P6 | R3: Total | S3: P Max 99.5 | T3: Prod Solar | U3: Consumido | V3: Exportado | W3: %Aut | X3: Dif Anual | Y3: Dif Anterior | Z3: Amortizacion | AB3: 5 | AC3: 5 años TOT | AD3: 10 | AE3: 10 años TOT | AF3: 15 | AG3: 15 años TOT | AH3: 20 | AI3: 20 años TOT | AJ3: 25 | AK3: 25 años TOT
A4: ORIGINAL | B4: 4524.54 | H4: 3743.782 | I4: 2723.003 | J4: 5026.124 | L4: 0 | M4: 0 | N4: 0 | O4: 0 | P4: 0 | Q4: 0 | R4: =Tabla961021[[#This Row],[Kw Valle]]+Tabla961021[[#This Row],[Kwh Llano]]+Tabla961021[[#This Row],[Kwh Punta]]+Tabla961021[[#This Row],[Kwh P1]]+Tabla961021[[#This Row],[Kwh P2]]+Tabla961021[[#This Row],[Kwh P3]]+Tabla961021[[#This Row],[Kwh P4]]+Tabla961021[[#This Row],[Kwh P5]]+Tabla961021[[#This Row],[Kwh P6]] -> 11492.909 | AC4: =FV(INFLACCION,AB3,-$B$4,0) -> 22622.7 | AE4: =FV(INFLACCION,AD3,-$B$4,0) -> 45245.4 | AG4: =FV(INFLACCION,AF3,-$B$4,0) -> 67868.1 | AI4: =FV(INFLACCION,AH3,-$B$4,0) -> 90490.8 | AK4: =FV(INFLACCION,AJ3,-$B$4,0) -> 113113.5
A5: 1 | B5: 4003.66 | C5: 3000 | F5: =Tabla961021[[#This Row],[Legalizacion]]+Tabla961021[[#This Row],[ Instalacion]]+Tabla961021[[#This Row],[Coste Hardware]] -> 3000 | H5: 3228.32689 | I5: 2296.11046 | J5: 4609.09811 | L5: 0 | M5: 0 | N5: 0 | O5: 0 | P5: 0 | Q5: 0 | R5: =Tabla961021[[#This Row],[Kw Valle]]+Tabla961021[[#This Row],[Kwh Llano]]+Tabla961021[[#This Row],[Kwh Punta]]+Tabla961021[[#This Row],[Kwh P1]]+Tabla961021[[#This Row],[Kwh P2]]+Tabla961021[[#This Row],[Kwh P3]]+Tabla961021[[#This Row],[Kwh P4]]+Tabla961021[[#This Row],[Kwh P5]]+Tabla961021[[#This Row],[Kwh P6]] -> 10133.53546 | S5: 1018.76 | T5: 1364.27547 | U5: =Tabla961021[[#This Row],[Prod Solar]]-Tabla961021[[#This Row],[Exportado]] -> 1358.44554 | V5: 5.82993 | W5: 0.9957267208 | X5: =IF(B5=0,0,B$4-B5) -> 520.88 | Y5: =IF(B5=0,0,B4-B5) -> 520.88 | Z5: =IF(X5=0,"No Disp",(Tabla961021[[#This Row],[Inversion]]-Tabla961021[[#This Row],[Ahorros(IBI)]])/X5) -> 5.75948395 | AA5: años | AB5: =IF($B5=0,"n/a",AC$4-(FV(INFLACCION,AB$3,-$B5,0))-$F5+$G5) -> -395.6 | AC5: =IF(AB5<>"n/a",AC$4-AB5,"n/a") -> 23018.3 | AD5: =IF($B5=0,"n/a",AE$4-(FV(INFLACCION,AD$3,-$B5,0))-$F5+$G5) -> 2208.8 | AE5: =IF(AD5<>"n/a",AE$4-AD5,"n/a") -> 43036.6 | AF5: =IF($B5=0,"n/a",AG$4-(FV(INFLACCION,AF$3,-$B5,0))-$F5+$G5) -> 4813.2 | AG5: =IF(AF5<>"n/a",AG$4-AF5,"n/a") -> 63054.9 | AH5: =IF($B5=0,"n/a",AI$4-(FV(INFLACCION,AH$3,-$B5,0))-$F5+$G5) -> 7417.6 | AI5: =IF(AH5<>"n/a",AI$4-AH5,"n/a") -> 83073.2 | AJ5: =IF($B5=0,"n/a",AK$4-(FV(INFLACCION,AJ$3,-$B5,0))-$F5+$G5) -> 10022 | AK5: =IF(AJ5<>"n/a",AK$4-AJ5,"n/a") -> 103091.5
A6: 2 | B6: 3501.2 | C6: 4820 | F6: =Tabla961021[[#This Row],[Legalizacion]]+Tabla961021[[#This Row],[ Instalacion]]+Tabla961021[[#This Row],[Coste Hardware]] -> 4820 | H6: 2825.44496 | I6: 1926.243 | J6: 4241.18174 | L6: 0 | M6: 0 | N6: 0 | O6: 0 | P6: 0 | Q6: 0 | R6: =Tabla961021[[#This Row],[Kw Valle]]+Tabla961021[[#This Row],[Kwh Llano]]+Tabla961021[[#This Row],[Kwh Punta]]+Tabla961021[[#This Row],[Kwh P1]]+Tabla961021[[#This Row],[Kwh P2]]+Tabla961021[[#This Row],[Kwh P3]]+Tabla961021[[#This Row],[Kwh P4]]+Tabla961021[[#This Row],[Kwh P5]]+Tabla961021[[#This Row],[Kwh P6]] -> 8992.8697 | S6: 2037.52 | T6: 2728.55094 | U6: =Tabla961021[[#This Row],[Prod Solar]]-Tabla961021[[#This Row],[Exportado]] -> 2499.1113 | V6: 229.43964 | W6: 0.9159115424 | X6: =IF(B6=0,0,B$4-B6) -> 1023.34 | Y6: =IF(B6=0,0,B5-B6) -> 502.46 | Z6: =IF(X6=0,"No Disp",(Tabla961021[[#This Row],[Inversion]]-Tabla961021[[#This Row],[Ahorros(IBI)]])/X6) -> 4.710067035 | AA6: años | AB6: 296.7 | AC6: =IF(AB6<>"n/a",AC$4-AB6,"n/a") -> 22326 | AD6: 5413.4 | AE6: =IF(AD6<>"n/a",AE$4-AD6,"n/a") -> 39832 | AF6: 10530.1 | AG6: =IF(AF6<>"n/a",AG$4-AF6,"n/a") -> 57338 | AH6: 15646.8 | AI6: =IF(AH6<>"n/a",AI$4-AH6,"n/a") -> 74844 | AJ6: 20763.5 | AK6: =IF(AJ6<>"n/a",AK$4-AJ6,"n/a") -> 92350
A7: 3 | B7: 3029.26 | C7: 5450 | F7: =Tabla961021[[#This Row],[Legalizacion]]+Tabla961021[[#This Row],[ Instalacion]]+Tabla961021[[#This Row],[Coste Hardware]] -> 5450 | H7: 2576.9493 | I7: 1689.73509 | J7: 3973.48333 | L7: 0 | M7: 0 | N7: 0 | O7: 0 | P7: 0 | Q7: 0 | R7: =Tabla961021[[#This Row],[Kw Valle]]+Tabla961021[[#This Row],[Kwh Llano]]+Tabla961021[[#This Row],[Kwh Punta]]+Tabla961021[[#This Row],[Kwh P1]]+Tabla961021[[#This Row],[Kwh P2]]+Tabla961021[[#This Row],[Kwh P3]]+Tabla961021[[#This Row],[Kwh P4]]+Tabla961021[[#This Row],[Kwh P5]]+Tabla961021[[#This Row],[Kwh P6]] -> 8240.16772 | S7: 3056.28 | T7: 4092.82641 | U7: =Tabla961021[[#This Row],[Prod Solar]]-Tabla961021[[#This Row],[Exportado]] -> 3251.81328 | V7: 841.01313 | W7: 0.7945153188 | X7: 1495.28 | Y7: 471.94 | Z7: =IF(X7=0,"No Disp",(Tabla961021[[#This Row],[Inversion]]-Tabla961021[[#This Row],[Ahorros(IBI)]])/X7) -> 3.644802311 | AA7: años | AB7: 2026.4 | AC7: 20596.3 | AD7: 9502.8 | AE7: 35742.6 | AF7: 16979.2 | AG7: 50888.9 | AH7: 24455.6 | AI7: 66035.2 | AJ7: 31932 | AK7: 81181.5
A8: 4 | B8: 2577.03 | C8: 6300 | F8: =Tabla961021[[#This Row],[Legalizacion]]+Tabla961021[[#This Row],[ Instalacion]]+Tabla961021[[#This Row],[Coste Hardware]] -> 6300 | H8: 2422.02108 | I8: 1532.86228 | J8: 3786.55144 | L8: 0 | M8: 0 | N8: 0 | O8: 0 | P8: 0 | Q8: 0 | R8: =Tabla961021[[#This Row],[Kw Valle]]+Tabla961021[[#This Row],[Kwh Llano]]+Tabla961021[[#This Row],[Kwh Punta]]+Tabla961021[[#This Row],[Kwh P1]]+Tabla961021[[#This Row],[Kwh P2]]+Tabla961021[[#This Row],[Kwh P3]]+Tabla961021[[#This Row],[Kwh P4]]+Tabla961021[[#This Row],[Kwh P5]]+Tabla961021[[#This Row],[Kwh P6]] -> 7741.4348 | S8: 4075.04 | T8: 5457.10188 | U8: =Tabla961021[[#This Row],[Prod Solar]]-Tabla961021[[#This Row],[Exportado]] -> 3750.5462 | V8: 1706.55568 | W8: 0.6872780246 | X8: 1947.51 | Y8: 452.23 | Z8: =IF(X8=0,"No Disp",(Tabla961021[[#This Row],[Inversion]]-Tabla961021[[#This Row],[Ahorros(IBI)]])/X8) -> 3.234899949 | AA8: años | AB8: 3437.55 | AC8: 19185.15 | AD8: 13175.1 | AE8: 32070.3 | AF8: 22912.65 | AG8: 44955.45 | AH8: 32650.2 | AI8: 57840.6 | AJ8: 42387.75 | AK8: 70725.75
A9: 5 | B9: 2135.85 | C9: 7200 | F9: =Tabla961021[[#This Row],[Legalizacion]]+Tabla961021[[#This Row],[ Instalacion]]+Tabla961021[[#This Row],[Coste Hardware]] -> 7200 | H9: 2317.49105 | I9: 1418.23205 | J9: 3650.605 | L9: 0 | M9: 0 | N9: 0 | O9: 0 | P9: 0 | Q9: 0 | R9: =Tabla961021[[#This Row],[Kw Valle]]+Tabla961021[[#This Row],[Kwh Llano]]+Tabla961021[[#This Row],[Kwh Punta]]+Tabla961021[[#This Row],[Kwh P1]]+Tabla961021[[#This Row],[Kwh P2]]+Tabla961021[[#This Row],[Kwh P3]]+Tabla961021[[#This Row],[Kwh P4]]+Tabla961021[[#This Row],[Kwh P5]]+Tabla961021[[#This Row],[Kwh P6]] -> 7386.3281 | S9: 5093.8 | T9: 6821.37735 | U9: =Tabla961021[[#This Row],[Prod Solar]]-Tabla961021[[#This Row],[Exportado]] -> 4105.6529 | V9: 2715.72445 | W9: 0.6018803373 | X9: 2388.69 | Y9: 441.18 | Z9: =IF(X9=0,"No Disp",(Tabla961021[[#This Row],[Inversion]]-Tabla961021[[#This Row],[Ahorros(IBI)]])/X9) -> 3.014204438 | AA9: años | AB9: 4743.45 | AC9: 17879.25 | AD9: 16686.9 | AE9: 28558.5 | AF9: 28630.35 | AG9: 39237.75 | AH9: 40573.8 | AI9: 49917 | AJ9: 52517.25 | AK9: 60596.25
A10: 6 | B10: 1754.65 | C10: 8300 | F10: =Tabla961021[[#This Row],[Legalizacion]]+Tabla961021[[#This Row],[ Instalacion]]+Tabla961021[[#This Row],[Coste Hardware]] -> 8300 | H10: 2243.46744 | I10: 1328.41004 | J10: 3547.7303 | L10: 0 | M10: 0 | N10: 0 | O10: 0 | P10: 0 | Q10: 0 | R10: =Tabla961021[[#This Row],[Kw Valle]]+Tabla961021[[#This Row],[Kwh Llano]]+Tabla961021[[#This Row],[Kwh Punta]]+Tabla961021[[#This Row],[Kwh P1]]+Tabla961021[[#This Row],[Kwh P2]]+Tabla961021[[#This Row],[Kwh P3]]+Tabla961021[[#This Row],[Kwh P4]]+Tabla961021[[#This Row],[Kwh P5]]+Tabla961021[[#This Row],[Kwh P6]] -> 7119.60778 | S10: 6112.56 | T10: 8185.65282 | U10: =Tabla961021[[#This Row],[Prod Solar]]-Tabla961021[[#This Row],[Exportado]] -> 4372.37322 | V10: 3813.2796 | W10: 0.5341508266 | X10: 2769.89 | Y10: 381.2 | Z10: =IF(X10=0,"No Disp",(Tabla961021[[#This Row],[Inversion]]-Tabla961021[[#This Row],[Ahorros(IBI)]])/X10) -> 2.996508887 | AA10: años | AB10: 5549.45 | AC10: 17073.25 | AD10: 19398.9 | AE10: 25846.5 | AF10: 33248.35 | AG10: 34619.75 | AH10: 47097.8 | AI10: 43393 | AJ10: 60947.25 | AK10: 52166.25
A11: 7 | B11: 1455.87 | C11: 9300 | F11: =Tabla961021[[#This Row],[Legalizacion]]+Tabla961021[[#This Row],[ Instalacion]]+Tabla961021[[#This Row],[Coste Hardware]] -> 9300 | H11: 2186.56622 | I11: 1258.5092 | J11: 3466.24386 | L11: 0 | M11: 0 | N11: 0 | O11: 0 | P11: 0 | Q11: 0 | R11: =Tabla961021[[#This Row],[Kw Valle]]+Tabla961021[[#This Row],[Kwh Llano]]+Tabla961021[[#This Row],[Kwh Punta]]+Tabla961021[[#This Row],[Kwh P1]]+Tabla961021[[#This Row],[Kwh P2]]+Tabla961021[[#This Row],[Kwh P3]]+Tabla961021[[#This Row],[Kwh P4]]+Tabla961021[[#This Row],[Kwh P5]]+Tabla961021[[#This Row],[Kwh P6]] -> 6911.31928 | S11: 7131.32 | T11: 9549.92829 | U11: =Tabla961021[[#This Row],[Prod Solar]]-Tabla961021[[#This Row],[Exportado]] -> 4580.66172 | V11: 4969.26657 | W11: 0.4796540436 | X11: 3068.67 | Y11: 298.78 | Z11: =IF(X11=0,"No Disp",(Tabla961021[[#This Row],[Inversion]]-Tabla961021[[#This Row],[Ahorros(IBI)]])/X11) -> 3.030628904 | AA11: años | AB11: 6043.35 | AC11: 16579.35 | AD11: 21386.7 | AE11: 23858.7 | AF11: 36730.05 | AG11: 31138.05 | AH11: 52073.4 | AI11: 38417.4 | AJ11: 67416.75 | AK11: 45696.75
A12: 8 | B12: 1255.38 | C12: 10200 | F12: =Tabla961021[[#This Row],[Legalizacion]]+Tabla961021[[#This Row],[ Instalacion]]+Tabla961021[[#This Row],[Coste Hardware]] -> 10200 | H12: 2138.6364 | I12: 1201.3028 | J12: 3398.51872 | L12: 0 | M12: 0 | N12: 0 | O12: 0 | P12: 0 | Q12: 0 | R12: =Tabla961021[[#This Row],[Kw Valle]]+Tabla961021[[#This Row],[Kwh Llano]]+Tabla961021[[#This Row],[Kwh Punta]]+Tabla961021[[#This Row],[Kwh P1]]+Tabla961021[[#This Row],[Kwh P2]]+Tabla961021[[#This Row],[Kwh P3]]+Tabla961021[[#This Row],[Kwh P4]]+Tabla961021[[#This Row],[Kwh P5]]+Tabla961021[[#This Row],[Kwh P6]] -> 6738.45792 | S12: 8150.08 | T12: 10914.20376 | U12: =Tabla961021[[#This Row],[Prod Solar]]-Tabla961021[[#This Row],[Exportado]] -> 4753.52308 | V12: 6160.68068 | W12: 0.4355354898 | X12: 3269.16 | Y12: 200.49 | Z12: =IF(X12=0,"No Disp",(Tabla961021[[#This Row],[Inversion]]-Tabla961021[[#This Row],[Ahorros(IBI)]])/X12) -> 3.12006754 | AA12: años | AB12: 6145.8 | AC12: 16476.9 | AD12: 22491.6 | AE12: 22753.8 | AF12: 38837.4 | AG12: 29030.7 | AH12: 55183.2 | AI12: 35307.6 | AJ12: 71529 | AK12: 41584.5
A13: 9 | B13: 1100.37 | C13: 11100 | F13: =Tabla961021[[#This Row],[Legalizacion]]+Tabla961021[[#This Row],[ Instalacion]]+Tabla961021[[#This Row],[Coste Hardware]] -> 11100 | H13: 2096.61048 | I13: 1154.21106 | J13: 3341.60881 | L13: 0 | M13: 0 | N13: 0 | O13: 0 | P13: 0 | Q13: 0 | R13: =Tabla961021[[#This Row],[Kw Valle]]+Tabla961021[[#This Row],[Kwh Llano]]+Tabla961021[[#This Row],[Kwh Punta]]+Tabla961021[[#This Row],[Kwh P1]]+Tabla961021[[#This Row],[Kwh P2]]+Tabla961021[[#This Row],[Kwh P3]]+Tabla961021[[#This Row],[Kwh P4]]+Tabla961021[[#This Row],[Kwh P5]]+Tabla961021[[#This Row],[Kwh P6]] -> 6592.43035 | S13: 9168.84 | T13: 12278.47923 | U13: =Tabla961021[[#This Row],[Prod Solar]]-Tabla961021[[#This Row],[Exportado]] -> 4899.55065 | V13: 7378.92858 | W13: 0.3990356263 | X13: 3424.17 | Y13: 155.01 | Z13: =IF(X13=0,"No Disp",(Tabla961021[[#This Row],[Inversion]]-Tabla961021[[#This Row],[Ahorros(IBI)]])/X13) -> 3.241661483 | AA13: años | AB13: 6020.85 | AC13: 16601.85 | AD13: 23141.7 | AE13: 22103.7 | AF13: 40262.55 | AG13: 27605.55 | AH13: 57383.4 | AI13: 33107.4 | AJ13: 74504.25 | AK13: 38609.25
A14: 10 | B14: 950.01 | C14: 12000 | F14: =Tabla961021[[#This Row],[Legalizacion]]+Tabla961021[[#This Row],[ Instalacion]]+Tabla961021[[#This Row],[Coste Hardware]] -> 12000 | H14: 2059.8829 | I14: 1114.8372 | J14: 3291.3079 | L14: 0 | M14: 0 | N14: 0 | O14: 0 | P14: 0 | Q14: 0 | R14: =Tabla961021[[#This Row],[Kw Valle]]+Tabla961021[[#This Row],[Kwh Llano]]+Tabla961021[[#This Row],[Kwh Punta]]+Tabla961021[[#This Row],[Kwh P1]]+Tabla961021[[#This Row],[Kwh P2]]+Tabla961021[[#This Row],[Kwh P3]]+Tabla961021[[#This Row],[Kwh P4]]+Tabla961021[[#This Row],[Kwh P5]]+Tabla961021[[#This Row],[Kwh P6]] -> 6466.028 | S14: 10187.6 | T14: 13642.7547 | U14: =Tabla961021[[#This Row],[Prod Solar]]-Tabla961021[[#This Row],[Exportado]] -> 5025.953 | V14: 8616.8017 | W14: 0.368397227 | X14: 3574.53 | Y14: 150.36 | Z14: =IF(X14=0,"No Disp",(Tabla961021[[#This Row],[Inversion]]-Tabla961021[[#This Row],[Ahorros(IBI)]])/X14) -> 3.357084708 | AA14: años | AB14: 5872.65 | AC14: 16750.05 | AD14: 23745.3 | AE14: 21500.1 | AF14: 41617.95 | AG14: 26250.15 | AH14: 59490.6 | AI14: 31000.2 | AJ14: 77363.25 | AK14: 35750.25
A15: 11 | B15: 807.13 | C15: 12900 | F15: =Tabla961021[[#This Row],[Legalizacion]]+Tabla961021[[#This Row],[ Instalacion]]+Tabla961021[[#This Row],[Coste Hardware]] -> 12900 | H15: 2026.9216 | I15: 1081.60422 | J15: 3246.48301 | L15: 0 | M15: 0 | N15: 0 | O15: 0 | P15: 0 | Q15: 0 | R15: =Tabla961021[[#This Row],[Kw Valle]]+Tabla961021[[#This Row],[Kwh Llano]]+Tabla961021[[#This Row],[Kwh Punta]]+Tabla961021[[#This Row],[Kwh P1]]+Tabla961021[[#This Row],[Kwh P2]]+Tabla961021[[#This Row],[Kwh P3]]+Tabla961021[[#This Row],[Kwh P4]]+Tabla961021[[#This Row],[Kwh P5]]+Tabla961021[[#This Row],[Kwh P6]] -> 6355.00883 | S15: 11206.36 | T15: 15007.03017 | U15: =Tabla961021[[#This Row],[Prod Solar]]-Tabla961021[[#This Row],[Exportado]] -> 5136.97217 | V15: 9870.058 | W15: 0.3423043808 | X15: 3717.41 | Y15: 142.88 | Z15: =IF(X15=0,"No Disp",(Tabla961021[[#This Row],[Inversion]]-Tabla961021[[#This Row],[Ahorros(IBI)]])/X15) -> 3.470157986 | AA15: años | AB15: 5687.05 | AC15: 16935.65 | AD15: 24274.1 | AE15: 20971.3 | AF15: 42861.15 | AG15: 25006.95 | AH15: 61448.2 | AI15: 29042.6 | AJ15: 80035.25 | AK15: 33078.25
A16: 12 | B16: 689.11 | C16: 13800 | F16: =Tabla961021[[#This Row],[Legalizacion]]+Tabla961021[[#This Row],[ Instalacion]]+Tabla961021[[#This Row],[Coste Hardware]] -> 13800 | H16: 1998.29028 | I16: 1052.47264 | J16: 3206.9234 | L16: 0 | M16: 0 | N16: 0 | O16: 0 | P16: 0 | Q16: 0 | R16: =Tabla961021[[#This Row],[Kw Valle]]+Tabla961021[[#This Row],[Kwh Llano]]+Tabla961021[[#This Row],[Kwh Punta]]+Tabla961021[[#This Row],[Kwh P1]]+Tabla961021[[#This Row],[Kwh P2]]+Tabla961021[[#This Row],[Kwh P3]]+Tabla961021[[#This Row],[Kwh P4]]+Tabla961021[[#This Row],[Kwh P5]]+Tabla961021[[#This Row],[Kwh P6]] -> 6257.68632 | S16: 12225.12 | T16: 16371.30564 | U16: =Tabla961021[[#This Row],[Prod Solar]]-Tabla961021[[#This Row],[Exportado]] -> 5234.29468 | V16: 11137.01096 | W16: 0.3197237163 | X16: 3835.43 | Y16: 118.02 | Z16: =IF(X16=0,"No Disp",(Tabla961021[[#This Row],[Inversion]]-Tabla961021[[#This Row],[Ahorros(IBI)]])/X16) -> 3.598032033 | AA16: años | AB16: 5377.15 | AC16: 17245.55 | AD16: 24554.3 | AE16: 20691.1 | AF16: 43731.45 | AG16: 24136.65 | AH16: 62908.6 | AI16: 27582.2 | AJ16: 82085.75 | AK16: 31027.75
A17: 13 | B17: 593.13 | C17: 14700 | F17: =Tabla961021[[#This Row],[Legalizacion]]+Tabla961021[[#This Row],[ Instalacion]]+Tabla961021[[#This Row],[Coste Hardware]] -> 14700 | H17: 1973.38974 | I17: 1026.72498 | J17: 3170.88262 | L17: 0 | M17: 0 | N17: 0 | O17: 0 | P17: 0 | Q17: 0 | R17: =Tabla961021[[#This Row],[Kw Valle]]+Tabla961021[[#This Row],[Kwh Llano]]+Tabla961021[[#This Row],[Kwh Punta]]+Tabla961021[[#This Row],[Kwh P1]]+Tabla961021[[#This Row],[Kwh P2]]+Tabla961021[[#This Row],[Kwh P3]]+Tabla961021[[#This Row],[Kwh P4]]+Tabla961021[[#This Row],[Kwh P5]]+Tabla961021[[#This Row],[Kwh P6]] -> 6170.99734 | S17: 13243.88 | T17: 17735.58111 | U17: =Tabla961021[[#This Row],[Prod Solar]]-Tabla961021[[#This Row],[Exportado]] -> 5320.98366 | V17: 12414.59745 | W17: 0.300017441 | X17: 3931.41 | Y17: 95.98 | Z17: =IF(X17=0,"No Disp",(Tabla961021[[#This Row],[Inversion]]-Tabla961021[[#This Row],[Ahorros(IBI)]])/X17) -> 3.7391165 | AA17: años | AB17: 4957.05 | AC17: 17665.65 | AD17: 24614.1 | AE17: 20631.3 | AF17: 44271.15 | AG17: 23596.95 | AH17: 63928.2 | AI17: 26562.6 | AJ17: 83585.25 | AK17: 29528.25
A18: 14 | B18: 504.8 | C18: 15600 | F18: =Tabla961021[[#This Row],[Legalizacion]]+Tabla961021[[#This Row],[ Instalacion]]+Tabla961021[[#This Row],[Coste Hardware]] -> 15600 | H18: 1950.41188 | I18: 1003.72196 | J18: 3138.33002 | L18: 0 | M18: 0 | N18: 0 | O18: 0 | P18: 0 | Q18: 0 | R18: =Tabla961021[[#This Row],[Kw Valle]]+Tabla961021[[#This Row],[Kwh Llano]]+Tabla961021[[#This Row],[Kwh Punta]]+Tabla961021[[#This Row],[Kwh P1]]+Tabla961021[[#This Row],[Kwh P2]]+Tabla961021[[#This Row],[Kwh P3]]+Tabla961021[[#This Row],[Kwh P4]]+Tabla961021[[#This Row],[Kwh P5]]+Tabla961021[[#This Row],[Kwh P6]] -> 6092.46386 | S18: 14262.64 | T18: 19099.85658 | U18: =Tabla961021[[#This Row],[Prod Solar]]-Tabla961021[[#This Row],[Exportado]] -> 5399.51714 | V18: 13700.33944 | W18: 0.2826993552 | X18: 4019.74 | Y18: 88.33 | Z18: =IF(X18=0,"No Disp",(Tabla961021[[#This Row],[Inversion]]-Tabla961021[[#This Row],[Ahorros(IBI)]])/X18) -> 3.880848015 | AA18: años | AB18: 4498.7 | AC18: 18124 | AD18: 24597.4 | AE18: 20648 | AF18: 44696.1 | AG18: 23172 | AH18: 64794.8 | AI18: 25696 | AJ18: 84893.5 | AK18: 28220
A19: 15 | B19: 416.71 | C19: 16500 | F19: =Tabla961021[[#This Row],[Legalizacion]]+Tabla961021[[#This Row],[ Instalacion]]+Tabla961021[[#This Row],[Coste Hardware]] -> 16500 | H19: 1930.4601 | I19: 982.7253 | J19: 3110.4983 | L19: 0 | M19: 0 | N19: 0 | O19: 0 | P19: 0 | Q19: 0 | R19: =Tabla961021[[#This Row],[Kw Valle]]+Tabla961021[[#This Row],[Kwh Llano]]+Tabla961021[[#This Row],[Kwh Punta]]+Tabla961021[[#This Row],[Kwh P1]]+Tabla961021[[#This Row],[Kwh P2]]+Tabla961021[[#This Row],[Kwh P3]]+Tabla961021[[#This Row],[Kwh P4]]+Tabla961021[[#This Row],[Kwh P5]]+Tabla961021[[#This Row],[Kwh P6]] -> 6023.6837 | S19: 15281.4 | T19: 20464.13205 | U19: =Tabla961021[[#This Row],[Prod Solar]]-Tabla961021[[#This Row],[Exportado]] -> 5468.2973 | V19: 14995.83475 | W19: 0.2672137419 | X19: 4107.83 | Y19: 88.09 | Z19: =IF(X19=0,"No Disp",(Tabla961021[[#This Row],[Inversion]]-Tabla961021[[#This Row],[Ahorros(IBI)]])/X19) -> 4.01671929 | AA19: años | AB19: 4039.15 | AC19: 18583.55 | AD19: 24578.3 | AE19: 20667.1 | AF19: 45117.45 | AG19: 22750.65 | AH19: 65656.6 | AI19: 24834.2 | AJ19: 86195.75 | AK19: 26917.75
A20: 16 | B20: 371.73 | C20: =C19+900 -> 17400 | F20: =Tabla961021[[#This Row],[Legalizacion]]+Tabla961021[[#This Row],[ Instalacion]]+Tabla961021[[#This Row],[Coste Hardware]] -> 17400 | H20: 1912.86728 | I20: 963.17348 | J20: 3086.43204 | L20: 0 | M20: 0 | N20: 0 | O20: 0 | P20: 0 | Q20: 0 | R20: =Tabla961021[[#This Row],[Kw Valle]]+Tabla961021[[#This Row],[Kwh Llano]]+Tabla961021[[#This Row],[Kwh Punta]]+Tabla961021[[#This Row],[Kwh P1]]+Tabla961021[[#This Row],[Kwh P2]]+Tabla961021[[#This Row],[Kwh P3]]+Tabla961021[[#This Row],[Kwh P4]]+Tabla961021[[#This Row],[Kwh P5]]+Tabla961021[[#This Row],[Kwh P6]] -> 5962.4728 | S20: 16300.16 | T20: 21828.40752 | U20: =Tabla961021[[#This Row],[Prod Solar]]-Tabla961021[[#This Row],[Exportado]] -> 5529.5082 | V20: 16298.89932 | W20: 0.2533170684 | X20: 4152.81 | Y20: 44.98 | Z20: =IF(X20=0,"No Disp",(Tabla961021[[#This Row],[Inversion]]-Tabla961021[[#This Row],[Ahorros(IBI)]])/X20) -> 4.189934045 | AA20: años | AB20: 3364.05 | AC20: 19258.65 | AD20: 24128.1 | AE20: 21117.3 | AF20: 44892.15 | AG20: 22975.95 | AH20: 65656.2 | AI20: 24834.6 | AJ20: 86420.25 | AK20: 26693.25
A21: 17 | B21: 333.58 | C21: =C20+900 -> 18300 | F21: =Tabla961021[[#This Row],[Legalizacion]]+Tabla961021[[#This Row],[ Instalacion]]+Tabla961021[[#This Row],[Coste Hardware]] -> 18300 | H21: 1896.66031 | I21: 945.35288 | J21: 3064.7548 | L21: 0 | M21: 0 | N21: 0 | O21: 0 | P21: 0 | Q21: 0 | R21: =Tabla961021[[#This Row],[Kw Valle]]+Tabla961021[[#This Row],[Kwh Llano]]+Tabla961021[[#This Row],[Kwh Punta]]+Tabla961021[[#This Row],[Kwh P1]]+Tabla961021[[#This Row],[Kwh P2]]+Tabla961021[[#This Row],[Kwh P3]]+Tabla961021[[#This Row],[Kwh P4]]+Tabla961021[[#This Row],[Kwh P5]]+Tabla961021[[#This Row],[Kwh P6]] -> 5906.76799 | S21: 17318.92 | T21: 23192.68299 | U21: =Tabla961021[[#This Row],[Prod Solar]]-Tabla961021[[#This Row],[Exportado]] -> 5585.21301 | V21: 17607.46998 | W21: 0.2408178912 | X21: 4190.96 | Y21: 38.15 | Z21: =IF(X21=0,"No Disp",(Tabla961021[[#This Row],[Inversion]]-Tabla961021[[#This Row],[Ahorros(IBI)]])/X21) -> 4.366541318 | AA21: años | AB21: 2654.8 | AC21: 19967.9 | AD21: 23609.6 | AE21: 21635.8 | AF21: 44564.4 | AG21: 23303.7 | AH21: 65519.2 | AI21: 24971.6 | AJ21: 86474 | AK21: 26639.5
A22: 18 | B22: 295.51 | C22: 19200 | F22: =Tabla961021[[#This Row],[Legalizacion]]+Tabla961021[[#This Row],[ Instalacion]]+Tabla961021[[#This Row],[Coste Hardware]] -> 19200 | H22: 1882.46626 | I22: 928.57476 | J22: 3044.68624 | L22: 0 | M22: 0 | N22: 0 | O22: 0 | P22: 0 | Q22: 0 | R22: =Tabla961021[[#This Row],[Kw Valle]]+Tabla961021[[#This Row],[Kwh Llano]]+Tabla961021[[#This Row],[Kwh Punta]]+Tabla961021[[#This Row],[Kwh P1]]+Tabla961021[[#This Row],[Kwh P2]]+Tabla961021[[#This Row],[Kwh P3]]+Tabla961021[[#This Row],[Kwh P4]]+Tabla961021[[#This Row],[Kwh P5]]+Tabla961021[[#This Row],[Kwh P6]] -> 5855.72726 | S22: 18337.68 | T22: 24556.95846 | U22: =Tabla961021[[#This Row],[Prod Solar]]-Tabla961021[[#This Row],[Exportado]] -> 5636.25374 | V22: 18920.70472 | W22: 0.2295175825 | X22: 4229.03 | Y22: 38.07 | Z22: =IF(X22=0,"No Disp",(Tabla961021[[#This Row],[Inversion]]-Tabla961021[[#This Row],[Ahorros(IBI)]])/X22) -> 4.540048191 | AA22: años | AB22: 1945.15 | AC22: 20677.55 | AD22: 23090.3 | AE22: 22155.1 | AF22: 44235.45 | AG22: 23632.65 | AH22: 65380.6 | AI22: 25110.2 | AJ22: 86525.75 | AK22: 26587.75
A23: 19 | B23: 268.26 | C23: 20100 | F23: =Tabla961021[[#This Row],[Legalizacion]]+Tabla961021[[#This Row],[ Instalacion]]+Tabla961021[[#This Row],[Coste Hardware]] -> 20100 | H23: 1869.41018 | I23: 913.38882 | J23: 3026.21954 | L23: 0 | M23: 0 | N23: 0 | O23: 0 | P23: 0 | Q23: 0 | R23: =Tabla961021[[#This Row],[Kw Valle]]+Tabla961021[[#This Row],[Kwh Llano]]+Tabla961021[[#This Row],[Kwh Punta]]+Tabla961021[[#This Row],[Kwh P1]]+Tabla961021[[#This Row],[Kwh P2]]+Tabla961021[[#This Row],[Kwh P3]]+Tabla961021[[#This Row],[Kwh P4]]+Tabla961021[[#This Row],[Kwh P5]]+Tabla961021[[#This Row],[Kwh P6]] -> 5809.01854 | S23: 19356.44 | T23: 25921.23393 | U23: =Tabla961021[[#This Row],[Prod Solar]]-Tabla961021[[#This Row],[Exportado]] -> 5682.96246 | V23: 20238.27147 | W23: 0.2192396579 | X23: 4256.28 | Y23: 27.25 | Z23: =IF(X23=0,"No Disp",(Tabla961021[[#This Row],[Inversion]]-Tabla961021[[#This Row],[Ahorros(IBI)]])/X23) -> 4.722433674 | AA23: años | AB23: 1181.4 | AC23: 21441.3 | AD23: 22462.8 | AE23: 22782.6 | AF23: 43744.2 | AG23: 24123.9 | AH23: 65025.6 | AI23: 25465.2 | AJ23: 86307 | AK23: 26806.5
A24: 20 | B24: 260.07 | C24: 21000 | F24: =Tabla961021[[#This Row],[Legalizacion]]+Tabla961021[[#This Row],[ Instalacion]]+Tabla961021[[#This Row],[Coste Hardware]] -> 21000 | H24: 1857.437 | I24: 899.2226 | J24: 3009.0084 | L24: 0 | M24: 0 | N24: 0 | O24: 0 | P24: 0 | Q24: 0 | R24: =Tabla961021[[#This Row],[Kw Valle]]+Tabla961021[[#This Row],[Kwh Llano]]+Tabla961021[[#This Row],[Kwh Punta]]+Tabla961021[[#This Row],[Kwh P1]]+Tabla961021[[#This Row],[Kwh P2]]+Tabla961021[[#This Row],[Kwh P3]]+Tabla961021[[#This Row],[Kwh P4]]+Tabla961021[[#This Row],[Kwh P5]]+Tabla961021[[#This Row],[Kwh P6]] -> 5765.668 | S24: 20375.2 | T24: 27285.5094 | U24: =Tabla961021[[#This Row],[Prod Solar]]-Tabla961021[[#This Row],[Exportado]] -> 5726.313 | V24: 21559.1964 | W24: 0.2098664502 | X24: 4264.47 | Y24: 8.19 | Z24: =IF(X24=0,"No Disp",(Tabla961021[[#This Row],[Inversion]]-Tabla961021[[#This Row],[Ahorros(IBI)]])/X24) -> 4.924410302 | AA24: años | AB24: 322.35 | AC24: 22300.35 | AD24: 21644.7 | AE24: 23600.7 | AF24: 42967.05 | AG24: 24901.05 | AH24: 64289.4 | AI24: 26201.4 | AJ24: 85611.75 | AK24: 27501.75
A25: 21 | B25: 260.07 | C25: 21900 | F25: =Tabla961021[[#This Row],[Legalizacion]]+Tabla961021[[#This Row],[ Instalacion]]+Tabla961021[[#This Row],[Coste Hardware]] -> 21900 | H25: 1846.49742 | I25: 886.0417 | J25: 2992.84636 | L25: 0 | M25: 0 | N25: 0 | O25: 0 | P25: 0 | Q25: 0 | R25: =Tabla961021[[#This Row],[Kw Valle]]+Tabla961021[[#This Row],[Kwh Llano]]+Tabla961021[[#This Row],[Kwh Punta]]+Tabla961021[[#This Row],[Kwh P1]]+Tabla961021[[#This Row],[Kwh P2]]+Tabla961021[[#This Row],[Kwh P3]]+Tabla961021[[#This Row],[Kwh P4]]+Tabla961021[[#This Row],[Kwh P5]]+Tabla961021[[#This Row],[Kwh P6]] -> 5725.38548 | S25: 21393.96 | T25: 28649.78487 | U25: =Tabla961021[[#This Row],[Prod Solar]]-Tabla961021[[#This Row],[Exportado]] -> 5766.59552 | V25: 22883.18935 | W25: 0.2012788419 | X25: 4264.47 | Y25: 0 | Z25: =IF(X25=0,"No Disp",(Tabla961021[[#This Row],[Inversion]]-Tabla961021[[#This Row],[Ahorros(IBI)]])/X25) -> 5.135456458 | AA25: años | AB25: -577.65 | AC25: 23200.35 | AD25: 20744.7 | AE25: 24500.7 | AF25: 42067.05 | AG25: 25801.05 | AH25: 63389.4 | AI25: 27101.4 | AJ25: 84711.75 | AK25: 28401.75
A26: 22 | B26: 260.07 | C26: 22800 | F26: =Tabla961021[[#This Row],[Legalizacion]]+Tabla961021[[#This Row],[ Instalacion]]+Tabla961021[[#This Row],[Coste Hardware]] -> 22800 | H26: 1836.81236 | I26: 874.18994 | J26: 2977.95936 | L26: 0 | M26: 0 | N26: 0 | O26: 0 | P26: 0 | Q26: 0 | R26: =Tabla961021[[#This Row],[Kw Valle]]+Tabla961021[[#This Row],[Kwh Llano]]+Tabla961021[[#This Row],[Kwh Punta]]+Tabla961021[[#This Row],[Kwh P1]]+Tabla961021[[#This Row],[Kwh P2]]+Tabla961021[[#This Row],[Kwh P3]]+Tabla961021[[#This Row],[Kwh P4]]+Tabla961021[[#This Row],[Kwh P5]]+Tabla961021[[#This Row],[Kwh P6]] -> 5688.96166 | S26: 22412.72 | T26: 30014.06034 | U26: =Tabla961021[[#This Row],[Prod Solar]]-Tabla961021[[#This Row],[Exportado]] -> 5803.01934 | V26: 24211.041 | W26: 0.1933433622 | X26: 4264.47 | Y26: 0 | Z26: =IF(X26=0,"No Disp",(Tabla961021[[#This Row],[Inversion]]-Tabla961021[[#This Row],[Ahorros(IBI)]])/X26) -> 5.346502613 | AA26: años | AB26: -1477.65 | AC26: 24100.35 | AD26: 19844.7 | AE26: 25400.7 | AF26: 41167.05 | AG26: 26701.05 | AH26: 62489.4 | AI26: 28001.4 | AJ26: 83811.75 | AK26: 29301.75
A27: 23 | B27: 260.07 | C27: 23700 | F27: =Tabla961021[[#This Row],[Legalizacion]]+Tabla961021[[#This Row],[ Instalacion]]+Tabla961021[[#This Row],[Coste Hardware]] -> 23700 | H27: 1827.63093 | I27: 863.53692 | J27: 2964.13564 | L27: 0 | M27: 0 | N27: 0 | O27: 0 | P27: 0 | Q27: 0 | R27: =Tabla961021[[#This Row],[Kw Valle]]+Tabla961021[[#This Row],[Kwh Llano]]+Tabla961021[[#This Row],[Kwh Punta]]+Tabla961021[[#This Row],[Kwh P1]]+Tabla961021[[#This Row],[Kwh P2]]+Tabla961021[[#This Row],[Kwh P3]]+Tabla961021[[#This Row],[Kwh P4]]+Tabla961021[[#This Row],[Kwh P5]]+Tabla961021[[#This Row],[Kwh P6]] -> 5655.30349 | S27: 23431.48 | T27: 31378.33581 | U27: =Tabla961021[[#This Row],[Prod Solar]]-Tabla961021[[#This Row],[Exportado]] -> 5836.67751 | V27: 25541.6583 | W27: 0.1860097854 | X27: 4264.47 | Y27: 0 | Z27: =IF(X27=0,"No Disp",(Tabla961021[[#This Row],[Inversion]]-Tabla961021[[#This Row],[Ahorros(IBI)]])/X27) -> 5.557548769 | AA27: años | AB27: -2377.65 | AC27: 25000.35 | AD27: 18944.7 | AE27: 26300.7 | AF27: 40267.05 | AG27: 27601.05 | AH27: 61589.4 | AI27: 28901.4 | AJ27: 82911.75 | AK27: 30201.75
A28: 24 | B28: 260.07 | C28: 24600 | F28: =Tabla961021[[#This Row],[Legalizacion]]+Tabla961021[[#This Row],[ Instalacion]]+Tabla961021[[#This Row],[Coste Hardware]] -> 24600 | H28: 1819.01716 | I28: 853.85364 | J28: 2951.55172 | L28: 0 | M28: 0 | N28: 0 | O28: 0 | P28: 0 | Q28: 0 | R28: =Tabla961021[[#This Row],[Kw Valle]]+Tabla961021[[#This Row],[Kwh Llano]]+Tabla961021[[#This Row],[Kwh Punta]]+Tabla961021[[#This Row],[Kwh P1]]+Tabla961021[[#This Row],[Kwh P2]]+Tabla961021[[#This Row],[Kwh P3]]+Tabla961021[[#This Row],[Kwh P4]]+Tabla961021[[#This Row],[Kwh P5]]+Tabla961021[[#This Row],[Kwh P6]] -> 5624.42252 | S28: 24450.24 | T28: 32742.61128 | U28: =Tabla961021[[#This Row],[Prod Solar]]-Tabla961021[[#This Row],[Exportado]] -> 5867.55848 | V28: 26875.0528 | W28: 0.1792025208 | X28: 4264.47 | Y28: 0 | Z28: =IF(X28=0,"No Disp",(Tabla961021[[#This Row],[Inversion]]-Tabla961021[[#This Row],[Ahorros(IBI)]])/X28) -> 5.768594925 | AA28: años | AB28: -3277.65 | AC28: 25900.35 | AD28: 18044.7 | AE28: 27200.7 | AF28: 39367.05 | AG28: 28501.05 | AH28: 60689.4 | AI28: 29801.4 | AJ28: 82011.75 | AK28: 31101.75
A29: 25 | B29: 260.07 | C29: 25500 | F29: =Tabla961021[[#This Row],[Legalizacion]]+Tabla961021[[#This Row],[ Instalacion]]+Tabla961021[[#This Row],[Coste Hardware]] -> 25500 | H29: 1810.99925 | I29: 845.004 | J29: 2940.045 | L29: 0 | M29: 0 | N29: 0 | O29: 0 | P29: 0 | Q29: 0 | R29: =Tabla961021[[#This Row],[Kw Valle]]+Tabla961021[[#This Row],[Kwh Llano]]+Tabla961021[[#This Row],[Kwh Punta]]+Tabla961021[[#This Row],[Kwh P1]]+Tabla961021[[#This Row],[Kwh P2]]+Tabla961021[[#This Row],[Kwh P3]]+Tabla961021[[#This Row],[Kwh P4]]+Tabla961021[[#This Row],[Kwh P5]]+Tabla961021[[#This Row],[Kwh P6]] -> 5596.04825 | S29: 25469 | T29: 34106.88675 | U29: =Tabla961021[[#This Row],[Prod Solar]]-Tabla961021[[#This Row],[Exportado]] -> 5895.93275 | V29: 28210.954 | W29: 0.172866342 | X29: 4264.47 | Y29: 0 | Z29: =IF(X29=0,"No Disp",(Tabla961021[[#This Row],[Inversion]]-Tabla961021[[#This Row],[Ahorros(IBI)]])/X29) -> 5.979641081 | AA29: años | AB29: -4177.65 | AC29: 26800.35 | AD29: 17144.7 | AE29: 28100.7 | AF29: 38467.05 | AG29: 29401.05 | AH29: 59789.4 | AI29: 30701.4 | AJ29: 81111.75 | AK29: 32001.75
A30: 26 | B30: 260.07 | C30: 26400 | F30: =Tabla961021[[#This Row],[Legalizacion]]+Tabla961021[[#This Row],[ Instalacion]]+Tabla961021[[#This Row],[Coste Hardware]] -> 26400 | H30: 1803.70106 | I30: 836.69672 | J30: 2929.31344 | L30: 0 | M30: 0 | N30: 0 | O30: 0 | P30: 0 | Q30: 0 | R30: =Tabla961021[[#This Row],[Kw Valle]]+Tabla961021[[#This Row],[Kwh Llano]]+Tabla961021[[#This Row],[Kwh Punta]]+Tabla961021[[#This Row],[Kwh P1]]+Tabla961021[[#This Row],[Kwh P2]]+Tabla961021[[#This Row],[Kwh P3]]+Tabla961021[[#This Row],[Kwh P4]]+Tabla961021[[#This Row],[Kwh P5]]+Tabla961021[[#This Row],[Kwh P6]] -> 5569.71122 | S30: 26487.76 | T30: 35471.16222 | U30: =Tabla961021[[#This Row],[Prod Solar]]-Tabla961021[[#This Row],[Exportado]] -> 5922.26978 | V30: 29548.89244 | W30: 0.1669601279 | X30: 4264.47 | Y30: 0 | Z30: =IF(X30=0,"No Disp",(Tabla961021[[#This Row],[Inversion]]-Tabla961021[[#This Row],[Ahorros(IBI)]])/X30) -> 6.190687237 | AA30: años | AB30: -5077.65 | AC30: 27700.35 | AD30: 16244.7 | AE30: 29000.7 | AF30: 37567.05 | AG30: 30301.05 | AH30: 58889.4 | AI30: 31601.4 | AJ30: 80211.75 | AK30: 32901.75
A31: 27 | B31: 260.07 | C31: 27300 | F31: =Tabla961021[[#This Row],[Legalizacion]]+Tabla961021[[#This Row],[ Instalacion]]+Tabla961021[[#This Row],[Coste Hardware]] -> 27300 | H31: 1796.99882 | I31: 829.02959 | J31: 2919.61853 | L31: 0 | M31: 0 | N31: 0 | O31: 0 | P31: 0 | Q31: 0 | R31: =Tabla961021[[#This Row],[Kw Valle]]+Tabla961021[[#This Row],[Kwh Llano]]+Tabla961021[[#This Row],[Kwh Punta]]+Tabla961021[[#This Row],[Kwh P1]]+Tabla961021[[#This Row],[Kwh P2]]+Tabla961021[[#This Row],[Kwh P3]]+Tabla961021[[#This Row],[Kwh P4]]+Tabla961021[[#This Row],[Kwh P5]]+Tabla961021[[#This Row],[Kwh P6]] -> 5545.64694 | S31: 27506.52 | T31: 36835.43769 | U31: =Tabla961021[[#This Row],[Prod Solar]]-Tabla961021[[#This Row],[Exportado]] -> 5946.33406 | V31: 30889.10363 | W31: 0.161429711 | X31: 4264.47 | Y31: 0 | Z31: =IF(X31=0,"No Disp",(Tabla961021[[#This Row],[Inversion]]-Tabla961021[[#This Row],[Ahorros(IBI)]])/X31) -> 6.401733392 | AA31: años | AB31: -5977.65 | AC31: 28600.35 | AD31: 15344.7 | AE31: 29900.7 | AF31: 36667.05 | AG31: 31201.05 | AH31: 57989.4 | AI31: 32501.4 | AJ31: 79311.75 | AK31: 33801.75
A32: 28 | B32: 260.07 | C32: 28200 | F32: =Tabla961021[[#This Row],[Legalizacion]]+Tabla961021[[#This Row],[ Instalacion]]+Tabla961021[[#This Row],[Coste Hardware]] -> 28200 | H32: 1791.05172 | I32: 821.95444 | J32: 2910.76604 | L32: 0 | M32: 0 | N32: 0 | O32: 0 | P32: 0 | Q32: 0 | R32: =Tabla961021[[#This Row],[Kw Valle]]+Tabla961021[[#This Row],[Kwh Llano]]+Tabla961021[[#This Row],[Kwh Punta]]+Tabla961021[[#This Row],[Kwh P1]]+Tabla961021[[#This Row],[Kwh P2]]+Tabla961021[[#This Row],[Kwh P3]]+Tabla961021[[#This Row],[Kwh P4]]+Tabla961021[[#This Row],[Kwh P5]]+Tabla961021[[#This Row],[Kwh P6]] -> 5523.7722 | S32: 28525.28 | T32: 38199.71316 | U32: =Tabla961021[[#This Row],[Prod Solar]]-Tabla961021[[#This Row],[Exportado]] -> 5968.2088 | V32: 32231.50436 | W32: 0.1562370056 | X32: 4264.47 | Y32: 0 | Z32: =IF(X32=0,"No Disp",(Tabla961021[[#This Row],[Inversion]]-Tabla961021[[#This Row],[Ahorros(IBI)]])/X32) -> 6.612779548 | AA32: años | AB32: -6877.65 | AC32: 29500.35 | AD32: 14444.7 | AE32: 30800.7 | AF32: 35767.05 | AG32: 32101.05 | AH32: 57089.4 | AI32: 33401.4 | AJ32: 78411.75 | AK32: 34701.75
A33: 29 | B33: 260.07 | C33: 29100 | F33: =Tabla961021[[#This Row],[Legalizacion]]+Tabla961021[[#This Row],[ Instalacion]]+Tabla961021[[#This Row],[Coste Hardware]] -> 29100 | H33: 1785.64357 | I33: 815.29435 | J33: 2902.49883 | L33: 0 | M33: 0 | N33: 0 | O33: 0 | P33: 0 | Q33: 0 | R33: =Tabla961021[[#This Row],[Kw Valle]]+Tabla961021[[#This Row],[Kwh Llano]]+Tabla961021[[#This Row],[Kwh Punta]]+Tabla961021[[#This Row],[Kwh P1]]+Tabla961021[[#This Row],[Kwh P2]]+Tabla961021[[#This Row],[Kwh P3]]+Tabla961021[[#This Row],[Kwh P4]]+Tabla961021[[#This Row],[Kwh P5]]+Tabla961021[[#This Row],[Kwh P6]] -> 5503.43675 | S33: 29544.04 | T33: 39563.98863 | U33: =Tabla961021[[#This Row],[Prod Solar]]-Tabla961021[[#This Row],[Exportado]] -> 5988.54425 | V33: 33575.44438 | W33: 0.1513635116 | X33: 4264.47 | Y33: 0 | Z33: =IF(X33=0,"No Disp",(Tabla961021[[#This Row],[Inversion]]-Tabla961021[[#This Row],[Ahorros(IBI)]])/X33) -> 6.823825704 | AA33: años | AB33: -7777.65 | AC33: 30400.35 | AD33: 13544.7 | AE33: 31700.7 | AF33: 34867.05 | AG33: 33001.05 | AH33: 56189.4 | AI33: 34301.4 | AJ33: 77511.75 | AK33: 35601.75
A34: 30 | B34: 260.07 | C34: 30000 | F34: =Tabla961021[[#This Row],[Legalizacion]]+Tabla961021[[#This Row],[ Instalacion]]+Tabla961021[[#This Row],[Coste Hardware]] -> 30000 | H34: 1780.4468 | I34: 809.1027 | J34: 2895.007 | L34: 0 | M34: 0 | N34: 0 | O34: 0 | P34: 0 | Q34: 0 | R34: =Tabla961021[[#This Row],[Kw Valle]]+Tabla961021[[#This Row],[Kwh Llano]]+Tabla961021[[#This Row],[Kwh Punta]]+Tabla961021[[#This Row],[Kwh P1]]+Tabla961021[[#This Row],[Kwh P2]]+Tabla961021[[#This Row],[Kwh P3]]+Tabla961021[[#This Row],[Kwh P4]]+Tabla961021[[#This Row],[Kwh P5]]+Tabla961021[[#This Row],[Kwh P6]] -> 5484.5565 | S34: 30562.8 | T34: 40928.2641 | U34: =Tabla961021[[#This Row],[Prod Solar]]-Tabla961021[[#This Row],[Exportado]] -> 6007.4245 | V34: 34920.8396 | W34: 0.1467793622 | X34: 4264.47 | Y34: 0 | Z34: =IF(X34=0,"No Disp",(Tabla961021[[#This Row],[Inversion]]-Tabla961021[[#This Row],[Ahorros(IBI)]])/X34) -> 7.03487186 | AA34: años | AB34: -8677.65 | AC34: 31300.35 | AD34: 12644.7 | AE34: 32600.7 | AF34: 33967.05 | AG34: 33901.05 | AH34: 55289.4 | AI34: 35201.4 | AJ34: 76611.75 | AK34: 36501.75
A35: 31 | C35: 30900 | F35: =Tabla961021[[#This Row],[Legalizacion]]+Tabla961021[[#This Row],[ Instalacion]]+Tabla961021[[#This Row],[Coste Hardware]] -> 30900 | R35: =Tabla961021[[#This Row],[Kw Valle]]+Tabla961021[[#This Row],[Kwh Llano]]+Tabla961021[[#This Row],[Kwh Punta]]+Tabla961021[[#This Row],[Kwh P1]]+Tabla961021[[#This Row],[Kwh P2]]+Tabla961021[[#This Row],[Kwh P3]]+Tabla961021[[#This Row],[Kwh P4]]+Tabla961021[[#This Row],[Kwh P5]]+Tabla961021[[#This Row],[Kwh P6]] -> 0 | U35: =Tabla961021[[#This Row],[Prod Solar]]-Tabla961021[[#This Row],[Exportado]] -> 0 | X35: 0 | Y35: 0 | Z35: =IF(X35=0,"No Disp",(Tabla961021[[#This Row],[Inversion]]-Tabla961021[[#This Row],[Ahorros(IBI)]])/X35) -> No Disp | AA35: años | AB35: n/a | AC35: n/a | AD35: n/a | AE35: n/a | AF35: n/a | AG35: n/a | AH35: n/a | AI35: n/a | AJ35: n/a | AK35: n/a
A36: 32 | C36: 31800 | F36: =Tabla961021[[#This Row],[Legalizacion]]+Tabla961021[[#This Row],[ Instalacion]]+Tabla961021[[#This Row],[Coste Hardware]] -> 31800 | R36: =Tabla961021[[#This Row],[Kw Valle]]+Tabla961021[[#This Row],[Kwh Llano]]+Tabla961021[[#This Row],[Kwh Punta]]+Tabla961021[[#This Row],[Kwh P1]]+Tabla961021[[#This Row],[Kwh P2]]+Tabla961021[[#This Row],[Kwh P3]]+Tabla961021[[#This Row],[Kwh P4]]+Tabla961021[[#This Row],[Kwh P5]]+Tabla961021[[#This Row],[Kwh P6]] -> 0 | U36: =Tabla961021[[#This Row],[Prod Solar]]-Tabla961021[[#This Row],[Exportado]] -> 0 | X36: 0 | Y36: 0 | Z36: =IF(X36=0,"No Disp",(Tabla961021[[#This Row],[Inversion]]-Tabla961021[[#This Row],[Ahorros(IBI)]])/X36) -> No Disp | AA36: años | AB36: n/a | AC36: n/a | AD36: n/a | AE36: n/a | AF36: n/a | AG36: n/a | AH36: n/a | AI36: n/a | AJ36: n/a | AK36: n/a
A37: 33 | C37: 32700 | F37: =Tabla961021[[#This Row],[Legalizacion]]+Tabla961021[[#This Row],[ Instalacion]]+Tabla961021[[#This Row],[Coste Hardware]] -> 32700 | R37: =Tabla961021[[#This Row],[Kw Valle]]+Tabla961021[[#This Row],[Kwh Llano]]+Tabla961021[[#This Row],[Kwh Punta]]+Tabla961021[[#This Row],[Kwh P1]]+Tabla961021[[#This Row],[Kwh P2]]+Tabla961021[[#This Row],[Kwh P3]]+Tabla961021[[#This Row],[Kwh P4]]+Tabla961021[[#This Row],[Kwh P5]]+Tabla961021[[#This Row],[Kwh P6]] -> 0 | U37: =Tabla961021[[#This Row],[Prod Solar]]-Tabla961021[[#This Row],[Exportado]] -> 0 | X37: 0 | Y37: 0 | Z37: =IF(X37=0,"No Disp",(Tabla961021[[#This Row],[Inversion]]-Tabla961021[[#This Row],[Ahorros(IBI)]])/X37) -> No Disp | AA37: años | AB37: n/a | AC37: n/a | AD37: n/a | AE37: n/a | AF37: n/a | AG37: n/a | AH37: n/a | AI37: n/a | AJ37: n/a | AK37: n/a
A38: 34 | C38: 33600 | F38: =Tabla961021[[#This Row],[Legalizacion]]+Tabla961021[[#This Row],[ Instalacion]]+Tabla961021[[#This Row],[Coste Hardware]] -> 33600 | R38: =Tabla961021[[#This Row],[Kw Valle]]+Tabla961021[[#This Row],[Kwh Llano]]+Tabla961021[[#This Row],[Kwh Punta]]+Tabla961021[[#This Row],[Kwh P1]]+Tabla961021[[#This Row],[Kwh P2]]+Tabla961021[[#This Row],[Kwh P3]]+Tabla961021[[#This Row],[Kwh P4]]+Tabla961021[[#This Row],[Kwh P5]]+Tabla961021[[#This Row],[Kwh P6]] -> 0 | U38: =Tabla961021[[#This Row],[Prod Solar]]-Tabla961021[[#This Row],[Exportado]] -> 0 | X38: 0 | Y38: 0 | Z38: =IF(X38=0,"No Disp",(Tabla961021[[#This Row],[Inversion]]-Tabla961021[[#This Row],[Ahorros(IBI)]])/X38) -> No Disp | AA38: años | AB38: n/a | AC38: n/a | AD38: n/a | AE38: n/a | AF38: n/a | AG38: n/a | AH38: n/a | AI38: n/a | AJ38: n/a | AK38: n/a
A39: 35 | C39: 34500 | F39: =Tabla961021[[#This Row],[Legalizacion]]+Tabla961021[[#This Row],[ Instalacion]]+Tabla961021[[#This Row],[Coste Hardware]] -> 34500 | R39: =Tabla961021[[#This Row],[Kw Valle]]+Tabla961021[[#This Row],[Kwh Llano]]+Tabla961021[[#This Row],[Kwh Punta]]+Tabla961021[[#This Row],[Kwh P1]]+Tabla961021[[#This Row],[Kwh P2]]+Tabla961021[[#This Row],[Kwh P3]]+Tabla961021[[#This Row],[Kwh P4]]+Tabla961021[[#This Row],[Kwh P5]]+Tabla961021[[#This Row],[Kwh P6]] -> 0 | U39: =Tabla961021[[#This Row],[Prod Solar]]-Tabla961021[[#This Row],[Exportado]] -> 0 | X39: 0 | Y39: 0 | Z39: =IF(X39=0,"No Disp",(Tabla961021[[#This Row],[Inversion]]-Tabla961021[[#This Row],[Ahorros(IBI)]])/X39) -> No Disp | AA39: años | AB39: n/a | AC39: n/a | AD39: n/a | AE39: n/a | AF39: n/a | AG39: n/a | AH39: n/a | AI39: n/a | AJ39: n/a | AK39: n/a
A40: 36 | C40: 35400 | F40: =Tabla961021[[#This Row],[Legalizacion]]+Tabla961021[[#This Row],[ Instalacion]]+Tabla961021[[#This Row],[Coste Hardware]] -> 35400 | R40: =Tabla961021[[#This Row],[Kw Valle]]+Tabla961021[[#This Row],[Kwh Llano]]+Tabla961021[[#This Row],[Kwh Punta]]+Tabla961021[[#This Row],[Kwh P1]]+Tabla961021[[#This Row],[Kwh P2]]+Tabla961021[[#This Row],[Kwh P3]]+Tabla961021[[#This Row],[Kwh P4]]+Tabla961021[[#This Row],[Kwh P5]]+Tabla961021[[#This Row],[Kwh P6]] -> 0 | U40: =Tabla961021[[#This Row],[Prod Solar]]-Tabla961021[[#This Row],[Exportado]] -> 0 | X40: 0 | Y40: 0 | Z40: =IF(X40=0,"No Disp",(Tabla961021[[#This Row],[Inversion]]-Tabla961021[[#This Row],[Ahorros(IBI)]])/X40) -> No Disp | AA40: años | AB40: n/a | AC40: n/a | AD40: n/a | AE40: n/a | AF40: n/a | AG40: n/a | AH40: n/a | AI40: n/a | AJ40: n/a | AK40: n/a
A41: 37 | C41: 36300 | F41: =Tabla961021[[#This Row],[Legalizacion]]+Tabla961021[[#This Row],[ Instalacion]]+Tabla961021[[#This Row],[Coste Hardware]] -> 36300 | R41: =Tabla961021[[#This Row],[Kw Valle]]+Tabla961021[[#This Row],[Kwh Llano]]+Tabla961021[[#This Row],[Kwh Punta]]+Tabla961021[[#This Row],[Kwh P1]]+Tabla961021[[#This Row],[Kwh P2]]+Tabla961021[[#This Row],[Kwh P3]]+Tabla961021[[#This Row],[Kwh P4]]+Tabla961021[[#This Row],[Kwh P5]]+Tabla961021[[#This Row],[Kwh P6]] -> 0 | U41: =Tabla961021[[#This Row],[Prod Solar]]-Tabla961021[[#This Row],[Exportado]] -> 0 | X41: 0 | Y41: 0 | Z41: =IF(X41=0,"No Disp",(Tabla961021[[#This Row],[Inversion]]-Tabla961021[[#This Row],[Ahorros(IBI)]])/X41) -> No Disp | AA41: años | AB41: n/a | AC41: n/a | AD41: n/a | AE41: n/a | AF41: n/a | AG41: n/a | AH41: n/a | AI41: n/a | AJ41: n/a | AK41: n/a
A42: 38 | C42: 37200 | F42: =Tabla961021[[#This Row],[Legalizacion]]+Tabla961021[[#This Row],[ Instalacion]]+Tabla961021[[#This Row],[Coste Hardware]] -> 37200 | R42: =Tabla961021[[#This Row],[Kw Valle]]+Tabla961021[[#This Row],[Kwh Llano]]+Tabla961021[[#This Row],[Kwh Punta]]+Tabla961021[[#This Row],[Kwh P1]]+Tabla961021[[#This Row],[Kwh P2]]+Tabla961021[[#This Row],[Kwh P3]]+Tabla961021[[#This Row],[Kwh P4]]+Tabla961021[[#This Row],[Kwh P5]]+Tabla961021[[#This Row],[Kwh P6]] -> 0 | U42: =Tabla961021[[#This Row],[Prod Solar]]-Tabla961021[[#This Row],[Exportado]] -> 0 | X42: 0 | Y42: 0 | Z42: =IF(X42=0,"No Disp",(Tabla961021[[#This Row],[Inversion]]-Tabla961021[[#This Row],[Ahorros(IBI)]])/X42) -> No Disp | AA42: años | AB42: n/a | AC42: n/a | AD42: n/a | AE42: n/a | AF42: n/a | AG42: n/a | AH42: n/a | AI42: n/a | AJ42: n/a | AK42: n/a
A43: 39 | C43: 38100 | F43: =Tabla961021[[#This Row],[Legalizacion]]+Tabla961021[[#This Row],[ Instalacion]]+Tabla961021[[#This Row],[Coste Hardware]] -> 38100 | R43: =Tabla961021[[#This Row],[Kw Valle]]+Tabla961021[[#This Row],[Kwh Llano]]+Tabla961021[[#This Row],[Kwh Punta]]+Tabla961021[[#This Row],[Kwh P1]]+Tabla961021[[#This Row],[Kwh P2]]+Tabla961021[[#This Row],[Kwh P3]]+Tabla961021[[#This Row],[Kwh P4]]+Tabla961021[[#This Row],[Kwh P5]]+Tabla961021[[#This Row],[Kwh P6]] -> 0 | U43: =Tabla961021[[#This Row],[Prod Solar]]-Tabla961021[[#This Row],[Exportado]] -> 0 | X43: 0 | Y43: 0 | Z43: =IF(X43=0,"No Disp",(Tabla961021[[#This Row],[Inversion]]-Tabla961021[[#This Row],[Ahorros(IBI)]])/X43) -> No Disp | AA43: años | AB43: n/a | AC43: n/a | AD43: n/a | AE43: n/a | AF43: n/a | AG43: n/a | AH43: n/a | AI43: n/a | AJ43: n/a | AK43: n/a
A44: 40 | C44: 39000 | F44: =Tabla961021[[#This Row],[Legalizacion]]+Tabla961021[[#This Row],[ Instalacion]]+Tabla961021[[#This Row],[Coste Hardware]] -> 39000 | R44: =Tabla961021[[#This Row],[Kw Valle]]+Tabla961021[[#This Row],[Kwh Llano]]+Tabla961021[[#This Row],[Kwh Punta]]+Tabla961021[[#This Row],[Kwh P1]]+Tabla961021[[#This Row],[Kwh P2]]+Tabla961021[[#This Row],[Kwh P3]]+Tabla961021[[#This Row],[Kwh P4]]+Tabla961021[[#This Row],[Kwh P5]]+Tabla961021[[#This Row],[Kwh P6]] -> 0 | U44: =Tabla961021[[#This Row],[Prod Solar]]-Tabla961021[[#This Row],[Exportado]] -> 0 | X44: 0 | Y44: 0 | Z44: =IF(X44=0,"No Disp",(Tabla961021[[#This Row],[Inversion]]-Tabla961021[[#This Row],[Ahorros(IBI)]])/X44) -> No Disp | AA44: años | AB44: n/a | AC44: n/a | AD44: n/a | AE44: n/a | AF44: n/a | AG44: n/a | AH44: n/a | AI44: n/a | AJ44: n/a | AK44: n/a

Sheet RENT VE
H1: 0.25 | I1: 0 | J1: 0.03 | L1: 0.16 | M1: 0.14 | N1: 0.11 | O1: 0.09 | P1: 0.08 | Q1: 0.08 | V1: 0.05 | W1: 0.05 | X1: 0.05
A2: RENTABILIDAD | H2: CONSUMO COMPAÑÍA | S2: Ahorro en los X años | AB2: =MATCH(AC2,AC5:AC44,0) -> 4 | AC2: =MIN(AC5:AC44) -> 17309.9 | AD2: =MATCH(AE2,AE5:AE44,0) -> 12 | AE2: =MIN(AE5:AE44) -> 25488.1 | AF2: =MATCH(AG2,AG5:AG44,0) -> 15 | AG2: =MIN(AG5:AG44) -> 30649.05 | AH2: =MATCH(AI2,AI5:AI44,0) -> 17 | AI2: =MIN(AI5:AI44) -> 35161.8 | AJ2: =MATCH(AK2,AK5:AK44,0) -> 20 | AK2: =MIN(AK5:AK44) -> 39242
A3: ' | B3: Factura | C3: Coste Hardware | D3: Instalacion | E3: Legalizacion | F3: Inversion | G3: Ahorros(IBI) | H3: Kwh Punta | I3: Kwh Llano | J3: Kw Valle | K3: C | L3: Kwh P1 | M3: Kwh P2 | N3: Kwh P3 | O3: Kwh P4 | P3: Kwh P5 | Q3: Kwh P6 | R3: Total | S3: P Max 99.5 | T3: Prod Solar | U3: Consumido | V3: Exportado | W3: %Aut | X3: Dif Anual | Y3: Dif Anterior | Z3: Amortizacion | AB3: 5 | AC3: 5 años TOT | AD3: 10 | AE3: 10 años TOT | AF3: 15 | AG3: 15 años TOT | AH3: 20 | AI3: 20 años TOT | AJ3: 25 | AK3: 25 años TOT
A4: ORIGINAL | B4: 3486.45 | H4: 9975.773 | I4: 0 | J4: 1517.136 | L4: 0 | M4: 0 | N4: 0 | O4: 0 | P4: 0 | Q4: 0 | R4: =Tabla961019[[#This Row],[Kw Valle]]+Tabla961019[[#This Row],[Kwh Llano]]+Tabla961019[[#This Row],[Kwh Punta]]+Tabla961019[[#This Row],[Kwh P1]]+Tabla961019[[#This Row],[Kwh P2]]+Tabla961019[[#This Row],[Kwh P3]]+Tabla961019[[#This Row],[Kwh P4]]+Tabla961019[[#This Row],[Kwh P5]]+Tabla961019[[#This Row],[Kwh P6]] -> 11492.909 | AC4: =FV(INFLACCION,AB3,-$B$4,0) -> 17432.25 | AE4: =FV(INFLACCION,AD3,-$B$4,0) -> 34864.5 | AG4: =FV(INFLACCION,AF3,-$B$4,0) -> 52296.75 | AI4: =FV(INFLACCION,AH3,-$B$4,0) -> 69729 | AK4: =FV(INFLACCION,AJ3,-$B$4,0) -> 87161.25
A5: 1 | B5: 3058.22 | C5: 3000 | F5: =Tabla961019[[#This Row],[Legalizacion]]+Tabla961019[[#This Row],[ Instalacion]]+Tabla961019[[#This Row],[Coste Hardware]] -> 3000 | H5: 8630.38722 | I5: 0 | J5: 1503.14824 | L5: 0 | M5: 0 | N5: 0 | O5: 0 | P5: 0 | Q5: 0 | R5: =Tabla961019[[#This Row],[Kw Valle]]+Tabla961019[[#This Row],[Kwh Llano]]+Tabla961019[[#This Row],[Kwh Punta]]+Tabla961019[[#This Row],[Kwh P1]]+Tabla961019[[#This Row],[Kwh P2]]+Tabla961019[[#This Row],[Kwh P3]]+Tabla961019[[#This Row],[Kwh P4]]+Tabla961019[[#This Row],[Kwh P5]]+Tabla961019[[#This Row],[Kwh P6]] -> 10133.53546 | S5: 1018.76 | T5: 1364.27547 | U5: =Tabla961019[[#This Row],[Prod Solar]]-Tabla961019[[#This Row],[Exportado]] -> 1358.44554 | V5: 5.82993 | W5: 0.9957267208 | X5: =IF(B5=0,0,B$4-B5) -> 428.23 | Y5: =IF(B5=0,0,B4-B5) -> 428.23 | Z5: =IF(X5=0,"No Disp",(Tabla961019[[#This Row],[Inversion]]-Tabla961019[[#This Row],[Ahorros(IBI)]])/X5) -> 7.005581113 | AA5: años | AB5: =IF($B5=0,"n/a",AC$4-(FV(INFLACCION,AB$3,-$B5,0))-$F5+$G5) -> -858.85 | AC5: =IF(AB5<>"n/a",AC$4-AB5,"n/a") -> 18291.1 | AD5: =IF($B5=0,"n/a",AE$4-(FV(INFLACCION,AD$3,-$B5,0))-$F5+$G5) -> 1282.3 | AE5: =IF(AD5<>"n/a",AE$4-AD5,"n/a") -> 33582.2 | AF5: =IF($B5=0,"n/a",AG$4-(FV(INFLACCION,AF$3,-$B5,0))-$F5+$G5) -> 3423.45 | AG5: =IF(AF5<>"n/a",AG$4-AF5,"n/a") -> 48873.3 | AH5: =IF($B5=0,"n/a",AI$4-(FV(INFLACCION,AH$3,-$B5,0))-$F5+$G5) -> 5564.6 | AI5: =IF(AH5<>"n/a",AI$4-AH5,"n/a") -> 64164.4 | AJ5: =IF($B5=0,"n/a",AK$4-(FV(INFLACCION,AJ$3,-$B5,0))-$F5+$G5) -> 7705.75 | AK5: =IF(AJ5<>"n/a",AK$4-AJ5,"n/a") -> 79455.5
A6: 2 | B6: 2685.62 | C6: 4820 | F6: =Tabla961019[[#This Row],[Legalizacion]]+Tabla961019[[#This Row],[ Instalacion]]+Tabla961019[[#This Row],[Coste Hardware]] -> 4820 | H6: 7503.70922 | I6: 0 | J6: 1489.16048 | L6: 0 | M6: 0 | N6: 0 | O6: 0 | P6: 0 | Q6: 0 | R6: =Tabla961019[[#This Row],[Kw Valle]]+Tabla961019[[#This Row],[Kwh Llano]]+Tabla961019[[#This Row],[Kwh Punta]]+Tabla961019[[#This Row],[Kwh P1]]+Tabla961019[[#This Row],[Kwh P2]]+Tabla961019[[#This Row],[Kwh P3]]+Tabla961019[[#This Row],[Kwh P4]]+Tabla961019[[#This Row],[Kwh P5]]+Tabla961019[[#This Row],[Kwh P6]] -> 8992.8697 | S6: 2037.52 | T6: 2728.55094 | U6: =Tabla961019[[#This Row],[Prod Solar]]-Tabla961019[[#This Row],[Exportado]] -> 2499.1113 | V6: 229.43964 | W6: 0.9159115424 | X6: =IF(B6=0,0,B$4-B6) -> 800.83 | Y6: =IF(B6=0,0,B5-B6) -> 372.6 | Z6: =IF(X6=0,"No Disp",(Tabla961019[[#This Row],[Inversion]]-Tabla961019[[#This Row],[Ahorros(IBI)]])/X6) -> 6.018755541 | AA6: años | AB6: -815.85 | AC6: =IF(AB6<>"n/a",AC$4-AB6,"n/a") -> 18248.1 | AD6: 3188.3 | AE6: =IF(AD6<>"n/a",AE$4-AD6,"n/a") -> 31676.2 | AF6: 7192.45 | AG6: =IF(AF6<>"n/a",AG$4-AF6,"n/a") -> 45104.3 | AH6: 11196.6 | AI6: =IF(AH6<>"n/a",AI$4-AH6,"n/a") -> 58532.4 | AJ6: 15200.75 | AK6: =IF(AJ6<>"n/a",AK$4-AJ6,"n/a") -> 71960.5
A7: 3 | B7: 2411.6 | C7: 5450 | F7: =Tabla961019[[#This Row],[Legalizacion]]+Tabla961019[[#This Row],[ Instalacion]]+Tabla961019[[#This Row],[Coste Hardware]] -> 5450 | H7: 6764.995 | I7: 0 | J7: 1475.17272 | L7: 0 | M7: 0 | N7: 0 | O7: 0 | P7: 0 | Q7: 0 | R7: =Tabla961019[[#This Row],[Kw Valle]]+Tabla961019[[#This Row],[Kwh Llano]]+Tabla961019[[#This Row],[Kwh Punta]]+Tabla961019[[#This Row],[Kwh P1]]+Tabla961019[[#This Row],[Kwh P2]]+Tabla961019[[#This Row],[Kwh P3]]+Tabla961019[[#This Row],[Kwh P4]]+Tabla961019[[#This Row],[Kwh P5]]+Tabla961019[[#This Row],[Kwh P6]] -> 8240.16772 | S7: 3056.28 | T7: 4092.82641 | U7: =Tabla961019[[#This Row],[Prod Solar]]-Tabla961019[[#This Row],[Exportado]] -> 3251.81328 | V7: 841.01313 | W7: 0.7945153188 | X7: 1074.85 | Y7: 274.02 | Z7: =IF(X7=0,"No Disp",(Tabla961019[[#This Row],[Inversion]]-Tabla961019[[#This Row],[Ahorros(IBI)]])/X7) -> 5.07047495 | AA7: años | AB7: -75.75 | AC7: 17508 | AD7: 5298.5 | AE7: 29566 | AF7: 10672.75 | AG7: 41624 | AH7: 16047 | AI7: 53682 | AJ7: 21421.25 | AK7: 65740
A8: 4 | B8: 2201.98 | C8: 6300 | F8: =Tabla961019[[#This Row],[Legalizacion]]+Tabla961019[[#This Row],[ Instalacion]]+Tabla961019[[#This Row],[Coste Hardware]] -> 6300 | H8: 6279.7588 | I8: 0 | J8: 1461.676 | L8: 0 | M8: 0 | N8: 0 | O8: 0 | P8: 0 | Q8: 0 | R8: =Tabla961019[[#This Row],[Kw Valle]]+Tabla961019[[#This Row],[Kwh Llano]]+Tabla961019[[#This Row],[Kwh Punta]]+Tabla961019[[#This Row],[Kwh P1]]+Tabla961019[[#This Row],[Kwh P2]]+Tabla961019[[#This Row],[Kwh P3]]+Tabla961019[[#This Row],[Kwh P4]]+Tabla961019[[#This Row],[Kwh P5]]+Tabla961019[[#This Row],[Kwh P6]] -> 7741.4348 | S8: 4075.04 | T8: 5457.10188 | U8: =Tabla961019[[#This Row],[Prod Solar]]-Tabla961019[[#This Row],[Exportado]] -> 3750.5462 | V8: 1706.55568 | W8: 0.6872780246 | X8: 1284.47 | Y8: 209.62 | Z8: =IF(X8=0,"No Disp",(Tabla961019[[#This Row],[Inversion]]-Tabla961019[[#This Row],[Ahorros(IBI)]])/X8) -> 4.904746705 | AA8: años | AB8: 122.35 | AC8: 17309.9 | AD8: 6544.7 | AE8: 28319.8 | AF8: 12967.05 | AG8: 39329.7 | AH8: 19389.4 | AI8: 50339.6 | AJ8: 25811.75 | AK8: 61349.5
A9: 5 | B9: 2028.23 | C9: 7200 | F9: =Tabla961019[[#This Row],[Legalizacion]]+Tabla961019[[#This Row],[ Instalacion]]+Tabla961019[[#This Row],[Coste Hardware]] -> 7200 | H9: 5935.89055 | I9: 0 | J9: 1450.43755 | L9: 0 | M9: 0 | N9: 0 | O9: 0 | P9: 0 | Q9: 0 | R9: =Tabla961019[[#This Row],[Kw Valle]]+Tabla961019[[#This Row],[Kwh Llano]]+Tabla961019[[#This Row],[Kwh Punta]]+Tabla961019[[#This Row],[Kwh P1]]+Tabla961019[[#This Row],[Kwh P2]]+Tabla961019[[#This Row],[Kwh P3]]+Tabla961019[[#This Row],[Kwh P4]]+Tabla961019[[#This Row],[Kwh P5]]+Tabla961019[[#This Row],[Kwh P6]] -> 7386.3281 | S9: 5093.8 | T9: 6821.37735 | U9: =Tabla961019[[#This Row],[Prod Solar]]-Tabla961019[[#This Row],[Exportado]] -> 4105.6529 | V9: 2715.72445 | W9: 0.6018803373 | X9: 1458.22 | Y9: 173.75 | Z9: =IF(X9=0,"No Disp",(Tabla961019[[#This Row],[Inversion]]-Tabla961019[[#This Row],[Ahorros(IBI)]])/X9) -> 4.937526573 | AA9: años | AB9: 91.1 | AC9: 17341.15 | AD9: 7382.2 | AE9: 27482.3 | AF9: 14673.3 | AG9: 37623.45 | AH9: 21964.4 | AI9: 47764.6 | AJ9: 29255.5 | AK9: 57905.75
A10: 6 | B10: 1876.42 | C10: 8300 | F10: =Tabla961019[[#This Row],[Legalizacion]]+Tabla961019[[#This Row],[ Instalacion]]+Tabla961019[[#This Row],[Coste Hardware]] -> 8300 | H10: 5678.58104 | I10: 0 | J10: 1441.02674 | L10: 0 | M10: 0 | N10: 0 | O10: 0 | P10: 0 | Q10: 0 | R10: =Tabla961019[[#This Row],[Kw Valle]]+Tabla961019[[#This Row],[Kwh Llano]]+Tabla961019[[#This Row],[Kwh Punta]]+Tabla961019[[#This Row],[Kwh P1]]+Tabla961019[[#This Row],[Kwh P2]]+Tabla961019[[#This Row],[Kwh P3]]+Tabla961019[[#This Row],[Kwh P4]]+Tabla961019[[#This Row],[Kwh P5]]+Tabla961019[[#This Row],[Kwh P6]] -> 7119.60778 | S10: 6112.56 | T10: 8185.65282 | U10: =Tabla961019[[#This Row],[Prod Solar]]-Tabla961019[[#This Row],[Exportado]] -> 4372.37322 | V10: 3813.2796 | W10: 0.5341508266 | X10: 1610.03 | Y10: 151.81 | Z10: =IF(X10=0,"No Disp",(Tabla961019[[#This Row],[Inversion]]-Tabla961019[[#This Row],[Ahorros(IBI)]])/X10) -> 5.155183444 | AA10: años | AB10: -249.85 | AC10: 17682.1 | AD10: 7800.3 | AE10: 27064.2 | AF10: 15850.45 | AG10: 36446.3 | AH10: 23900.6 | AI10: 45828.4 | AJ10: 31950.75 | AK10: 55210.5
A11: 7 | B11: 1739.03 | C11: 9300 | F11: =Tabla961019[[#This Row],[Legalizacion]]+Tabla961019[[#This Row],[ Instalacion]]+Tabla961019[[#This Row],[Coste Hardware]] -> 9300 | H11: 5478.18222 | I11: 0 | J11: 1433.13706 | L11: 0 | M11: 0 | N11: 0 | O11: 0 | P11: 0 | Q11: 0 | R11: =Tabla961019[[#This Row],[Kw Valle]]+Tabla961019[[#This Row],[Kwh Llano]]+Tabla961019[[#This Row],[Kwh Punta]]+Tabla961019[[#This Row],[Kwh P1]]+Tabla961019[[#This Row],[Kwh P2]]+Tabla961019[[#This Row],[Kwh P3]]+Tabla961019[[#This Row],[Kwh P4]]+Tabla961019[[#This Row],[Kwh P5]]+Tabla961019[[#This Row],[Kwh P6]] -> 6911.31928 | S11: 7131.32 | T11: 9549.92829 | U11: =Tabla961019[[#This Row],[Prod Solar]]-Tabla961019[[#This Row],[Exportado]] -> 4580.66172 | V11: 4969.26657 | W11: 0.4796540436 | X11: 1747.42 | Y11: 137.39 | Z11: =IF(X11=0,"No Disp",(Tabla961019[[#This Row],[Inversion]]-Tabla961019[[#This Row],[Ahorros(IBI)]])/X11) -> 5.322132058 | AA11: años | AB11: -562.9 | AC11: 17995.15 | AD11: 8174.2 | AE11: 26690.3 | AF11: 16911.3 | AG11: 35385.45 | AH11: 25648.4 | AI11: 44080.6 | AJ11: 34385.5 | AK11: 52775.75
A12: 8 | B12: 1610.3 | C12: 10200 | F12: =Tabla961019[[#This Row],[Legalizacion]]+Tabla961019[[#This Row],[ Instalacion]]+Tabla961019[[#This Row],[Coste Hardware]] -> 10200 | H12: 5311.98016 | I12: 0 | J12: 1426.47776 | L12: 0 | M12: 0 | N12: 0 | O12: 0 | P12: 0 | Q12: 0 | R12: =Tabla961019[[#This Row],[Kw Valle]]+Tabla961019[[#This Row],[Kwh Llano]]+Tabla961019[[#This Row],[Kwh Punta]]+Tabla961019[[#This Row],[Kwh P1]]+Tabla961019[[#This Row],[Kwh P2]]+Tabla961019[[#This Row],[Kwh P3]]+Tabla961019[[#This Row],[Kwh P4]]+Tabla961019[[#This Row],[Kwh P5]]+Tabla961019[[#This Row],[Kwh P6]] -> 6738.45792 | S12: 8150.08 | T12: 10914.20376 | U12: =Tabla961019[[#This Row],[Prod Solar]]-Tabla961019[[#This Row],[Exportado]] -> 4753.52308 | V12: 6160.68068 | W12: 0.4355354898 | X12: 1876.15 | Y12: 128.73 | Z12: =IF(X12=0,"No Disp",(Tabla961019[[#This Row],[Inversion]]-Tabla961019[[#This Row],[Ahorros(IBI)]])/X12) -> 5.436665512 | AA12: años | AB12: -819.25 | AC12: 18251.5 | AD12: 8561.5 | AE12: 26303 | AF12: 17942.25 | AG12: 34354.5 | AH12: 27323 | AI12: 42406 | AJ12: 36703.75 | AK12: 50457.5
A13: 9 | B13: 1488.09 | C13: 11100 | F13: =Tabla961019[[#This Row],[Legalizacion]]+Tabla961019[[#This Row],[ Instalacion]]+Tabla961019[[#This Row],[Coste Hardware]] -> 11100 | H13: 5171.54711 | I13: 0 | J13: 1420.88324 | L13: 0 | M13: 0 | N13: 0 | O13: 0 | P13: 0 | Q13: 0 | R13: =Tabla961019[[#This Row],[Kw Valle]]+Tabla961019[[#This Row],[Kwh Llano]]+Tabla961019[[#This Row],[Kwh Punta]]+Tabla961019[[#This Row],[Kwh P1]]+Tabla961019[[#This Row],[Kwh P2]]+Tabla961019[[#This Row],[Kwh P3]]+Tabla961019[[#This Row],[Kwh P4]]+Tabla961019[[#This Row],[Kwh P5]]+Tabla961019[[#This Row],[Kwh P6]] -> 6592.43035 | S13: 9168.84 | T13: 12278.47923 | U13: =Tabla961019[[#This Row],[Prod Solar]]-Tabla961019[[#This Row],[Exportado]] -> 4899.55065 | V13: 7378.92858 | W13: 0.3990356263 | X13: 1998.36 | Y13: 122.21 | Z13: =IF(X13=0,"No Disp",(Tabla961019[[#This Row],[Inversion]]-Tabla961019[[#This Row],[Ahorros(IBI)]])/X13) -> 5.554554735 | AA13: años | AB13: -1108.2 | AC13: 18540.45 | AD13: 8883.6 | AE13: 25980.9 | AF13: 18875.4 | AG13: 33421.35 | AH13: 28867.2 | AI13: 40861.8 | AJ13: 38859 | AK13: 48302.25
A14: 10 | B14: 1370.73 | C14: 12000 | F14: =Tabla961019[[#This Row],[Legalizacion]]+Tabla961019[[#This Row],[ Instalacion]]+Tabla961019[[#This Row],[Coste Hardware]] -> 12000 | H14: 5050.2351 | I14: 0 | J14: 1415.7929 | L14: 0 | M14: 0 | N14: 0 | O14: 0 | P14: 0 | Q14: 0 | R14: =Tabla961019[[#This Row],[Kw Valle]]+Tabla961019[[#This Row],[Kwh Llano]]+Tabla961019[[#This Row],[Kwh Punta]]+Tabla961019[[#This Row],[Kwh P1]]+Tabla961019[[#This Row],[Kwh P2]]+Tabla961019[[#This Row],[Kwh P3]]+Tabla961019[[#This Row],[Kwh P4]]+Tabla961019[[#This Row],[Kwh P5]]+Tabla961019[[#This Row],[Kwh P6]] -> 6466.028 | S14: 10187.6 | T14: 13642.7547 | U14: =Tabla961019[[#This Row],[Prod Solar]]-Tabla961019[[#This Row],[Exportado]] -> 5025.953 | V14: 8616.8017 | W14: 0.368397227 | X14: 2115.72 | Y14: 117.36 | Z14: =IF(X14=0,"No Disp",(Tabla961019[[#This Row],[Inversion]]-Tabla961019[[#This Row],[Ahorros(IBI)]])/X14) -> 5.67182803 | AA14: años | AB14: -1421.4 | AC14: 18853.65 | AD14: 9157.2 | AE14: 25707.3 | AF14: 19735.8 | AG14: 32560.95 | AH14: 30314.4 | AI14: 39414.6 | AJ14: 40893 | AK14: 46268.25
A15: 11 | B15: 1265.13 | C15: 12900 | F15: =Tabla961019[[#This Row],[Legalizacion]]+Tabla961019[[#This Row],[ Instalacion]]+Tabla961019[[#This Row],[Coste Hardware]] -> 12900 | H15: 4943.97528 | I15: 0 | J15: 1411.03355 | L15: 0 | M15: 0 | N15: 0 | O15: 0 | P15: 0 | Q15: 0 | R15: =Tabla961019[[#This Row],[Kw Valle]]+Tabla961019[[#This Row],[Kwh Llano]]+Tabla961019[[#This Row],[Kwh Punta]]+Tabla961019[[#This Row],[Kwh P1]]+Tabla961019[[#This Row],[Kwh P2]]+Tabla961019[[#This Row],[Kwh P3]]+Tabla961019[[#This Row],[Kwh P4]]+Tabla961019[[#This Row],[Kwh P5]]+Tabla961019[[#This Row],[Kwh P6]] -> 6355.00883 | S15: 11206.36 | T15: 15007.03017 | U15: =Tabla961019[[#This Row],[Prod Solar]]-Tabla961019[[#This Row],[Exportado]] -> 5136.97217 | V15: 9870.058 | W15: 0.3423043808 | X15: 2221.32 | Y15: 105.6 | Z15: =IF(X15=0,"No Disp",(Tabla961019[[#This Row],[Inversion]]-Tabla961019[[#This Row],[Ahorros(IBI)]])/X15) -> 5.807357787 | AA15: años | AB15: -1793.4 | AC15: 19225.65 | AD15: 9313.2 | AE15: 25551.3 | AF15: 20419.8 | AG15: 31876.95 | AH15: 31526.4 | AI15: 38202.6 | AJ15: 42633 | AK15: 44528.25
A16: 12 | B16: 1168.81 | C16: 13800 | F16: =Tabla961019[[#This Row],[Legalizacion]]+Tabla961019[[#This Row],[ Instalacion]]+Tabla961019[[#This Row],[Coste Hardware]] -> 13800 | H16: 4850.8066 | I16: 0 | J16: 1406.87972 | L16: 0 | M16: 0 | N16: 0 | O16: 0 | P16: 0 | Q16: 0 | R16: =Tabla961019[[#This Row],[Kw Valle]]+Tabla961019[[#This Row],[Kwh Llano]]+Tabla961019[[#This Row],[Kwh Punta]]+Tabla961019[[#This Row],[Kwh P1]]+Tabla961019[[#This Row],[Kwh P2]]+Tabla961019[[#This Row],[Kwh P3]]+Tabla961019[[#This Row],[Kwh P4]]+Tabla961019[[#This Row],[Kwh P5]]+Tabla961019[[#This Row],[Kwh P6]] -> 6257.68632 | S16: 12225.12 | T16: 16371.30564 | U16: =Tabla961019[[#This Row],[Prod Solar]]-Tabla961019[[#This Row],[Exportado]] -> 5234.29468 | V16: 11137.01096 | W16: 0.3197237163 | X16: 2317.64 | Y16: 96.32 | Z16: =IF(X16=0,"No Disp",(Tabla961019[[#This Row],[Inversion]]-Tabla961019[[#This Row],[Ahorros(IBI)]])/X16) -> 5.954332856 | AA16: años | AB16: -2211.8 | AC16: 19644.05 | AD16: 9376.4 | AE16: 25488.1 | AF16: 20964.6 | AG16: 31332.15 | AH16: 32552.8 | AI16: 37176.2 | AJ16: 44141 | AK16: 43020.25
A17: 13 | B17: 1084.55 | C17: 14700 | F17: =Tabla961019[[#This Row],[Legalizacion]]+Tabla961019[[#This Row],[ Instalacion]]+Tabla961019[[#This Row],[Coste Hardware]] -> 14700 | H17: 4767.76244 | I17: 0 | J17: 1403.2349 | L17: 0 | M17: 0 | N17: 0 | O17: 0 | P17: 0 | Q17: 0 | R17: =Tabla961019[[#This Row],[Kw Valle]]+Tabla961019[[#This Row],[Kwh Llano]]+Tabla961019[[#This Row],[Kwh Punta]]+Tabla961019[[#This Row],[Kwh P1]]+Tabla961019[[#This Row],[Kwh P2]]+Tabla961019[[#This Row],[Kwh P3]]+Tabla961019[[#This Row],[Kwh P4]]+Tabla961019[[#This Row],[Kwh P5]]+Tabla961019[[#This Row],[Kwh P6]] -> 6170.99734 | S17: 13243.88 | T17: 17735.58111 | U17: =Tabla961019[[#This Row],[Prod Solar]]-Tabla961019[[#This Row],[Exportado]] -> 5320.98366 | V17: 12414.59745 | W17: 0.300017441 | X17: 2401.9 | Y17: 84.26 | Z17: =IF(X17=0,"No Disp",(Tabla961019[[#This Row],[Inversion]]-Tabla961019[[#This Row],[Ahorros(IBI)]])/X17) -> 6.120154877 | AA17: años | AB17: -2690.5 | AC17: 20122.75 | AD17: 9319 | AE17: 25545.5 | AF17: 21328.5 | AG17: 30968.25 | AH17: 33338 | AI17: 36391 | AJ17: 45347.5 | AK17: 41813.75
A18: 14 | B18: 1009.13 | C18: 15600 | F18: =Tabla961019[[#This Row],[Legalizacion]]+Tabla961019[[#This Row],[ Instalacion]]+Tabla961019[[#This Row],[Coste Hardware]] -> 15600 | H18: 4692.64432 | I18: 0 | J18: 1399.81954 | L18: 0 | M18: 0 | N18: 0 | O18: 0 | P18: 0 | Q18: 0 | R18: =Tabla961019[[#This Row],[Kw Valle]]+Tabla961019[[#This Row],[Kwh Llano]]+Tabla961019[[#This Row],[Kwh Punta]]+Tabla961019[[#This Row],[Kwh P1]]+Tabla961019[[#This Row],[Kwh P2]]+Tabla961019[[#This Row],[Kwh P3]]+Tabla961019[[#This Row],[Kwh P4]]+Tabla961019[[#This Row],[Kwh P5]]+Tabla961019[[#This Row],[Kwh P6]] -> 6092.46386 | S18: 14262.64 | T18: 19099.85658 | U18: =Tabla961019[[#This Row],[Prod Solar]]-Tabla961019[[#This Row],[Exportado]] -> 5399.51714 | V18: 13700.33944 | W18: 0.2826993552 | X18: 2477.32 | Y18: 75.42 | Z18: =IF(X18=0,"No Disp",(Tabla961019[[#This Row],[Inversion]]-Tabla961019[[#This Row],[Ahorros(IBI)]])/X18) -> 6.297127541 | AA18: años | AB18: -3213.4 | AC18: 20645.65 | AD18: 9173.2 | AE18: 25691.3 | AF18: 21559.8 | AG18: 30736.95 | AH18: 33946.4 | AI18: 35782.6 | AJ18: 46333 | AK18: 40828.25
A19: 15 | B19: 943.27 | C19: 16500 | F19: =Tabla961019[[#This Row],[Legalizacion]]+Tabla961019[[#This Row],[ Instalacion]]+Tabla961019[[#This Row],[Coste Hardware]] -> 16500 | H19: 4627.02035 | I19: 0 | J19: 1396.66335 | L19: 0 | M19: 0 | N19: 0 | O19: 0 | P19: 0 | Q19: 0 | R19: =Tabla961019[[#This Row],[Kw Valle]]+Tabla961019[[#This Row],[Kwh Llano]]+Tabla961019[[#This Row],[Kwh Punta]]+Tabla961019[[#This Row],[Kwh P1]]+Tabla961019[[#This Row],[Kwh P2]]+Tabla961019[[#This Row],[Kwh P3]]+Tabla961019[[#This Row],[Kwh P4]]+Tabla961019[[#This Row],[Kwh P5]]+Tabla961019[[#This Row],[Kwh P6]] -> 6023.6837 | S19: 15281.4 | T19: 20464.13205 | U19: =Tabla961019[[#This Row],[Prod Solar]]-Tabla961019[[#This Row],[Exportado]] -> 5468.2973 | V19: 14995.83475 | W19: 0.2672137419 | X19: 2543.18 | Y19: 65.86 | Z19: =IF(X19=0,"No Disp",(Tabla961019[[#This Row],[Inversion]]-Tabla961019[[#This Row],[Ahorros(IBI)]])/X19) -> 6.487940295 | AA19: años | AB19: -3784.1 | AC19: 21216.35 | AD19: 8931.8 | AE19: 25932.7 | AF19: 21647.7 | AG19: 30649.05 | AH19: 34363.6 | AI19: 35365.4 | AJ19: 47079.5 | AK19: 40081.75
A20: 16 | B20: 889.17 | C20: =C19+900 -> 17400 | F20: =Tabla961019[[#This Row],[Legalizacion]]+Tabla961019[[#This Row],[ Instalacion]]+Tabla961019[[#This Row],[Coste Hardware]] -> 17400 | H20: 4568.67696 | I20: 0 | J20: 1393.79584 | L20: 0 | M20: 0 | N20: 0 | O20: 0 | P20: 0 | Q20: 0 | R20: =Tabla961019[[#This Row],[Kw Valle]]+Tabla961019[[#This Row],[Kwh Llano]]+Tabla961019[[#This Row],[Kwh Punta]]+Tabla961019[[#This Row],[Kwh P1]]+Tabla961019[[#This Row],[Kwh P2]]+Tabla961019[[#This Row],[Kwh P3]]+Tabla961019[[#This Row],[Kwh P4]]+Tabla961019[[#This Row],[Kwh P5]]+Tabla961019[[#This Row],[Kwh P6]] -> 5962.4728 | S20: 16300.16 | T20: 21828.40752 | U20: =Tabla961019[[#This Row],[Prod Solar]]-Tabla961019[[#This Row],[Exportado]] -> 5529.5082 | V20: 16298.89932 | W20: 0.2533170684 | X20: 2597.28 | Y20: 54.1 | Z20: =IF(X20=0,"No Disp",(Tabla961019[[#This Row],[Inversion]]-Tabla961019[[#This Row],[Ahorros(IBI)]])/X20) -> 6.699316208 | AA20: años | AB20: -4413.6 | AC20: 21845.85 | AD20: 8572.8 | AE20: 26291.7 | AF20: 21559.2 | AG20: 30737.55 | AH20: 34545.6 | AI20: 35183.4 | AJ20: 47532 | AK20: 39629.25
A21: 17 | B21: 843.09 | C21: =C20+900 -> 18300 | F21: =Tabla961019[[#This Row],[Legalizacion]]+Tabla961019[[#This Row],[ Instalacion]]+Tabla961019[[#This Row],[Coste Hardware]] -> 18300 | H21: 4515.63503 | I21: 0 | J21: 1391.13296 | L21: 0 | M21: 0 | N21: 0 | O21: 0 | P21: 0 | Q21: 0 | R21: =Tabla961019[[#This Row],[Kw Valle]]+Tabla961019[[#This Row],[Kwh Llano]]+Tabla961019[[#This Row],[Kwh Punta]]+Tabla961019[[#This Row],[Kwh P1]]+Tabla961019[[#This Row],[Kwh P2]]+Tabla961019[[#This Row],[Kwh P3]]+Tabla961019[[#This Row],[Kwh P4]]+Tabla961019[[#This Row],[Kwh P5]]+Tabla961019[[#This Row],[Kwh P6]] -> 5906.76799 | S21: 17318.92 | T21: 23192.68299 | U21: =Tabla961019[[#This Row],[Prod Solar]]-Tabla961019[[#This Row],[Exportado]] -> 5585.21301 | V21: 17607.46998 | W21: 0.2408178912 | X21: 2643.36 | Y21: 46.08 | Z21: =IF(X21=0,"No Disp",(Tabla961019[[#This Row],[Inversion]]-Tabla961019[[#This Row],[Ahorros(IBI)]])/X21) -> 6.923007082 | AA21: años | AB21: -5083.2 | AC21: 22515.45 | AD21: 8133.6 | AE21: 26730.9 | AF21: 21350.4 | AG21: 30946.35 | AH21: 34567.2 | AI21: 35161.8 | AJ21: 47784 | AK21: 39377.25
A22: 18 | B22: 804.71 | C22: 19200 | F22: =Tabla961019[[#This Row],[Legalizacion]]+Tabla961019[[#This Row],[ Instalacion]]+Tabla961019[[#This Row],[Coste Hardware]] -> 19200 | H22: 4467.0928 | I22: 0 | J22: 1388.63446 | L22: 0 | M22: 0 | N22: 0 | O22: 0 | P22: 0 | Q22: 0 | R22: =Tabla961019[[#This Row],[Kw Valle]]+Tabla961019[[#This Row],[Kwh Llano]]+Tabla961019[[#This Row],[Kwh Punta]]+Tabla961019[[#This Row],[Kwh P1]]+Tabla961019[[#This Row],[Kwh P2]]+Tabla961019[[#This Row],[Kwh P3]]+Tabla961019[[#This Row],[Kwh P4]]+Tabla961019[[#This Row],[Kwh P5]]+Tabla961019[[#This Row],[Kwh P6]] -> 5855.72726 | S22: 18337.68 | T22: 24556.95846 | U22: =Tabla961019[[#This Row],[Prod Solar]]-Tabla961019[[#This Row],[Exportado]] -> 5636.25374 | V22: 18920.70472 | W22: 0.2295175825 | X22: 2681.74 | Y22: 38.38 | Z22: =IF(X22=0,"No Disp",(Tabla961019[[#This Row],[Inversion]]-Tabla961019[[#This Row],[Ahorros(IBI)]])/X22) -> 7.159530752 | AA22: años | AB22: -5791.3 | AC22: 23223.55 | AD22: 7617.4 | AE22: 27247.1 | AF22: 21026.1 | AG22: 31270.65 | AH22: 34434.8 | AI22: 35294.2 | AJ22: 47843.5 | AK22: 39317.75
A23: 19 | B23: 766.93 | C23: 20100 | F23: =Tabla961019[[#This Row],[Legalizacion]]+Tabla961019[[#This Row],[ Instalacion]]+Tabla961019[[#This Row],[Coste Hardware]] -> 20100 | H23: 4422.74487 | I23: 0 | J23: 1386.27367 | L23: 0 | M23: 0 | N23: 0 | O23: 0 | P23: 0 | Q23: 0 | R23: =Tabla961019[[#This Row],[Kw Valle]]+Tabla961019[[#This Row],[Kwh Llano]]+Tabla961019[[#This Row],[Kwh Punta]]+Tabla961019[[#This Row],[Kwh P1]]+Tabla961019[[#This Row],[Kwh P2]]+Tabla961019[[#This Row],[Kwh P3]]+Tabla961019[[#This Row],[Kwh P4]]+Tabla961019[[#This Row],[Kwh P5]]+Tabla961019[[#This Row],[Kwh P6]] -> 5809.01854 | S23: 19356.44 | T23: 25921.23393 | U23: =Tabla961019[[#This Row],[Prod Solar]]-Tabla961019[[#This Row],[Exportado]] -> 5682.96246 | V23: 20238.27147 | W23: 0.2192396579 | X23: 2719.52 | Y23: 37.78 | Z23: =IF(X23=0,"No Disp",(Tabla961019[[#This Row],[Inversion]]-Tabla961019[[#This Row],[Ahorros(IBI)]])/X23) -> 7.391010178 | AA23: años | AB23: -6502.4 | AC23: 23934.65 | AD23: 7095.2 | AE23: 27769.3 | AF23: 20692.8 | AG23: 31603.95 | AH23: 34290.4 | AI23: 35438.6 | AJ23: 47888 | AK23: 39273.25
A24: 20 | B24: 729.68 | C24: 21000 | F24: =Tabla961019[[#This Row],[Legalizacion]]+Tabla961019[[#This Row],[ Instalacion]]+Tabla961019[[#This Row],[Coste Hardware]] -> 21000 | H24: 4381.5876 | I24: 0 | J24: 1384.0804 | L24: 0 | M24: 0 | N24: 0 | O24: 0 | P24: 0 | Q24: 0 | R24: =Tabla961019[[#This Row],[Kw Valle]]+Tabla961019[[#This Row],[Kwh Llano]]+Tabla961019[[#This Row],[Kwh Punta]]+Tabla961019[[#This Row],[Kwh P1]]+Tabla961019[[#This Row],[Kwh P2]]+Tabla961019[[#This Row],[Kwh P3]]+Tabla961019[[#This Row],[Kwh P4]]+Tabla961019[[#This Row],[Kwh P5]]+Tabla961019[[#This Row],[Kwh P6]] -> 5765.668 | S24: 20375.2 | T24: 27285.5094 | U24: =Tabla961019[[#This Row],[Prod Solar]]-Tabla961019[[#This Row],[Exportado]] -> 5726.313 | V24: 21559.1964 | W24: 0.2098664502 | X24: 2756.77 | Y24: 37.25 | Z24: =IF(X24=0,"No Disp",(Tabla961019[[#This Row],[Inversion]]-Tabla961019[[#This Row],[Ahorros(IBI)]])/X24) -> 7.617610464 | AA24: años | AB24: -7216.15 | AC24: 24648.4 | AD24: 6567.7 | AE24: 28296.8 | AF24: 20351.55 | AG24: 31945.2 | AH24: 34135.4 | AI24: 35593.6 | AJ24: 47919.25 | AK24: 39242
A25: 21 | C25: 21900 | F25: =Tabla961019[[#This Row],[Legalizacion]]+Tabla961019[[#This Row],[ Instalacion]]+Tabla961019[[#This Row],[Coste Hardware]] -> 21900 | R25: =Tabla961019[[#This Row],[Kw Valle]]+Tabla961019[[#This Row],[Kwh Llano]]+Tabla961019[[#This Row],[Kwh Punta]]+Tabla961019[[#This Row],[Kwh P1]]+Tabla961019[[#This Row],[Kwh P2]]+Tabla961019[[#This Row],[Kwh P3]]+Tabla961019[[#This Row],[Kwh P4]]+Tabla961019[[#This Row],[Kwh P5]]+Tabla961019[[#This Row],[Kwh P6]] -> 0 | U25: =Tabla961019[[#This Row],[Prod Solar]]-Tabla961019[[#This Row],[Exportado]] -> 0 | X25: 0 | Y25: 0 | Z25: =IF(X25=0,"No Disp",(Tabla961019[[#This Row],[Inversion]]-Tabla961019[[#This Row],[Ahorros(IBI)]])/X25) -> No Disp | AA25: años | AB25: n/a | AC25: n/a | AD25: n/a | AE25: n/a | AF25: n/a | AG25: n/a | AH25: n/a | AI25: n/a | AJ25: n/a | AK25: n/a
A26: 22 | C26: 22800 | F26: =Tabla961019[[#This Row],[Legalizacion]]+Tabla961019[[#This Row],[ Instalacion]]+Tabla961019[[#This Row],[Coste Hardware]] -> 22800 | R26: =Tabla961019[[#This Row],[Kw Valle]]+Tabla961019[[#This Row],[Kwh Llano]]+Tabla961019[[#This Row],[Kwh Punta]]+Tabla961019[[#This Row],[Kwh P1]]+Tabla961019[[#This Row],[Kwh P2]]+Tabla961019[[#This Row],[Kwh P3]]+Tabla961019[[#This Row],[Kwh P4]]+Tabla961019[[#This Row],[Kwh P5]]+Tabla961019[[#This Row],[Kwh P6]] -> 0 | U26: =Tabla961019[[#This Row],[Prod Solar]]-Tabla961019[[#This Row],[Exportado]] -> 0 | X26: 0 | Y26: 0 | Z26: =IF(X26=0,"No Disp",(Tabla961019[[#This Row],[Inversion]]-Tabla961019[[#This Row],[Ahorros(IBI)]])/X26) -> No Disp | AA26: años | AB26: n/a | AC26: n/a | AD26: n/a | AE26: n/a | AF26: n/a | AG26: n/a | AH26: n/a | AI26: n/a | AJ26: n/a | AK26: n/a
A27: 23 | C27: 23700 | F27: =Tabla961019[[#This Row],[Legalizacion]]+Tabla961019[[#This Row],[ Instalacion]]+Tabla961019[[#This Row],[Coste Hardware]] -> 23700 | R27: =Tabla961019[[#This Row],[Kw Valle]]+Tabla961019[[#This Row],[Kwh Llano]]+Tabla961019[[#This Row],[Kwh Punta]]+Tabla961019[[#This Row],[Kwh P1]]+Tabla961019[[#This Row],[Kwh P2]]+Tabla961019[[#This Row],[Kwh P3]]+Tabla961019[[#This Row],[Kwh P4]]+Tabla961019[[#This Row],[Kwh P5]]+Tabla961019[[#This Row],[Kwh P6]] -> 0 | U27: =Tabla961019[[#This Row],[Prod Solar]]-Tabla961019[[#This Row],[Exportado]] -> 0 | X27: 0 | Y27: 0 | Z27: =IF(X27=0,"No Disp",(Tabla961019[[#This Row],[Inversion]]-Tabla961019[[#This Row],[Ahorros(IBI)]])/X27) -> No Disp | AA27: años | AB27: n/a | AC27: n/a | AD27: n/a | AE27: n/a | AF27: n/a | AG27: n/a | AH27: n/a | AI27: n/a | AJ27: n/a | AK27: n/a
A28: 24 | C28: 24600 | F28: =Tabla961019[[#This Row],[Legalizacion]]+Tabla961019[[#This Row],[ Instalacion]]+Tabla961019[[#This Row],[Coste Hardware]] -> 24600 | R28: =Tabla961019[[#This Row],[Kw Valle]]+Tabla961019[[#This Row],[Kwh Llano]]+Tabla961019[[#This Row],[Kwh Punta]]+Tabla961019[[#This Row],[Kwh P1]]+Tabla961019[[#This Row],[Kwh P2]]+Tabla961019[[#This Row],[Kwh P3]]+Tabla961019[[#This Row],[Kwh P4]]+Tabla961019[[#This Row],[Kwh P5]]+Tabla961019[[#This Row],[Kwh P6]] -> 0 | U28: =Tabla961019[[#This Row],[Prod Solar]]-Tabla961019[[#This Row],[Exportado]] -> 0 | X28: 0 | Y28: 0 | Z28: =IF(X28=0,"No Disp",(Tabla961019[[#This Row],[Inversion]]-Tabla961019[[#This Row],[Ahorros(IBI)]])/X28) -> No Disp | AA28: años | AB28: n/a | AC28: n/a | AD28: n/a | AE28: n/a | AF28: n/a | AG28: n/a | AH28: n/a | AI28: n/a | AJ28: n/a | AK28: n/a
A29: 25 | C29: 25500 | F29: =Tabla961019[[#This Row],[Legalizacion]]+Tabla961019[[#This Row],[ Instalacion]]+Tabla961019[[#This Row],[Coste Hardware]] -> 25500 | R29: =Tabla961019[[#This Row],[Kw Valle]]+Tabla961019[[#This Row],[Kwh Llano]]+Tabla961019[[#This Row],[Kwh Punta]]+Tabla961019[[#This Row],[Kwh P1]]+Tabla961019[[#This Row],[Kwh P2]]+Tabla961019[[#This Row],[Kwh P3]]+Tabla961019[[#This Row],[Kwh P4]]+Tabla961019[[#This Row],[Kwh P5]]+Tabla961019[[#This Row],[Kwh P6]] -> 0 | U29: =Tabla961019[[#This Row],[Prod Solar]]-Tabla961019[[#This Row],[Exportado]] -> 0 | X29: 0 | Y29: 0 | Z29: =IF(X29=0,"No Disp",(Tabla961019[[#This Row],[Inversion]]-Tabla961019[[#This Row],[Ahorros(IBI)]])/X29) -> No Disp | AA29: años | AB29: n/a | AC29: n/a | AD29: n/a | AE29: n/a | AF29: n/a | AG29: n/a | AH29: n/a | AI29: n/a | AJ29: n/a | AK29: n/a
A30: 26 | C30: 26400 | F30: =Tabla961019[[#This Row],[Legalizacion]]+Tabla961019[[#This Row],[ Instalacion]]+Tabla961019[[#This Row],[Coste Hardware]] -> 26400 | R30: =Tabla961019[[#This Row],[Kw Valle]]+Tabla961019[[#This Row],[Kwh Llano]]+Tabla961019[[#This Row],[Kwh Punta]]+Tabla961019[[#This Row],[Kwh P1]]+Tabla961019[[#This Row],[Kwh P2]]+Tabla961019[[#This Row],[Kwh P3]]+Tabla961019[[#This Row],[Kwh P4]]+Tabla961019[[#This Row],[Kwh P5]]+Tabla961019[[#This Row],[Kwh P6]] -> 0 | U30: =Tabla961019[[#This Row],[Prod Solar]]-Tabla961019[[#This Row],[Exportado]] -> 0 | X30: 0 | Y30: 0 | Z30: =IF(X30=0,"No Disp",(Tabla961019[[#This Row],[Inversion]]-Tabla961019[[#This Row],[Ahorros(IBI)]])/X30) -> No Disp | AA30: años | AB30: n/a | AC30: n/a | AD30: n/a | AE30: n/a | AF30: n/a | AG30: n/a | AH30: n/a | AI30: n/a | AJ30: n/a | AK30: n/a
A31: 27 | C31: 27300 | F31: =Tabla961019[[#This Row],[Legalizacion]]+Tabla961019[[#This Row],[ Instalacion]]+Tabla961019[[#This Row],[Coste Hardware]] -> 27300 | R31: =Tabla961019[[#This Row],[Kw Valle]]+Tabla961019[[#This Row],[Kwh Llano]]+Tabla961019[[#This Row],[Kwh Punta]]+Tabla961019[[#This Row],[Kwh P1]]+Tabla961019[[#This Row],[Kwh P2]]+Tabla961019[[#This Row],[Kwh P3]]+Tabla961019[[#This Row],[Kwh P4]]+Tabla961019[[#This Row],[Kwh P5]]+Tabla961019[[#This Row],[Kwh P6]] -> 0 | U31: =Tabla961019[[#This Row],[Prod Solar]]-Tabla961019[[#This Row],[Exportado]] -> 0 | X31: 0 | Y31: 0 | Z31: =IF(X31=0,"No Disp",(Tabla961019[[#This Row],[Inversion]]-Tabla961019[[#This Row],[Ahorros(IBI)]])/X31) -> No Disp | AA31: años | AB31: n/a | AC31: n/a | AD31: n/a | AE31: n/a | AF31: n/a | AG31: n/a | AH31: n/a | AI31: n/a | AJ31: n/a | AK31: n/a
A32: 28 | C32: 28200 | F32: =Tabla961019[[#This Row],[Legalizacion]]+Tabla961019[[#This Row],[ Instalacion]]+Tabla961019[[#This Row],[Coste Hardware]] -> 28200 | R32: =Tabla961019[[#This Row],[Kw Valle]]+Tabla961019[[#This Row],[Kwh Llano]]+Tabla961019[[#This Row],[Kwh Punta]]+Tabla961019[[#This Row],[Kwh P1]]+Tabla961019[[#This Row],[Kwh P2]]+Tabla961019[[#This Row],[Kwh P3]]+Tabla961019[[#This Row],[Kwh P4]]+Tabla961019[[#This Row],[Kwh P5]]+Tabla961019[[#This Row],[Kwh P6]] -> 0 | U32: =Tabla961019[[#This Row],[Prod Solar]]-Tabla961019[[#This Row],[Exportado]] -> 0 | X32: 0 | Y32: 0 | Z32: =IF(X32=0,"No Disp",(Tabla961019[[#This Row],[Inversion]]-Tabla961019[[#This Row],[Ahorros(IBI)]])/X32) -> No Disp | AA32: años | AB32: n/a | AC32: n/a | AD32: n/a | AE32: n/a | AF32: n/a | AG32: n/a | AH32: n/a | AI32: n/a | AJ32: n/a | AK32: n/a
A33: 29 | C33: 29100 | F33: =Tabla961019[[#This Row],[Legalizacion]]+Tabla961019[[#This Row],[ Instalacion]]+Tabla961019[[#This Row],[Coste Hardware]] -> 29100 | R33: =Tabla961019[[#This Row],[Kw Valle]]+Tabla961019[[#This Row],[Kwh Llano]]+Tabla961019[[#This Row],[Kwh Punta]]+Tabla961019[[#This Row],[Kwh P1]]+Tabla961019[[#This Row],[Kwh P2]]+Tabla961019[[#This Row],[Kwh P3]]+Tabla961019[[#This Row],[Kwh P4]]+Tabla961019[[#This Row],[Kwh P5]]+Tabla961019[[#This Row],[Kwh P6]] -> 0 | U33: =Tabla961019[[#This Row],[Prod Solar]]-Tabla961019[[#This Row],[Exportado]] -> 0 | X33: 0 | Y33: 0 | Z33: =IF(X33=0,"No Disp",(Tabla961019[[#This Row],[Inversion]]-Tabla961019[[#This Row],[Ahorros(IBI)]])/X33) -> No Disp | AA33: años | AB33: n/a | AC33: n/a | AD33: n/a | AE33: n/a | AF33: n/a | AG33: n/a | AH33: n/a | AI33: n/a | AJ33: n/a | AK33: n/a
A34: 30 | C34: 30000 | F34: =Tabla961019[[#This Row],[Legalizacion]]+Tabla961019[[#This Row],[ Instalacion]]+Tabla961019[[#This Row],[Coste Hardware]] -> 30000 | R34: =Tabla961019[[#This Row],[Kw Valle]]+Tabla961019[[#This Row],[Kwh Llano]]+Tabla961019[[#This Row],[Kwh Punta]]+Tabla961019[[#This Row],[Kwh P1]]+Tabla961019[[#This Row],[Kwh P2]]+Tabla961019[[#This Row],[Kwh P3]]+Tabla961019[[#This Row],[Kwh P4]]+Tabla961019[[#This Row],[Kwh P5]]+Tabla961019[[#This Row],[Kwh P6]] -> 0 | U34: =Tabla961019[[#This Row],[Prod Solar]]-Tabla961019[[#This Row],[Exportado]] -> 0 | X34: 0 | Y34: 0 | Z34: =IF(X34=0,"No Disp",(Tabla961019[[#This Row],[Inversion]]-Tabla961019[[#This Row],[Ahorros(IBI)]])/X34) -> No Disp | AA34: años | AB34: n/a | AC34: n/a | AD34: n/a | AE34: n/a | AF34: n/a | AG34: n/a | AH34: n/a | AI34: n/a | AJ34: n/a | AK34: n/a
A35: 31 | C35: 30900 | F35: =Tabla961019[[#This Row],[Legalizacion]]+Tabla961019[[#This Row],[ Instalacion]]+Tabla961019[[#This Row],[Coste Hardware]] -> 30900 | R35: =Tabla961019[[#This Row],[Kw Valle]]+Tabla961019[[#This Row],[Kwh Llano]]+Tabla961019[[#This Row],[Kwh Punta]]+Tabla961019[[#This Row],[Kwh P1]]+Tabla961019[[#This Row],[Kwh P2]]+Tabla961019[[#This Row],[Kwh P3]]+Tabla961019[[#This Row],[Kwh P4]]+Tabla961019[[#This Row],[Kwh P5]]+Tabla961019[[#This Row],[Kwh P6]] -> 0 | U35: =Tabla961019[[#This Row],[Prod Solar]]-Tabla961019[[#This Row],[Exportado]] -> 0 | X35: 0 | Y35: 0 | Z35: =IF(X35=0,"No Disp",(Tabla961019[[#This Row],[Inversion]]-Tabla961019[[#This Row],[Ahorros(IBI)]])/X35) -> No Disp | AA35: años | AB35: n/a | AC35: n/a | AD35: n/a | AE35: n/a | AF35: n/a | AG35: n/a | AH35: n/a | AI35: n/a | AJ35: n/a | AK35: n/a
A36: 32 | C36: 31800 | F36: =Tabla961019[[#This Row],[Legalizacion]]+Tabla961019[[#This Row],[ Instalacion]]+Tabla961019[[#This Row],[Coste Hardware]] -> 31800 | R36: =Tabla961019[[#This Row],[Kw Valle]]+Tabla961019[[#This Row],[Kwh Llano]]+Tabla961019[[#This Row],[Kwh Punta]]+Tabla961019[[#This Row],[Kwh P1]]+Tabla961019[[#This Row],[Kwh P2]]+Tabla961019[[#This Row],[Kwh P3]]+Tabla961019[[#This Row],[Kwh P4]]+Tabla961019[[#This Row],[Kwh P5]]+Tabla961019[[#This Row],[Kwh P6]] -> 0 | U36: =Tabla961019[[#This Row],[Prod Solar]]-Tabla961019[[#This Row],[Exportado]] -> 0 | X36: 0 | Y36: 0 | Z36: =IF(X36=0,"No Disp",(Tabla961019[[#This Row],[Inversion]]-Tabla961019[[#This Row],[Ahorros(IBI)]])/X36) -> No Disp | AA36: años | AB36: n/a | AC36: n/a | AD36: n/a | AE36: n/a | AF36: n/a | AG36: n/a | AH36: n/a | AI36: n/a | AJ36: n/a | AK36: n/a
A37: 33 | C37: 32700 | F37: =Tabla961019[[#This Row],[Legalizacion]]+Tabla961019[[#This Row],[ Instalacion]]+Tabla961019[[#This Row],[Coste Hardware]] -> 32700 | R37: =Tabla961019[[#This Row],[Kw Valle]]+Tabla961019[[#This Row],[Kwh Llano]]+Tabla961019[[#This Row],[Kwh Punta]]+Tabla961019[[#This Row],[Kwh P1]]+Tabla961019[[#This Row],[Kwh P2]]+Tabla961019[[#This Row],[Kwh P3]]+Tabla961019[[#This Row],[Kwh P4]]+Tabla961019[[#This Row],[Kwh P5]]+Tabla961019[[#This Row],[Kwh P6]] -> 0 | U37: =Tabla961019[[#This Row],[Prod Solar]]-Tabla961019[[#This Row],[Exportado]] -> 0 | X37: 0 | Y37: 0 | Z37: =IF(X37=0,"No Disp",(Tabla961019[[#This Row],[Inversion]]-Tabla961019[[#This Row],[Ahorros(IBI)]])/X37) -> No Disp | AA37: años | AB37: n/a | AC37: n/a | AD37: n/a | AE37: n/a | AF37: n/a | AG37: n/a | AH37: n/a | AI37: n/a | AJ37: n/a | AK37: n/a
A38: 34 | C38: 33600 | F38: =Tabla961019[[#This Row],[Legalizacion]]+Tabla961019[[#This Row],[ Instalacion]]+Tabla961019[[#This Row],[Coste Hardware]] -> 33600 | R38: =Tabla961019[[#This Row],[Kw Valle]]+Tabla961019[[#This Row],[Kwh Llano]]+Tabla961019[[#This Row],[Kwh Punta]]+Tabla961019[[#This Row],[Kwh P1]]+Tabla961019[[#This Row],[Kwh P2]]+Tabla961019[[#This Row],[Kwh P3]]+Tabla961019[[#This Row],[Kwh P4]]+Tabla961019[[#This Row],[Kwh P5]]+Tabla961019[[#This Row],[Kwh P6]] -> 0 | U38: =Tabla961019[[#This Row],[Prod Solar]]-Tabla961019[[#This Row],[Exportado]] -> 0 | X38: 0 | Y38: 0 | Z38: =IF(X38=0,"No Disp",(Tabla961019[[#This Row],[Inversion]]-Tabla961019[[#This Row],[Ahorros(IBI)]])/X38) -> No Disp | AA38: años | AB38: n/a | AC38: n/a | AD38: n/a | AE38: n/a | AF38: n/a | AG38: n/a | AH38: n/a | AI38: n/a | AJ38: n/a | AK38: n/a
A39: 35 | C39: 34500 | F39: =Tabla961019[[#This Row],[Legalizacion]]+Tabla961019[[#This Row],[ Instalacion]]+Tabla961019[[#This Row],[Coste Hardware]] -> 34500 | R39: =Tabla961019[[#This Row],[Kw Valle]]+Tabla961019[[#This Row],[Kwh Llano]]+Tabla961019[[#This Row],[Kwh Punta]]+Tabla961019[[#This Row],[Kwh P1]]+Tabla961019[[#This Row],[Kwh P2]]+Tabla961019[[#This Row],[Kwh P3]]+Tabla961019[[#This Row],[Kwh P4]]+Tabla961019[[#This Row],[Kwh P5]]+Tabla961019[[#This Row],[Kwh P6]] -> 0 | U39: =Tabla961019[[#This Row],[Prod Solar]]-Tabla961019[[#This Row],[Exportado]] -> 0 | X39: 0 | Y39: 0 | Z39: =IF(X39=0,"No Disp",(Tabla961019[[#This Row],[Inversion]]-Tabla961019[[#This Row],[Ahorros(IBI)]])/X39) -> No Disp | AA39: años | AB39: n/a | AC39: n/a | AD39: n/a | AE39: n/a | AF39: n/a | AG39: n/a | AH39: n/a | AI39: n/a | AJ39: n/a | AK39: n/a
A40: 36 | C40: 35400 | F40: =Tabla961019[[#This Row],[Legalizacion]]+Tabla961019[[#This Row],[ Instalacion]]+Tabla961019[[#This Row],[Coste Hardware]] -> 35400 | R40: =Tabla961019[[#This Row],[Kw Valle]]+Tabla961019[[#This Row],[Kwh Llano]]+Tabla961019[[#This Row],[Kwh Punta]]+Tabla961019[[#This Row],[Kwh P1]]+Tabla961019[[#This Row],[Kwh P2]]+Tabla961019[[#This Row],[Kwh P3]]+Tabla961019[[#This Row],[Kwh P4]]+Tabla961019[[#This Row],[Kwh P5]]+Tabla961019[[#This Row],[Kwh P6]] -> 0 | U40: =Tabla961019[[#This Row],[Prod Solar]]-Tabla961019[[#This Row],[Exportado]] -> 0 | X40: 0 | Y40: 0 | Z40: =IF(X40=0,"No Disp",(Tabla961019[[#This Row],[Inversion]]-Tabla961019[[#This Row],[Ahorros(IBI)]])/X40) -> No Disp | AA40: años | AB40: n/a | AC40: n/a | AD40: n/a | AE40: n/a | AF40: n/a | AG40: n/a | AH40: n/a | AI40: n/a | AJ40: n/a | AK40: n/a
A41: 37 | C41: 36300 | F41: =Tabla961019[[#This Row],[Legalizacion]]+Tabla961019[[#This Row],[ Instalacion]]+Tabla961019[[#This Row],[Coste Hardware]] -> 36300 | R41: =Tabla961019[[#This Row],[Kw Valle]]+Tabla961019[[#This Row],[Kwh Llano]]+Tabla961019[[#This Row],[Kwh Punta]]+Tabla961019[[#This Row],[Kwh P1]]+Tabla961019[[#This Row],[Kwh P2]]+Tabla961019[[#This Row],[Kwh P3]]+Tabla961019[[#This Row],[Kwh P4]]+Tabla961019[[#This Row],[Kwh P5]]+Tabla961019[[#This Row],[Kwh P6]] -> 0 | U41: =Tabla961019[[#This Row],[Prod Solar]]-Tabla961019[[#This Row],[Exportado]] -> 0 | X41: 0 | Y41: 0 | Z41: =IF(X41=0,"No Disp",(Tabla961019[[#This Row],[Inversion]]-Tabla961019[[#This Row],[Ahorros(IBI)]])/X41) -> No Disp | AA41: años | AB41: n/a | AC41: n/a | AD41: n/a | AE41: n/a | AF41: n/a | AG41: n/a | AH41: n/a | AI41: n/a | AJ41: n/a | AK41: n/a
A42: 38 | C42: 37200 | F42: =Tabla961019[[#This Row],[Legalizacion]]+Tabla961019[[#This Row],[ Instalacion]]+Tabla961019[[#This Row],[Coste Hardware]] -> 37200 | R42: =Tabla961019[[#This Row],[Kw Valle]]+Tabla961019[[#This Row],[Kwh Llano]]+Tabla961019[[#This Row],[Kwh Punta]]+Tabla961019[[#This Row],[Kwh P1]]+Tabla961019[[#This Row],[Kwh P2]]+Tabla961019[[#This Row],[Kwh P3]]+Tabla961019[[#This Row],[Kwh P4]]+Tabla961019[[#This Row],[Kwh P5]]+Tabla961019[[#This Row],[Kwh P6]] -> 0 | U42: =Tabla961019[[#This Row],[Prod Solar]]-Tabla961019[[#This Row],[Exportado]] -> 0 | X42: 0 | Y42: 0 | Z42: =IF(X42=0,"No Disp",(Tabla961019[[#This Row],[Inversion]]-Tabla961019[[#This Row],[Ahorros(IBI)]])/X42) -> No Disp | AA42: años | AB42: n/a | AC42: n/a | AD42: n/a | AE42: n/a | AF42: n/a | AG42: n/a | AH42: n/a | AI42: n/a | AJ42: n/a | AK42: n/a
A43: 39 | C43: 38100 | F43: =Tabla961019[[#This Row],[Legalizacion]]+Tabla961019[[#This Row],[ Instalacion]]+Tabla961019[[#This Row],[Coste Hardware]] -> 38100 | R43: =Tabla961019[[#This Row],[Kw Valle]]+Tabla961019[[#This Row],[Kwh Llano]]+Tabla961019[[#This Row],[Kwh Punta]]+Tabla961019[[#This Row],[Kwh P1]]+Tabla961019[[#This Row],[Kwh P2]]+Tabla961019[[#This Row],[Kwh P3]]+Tabla961019[[#This Row],[Kwh P4]]+Tabla961019[[#This Row],[Kwh P5]]+Tabla961019[[#This Row],[Kwh P6]] -> 0 | U43: =Tabla961019[[#This Row],[Prod Solar]]-Tabla961019[[#This Row],[Exportado]] -> 0 | X43: 0 | Y43: 0 | Z43: =IF(X43=0,"No Disp",(Tabla961019[[#This Row],[Inversion]]-Tabla961019[[#This Row],[Ahorros(IBI)]])/X43) -> No Disp | AA43: años | AB43: n/a | AC43: n/a | AD43: n/a | AE43: n/a | AF43: n/a | AG43: n/a | AH43: n/a | AI43: n/a | AJ43: n/a | AK43: n/a
A44: 40 | C44: 39000 | F44: =Tabla961019[[#This Row],[Legalizacion]]+Tabla961019[[#This Row],[ Instalacion]]+Tabla961019[[#This Row],[Coste Hardware]] -> 39000 | R44: =Tabla961019[[#This Row],[Kw Valle]]+Tabla961019[[#This Row],[Kwh Llano]]+Tabla961019[[#This Row],[Kwh Punta]]+Tabla961019[[#This Row],[Kwh P1]]+Tabla961019[[#This Row],[Kwh P2]]+Tabla961019[[#This Row],[Kwh P3]]+Tabla961019[[#This Row],[Kwh P4]]+Tabla961019[[#This Row],[Kwh P5]]+Tabla961019[[#This Row],[Kwh P6]] -> 0 | U44: =Tabla961019[[#This Row],[Prod Solar]]-Tabla961019[[#This Row],[Exportado]] -> 0 | X44: 0 | Y44: 0 | Z44: =IF(X44=0,"No Disp",(Tabla961019[[#This Row],[Inversion]]-Tabla961019[[#This Row],[Ahorros(IBI)]])/X44) -> No Disp | AA44: años | AB44: n/a | AC44: n/a | AD44: n/a | AE44: n/a | AF44: n/a | AG44: n/a | AH44: n/a | AI44: n/a | AJ44: n/a | AK44: n/a

Sheet RENT BAT VE 5Kwh
G1: 0.25 | H1: 0 | I1: 0.03 | K1: 0.16 | L1: 0.14 | M1: 0.11 | N1: 0.09 | O1: 0.08 | P1: 0.08 | U1: 0.05 | V1: 0.05 | W1: 0.05 | AB1: =INDIRECT(CONCATENATE("Y",AB2+4)) -> 13.95245005 | AD1: =INDIRECT(CONCATENATE("Y",AD2+4)) -> 12.97672711 | AF1: =INDIRECT(CONCATENATE("Y",AF2+4)) -> 12.84069026 | AH1: =INDIRECT(CONCATENATE("Y",AH2+4)) -> 12.50603416 | AJ1: =INDIRECT(CONCATENATE("Y",AJ2+4)) -> 12.42051389
A2: RENTABILIDAD BATERIA | D2: 5 | G2: CONSUMO COMPAÑÍA | R2: Ahorro en los X años | AB2: =MATCH(AC2,AC5:AC44,0) -> 5 | AC2: =MIN(AC5:AC44) -> 15948.1 | AD2: =MATCH(AE2,AE5:AE44,0) -> 8 | AE2: =MIN(AE5:AE44) -> 21022.2 | AF2: =MATCH(AG2,AG5:AG44,0) -> 9 | AG2: =MIN(AG5:AG44) -> 24928.9 | AH2: =MATCH(AI2,AI5:AI44,0) -> 13 | AI2: =MIN(AI5:AI44) -> 27955.2 | AJ2: =MATCH(AK2,AK5:AK44,0) -> 15 | AK2: =MIN(AK5:AK44) -> 30456.25
A3: ' | B3: Factura | C3: Coste Hardware | D3: Instalacion | E3: Inversion | F3: Ahorros(IBI) | G3: Kwh Punta | H3: Kwh Llano | I3: Kw Valle | J3: C | K3: Kwh P1 | L3: Kwh P2 | M3: Kwh P3 | N3: Kwh P4 | O3: Kwh P5 | P3: Kwh P6 | Q3: Total | R3: P Max 99.5 | S3: Prod Solar | T3: Consumido | U3: Exportado | V3: %Aut | W3: Dif Anual | X3: Dif Anterior | Y3: Dura Bat | Z3: Amortizacion | AB3: 5 | AC3: 5 años TOT | AD3: 10 | AE3: 10 años TOT | AF3: 15 | AG3: 15 años TOT | AH3: 20 | AI3: 20 años TOT | AJ3: 25 | AK3: 25 años TOT
A4: ORIGINAL | B4: 3486.45 | G4: 9975.773 | H4: 0 | I4: 1517.136 | K4: 0 | L4: 0 | M4: 0 | N4: 0 | O4: 0 | P4: 0 | Q4: =Tabla9351220[[#This Row],[Kw Valle]]+Tabla9351220[[#This Row],[Kwh Llano]]+Tabla9351220[[#This Row],[Kwh Punta]]+Tabla9351220[[#This Row],[Kwh P1]]+Tabla9351220[[#This Row],[Kwh P2]]+Tabla9351220[[#This Row],[Kwh P3]]+Tabla9351220[[#This Row],[Kwh P4]]+Tabla9351220[[#This Row],[Kwh P5]]+Tabla9351220[[#This Row],[Kwh P6]] -> 11492.909 | AC4: =FV(INFLACCION,AB3,-$B$4,0) -> 17432.25 | AE4: =FV(INFLACCION,AD3,-$B$4,0) -> 34864.5 | AG4: =FV(INFLACCION,AF3,-$B$4,0) -> 52296.75 | AI4: =FV(INFLACCION,AH3,-$B$4,0) -> 69729 | AK4: =FV(INFLACCION,AJ3,-$B$4,0) -> 87161.25
A5: 1 | B5: 2614.66 | C5: 3000 | D5: =COSTE_BATERIA*CAPACIDAD_BATERIA -> 2500 | E5: =Tabla9351220[[#This Row],[ Instalacion]]+Tabla9351220[[#This Row],[Coste Hardware]] -> 5500 | G5: 7321.35978 | H5: 0 | I5: 3038.442358 | K5: 0 | L5: 0 | M5: 0 | N5: 0 | O5: 0 | P5: 0 | Q5: =Tabla9351220[[#This Row],[Kw Valle]]+Tabla9351220[[#This Row],[Kwh Llano]]+Tabla9351220[[#This Row],[Kwh Punta]]+Tabla9351220[[#This Row],[Kwh P1]]+Tabla9351220[[#This Row],[Kwh P2]]+Tabla9351220[[#This Row],[Kwh P3]]+Tabla9351220[[#This Row],[Kwh P4]]+Tabla9351220[[#This Row],[Kwh P5]]+Tabla9351220[[#This Row],[Kwh P6]] -> 10359.80214 | R5: 1018.76 | S5: 1364.27547 | T5: =Tabla9351220[[#This Row],[Prod Solar]]-Tabla9351220[[#This Row],[Exportado]] -> 0 | U5: 1364.27547 | V5: 0 | W5: =IF(B5=0,0,B$4-B5) -> 871.79 | X5: =IF(B5=0,0,B4-B5) -> 871.79 | Y5: 19.46747374 | Z5: =IF(W5=0,"No Disp",(Tabla9351220[[#This Row],[Inversion]]-Tabla9351220[[#This Row],[Ahorros(IBI)]])/W5) -> 6.308858785 | AA5: años | AB5: =IF($B5=0,"n/a",AC$4-(FV(INFLACCION,AB$3,-$B5,0))-$E5+$F5) -> -1141.05 | AC5: =IF(AB5<>"n/a",AC$4-AB5,"n/a") -> 18573.3 | AD5: =IF($B5=0,"n/a",AE$4-(FV(INFLACCION,AD$3,-$B5,0))-$E5+$F5) -> 3217.9 | AE5: =IF(AD5<>"n/a",AE$4-AD5,"n/a") -> 31646.6 | AF5: =IF($B5=0,"n/a",AG$4-(FV(INFLACCION,AF$3,-$B5,0))-$E5+$F5) -> 7576.85 | AG5: =IF(AF5<>"n/a",AG$4-AF5,"n/a") -> 44719.9 | AH5: =IF($B5=0,"n/a",AI$4-(FV(INFLACCION,AH$3,-$B5,0))-$E5+$F5) -> 11935.8 | AI5: =IF(AH5<>"n/a",AI$4-AH5,"n/a") -> 57793.2 | AJ5: =IF($B5=0,"n/a",AK$4-(FV(INFLACCION,AJ$3,-$B5,0))-$E5+$F5) -> 16294.75 | AK5: =IF(AJ5<>"n/a",AK$4-AJ5,"n/a") -> 70866.5
A6: 2 | B6: 2130.65 | C6: 4820 | D6: 2500 | E6: =Tabla9351220[[#This Row],[ Instalacion]]+Tabla9351220[[#This Row],[Coste Hardware]] -> 7320 | G6: 6072.032789 | H6: 0 | I6: 3024.454598 | K6: 0 | L6: 0 | M6: 0 | N6: 0 | O6: 0 | P6: 0 | Q6: =Tabla9351220[[#This Row],[Kw Valle]]+Tabla9351220[[#This Row],[Kwh Llano]]+Tabla9351220[[#This Row],[Kwh Punta]]+Tabla9351220[[#This Row],[Kwh P1]]+Tabla9351220[[#This Row],[Kwh P2]]+Tabla9351220[[#This Row],[Kwh P3]]+Tabla9351220[[#This Row],[Kwh P4]]+Tabla9351220[[#This Row],[Kwh P5]]+Tabla9351220[[#This Row],[Kwh P6]] -> 9096.487387 | R6: 2037.52 | S6: 2728.55094 | T6: =Tabla9351220[[#This Row],[Prod Solar]]-Tabla9351220[[#This Row],[Exportado]] -> 0 | U6: 2728.55094 | V6: 0 | W6: 1355.8 | X6: =IF(B6=0,0,B5-B6) -> 484.01 | Y6: 17.80063643 | Z6: =IF(W6=0,"No Disp",(Tabla9351220[[#This Row],[Inversion]]-Tabla9351220[[#This Row],[Ahorros(IBI)]])/W6) -> 5.399026405 | AA6: años | AB6: =IF($B6=0,"n/a",AC$4-(FV(INFLACCION,AB$3,-$B6,0))-$E6+$F6) -> -541 | AC6: =IF(AB6<>"n/a",AC$4-AB6,"n/a") -> 17973.25 | AD6: 6238 | AE6: =IF(AD6<>"n/a",AE$4-AD6,"n/a") -> 28626.5 | AF6: 13017 | AG6: =IF(AF6<>"n/a",AG$4-AF6,"n/a") -> 39279.75 | AH6: 19796 | AI6: =IF(AH6<>"n/a",AI$4-AH6,"n/a") -> 49933 | AJ6: 26575 | AK6: =IF(AJ6<>"n/a",AK$4-AJ6,"n/a") -> 60586.25
A7: 3 | B7: 1757.67 | C7: 5450 | D7: 2500 | E7: =Tabla9351220[[#This Row],[ Instalacion]]+Tabla9351220[[#This Row],[Coste Hardware]] -> 7950 | G7: 5172.290692 | H7: 0 | I7: 3010.466838 | K7: 0 | L7: 0 | M7: 0 | N7: 0 | O7: 0 | P7: 0 | Q7: =Tabla9351220[[#This Row],[Kw Valle]]+Tabla9351220[[#This Row],[Kwh Llano]]+Tabla9351220[[#This Row],[Kwh Punta]]+Tabla9351220[[#This Row],[Kwh P1]]+Tabla9351220[[#This Row],[Kwh P2]]+Tabla9351220[[#This Row],[Kwh P3]]+Tabla9351220[[#This Row],[Kwh P4]]+Tabla9351220[[#This Row],[Kwh P5]]+Tabla9351220[[#This Row],[Kwh P6]] -> 8182.75753 | R7: 3056.28 | S7: 4092.82641 | T7: =Tabla9351220[[#This Row],[Prod Solar]]-Tabla9351220[[#This Row],[Exportado]] -> 0 | U7: 4092.82641 | V7: 0 | W7: 1728.78 | X7: =IF(B7=0,0,B6-B7) -> 372.98 | Y7: 16.0019117 | Z7: =IF(W7=0,"No Disp",(Tabla9351220[[#This Row],[Inversion]]-Tabla9351220[[#This Row],[Ahorros(IBI)]])/W7) -> 4.598618679 | AA7: años | AB7: 693.9 | AC7: 16738.35 | AD7: 9337.8 | AE7: 25526.7 | AF7: 17981.7 | AG7: 34315.05 | AH7: 26625.6 | AI7: 43103.4 | AJ7: 35269.5 | AK7: 51891.75
A8: 4 | B8: 1475.92 | C8: 6300 | D8: 2500 | E8: =Tabla9351220[[#This Row],[ Instalacion]]+Tabla9351220[[#This Row],[Coste Hardware]] -> 8800 | G8: 4559.723068 | H8: 0 | I8: 2996.915478 | K8: 0 | L8: 0 | M8: 0 | N8: 0 | O8: 0 | P8: 0 | Q8: =Tabla9351220[[#This Row],[Kw Valle]]+Tabla9351220[[#This Row],[Kwh Llano]]+Tabla9351220[[#This Row],[Kwh Punta]]+Tabla9351220[[#This Row],[Kwh P1]]+Tabla9351220[[#This Row],[Kwh P2]]+Tabla9351220[[#This Row],[Kwh P3]]+Tabla9351220[[#This Row],[Kwh P4]]+Tabla9351220[[#This Row],[Kwh P5]]+Tabla9351220[[#This Row],[Kwh P6]] -> 7556.638546 | R8: 4075.04 | S8: 5457.10188 | T8: =Tabla9351220[[#This Row],[Prod Solar]]-Tabla9351220[[#This Row],[Exportado]] -> 0 | U8: 5457.10188 | V8: 0 | W8: 2010.53 | X8: =IF(B8=0,0,B7-B8) -> 281.75 | Y8: 14.81744171 | Z8: =IF(W8=0,"No Disp",(Tabla9351220[[#This Row],[Inversion]]-Tabla9351220[[#This Row],[Ahorros(IBI)]])/W8) -> 4.37695533 | AA8: años | AB8: 1252.65 | AC8: 16179.6 | AD8: 11305.3 | AE8: 23559.2 | AF8: 21357.95 | AG8: 30938.8 | AH8: 31410.6 | AI8: 38318.4 | AJ8: 41463.25 | AK8: 45698
A9: 5 | B9: 1249.62 | C9: 7200 | D9: 2500 | E9: =Tabla9351220[[#This Row],[ Instalacion]]+Tabla9351220[[#This Row],[Coste Hardware]] -> 9700 | G9: 4109.27744 | H9: 0 | I9: 2985.550268 | K9: 0 | L9: 0 | M9: 0 | N9: 0 | O9: 0 | P9: 0 | Q9: =Tabla9351220[[#This Row],[Kw Valle]]+Tabla9351220[[#This Row],[Kwh Llano]]+Tabla9351220[[#This Row],[Kwh Punta]]+Tabla9351220[[#This Row],[Kwh P1]]+Tabla9351220[[#This Row],[Kwh P2]]+Tabla9351220[[#This Row],[Kwh P3]]+Tabla9351220[[#This Row],[Kwh P4]]+Tabla9351220[[#This Row],[Kwh P5]]+Tabla9351220[[#This Row],[Kwh P6]] -> 7094.827708 | R9: 5093.8 | S9: 6821.37735 | T9: =Tabla9351220[[#This Row],[Prod Solar]]-Tabla9351220[[#This Row],[Exportado]] -> 0 | U9: 6821.37735 | V9: 0 | W9: 2236.83 | X9: 226.3 | Y9: 13.95245005 | Z9: =IF(W9=0,"No Disp",(Tabla9351220[[#This Row],[Inversion]]-Tabla9351220[[#This Row],[Ahorros(IBI)]])/W9) -> 4.336494056 | AA9: años | AB9: 1484.15 | AC9: 15948.1 | AD9: 12668.3 | AE9: 22196.2 | AF9: 23852.45 | AG9: 28444.3 | AH9: 35036.6 | AI9: 34692.4 | AJ9: 46220.75 | AK9: 40940.5
A10: 6 | B10: 1073.02 | C10: 8300 | D10: 2500 | E10: =Tabla9351220[[#This Row],[ Instalacion]]+Tabla9351220[[#This Row],[Coste Hardware]] -> 10800 | G10: 3779.855264 | H10: 0 | I10: 2976.098378 | K10: 0 | L10: 0 | M10: 0 | N10: 0 | O10: 0 | P10: 0 | Q10: =Tabla9351220[[#This Row],[Kw Valle]]+Tabla9351220[[#This Row],[Kwh Llano]]+Tabla9351220[[#This Row],[Kwh Punta]]+Tabla9351220[[#This Row],[Kwh P1]]+Tabla9351220[[#This Row],[Kwh P2]]+Tabla9351220[[#This Row],[Kwh P3]]+Tabla9351220[[#This Row],[Kwh P4]]+Tabla9351220[[#This Row],[Kwh P5]]+Tabla9351220[[#This Row],[Kwh P6]] -> 6755.953642 | R10: 6112.56 | S10: 8185.65282 | T10: =Tabla9351220[[#This Row],[Prod Solar]]-Tabla9351220[[#This Row],[Exportado]] -> 0 | U10: 8185.65282 | V10: 0 | W10: 2413.43 | X10: 176.6 | Y10: 13.42251851 | Z10: =IF(W10=0,"No Disp",(Tabla9351220[[#This Row],[Inversion]]-Tabla9351220[[#This Row],[Ahorros(IBI)]])/W10) -> 4.474958876 | AA10: años | AB10: 1267.15 | AC10: 16165.1 | AD10: 13334.3 | AE10: 21530.2 | AF10: 25401.45 | AG10: 26895.3 | AH10: 37468.6 | AI10: 32260.4 | AJ10: 49535.75 | AK10: 37625.5
A11: 7 | B11: 937.26 | C11: 9300 | D11: 2500 | E11: =Tabla9351220[[#This Row],[ Instalacion]]+Tabla9351220[[#This Row],[Coste Hardware]] -> 11800 | G11: 3541.208892 | H11: 0 | I11: 2968.167618 | K11: 0 | L11: 0 | M11: 0 | N11: 0 | O11: 0 | P11: 0 | Q11: =Tabla9351220[[#This Row],[Kw Valle]]+Tabla9351220[[#This Row],[Kwh Llano]]+Tabla9351220[[#This Row],[Kwh Punta]]+Tabla9351220[[#This Row],[Kwh P1]]+Tabla9351220[[#This Row],[Kwh P2]]+Tabla9351220[[#This Row],[Kwh P3]]+Tabla9351220[[#This Row],[Kwh P4]]+Tabla9351220[[#This Row],[Kwh P5]]+Tabla9351220[[#This Row],[Kwh P6]] -> 6509.37651 | R11: 7131.32 | S11: 9549.92829 | T11: =Tabla9351220[[#This Row],[Prod Solar]]-Tabla9351220[[#This Row],[Exportado]] -> 0 | U11: 9549.92829 | V11: 0 | W11: 2549.19 | X11: 135.76 | Y11: 13.15725996 | Z11: =IF(W11=0,"No Disp",(Tabla9351220[[#This Row],[Inversion]]-Tabla9351220[[#This Row],[Ahorros(IBI)]])/W11) -> 4.628921344 | AA11: años | AB11: 945.95 | AC11: 16486.3 | AD11: 13691.9 | AE11: 21172.6 | AF11: 26437.85 | AG11: 25858.9 | AH11: 39183.8 | AI11: 30545.2 | AJ11: 51929.75 | AK11: 35231.5
A12: 8 | B12: 832.22 | C12: 10200 | D12: 2500 | E12: =Tabla9351220[[#This Row],[ Instalacion]]+Tabla9351220[[#This Row],[Coste Hardware]] -> 12700 | G12: 3348.083014 | H12: 0 | I12: 2961.438485 | K12: 0 | L12: 0 | M12: 0 | N12: 0 | O12: 0 | P12: 0 | Q12: =Tabla9351220[[#This Row],[Kw Valle]]+Tabla9351220[[#This Row],[Kwh Llano]]+Tabla9351220[[#This Row],[Kwh Punta]]+Tabla9351220[[#This Row],[Kwh P1]]+Tabla9351220[[#This Row],[Kwh P2]]+Tabla9351220[[#This Row],[Kwh P3]]+Tabla9351220[[#This Row],[Kwh P4]]+Tabla9351220[[#This Row],[Kwh P5]]+Tabla9351220[[#This Row],[Kwh P6]] -> 6309.521499 | R12: 8150.08 | S12: 10914.20376 | T12: =Tabla9351220[[#This Row],[Prod Solar]]-Tabla9351220[[#This Row],[Exportado]] -> 0 | U12: 10914.20376 | V12: 0 | W12: 2654.23 | X12: 105.04 | Y12: 12.97672711 | Z12: =IF(W12=0,"No Disp",(Tabla9351220[[#This Row],[Inversion]]-Tabla9351220[[#This Row],[Ahorros(IBI)]])/W12) -> 4.784815182 | AA12: años | AB12: 571.15 | AC12: 16861.1 | AD12: 13842.3 | AE12: 21022.2 | AF12: 27113.45 | AG12: 25183.3 | AH12: 40384.6 | AI12: 29344.4 | AJ12: 53655.75 | AK12: 33505.5
A13: 9 | B13: 755.26 | C13: 11100 | D13: 2500 | E13: =Tabla9351220[[#This Row],[ Instalacion]]+Tabla9351220[[#This Row],[Coste Hardware]] -> 13600 | G13: 3186.869882 | H13: 0 | I13: 2955.659438 | K13: 0 | L13: 0 | M13: 0 | N13: 0 | O13: 0 | P13: 0 | Q13: =Tabla9351220[[#This Row],[Kw Valle]]+Tabla9351220[[#This Row],[Kwh Llano]]+Tabla9351220[[#This Row],[Kwh Punta]]+Tabla9351220[[#This Row],[Kwh P1]]+Tabla9351220[[#This Row],[Kwh P2]]+Tabla9351220[[#This Row],[Kwh P3]]+Tabla9351220[[#This Row],[Kwh P4]]+Tabla9351220[[#This Row],[Kwh P5]]+Tabla9351220[[#This Row],[Kwh P6]] -> 6142.52932 | R13: 9168.84 | S13: 12278.47923 | T13: =Tabla9351220[[#This Row],[Prod Solar]]-Tabla9351220[[#This Row],[Exportado]] -> 0 | U13: 12278.47923 | V13: 0 | W13: 2731.19 | X13: 76.96 | Y13: 12.84069026 | Z13: =IF(W13=0,"No Disp",(Tabla9351220[[#This Row],[Inversion]]-Tabla9351220[[#This Row],[Ahorros(IBI)]])/W13) -> 4.979514424 | AA13: años | AB13: 55.95 | AC13: 17376.3 | AD13: 13711.9 | AE13: 21152.6 | AF13: 27367.85 | AG13: 24928.9 | AH13: 41023.8 | AI13: 28705.2 | AJ13: 54679.75 | AK13: 32481.5
A14: 10 | B14: 696.17 | C14: 12000 | D14: 2500 | E14: =Tabla9351220[[#This Row],[ Instalacion]]+Tabla9351220[[#This Row],[Coste Hardware]] -> 14500 | G14: 3047.07086 | H14: 0 | I14: 2950.462924 | K14: 0 | L14: 0 | M14: 0 | N14: 0 | O14: 0 | P14: 0 | Q14: =Tabla9351220[[#This Row],[Kw Valle]]+Tabla9351220[[#This Row],[Kwh Llano]]+Tabla9351220[[#This Row],[Kwh Punta]]+Tabla9351220[[#This Row],[Kwh P1]]+Tabla9351220[[#This Row],[Kwh P2]]+Tabla9351220[[#This Row],[Kwh P3]]+Tabla9351220[[#This Row],[Kwh P4]]+Tabla9351220[[#This Row],[Kwh P5]]+Tabla9351220[[#This Row],[Kwh P6]] -> 5997.533784 | R14: 10187.6 | S14: 13642.7547 | T14: =Tabla9351220[[#This Row],[Prod Solar]]-Tabla9351220[[#This Row],[Exportado]] -> 0 | U14: 13642.7547 | V14: 0 | W14: 2790.28 | X14: 59.09 | Y14: 12.72204744 | Z14: =IF(W14=0,"No Disp",(Tabla9351220[[#This Row],[Inversion]]-Tabla9351220[[#This Row],[Ahorros(IBI)]])/W14) -> 5.196611093 | AA14: años | AB14: -548.6 | AC14: 17980.85 | AD14: 13402.8 | AE14: 21461.7 | AF14: 27354.2 | AG14: 24942.55 | AH14: 41305.6 | AI14: 28423.4 | AJ14: 55257 | AK14: 31904.25
A15: 11 | B15: 640.49 | C15: 12900 | D15: 2500 | E15: =Tabla9351220[[#This Row],[ Instalacion]]+Tabla9351220[[#This Row],[Coste Hardware]] -> 15400 | G15: 2924.717293 | H15: 0 | I15: 2945.625235 | K15: 0 | L15: 0 | M15: 0 | N15: 0 | O15: 0 | P15: 0 | Q15: =Tabla9351220[[#This Row],[Kw Valle]]+Tabla9351220[[#This Row],[Kwh Llano]]+Tabla9351220[[#This Row],[Kwh Punta]]+Tabla9351220[[#This Row],[Kwh P1]]+Tabla9351220[[#This Row],[Kwh P2]]+Tabla9351220[[#This Row],[Kwh P3]]+Tabla9351220[[#This Row],[Kwh P4]]+Tabla9351220[[#This Row],[Kwh P5]]+Tabla9351220[[#This Row],[Kwh P6]] -> 5870.342528 | R15: 11206.36 | S15: 15007.03017 | T15: =Tabla9351220[[#This Row],[Prod Solar]]-Tabla9351220[[#This Row],[Exportado]] -> 0 | U15: 15007.03017 | V15: 0 | W15: 2845.96 | X15: 55.68 | Y15: 12.62036144 | Z15: =IF(W15=0,"No Disp",(Tabla9351220[[#This Row],[Inversion]]-Tabla9351220[[#This Row],[Ahorros(IBI)]])/W15) -> 5.411179356 | AA15: años | AB15: -1170.2 | AC15: 18602.45 | AD15: 13059.6 | AE15: 21804.9 | AF15: 27289.4 | AG15: 25007.35 | AH15: 41519.2 | AI15: 28209.8 | AJ15: 55749 | AK15: 31412.25
A16: 12 | B16: 587.66 | C16: 13800 | D16: 2500 | E16: =Tabla9351220[[#This Row],[ Instalacion]]+Tabla9351220[[#This Row],[Coste Hardware]] -> 16300 | G16: 2820.666414 | H16: 0 | I16: 2941.045706 | K16: 0 | L16: 0 | M16: 0 | N16: 0 | O16: 0 | P16: 0 | Q16: =Tabla9351220[[#This Row],[Kw Valle]]+Tabla9351220[[#This Row],[Kwh Llano]]+Tabla9351220[[#This Row],[Kwh Punta]]+Tabla9351220[[#This Row],[Kwh P1]]+Tabla9351220[[#This Row],[Kwh P2]]+Tabla9351220[[#This Row],[Kwh P3]]+Tabla9351220[[#This Row],[Kwh P4]]+Tabla9351220[[#This Row],[Kwh P5]]+Tabla9351220[[#This Row],[Kwh P6]] -> 5761.71212 | R16: 12225.12 | S16: 16371.30564 | T16: =Tabla9351220[[#This Row],[Prod Solar]]-Tabla9351220[[#This Row],[Exportado]] -> 0 | U16: 16371.30564 | V16: 0 | W16: 2898.79 | X16: 52.83 | Y16: 12.55034256 | Z16: =IF(W16=0,"No Disp",(Tabla9351220[[#This Row],[Inversion]]-Tabla9351220[[#This Row],[Ahorros(IBI)]])/W16) -> 5.623035818 | AA16: años | AB16: -1806.05 | AC16: 19238.3 | AD16: 12687.9 | AE16: 22176.6 | AF16: 27181.85 | AG16: 25114.9 | AH16: 41675.8 | AI16: 28053.2 | AJ16: 56169.75 | AK16: 30991.5
A17: 13 | B17: 537.76 | C17: 14700 | D17: 2500 | E17: =Tabla9351220[[#This Row],[ Instalacion]]+Tabla9351220[[#This Row],[Coste Hardware]] -> 17200 | G17: 2730.52267 | H17: 0 | I17: 2937.255547 | K17: 0 | L17: 0 | M17: 0 | N17: 0 | O17: 0 | P17: 0 | Q17: =Tabla9351220[[#This Row],[Kw Valle]]+Tabla9351220[[#This Row],[Kwh Llano]]+Tabla9351220[[#This Row],[Kwh Punta]]+Tabla9351220[[#This Row],[Kwh P1]]+Tabla9351220[[#This Row],[Kwh P2]]+Tabla9351220[[#This Row],[Kwh P3]]+Tabla9351220[[#This Row],[Kwh P4]]+Tabla9351220[[#This Row],[Kwh P5]]+Tabla9351220[[#This Row],[Kwh P6]] -> 5667.778217 | R17: 13243.88 | S17: 17735.58111 | T17: =Tabla9351220[[#This Row],[Prod Solar]]-Tabla9351220[[#This Row],[Exportado]] -> 0 | U17: 17735.58111 | V17: 0 | W17: 2948.69 | X17: 49.9 | Y17: 12.50603416 | Z17: =IF(W17=0,"No Disp",(Tabla9351220[[#This Row],[Inversion]]-Tabla9351220[[#This Row],[Ahorros(IBI)]])/W17) -> 5.833098766 | AA17: años | AB17: -2456.55 | AC17: 19888.8 | AD17: 12286.9 | AE17: 22577.6 | AF17: 27030.35 | AG17: 25266.4 | AH17: 41773.8 | AI17: 27955.2 | AJ17: 56517.25 | AK17: 30644
A18: 14 | B18: 496.59 | C18: 15600 | D18: 2500 | E18: =Tabla9351220[[#This Row],[ Instalacion]]+Tabla9351220[[#This Row],[Coste Hardware]] -> 18100 | G18: 2648.901864 | H18: 0 | I18: 2933.773248 | K18: 0 | L18: 0 | M18: 0 | N18: 0 | O18: 0 | P18: 0 | Q18: =Tabla9351220[[#This Row],[Kw Valle]]+Tabla9351220[[#This Row],[Kwh Llano]]+Tabla9351220[[#This Row],[Kwh Punta]]+Tabla9351220[[#This Row],[Kwh P1]]+Tabla9351220[[#This Row],[Kwh P2]]+Tabla9351220[[#This Row],[Kwh P3]]+Tabla9351220[[#This Row],[Kwh P4]]+Tabla9351220[[#This Row],[Kwh P5]]+Tabla9351220[[#This Row],[Kwh P6]] -> 5582.675112 | R18: 14262.64 | S18: 19099.85658 | T18: =Tabla9351220[[#This Row],[Prod Solar]]-Tabla9351220[[#This Row],[Exportado]] -> 0 | U18: 19099.85658 | V18: 0 | W18: 2989.86 | X18: 41.17 | Y18: 12.46613885 | Z18: =IF(W18=0,"No Disp",(Tabla9351220[[#This Row],[Inversion]]-Tabla9351220[[#This Row],[Ahorros(IBI)]])/W18) -> 6.053795161 | AA18: años | AB18: -3150.7 | AC18: 20582.95 | AD18: 11798.6 | AE18: 23065.9 | AF18: 26747.9 | AG18: 25548.85 | AH18: 41697.2 | AI18: 28031.8 | AJ18: 56646.5 | AK18: 30514.75
A19: 15 | B19: 458.25 | C19: 16500 | D19: 2500 | E19: =Tabla9351220[[#This Row],[ Instalacion]]+Tabla9351220[[#This Row],[Coste Hardware]] -> 19000 | G19: 2575.781753 | H19: 0 | I19: 2930.573079 | K19: 0 | L19: 0 | M19: 0 | N19: 0 | O19: 0 | P19: 0 | Q19: =Tabla9351220[[#This Row],[Kw Valle]]+Tabla9351220[[#This Row],[Kwh Llano]]+Tabla9351220[[#This Row],[Kwh Punta]]+Tabla9351220[[#This Row],[Kwh P1]]+Tabla9351220[[#This Row],[Kwh P2]]+Tabla9351220[[#This Row],[Kwh P3]]+Tabla9351220[[#This Row],[Kwh P4]]+Tabla9351220[[#This Row],[Kwh P5]]+Tabla9351220[[#This Row],[Kwh P6]] -> 5506.354832 | R19: 15281.4 | S19: 20464.13205 | T19: =Tabla9351220[[#This Row],[Prod Solar]]-Tabla9351220[[#This Row],[Exportado]] -> 0 | U19: 20464.13205 | V19: 0 | W19: 3028.2 | X19: 38.34 | Y19: 12.42051389 | Z19: =IF(W19=0,"No Disp",(Tabla9351220[[#This Row],[Inversion]]-Tabla9351220[[#This Row],[Ahorros(IBI)]])/W19) -> 6.274354402 | AA19: años | AB19: -3859 | AC19: 21291.25 | AD19: 11282 | AE19: 23582.5 | AF19: 26423 | AG19: 25873.75 | AH19: 41564 | AI19: 28165 | AJ19: 56705 | AK19: 30456.25
A20: 16 | C20: =C19+900 -> 17400 | D20: 2500 | E20: =Tabla9351220[[#This Row],[ Instalacion]]+Tabla9351220[[#This Row],[Coste Hardware]] -> 19900 | Q20: =Tabla9351220[[#This Row],[Kw Valle]]+Tabla9351220[[#This Row],[Kwh Llano]]+Tabla9351220[[#This Row],[Kwh Punta]]+Tabla9351220[[#This Row],[Kwh P1]]+Tabla9351220[[#This Row],[Kwh P2]]+Tabla9351220[[#This Row],[Kwh P3]]+Tabla9351220[[#This Row],[Kwh P4]]+Tabla9351220[[#This Row],[Kwh P5]]+Tabla9351220[[#This Row],[Kwh P6]] -> 0 | T20: =Tabla9351220[[#This Row],[Prod Solar]]-Tabla9351220[[#This Row],[Exportado]] -> 0 | W20: 0 | X20: 0 | Y20: 39.84302229 | Z20: =IF(W20=0,"No Disp",(Tabla9351220[[#This Row],[Inversion]]-Tabla9351220[[#This Row],[Ahorros(IBI)]])/W20) -> No Disp | AA20: años | AB20: n/a | AC20: n/a | AD20: n/a | AE20: n/a | AF20: n/a | AG20: n/a | AH20: n/a | AI20: n/a | AJ20: n/a | AK20: n/a
A21: 17 | C21: =C20+900 -> 18300 | D21: 2500 | E21: =Tabla9351220[[#This Row],[ Instalacion]]+Tabla9351220[[#This Row],[Coste Hardware]] -> 20800 | Q21: =Tabla9351220[[#This Row],[Kw Valle]]+Tabla9351220[[#This Row],[Kwh Llano]]+Tabla9351220[[#This Row],[Kwh Punta]]+Tabla9351220[[#This Row],[Kwh P1]]+Tabla9351220[[#This Row],[Kwh P2]]+Tabla9351220[[#This Row],[Kwh P3]]+Tabla9351220[[#This Row],[Kwh P4]]+Tabla9351220[[#This Row],[Kwh P5]]+Tabla9351220[[#This Row],[Kwh P6]] -> 0 | T21: =Tabla9351220[[#This Row],[Prod Solar]]-Tabla9351220[[#This Row],[Exportado]] -> 0 | W21: 0 | X21: 0 | Y21: 36.85281197 | Z21: =IF(W21=0,"No Disp",(Tabla9351220[[#This Row],[Inversion]]-Tabla9351220[[#This Row],[Ahorros(IBI)]])/W21) -> No Disp | AA21: años | AB21: n/a | AC21: n/a | AD21: n/a | AE21: n/a | AF21: n/a | AG21: n/a | AH21: n/a | AI21: n/a | AJ21: n/a | AK21: n/a
A22: 18 | C22: 19200 | D22: 2500 | E22: =Tabla9351220[[#This Row],[ Instalacion]]+Tabla9351220[[#This Row],[Coste Hardware]] -> 21700 | Q22: =Tabla9351220[[#This Row],[Kw Valle]]+Tabla9351220[[#This Row],[Kwh Llano]]+Tabla9351220[[#This Row],[Kwh Punta]]+Tabla9351220[[#This Row],[Kwh P1]]+Tabla9351220[[#This Row],[Kwh P2]]+Tabla9351220[[#This Row],[Kwh P3]]+Tabla9351220[[#This Row],[Kwh P4]]+Tabla9351220[[#This Row],[Kwh P5]]+Tabla9351220[[#This Row],[Kwh P6]] -> 0 | T22: =Tabla9351220[[#This Row],[Prod Solar]]-Tabla9351220[[#This Row],[Exportado]] -> 0 | W22: 0 | X22: 0 | Y22: 34.22636158 | Z22: =IF(W22=0,"No Disp",(Tabla9351220[[#This Row],[Inversion]]-Tabla9351220[[#This Row],[Ahorros(IBI)]])/W22) -> No Disp | AA22: años | AB22: n/a | AC22: n/a | AD22: n/a | AE22: n/a | AF22: n/a | AG22: n/a | AH22: n/a | AI22: n/a | AJ22: n/a | AK22: n/a
A23: 19 | C23: 20100 | D23: 2500 | E23: =Tabla9351220[[#This Row],[ Instalacion]]+Tabla9351220[[#This Row],[Coste Hardware]] -> 22600 | Q23: =Tabla9351220[[#This Row],[Kw Valle]]+Tabla9351220[[#This Row],[Kwh Llano]]+Tabla9351220[[#This Row],[Kwh Punta]]+Tabla9351220[[#This Row],[Kwh P1]]+Tabla9351220[[#This Row],[Kwh P2]]+Tabla9351220[[#This Row],[Kwh P3]]+Tabla9351220[[#This Row],[Kwh P4]]+Tabla9351220[[#This Row],[Kwh P5]]+Tabla9351220[[#This Row],[Kwh P6]] -> 0 | T23: =Tabla9351220[[#This Row],[Prod Solar]]-Tabla9351220[[#This Row],[Exportado]] -> 0 | W23: 0 | X23: 0 | Y23: 31.90588917 | Z23: =IF(W23=0,"No Disp",(Tabla9351220[[#This Row],[Inversion]]-Tabla9351220[[#This Row],[Ahorros(IBI)]])/W23) -> No Disp | AA23: años | AB23: n/a | AC23: n/a | AD23: n/a | AE23: n/a | AF23: n/a | AG23: n/a | AH23: n/a | AI23: n/a | AJ23: n/a | AK23: n/a
A24: 20 | C24: 21000 | D24: 2500 | E24: =Tabla9351220[[#This Row],[ Instalacion]]+Tabla9351220[[#This Row],[Coste Hardware]] -> 23500 | Q24: =Tabla9351220[[#This Row],[Kw Valle]]+Tabla9351220[[#This Row],[Kwh Llano]]+Tabla9351220[[#This Row],[Kwh Punta]]+Tabla9351220[[#This Row],[Kwh P1]]+Tabla9351220[[#This Row],[Kwh P2]]+Tabla9351220[[#This Row],[Kwh P3]]+Tabla9351220[[#This Row],[Kwh P4]]+Tabla9351220[[#This Row],[Kwh P5]]+Tabla9351220[[#This Row],[Kwh P6]] -> 0 | T24: =Tabla9351220[[#This Row],[Prod Solar]]-Tabla9351220[[#This Row],[Exportado]] -> 0 | W24: 0 | X24: 0 | Y24: 29.83296735 | Z24: =IF(W24=0,"No Disp",(Tabla9351220[[#This Row],[Inversion]]-Tabla9351220[[#This Row],[Ahorros(IBI)]])/W24) -> No Disp | AA24: años | AB24: n/a | AC24: n/a | AD24: n/a | AE24: n/a | AF24: n/a | AG24: n/a | AH24: n/a | AI24: n/a | AJ24: n/a | AK24: n/a
A25: 21 | C25: 21900 | D25: 2500 | E25: =Tabla9351220[[#This Row],[ Instalacion]]+Tabla9351220[[#This Row],[Coste Hardware]] -> 24400 | Q25: =Tabla9351220[[#This Row],[Kw Valle]]+Tabla9351220[[#This Row],[Kwh Llano]]+Tabla9351220[[#This Row],[Kwh Punta]]+Tabla9351220[[#This Row],[Kwh P1]]+Tabla9351220[[#This Row],[Kwh P2]]+Tabla9351220[[#This Row],[Kwh P3]]+Tabla9351220[[#This Row],[Kwh P4]]+Tabla9351220[[#This Row],[Kwh P5]]+Tabla9351220[[#This Row],[Kwh P6]] -> 0 | T25: =Tabla9351220[[#This Row],[Prod Solar]]-Tabla9351220[[#This Row],[Exportado]] -> 0 | W25: 0 | X25: 0 | Y25: 28.06658329 | Z25: =IF(W25=0,"No Disp",(Tabla9351220[[#This Row],[Inversion]]-Tabla9351220[[#This Row],[Ahorros(IBI)]])/W25) -> No Disp | AA25: años | AB25: n/a | AC25: n/a | AD25: n/a | AE25: n/a | AF25: n/a | AG25: n/a | AH25: n/a | AI25: n/a | AJ25: n/a | AK25: n/a
A26: 22 | C26: 22800 | D26: 2500 | E26: =Tabla9351220[[#This Row],[ Instalacion]]+Tabla9351220[[#This Row],[Coste Hardware]] -> 25300 | Q26: =Tabla9351220[[#This Row],[Kw Valle]]+Tabla9351220[[#This Row],[Kwh Llano]]+Tabla9351220[[#This Row],[Kwh Punta]]+Tabla9351220[[#This Row],[Kwh P1]]+Tabla9351220[[#This Row],[Kwh P2]]+Tabla9351220[[#This Row],[Kwh P3]]+Tabla9351220[[#This Row],[Kwh P4]]+Tabla9351220[[#This Row],[Kwh P5]]+Tabla9351220[[#This Row],[Kwh P6]] -> 0 | T26: =Tabla9351220[[#This Row],[Prod Solar]]-Tabla9351220[[#This Row],[Exportado]] -> 0 | W26: 0 | X26: 0 | Y26: 26.62710639 | Z26: =IF(W26=0,"No Disp",(Tabla9351220[[#This Row],[Inversion]]-Tabla9351220[[#This Row],[Ahorros(IBI)]])/W26) -> No Disp | AA26: años | AB26: n/a | AC26: n/a | AD26: n/a | AE26: n/a | AF26: n/a | AG26: n/a | AH26: n/a | AI26: n/a | AJ26: n/a | AK26: n/a
A27: 23 | C27: 23700 | D27: 2500 | E27: =Tabla9351220[[#This Row],[ Instalacion]]+Tabla9351220[[#This Row],[Coste Hardware]] -> 26200 | Q27: =Tabla9351220[[#This Row],[Kw Valle]]+Tabla9351220[[#This Row],[Kwh Llano]]+Tabla9351220[[#This Row],[Kwh Punta]]+Tabla9351220[[#This Row],[Kwh P1]]+Tabla9351220[[#This Row],[Kwh P2]]+Tabla9351220[[#This Row],[Kwh P3]]+Tabla9351220[[#This Row],[Kwh P4]]+Tabla9351220[[#This Row],[Kwh P5]]+Tabla9351220[[#This Row],[Kwh P6]] -> 0 | T27: =Tabla9351220[[#This Row],[Prod Solar]]-Tabla9351220[[#This Row],[Exportado]] -> 0 | W27: 0 | X27: 0 | Y27: 25.49089083 | Z27: =IF(W27=0,"No Disp",(Tabla9351220[[#This Row],[Inversion]]-Tabla9351220[[#This Row],[Ahorros(IBI)]])/W27) -> No Disp | AA27: años | AB27: n/a | AC27: n/a | AD27: n/a | AE27: n/a | AF27: n/a | AG27: n/a | AH27: n/a | AI27: n/a | AJ27: n/a | AK27: n/a
A28: 24 | C28: 24600 | D28: 2500 | E28: =Tabla9351220[[#This Row],[ Instalacion]]+Tabla9351220[[#This Row],[Coste Hardware]] -> 27100 | Q28: =Tabla9351220[[#This Row],[Kw Valle]]+Tabla9351220[[#This Row],[Kwh Llano]]+Tabla9351220[[#This Row],[Kwh Punta]]+Tabla9351220[[#This Row],[Kwh P1]]+Tabla9351220[[#This Row],[Kwh P2]]+Tabla9351220[[#This Row],[Kwh P3]]+Tabla9351220[[#This Row],[Kwh P4]]+Tabla9351220[[#This Row],[Kwh P5]]+Tabla9351220[[#This Row],[Kwh P6]] -> 0 | T28: =Tabla9351220[[#This Row],[Prod Solar]]-Tabla9351220[[#This Row],[Exportado]] -> 0 | W28: 0 | X28: 0 | Y28: 24.54445061 | Z28: =IF(W28=0,"No Disp",(Tabla9351220[[#This Row],[Inversion]]-Tabla9351220[[#This Row],[Ahorros(IBI)]])/W28) -> No Disp | AA28: años | AB28: n/a | AC28: n/a | AD28: n/a | AE28: n/a | AF28: n/a | AG28: n/a | AH28: n/a | AI28: n/a | AJ28: n/a | AK28: n/a
A29: 25 | C29: 25500 | D29: 2500 | E29: =Tabla9351220[[#This Row],[ Instalacion]]+Tabla9351220[[#This Row],[Coste Hardware]] -> 28000 | Q29: =Tabla9351220[[#This Row],[Kw Valle]]+Tabla9351220[[#This Row],[Kwh Llano]]+Tabla9351220[[#This Row],[Kwh Punta]]+Tabla9351220[[#This Row],[Kwh P1]]+Tabla9351220[[#This Row],[Kwh P2]]+Tabla9351220[[#This Row],[Kwh P3]]+Tabla9351220[[#This Row],[Kwh P4]]+Tabla9351220[[#This Row],[Kwh P5]]+Tabla9351220[[#This Row],[Kwh P6]] -> 0 | T29: =Tabla9351220[[#This Row],[Prod Solar]]-Tabla9351220[[#This Row],[Exportado]] -> 0 | W29: 0 | X29: 0 | Y29: 23.77221598 | Z29: =IF(W29=0,"No Disp",(Tabla9351220[[#This Row],[Inversion]]-Tabla9351220[[#This Row],[Ahorros(IBI)]])/W29) -> No Disp | AA29: años | AB29: n/a | AC29: n/a | AD29: n/a | AE29: n/a | AF29: n/a | AG29: n/a | AH29: n/a | AI29: n/a | AJ29: n/a | AK29: n/a
A30: 26 | C30: 26400 | D30: 2500 | E30: =Tabla9351220[[#This Row],[ Instalacion]]+Tabla9351220[[#This Row],[Coste Hardware]] -> 28900 | Q30: =Tabla9351220[[#This Row],[Kw Valle]]+Tabla9351220[[#This Row],[Kwh Llano]]+Tabla9351220[[#This Row],[Kwh Punta]]+Tabla9351220[[#This Row],[Kwh P1]]+Tabla9351220[[#This Row],[Kwh P2]]+Tabla9351220[[#This Row],[Kwh P3]]+Tabla9351220[[#This Row],[Kwh P4]]+Tabla9351220[[#This Row],[Kwh P5]]+Tabla9351220[[#This Row],[Kwh P6]] -> 0 | T30: =Tabla9351220[[#This Row],[Prod Solar]]-Tabla9351220[[#This Row],[Exportado]] -> 0 | W30: 0 | X30: 0 | Y30: 23.11036835 | Z30: =IF(W30=0,"No Disp",(Tabla9351220[[#This Row],[Inversion]]-Tabla9351220[[#This Row],[Ahorros(IBI)]])/W30) -> No Disp | AA30: años | AB30: n/a | AC30: n/a | AD30: n/a | AE30: n/a | AF30: n/a | AG30: n/a | AH30: n/a | AI30: n/a | AJ30: n/a | AK30: n/a
A31: 27 | C31: 27300 | D31: 2500 | E31: =Tabla9351220[[#This Row],[ Instalacion]]+Tabla9351220[[#This Row],[Coste Hardware]] -> 29800 | Q31: =Tabla9351220[[#This Row],[Kw Valle]]+Tabla9351220[[#This Row],[Kwh Llano]]+Tabla9351220[[#This Row],[Kwh Punta]]+Tabla9351220[[#This Row],[Kwh P1]]+Tabla9351220[[#This Row],[Kwh P2]]+Tabla9351220[[#This Row],[Kwh P3]]+Tabla9351220[[#This Row],[Kwh P4]]+Tabla9351220[[#This Row],[Kwh P5]]+Tabla9351220[[#This Row],[Kwh P6]] -> 0 | T31: =Tabla9351220[[#This Row],[Prod Solar]]-Tabla9351220[[#This Row],[Exportado]] -> 0 | W31: 0 | X31: 0 | Y31: 22.53298668 | Z31: =IF(W31=0,"No Disp",(Tabla9351220[[#This Row],[Inversion]]-Tabla9351220[[#This Row],[Ahorros(IBI)]])/W31) -> No Disp | AA31: años | AB31: n/a | AC31: n/a | AD31: n/a | AE31: n/a | AF31: n/a | AG31: n/a | AH31: n/a | AI31: n/a | AJ31: n/a | AK31: n/a
A32: 28 | C32: 28200 | D32: 2500 | E32: =Tabla9351220[[#This Row],[ Instalacion]]+Tabla9351220[[#This Row],[Coste Hardware]] -> 30700 | Q32: =Tabla9351220[[#This Row],[Kw Valle]]+Tabla9351220[[#This Row],[Kwh Llano]]+Tabla9351220[[#This Row],[Kwh Punta]]+Tabla9351220[[#This Row],[Kwh P1]]+Tabla9351220[[#This Row],[Kwh P2]]+Tabla9351220[[#This Row],[Kwh P3]]+Tabla9351220[[#This Row],[Kwh P4]]+Tabla9351220[[#This Row],[Kwh P5]]+Tabla9351220[[#This Row],[Kwh P6]] -> 0 | T32: =Tabla9351220[[#This Row],[Prod Solar]]-Tabla9351220[[#This Row],[Exportado]] -> 0 | W32: 0 | X32: 0 | Y32: 22.01199255 | Z32: =IF(W32=0,"No Disp",(Tabla9351220[[#This Row],[Inversion]]-Tabla9351220[[#This Row],[Ahorros(IBI)]])/W32) -> No Disp | AA32: años | AB32: n/a | AC32: n/a | AD32: n/a | AE32: n/a | AF32: n/a | AG32: n/a | AH32: n/a | AI32: n/a | AJ32: n/a | AK32: n/a
A33: 29 | C33: 29100 | D33: 2500 | E33: =Tabla9351220[[#This Row],[ Instalacion]]+Tabla9351220[[#This Row],[Coste Hardware]] -> 31600 | Q33: =Tabla9351220[[#This Row],[Kw Valle]]+Tabla9351220[[#This Row],[Kwh Llano]]+Tabla9351220[[#This Row],[Kwh Punta]]+Tabla9351220[[#This Row],[Kwh P1]]+Tabla9351220[[#This Row],[Kwh P2]]+Tabla9351220[[#This Row],[Kwh P3]]+Tabla9351220[[#This Row],[Kwh P4]]+Tabla9351220[[#This Row],[Kwh P5]]+Tabla9351220[[#This Row],[Kwh P6]] -> 0 | T33: =Tabla9351220[[#This Row],[Prod Solar]]-Tabla9351220[[#This Row],[Exportado]] -> 0 | W33: 0 | X33: 0 | Y33: 21.54584458 | Z33: =IF(W33=0,"No Disp",(Tabla9351220[[#This Row],[Inversion]]-Tabla9351220[[#This Row],[Ahorros(IBI)]])/W33) -> No Disp | AA33: años | AB33: n/a | AC33: n/a | AD33: n/a | AE33: n/a | AF33: n/a | AG33: n/a | AH33: n/a | AI33: n/a | AJ33: n/a | AK33: n/a
A34: 30 | C34: 30000 | D34: 2500 | E34: =Tabla9351220[[#This Row],[ Instalacion]]+Tabla9351220[[#This Row],[Coste Hardware]] -> 32500 | Q34: =Tabla9351220[[#This Row],[Kw Valle]]+Tabla9351220[[#This Row],[Kwh Llano]]+Tabla9351220[[#This Row],[Kwh Punta]]+Tabla9351220[[#This Row],[Kwh P1]]+Tabla9351220[[#This Row],[Kwh P2]]+Tabla9351220[[#This Row],[Kwh P3]]+Tabla9351220[[#This Row],[Kwh P4]]+Tabla9351220[[#This Row],[Kwh P5]]+Tabla9351220[[#This Row],[Kwh P6]] -> 0 | T34: =Tabla9351220[[#This Row],[Prod Solar]]-Tabla9351220[[#This Row],[Exportado]] -> 0 | W34: 0 | X34: 0 | Y34: 21.12061136 | Z34: =IF(W34=0,"No Disp",(Tabla9351220[[#This Row],[Inversion]]-Tabla9351220[[#This Row],[Ahorros(IBI)]])/W34) -> No Disp | AA34: años | AB34: n/a | AC34: n/a | AD34: n/a | AE34: n/a | AF34: n/a | AG34: n/a | AH34: n/a | AI34: n/a | AJ34: n/a | AK34: n/a
A35: 31 | C35: 30900 | D35: 2500 | E35: =Tabla9351220[[#This Row],[ Instalacion]]+Tabla9351220[[#This Row],[Coste Hardware]] -> 33400 | Q35: =Tabla9351220[[#This Row],[Kw Valle]]+Tabla9351220[[#This Row],[Kwh Llano]]+Tabla9351220[[#This Row],[Kwh Punta]]+Tabla9351220[[#This Row],[Kwh P1]]+Tabla9351220[[#This Row],[Kwh P2]]+Tabla9351220[[#This Row],[Kwh P3]]+Tabla9351220[[#This Row],[Kwh P4]]+Tabla9351220[[#This Row],[Kwh P5]]+Tabla9351220[[#This Row],[Kwh P6]] -> 0 | T35: =Tabla9351220[[#This Row],[Prod Solar]]-Tabla9351220[[#This Row],[Exportado]] -> 0 | W35: 0 | X35: 0 | Y35: 20.73654633 | Z35: =IF(W35=0,"No Disp",(Tabla9351220[[#This Row],[Inversion]]-Tabla9351220[[#This Row],[Ahorros(IBI)]])/W35) -> No Disp | AA35: años | AB35: n/a | AC35: n/a | AD35: n/a | AE35: n/a | AF35: n/a | AG35: n/a | AH35: n/a | AI35: n/a | AJ35: n/a | AK35: n/a
A36: 32 | C36: 31800 | D36: 2500 | E36: =Tabla9351220[[#This Row],[ Instalacion]]+Tabla9351220[[#This Row],[Coste Hardware]] -> 34300 | Q36: =Tabla9351220[[#This Row],[Kw Valle]]+Tabla9351220[[#This Row],[Kwh Llano]]+Tabla9351220[[#This Row],[Kwh Punta]]+Tabla9351220[[#This Row],[Kwh P1]]+Tabla9351220[[#This Row],[Kwh P2]]+Tabla9351220[[#This Row],[Kwh P3]]+Tabla9351220[[#This Row],[Kwh P4]]+Tabla9351220[[#This Row],[Kwh P5]]+Tabla9351220[[#This Row],[Kwh P6]] -> 0 | T36: =Tabla9351220[[#This Row],[Prod Solar]]-Tabla9351220[[#This Row],[Exportado]] -> 0 | W36: 0 | X36: 0 | Y36: 20.38576963 | Z36: =IF(W36=0,"No Disp",(Tabla9351220[[#This Row],[Inversion]]-Tabla9351220[[#This Row],[Ahorros(IBI)]])/W36) -> No Disp | AA36: años | AB36: n/a | AC36: n/a | AD36: n/a | AE36: n/a | AF36: n/a | AG36: n/a | AH36: n/a | AI36: n/a | AJ36: n/a | AK36: n/a
A37: 33 | C37: 32700 | D37: 2500 | E37: =Tabla9351220[[#This Row],[ Instalacion]]+Tabla9351220[[#This Row],[Coste Hardware]] -> 35200 | Q37: =Tabla9351220[[#This Row],[Kw Valle]]+Tabla9351220[[#This Row],[Kwh Llano]]+Tabla9351220[[#This Row],[Kwh Punta]]+Tabla9351220[[#This Row],[Kwh P1]]+Tabla9351220[[#This Row],[Kwh P2]]+Tabla9351220[[#This Row],[Kwh P3]]+Tabla9351220[[#This Row],[Kwh P4]]+Tabla9351220[[#This Row],[Kwh P5]]+Tabla9351220[[#This Row],[Kwh P6]] -> 0 | T37: =Tabla9351220[[#This Row],[Prod Solar]]-Tabla9351220[[#This Row],[Exportado]] -> 0 | W37: 0 | X37: 0 | Y37: 20.05629516 | Z37: =IF(W37=0,"No Disp",(Tabla9351220[[#This Row],[Inversion]]-Tabla9351220[[#This Row],[Ahorros(IBI)]])/W37) -> No Disp | AA37: años | AB37: n/a | AC37: n/a | AD37: n/a | AE37: n/a | AF37: n/a | AG37: n/a | AH37: n/a | AI37: n/a | AJ37: n/a | AK37: n/a
A38: 34 | C38: 33600 | D38: 2500 | E38: =Tabla9351220[[#This Row],[ Instalacion]]+Tabla9351220[[#This Row],[Coste Hardware]] -> 36100 | Q38: =Tabla9351220[[#This Row],[Kw Valle]]+Tabla9351220[[#This Row],[Kwh Llano]]+Tabla9351220[[#This Row],[Kwh Punta]]+Tabla9351220[[#This Row],[Kwh P1]]+Tabla9351220[[#This Row],[Kwh P2]]+Tabla9351220[[#This Row],[Kwh P3]]+Tabla9351220[[#This Row],[Kwh P4]]+Tabla9351220[[#This Row],[Kwh P5]]+Tabla9351220[[#This Row],[Kwh P6]] -> 0 | T38: =Tabla9351220[[#This Row],[Prod Solar]]-Tabla9351220[[#This Row],[Exportado]] -> 0 | W38: 0 | X38: 0 | Y38: 19.75077531 | Z38: =IF(W38=0,"No Disp",(Tabla9351220[[#This Row],[Inversion]]-Tabla9351220[[#This Row],[Ahorros(IBI)]])/W38) -> No Disp | AA38: años | AB38: n/a | AC38: n/a | AD38: n/a | AE38: n/a | AF38: n/a | AG38: n/a | AH38: n/a | AI38: n/a | AJ38: n/a | AK38: n/a
A39: 35 | C39: 34500 | D39: 2500 | E39: =Tabla9351220[[#This Row],[ Instalacion]]+Tabla9351220[[#This Row],[Coste Hardware]] -> 37000 | Q39: =Tabla9351220[[#This Row],[Kw Valle]]+Tabla9351220[[#This Row],[Kwh Llano]]+Tabla9351220[[#This Row],[Kwh Punta]]+Tabla9351220[[#This Row],[Kwh P1]]+Tabla9351220[[#This Row],[Kwh P2]]+Tabla9351220[[#This Row],[Kwh P3]]+Tabla9351220[[#This Row],[Kwh P4]]+Tabla9351220[[#This Row],[Kwh P5]]+Tabla9351220[[#This Row],[Kwh P6]] -> 0 | T39: =Tabla9351220[[#This Row],[Prod Solar]]-Tabla9351220[[#This Row],[Exportado]] -> 0 | W39: 0 | X39: 0 | Y39: 19.45970319 | Z39: =IF(W39=0,"No Disp",(Tabla9351220[[#This Row],[Inversion]]-Tabla9351220[[#This Row],[Ahorros(IBI)]])/W39) -> No Disp | AA39: años | AB39: n/a | AC39: n/a | AD39: n/a | AE39: n/a | AF39: n/a | AG39: n/a | AH39: n/a | AI39: n/a | AJ39: n/a | AK39: n/a
A40: 36 | C40: 35400 | D40: 2500 | E40: =Tabla9351220[[#This Row],[ Instalacion]]+Tabla9351220[[#This Row],[Coste Hardware]] -> 37900 | Q40: =Tabla9351220[[#This Row],[Kw Valle]]+Tabla9351220[[#This Row],[Kwh Llano]]+Tabla9351220[[#This Row],[Kwh Punta]]+Tabla9351220[[#This Row],[Kwh P1]]+Tabla9351220[[#This Row],[Kwh P2]]+Tabla9351220[[#This Row],[Kwh P3]]+Tabla9351220[[#This Row],[Kwh P4]]+Tabla9351220[[#This Row],[Kwh P5]]+Tabla9351220[[#This Row],[Kwh P6]] -> 0 | T40: =Tabla9351220[[#This Row],[Prod Solar]]-Tabla9351220[[#This Row],[Exportado]] -> 0 | W40: 0 | X40: 0 | Y40: 19.18663733 | Z40: =IF(W40=0,"No Disp",(Tabla9351220[[#This Row],[Inversion]]-Tabla9351220[[#This Row],[Ahorros(IBI)]])/W40) -> No Disp | AA40: años | AB40: n/a | AC40: n/a | AD40: n/a | AE40: n/a | AF40: n/a | AG40: n/a | AH40: n/a | AI40: n/a | AJ40: n/a | AK40: n/a
A41: 37 | C41: 36300 | D41: 2500 | E41: =Tabla9351220[[#This Row],[ Instalacion]]+Tabla9351220[[#This Row],[Coste Hardware]] -> 38800 | Q41: =Tabla9351220[[#This Row],[Kw Valle]]+Tabla9351220[[#This Row],[Kwh Llano]]+Tabla9351220[[#This Row],[Kwh Punta]]+Tabla9351220[[#This Row],[Kwh P1]]+Tabla9351220[[#This Row],[Kwh P2]]+Tabla9351220[[#This Row],[Kwh P3]]+Tabla9351220[[#This Row],[Kwh P4]]+Tabla9351220[[#This Row],[Kwh P5]]+Tabla9351220[[#This Row],[Kwh P6]] -> 0 | T41: =Tabla9351220[[#This Row],[Prod Solar]]-Tabla9351220[[#This Row],[Exportado]] -> 0 | W41: 0 | X41: 0 | Y41: 18.93584176 | Z41: =IF(W41=0,"No Disp",(Tabla9351220[[#This Row],[Inversion]]-Tabla9351220[[#This Row],[Ahorros(IBI)]])/W41) -> No Disp | AA41: años | AB41: n/a | AC41: n/a | AD41: n/a | AE41: n/a | AF41: n/a | AG41: n/a | AH41: n/a | AI41: n/a | AJ41: n/a | AK41: n/a
A42: 38 | C42: 37200 | D42: 2500 | E42: =Tabla9351220[[#This Row],[ Instalacion]]+Tabla9351220[[#This Row],[Coste Hardware]] -> 39700 | Q42: =Tabla9351220[[#This Row],[Kw Valle]]+Tabla9351220[[#This Row],[Kwh Llano]]+Tabla9351220[[#This Row],[Kwh Punta]]+Tabla9351220[[#This Row],[Kwh P1]]+Tabla9351220[[#This Row],[Kwh P2]]+Tabla9351220[[#This Row],[Kwh P3]]+Tabla9351220[[#This Row],[Kwh P4]]+Tabla9351220[[#This Row],[Kwh P5]]+Tabla9351220[[#This Row],[Kwh P6]] -> 0 | T42: =Tabla9351220[[#This Row],[Prod Solar]]-Tabla9351220[[#This Row],[Exportado]] -> 0 | W42: 0 | X42: 0 | Y42: 18.70422725 | Z42: =IF(W42=0,"No Disp",(Tabla9351220[[#This Row],[Inversion]]-Tabla9351220[[#This Row],[Ahorros(IBI)]])/W42) -> No Disp | AA42: años | AB42: n/a | AC42: n/a | AD42: n/a | AE42: n/a | AF42: n/a | AG42: n/a | AH42: n/a | AI42: n/a | AJ42: n/a | AK42: n/a
A43: 39 | C43: 38100 | D43: 2500 | E43: =Tabla9351220[[#This Row],[ Instalacion]]+Tabla9351220[[#This Row],[Coste Hardware]] -> 40600 | Q43: =Tabla9351220[[#This Row],[Kw Valle]]+Tabla9351220[[#This Row],[Kwh Llano]]+Tabla9351220[[#This Row],[Kwh Punta]]+Tabla9351220[[#This Row],[Kwh P1]]+Tabla9351220[[#This Row],[Kwh P2]]+Tabla9351220[[#This Row],[Kwh P3]]+Tabla9351220[[#This Row],[Kwh P4]]+Tabla9351220[[#This Row],[Kwh P5]]+Tabla9351220[[#This Row],[Kwh P6]] -> 0 | T43: =Tabla9351220[[#This Row],[Prod Solar]]-Tabla9351220[[#This Row],[Exportado]] -> 0 | W43: 0 | X43: 0 | Y43: 18.49558579 | Z43: =IF(W43=0,"No Disp",(Tabla9351220[[#This Row],[Inversion]]-Tabla9351220[[#This Row],[Ahorros(IBI)]])/W43) -> No Disp | AA43: años | AB43: n/a | AC43: n/a | AD43: n/a | AE43: n/a | AF43: n/a | AG43: n/a | AH43: n/a | AI43: n/a | AJ43: n/a | AK43: n/a
A44: 40 | C44: 39000 | D44: 2500 | E44: =Tabla9351220[[#This Row],[ Instalacion]]+Tabla9351220[[#This Row],[Coste Hardware]] -> 41500 | Q44: =Tabla9351220[[#This Row],[Kw Valle]]+Tabla9351220[[#This Row],[Kwh Llano]]+Tabla9351220[[#This Row],[Kwh Punta]]+Tabla9351220[[#This Row],[Kwh P1]]+Tabla9351220[[#This Row],[Kwh P2]]+Tabla9351220[[#This Row],[Kwh P3]]+Tabla9351220[[#This Row],[Kwh P4]]+Tabla9351220[[#This Row],[Kwh P5]]+Tabla9351220[[#This Row],[Kwh P6]] -> 0 | T44: =Tabla9351220[[#This Row],[Prod Solar]]-Tabla9351220[[#This Row],[Exportado]] -> 0 | W44: 0 | X44: 0 | Y44: 18.30669999 | Z44: =IF(W44=0,"No Disp",(Tabla9351220[[#This Row],[Inversion]]-Tabla9351220[[#This Row],[Ahorros(IBI)]])/W44) -> No Disp | AA44: años | AB44: n/a | AC44: n/a | AD44: n/a | AE44: n/a | AF44: n/a | AG44: n/a | AH44: n/a | AI44: n/a | AJ44: n/a | AK44: n/a

Sheet RENT BAT VE 10Kwh
G1: 0.25 | H1: 0 | I1: 0.03 | K1: 0.16 | L1: 0.14 | M1: 0.11 | N1: 0.09 | O1: 0.08 | P1: 0.08 | U1: 0.05 | V1: 0.05 | W1: 0.05 | AB1: =INDIRECT(CONCATENATE("Y",AB2+4)) -> 16.15256203 | AD1: =INDIRECT(CONCATENATE("Y",AD2+4)) -> 15.24042533 | AF1: =INDIRECT(CONCATENATE("Y",AF2+4)) -> 14.86400182 | AH1: =INDIRECT(CONCATENATE("Y",AH2+4)) -> 14.65769518 | AJ1: =INDIRECT(CONCATENATE("Y",AJ2+4)) -> 14.55998629
A2: RENTABILIDAD BATERIA | D2: 10 | G2: CONSUMO COMPAÑÍA | R2: Ahorro en los X años | AB2: =MATCH(AC2,AC5:AC44,0) -> 5 | AC2: =MIN(AC5:AC44) -> 16818.6 | AD2: =MATCH(AE2,AE5:AE44,0) -> 7 | AE2: =MIN(AE5:AE44) -> 21098 | AF2: =MATCH(AG2,AG5:AG44,0) -> 9 | AG2: =MIN(AG5:AG44) -> 24224.3 | AH2: =MATCH(AI2,AI5:AI44,0) -> 11 | AI2: =MIN(AI5:AI44) -> 26741 | AJ2: =MATCH(AK2,AK5:AK44,0) -> 12 | AK2: =MIN(AK5:AK44) -> 28862
A3: ' | B3: Factura | C3: Coste Hardware | D3: Instalacion | E3: Inversion | F3: Ahorros(IBI) | G3: Kwh Punta | H3: Kwh Llano | I3: Kw Valle | J3: C | K3: Kwh P1 | L3: Kwh P2 | M3: Kwh P3 | N3: Kwh P4 | O3: Kwh P5 | P3: Kwh P6 | Q3: Total | R3: P Max 99.5 | S3: Prod Solar | T3: Consumido | U3: Exportado | V3: %Aut | W3: Dif Anual | X3: Dif Anterior | Y3: Dura Bat | Z3: Amortizacion | AB3: 5 | AC3: 5 años TOT | AD3: 10 | AE3: 10 años TOT | AF3: 15 | AG3: 15 años TOT | AH3: 20 | AI3: 20 años TOT | AJ3: 25 | AK3: 25 años TOT
A4: ORIGINAL | B4: 3486.45 | G4: 9975.773 | H4: 0 | I4: 1517.136 | K4: 0 | L4: 0 | M4: 0 | N4: 0 | O4: 0 | P4: 0 | Q4: =Tabla9351216[[#This Row],[Kw Valle]]+Tabla9351216[[#This Row],[Kwh Llano]]+Tabla9351216[[#This Row],[Kwh Punta]]+Tabla9351216[[#This Row],[Kwh P1]]+Tabla9351216[[#This Row],[Kwh P2]]+Tabla9351216[[#This Row],[Kwh P3]]+Tabla9351216[[#This Row],[Kwh P4]]+Tabla9351216[[#This Row],[Kwh P5]]+Tabla9351216[[#This Row],[Kwh P6]] -> 11492.909 | AC4: =FV(INFLACCION,AB3,-$B$4,0) -> 17432.25 | AE4: =FV(INFLACCION,AD3,-$B$4,0) -> 34864.5 | AG4: =FV(INFLACCION,AF3,-$B$4,0) -> 52296.75 | AI4: =FV(INFLACCION,AH3,-$B$4,0) -> 69729 | AK4: =FV(INFLACCION,AJ3,-$B$4,0) -> 87161.25
A5: 1 | B5: 2258.78 | C5: 3000 | D5: =COSTE_BATERIA*CAPACIDAD_BATERIA -> 5000 | E5: =Tabla9351216[[#This Row],[ Instalacion]]+Tabla9351216[[#This Row],[Coste Hardware]] -> 8000 | G5: 6016.74563 | H5: 0 | I5: 4573.282534 | K5: 0 | L5: 0 | M5: 0 | N5: 0 | O5: 0 | P5: 0 | Q5: =Tabla9351216[[#This Row],[Kw Valle]]+Tabla9351216[[#This Row],[Kwh Llano]]+Tabla9351216[[#This Row],[Kwh Punta]]+Tabla9351216[[#This Row],[Kwh P1]]+Tabla9351216[[#This Row],[Kwh P2]]+Tabla9351216[[#This Row],[Kwh P3]]+Tabla9351216[[#This Row],[Kwh P4]]+Tabla9351216[[#This Row],[Kwh P5]]+Tabla9351216[[#This Row],[Kwh P6]] -> 10590.02816 | R5: 1018.76 | S5: 1364.27547 | T5: =Tabla9351216[[#This Row],[Prod Solar]]-Tabla9351216[[#This Row],[Exportado]] -> 0 | U5: 1364.27547 | V5: 0 | W5: =IF(B5=0,0,B$4-B5) -> 1227.67 | X5: =IF(B5=0,0,B4-B5) -> 1227.67 | Y5: 19.50559177 | Z5: =IF(W5=0,"No Disp",(Tabla9351216[[#This Row],[Inversion]]-Tabla9351216[[#This Row],[Ahorros(IBI)]])/W5) -> 6.516409133 | AA5: años | AB5: =IF($B5=0,"n/a",AC$4-(FV(INFLACCION,AB$3,-$B5,0))-$E5+$F5) -> -1861.65 | AC5: =IF(AB5<>"n/a",AC$4-AB5,"n/a") -> 19293.9 | AD5: =IF($B5=0,"n/a",AE$4-(FV(INFLACCION,AD$3,-$B5,0))-$E5+$F5) -> 4276.7 | AE5: =IF(AD5<>"n/a",AE$4-AD5,"n/a") -> 30587.8 | AF5: =IF($B5=0,"n/a",AG$4-(FV(INFLACCION,AF$3,-$B5,0))-$E5+$F5) -> 10415.05 | AG5: =IF(AF5<>"n/a",AG$4-AF5,"n/a") -> 41881.7 | AH5: =IF($B5=0,"n/a",AI$4-(FV(INFLACCION,AH$3,-$B5,0))-$E5+$F5) -> 16553.4 | AI5: =IF(AH5<>"n/a",AI$4-AH5,"n/a") -> 53175.6 | AJ5: =IF($B5=0,"n/a",AK$4-(FV(INFLACCION,AJ$3,-$B5,0))-$E5+$F5) -> 22691.75 | AK5: =IF(AJ5<>"n/a",AK$4-AJ5,"n/a") -> 64469.5
A6: 2 | B6: 1782.37 | C6: 4820 | D6: 5000 | E6: =Tabla9351216[[#This Row],[ Instalacion]]+Tabla9351216[[#This Row],[Coste Hardware]] -> 9820 | G6: 4795.116899 | H6: 0 | I6: 4527.797811 | K6: 0 | L6: 0 | M6: 0 | N6: 0 | O6: 0 | P6: 0 | Q6: =Tabla9351216[[#This Row],[Kw Valle]]+Tabla9351216[[#This Row],[Kwh Llano]]+Tabla9351216[[#This Row],[Kwh Punta]]+Tabla9351216[[#This Row],[Kwh P1]]+Tabla9351216[[#This Row],[Kwh P2]]+Tabla9351216[[#This Row],[Kwh P3]]+Tabla9351216[[#This Row],[Kwh P4]]+Tabla9351216[[#This Row],[Kwh P5]]+Tabla9351216[[#This Row],[Kwh P6]] -> 9322.91471 | R6: 2037.52 | S6: 2728.55094 | T6: =Tabla9351216[[#This Row],[Prod Solar]]-Tabla9351216[[#This Row],[Exportado]] -> 0 | U6: 2728.55094 | V6: 0 | W6: 1704.08 | X6: =IF(B6=0,0,B5-B6) -> 476.41 | Y6: 18.77927219 | Z6: =IF(W6=0,"No Disp",(Tabla9351216[[#This Row],[Inversion]]-Tabla9351216[[#This Row],[Ahorros(IBI)]])/W6) -> 5.762640252 | AA6: años | AB6: =IF($B6=0,"n/a",AC$4-(FV(INFLACCION,AB$3,-$B6,0))-$E6+$F6) -> -1299.6 | AC6: =IF(AB6<>"n/a",AC$4-AB6,"n/a") -> 18731.85 | AD6: 7220.8 | AE6: =IF(AD6<>"n/a",AE$4-AD6,"n/a") -> 27643.7 | AF6: 15741.2 | AG6: =IF(AF6<>"n/a",AG$4-AF6,"n/a") -> 36555.55 | AH6: 24261.6 | AI6: =IF(AH6<>"n/a",AI$4-AH6,"n/a") -> 45467.4 | AJ6: 32782 | AK6: =IF(AJ6<>"n/a",AK$4-AJ6,"n/a") -> 54379.25
A7: 3 | B7: 1415.71 | C7: 5450 | D7: 5000 | E7: =Tabla9351216[[#This Row],[ Instalacion]]+Tabla9351216[[#This Row],[Coste Hardware]] -> 10450 | G7: 3921.204452 | H7: 0 | I7: 4464.456876 | K7: 0 | L7: 0 | M7: 0 | N7: 0 | O7: 0 | P7: 0 | Q7: =Tabla9351216[[#This Row],[Kw Valle]]+Tabla9351216[[#This Row],[Kwh Llano]]+Tabla9351216[[#This Row],[Kwh Punta]]+Tabla9351216[[#This Row],[Kwh P1]]+Tabla9351216[[#This Row],[Kwh P2]]+Tabla9351216[[#This Row],[Kwh P3]]+Tabla9351216[[#This Row],[Kwh P4]]+Tabla9351216[[#This Row],[Kwh P5]]+Tabla9351216[[#This Row],[Kwh P6]] -> 8385.661328 | R7: 3056.28 | S7: 4092.82641 | T7: =Tabla9351216[[#This Row],[Prod Solar]]-Tabla9351216[[#This Row],[Exportado]] -> 0 | U7: 4092.82641 | V7: 0 | W7: 2070.74 | X7: =IF(B7=0,0,B6-B7) -> 366.66 | Y7: 17.85917328 | Z7: =IF(W7=0,"No Disp",(Tabla9351216[[#This Row],[Inversion]]-Tabla9351216[[#This Row],[Ahorros(IBI)]])/W7) -> 5.046505114 | AA7: años | AB7: -96.3 | AC7: 17528.55 | AD7: 10257.4 | AE7: 24607.1 | AF7: 20611.1 | AG7: 31685.65 | AH7: 30964.8 | AI7: 38764.2 | AJ7: 41318.5 | AK7: 45842.75
A8: 4 | B8: 1135.82 | C8: 6300 | D8: 5000 | E8: =Tabla9351216[[#This Row],[ Instalacion]]+Tabla9351216[[#This Row],[Coste Hardware]] -> 11300 | G8: 3283.186516 | H8: 0 | I8: 4407.717191 | K8: 0 | L8: 0 | M8: 0 | N8: 0 | O8: 0 | P8: 0 | Q8: =Tabla9351216[[#This Row],[Kw Valle]]+Tabla9351216[[#This Row],[Kwh Llano]]+Tabla9351216[[#This Row],[Kwh Punta]]+Tabla9351216[[#This Row],[Kwh P1]]+Tabla9351216[[#This Row],[Kwh P2]]+Tabla9351216[[#This Row],[Kwh P3]]+Tabla9351216[[#This Row],[Kwh P4]]+Tabla9351216[[#This Row],[Kwh P5]]+Tabla9351216[[#This Row],[Kwh P6]] -> 7690.903707 | R8: 4075.04 | S8: 5457.10188 | T8: =Tabla9351216[[#This Row],[Prod Solar]]-Tabla9351216[[#This Row],[Exportado]] -> 0 | U8: 5457.10188 | V8: 0 | W8: 2350.63 | X8: =IF(B8=0,0,B7-B8) -> 279.89 | Y8: 16.90813837 | Z8: =IF(W8=0,"No Disp",(Tabla9351216[[#This Row],[Inversion]]-Tabla9351216[[#This Row],[Ahorros(IBI)]])/W8) -> 4.807221894 | AA8: años | AB8: 453.15 | AC8: 16979.1 | AD8: 12206.3 | AE8: 22658.2 | AF8: 23959.45 | AG8: 28337.3 | AH8: 35712.6 | AI8: 34016.4 | AJ8: 47465.75 | AK8: 39695.5
A9: 5 | B9: 923.72 | C9: 7200 | D9: 5000 | E9: =Tabla9351216[[#This Row],[ Instalacion]]+Tabla9351216[[#This Row],[Coste Hardware]] -> 12200 | G9: 2804.55741 | H9: 0 | I9: 4362.454126 | K9: 0 | L9: 0 | M9: 0 | N9: 0 | O9: 0 | P9: 0 | Q9: =Tabla9351216[[#This Row],[Kw Valle]]+Tabla9351216[[#This Row],[Kwh Llano]]+Tabla9351216[[#This Row],[Kwh Punta]]+Tabla9351216[[#This Row],[Kwh P1]]+Tabla9351216[[#This Row],[Kwh P2]]+Tabla9351216[[#This Row],[Kwh P3]]+Tabla9351216[[#This Row],[Kwh P4]]+Tabla9351216[[#This Row],[Kwh P5]]+Tabla9351216[[#This Row],[Kwh P6]] -> 7167.011536 | R9: 5093.8 | S9: 6821.37735 | T9: =Tabla9351216[[#This Row],[Prod Solar]]-Tabla9351216[[#This Row],[Exportado]] -> 0 | U9: 6821.37735 | V9: 0 | W9: 2562.73 | X9: 212.1 | Y9: 16.15256203 | Z9: =IF(W9=0,"No Disp",(Tabla9351216[[#This Row],[Inversion]]-Tabla9351216[[#This Row],[Ahorros(IBI)]])/W9) -> 4.760548322 | AA9: años | AB9: 613.65 | AC9: 16818.6 | AD9: 13427.3 | AE9: 21437.2 | AF9: 26240.95 | AG9: 26055.8 | AH9: 39054.6 | AI9: 30674.4 | AJ9: 51868.25 | AK9: 35293
A10: 6 | B10: 780.72 | C10: 8300 | D10: 5000 | E10: =Tabla9351216[[#This Row],[ Instalacion]]+Tabla9351216[[#This Row],[Coste Hardware]] -> 13300 | G10: 2439.230994 | H10: 0 | I10: 4332.280755 | K10: 0 | L10: 0 | M10: 0 | N10: 0 | O10: 0 | P10: 0 | Q10: =Tabla9351216[[#This Row],[Kw Valle]]+Tabla9351216[[#This Row],[Kwh Llano]]+Tabla9351216[[#This Row],[Kwh Punta]]+Tabla9351216[[#This Row],[Kwh P1]]+Tabla9351216[[#This Row],[Kwh P2]]+Tabla9351216[[#This Row],[Kwh P3]]+Tabla9351216[[#This Row],[Kwh P4]]+Tabla9351216[[#This Row],[Kwh P5]]+Tabla9351216[[#This Row],[Kwh P6]] -> 6771.511749 | R10: 6112.56 | S10: 8185.65282 | T10: =Tabla9351216[[#This Row],[Prod Solar]]-Tabla9351216[[#This Row],[Exportado]] -> 0 | U10: 8185.65282 | V10: 0 | W10: 2705.73 | X10: 143 | Y10: 15.59760265 | Z10: =IF(W10=0,"No Disp",(Tabla9351216[[#This Row],[Inversion]]-Tabla9351216[[#This Row],[Ahorros(IBI)]])/W10) -> 4.915494155 | AA10: años | AB10: 228.65 | AC10: 17203.6 | AD10: 13757.3 | AE10: 21107.2 | AF10: 27285.95 | AG10: 25010.8 | AH10: 40814.6 | AI10: 28914.4 | AJ10: 54343.25 | AK10: 32818
A11: 7 | B11: 679.8 | C11: 9300 | D11: 5000 | E11: =Tabla9351216[[#This Row],[ Instalacion]]+Tabla9351216[[#This Row],[Coste Hardware]] -> 14300 | G11: 2169.43173 | H11: 0 | I11: 4299.902582 | K11: 0 | L11: 0 | M11: 0 | N11: 0 | O11: 0 | P11: 0 | Q11: =Tabla9351216[[#This Row],[Kw Valle]]+Tabla9351216[[#This Row],[Kwh Llano]]+Tabla9351216[[#This Row],[Kwh Punta]]+Tabla9351216[[#This Row],[Kwh P1]]+Tabla9351216[[#This Row],[Kwh P2]]+Tabla9351216[[#This Row],[Kwh P3]]+Tabla9351216[[#This Row],[Kwh P4]]+Tabla9351216[[#This Row],[Kwh P5]]+Tabla9351216[[#This Row],[Kwh P6]] -> 6469.334311 | R11: 7131.32 | S11: 9549.92829 | T11: =Tabla9351216[[#This Row],[Prod Solar]]-Tabla9351216[[#This Row],[Exportado]] -> 0 | U11: 9549.92829 | V11: 0 | W11: 2806.65 | X11: 100.92 | Y11: 15.24042533 | Z11: =IF(W11=0,"No Disp",(Tabla9351216[[#This Row],[Inversion]]-Tabla9351216[[#This Row],[Ahorros(IBI)]])/W11) -> 5.095042132 | AA11: años | AB11: -266.75 | AC11: 17699 | AD11: 13766.5 | AE11: 21098 | AF11: 27799.75 | AG11: 24497 | AH11: 41833 | AI11: 27896 | AJ11: 55866.25 | AK11: 31295
